Workbook

Sheet Introduction
A1: Welcome to the Yards Per Fantasy 2024 Projections Template - post-season edition!
A3: This document is set up to help you project the stats of every key player in the NFL for 2024
A4: All the hard work is done for you, just follow the instructions on the next page and have fun!
A6: Key Notes:
A7: 1. the projections are a data point, a guide to help you understand the range of outcomes for players. It is not an absolute prediction and guarantee of what can happen - even Vegas can't get that right!
A8: 2. there is no better way to truly understand how a team operates, functions and approaches games then go through this process. Whether you use the output or not, the process is vital to truly understand fantasy football
A9: 3. for this Post-Season edition, a number of the usual features have been removed because they just don’t make sense for weekly projections
A10: 4. this file contains three key elements:
B12: - Projections - go through and project the players for all the remaining playoff teams
B13: - Player Props - choose your player and add your favourite player prop in the 'Prop Checker' tool to get a recommendation based on your own projection
B14: - DFS - based on your own projections, see who are the best value plays or compare two players
A17: NOW LETS GO!

Sheet Settings & Instructions
B1: Welcome to the Yards Per Fantasy Projections Template! Instructions are below - have fun and hit us up with any questions or issues (admin@yardsperfantasy.com) | AA1: 1 | AB1: Week 1
B2: Not sure where to start? Check out our article on how to go about your projections | AA2: 2 | AB2: Week 2
AA3: 4 | AB3: Week 4
A4: League Settings | D4: {Manual Entry - update to match your individual settings} | F4: Use #SFB14 Settings? | G4: No | AA4: 5 | AB4: Week 5
C5: Value | D5: Value | E5: #SFB14 Settings | AA5: 6 | AB5: Week 6
B6: QB Passing TDs | C6: =IF($G$4="YES",E6,D6) -> 4 | D6: 4 | E6: 6 | AA6: 7 | AB6: Week 7
B7: QB Passing Yards | C7: =IF($G$4="YES",E7,D7) -> 0.04 | D7: =1/25 -> 0.04 | E7: 0.02 | AA7: 8 | AB7: Week 8
B8: Interceptions | C8: -2 | D8: -2 | E8: -2 | AA8: 9 | AB8: Week 9
B9: QB Completions | C9: 0 | D9: 0 | E9: 0
B10: QB Incompletions | C10: 0 | D10: 0 | E10: 0
B11: Rushing TD | C11: 6 | D11: 6 | E11: 6 | AA11: 10 | AB11: Week 10
B12: Receptions | C12: 0.5 | D12: 0.5 | E12: 0.5 | AA12: 11 | AB12: Week 11
B13: Premium - Tight End | C13: 0 | D13: 0 | E13: 1 | AA13: 12 | AB13: Week 12
B14: Premium - Wide Receiver | C14: 0 | D14: 0 | E14: 0.5 | AA14: 13 | AB14: Week 13
B15: Premium - Running Back | C15: 0 | D15: 0 | E15: 0 | AA15: 14 | AB15: Week 14
B16: Rushing Yards | C16: 0.1 | D16: 0.1 | E16: 0.1 | AA16: 15 | AB16: Week 15
B17: Receiving Yards | C17: 0.1 | D17: 0.1 | E17: 0.1 | AA17: 16 | AB17: Week 16
B18: Receiving TDs | C18: 6 | D18: 6 | E18: 6 | AA18: 17 | AB18: Week 17
B19: Rush Attempts / Carries | C19: 0 | D19: 0 | E19: 0.25
B20: First Downs - Passing | C20: 0 | D20: 0 | E20: 0.5
B21: First Downs - Rushing | C21: 0 | D21: 0 | E21: 0.5
B22: First Downs - Receiving | C22: 0 | D22: 0 | E22: 0.5
B23: First Downs - Receiving (Tight End Premium) | C23: 0 | D23: 0 | E23: 1
B24: Kick / Punt Return Yards | C24: 0 | D24: 0 | E24: 0.2 | AA24: 18 | AB24: Week 18
B25: Kick / Punt Return TDs | C25: 0 | D25: 0 | E25: 10
A27: Instructions | D27: *If this file runs slow, go to the Formulas menu / Calculation Options and set to 'Manual'. When you've finished updating, put it back to 'Automatic' and 'Calculate Now' or Press F9
A29: 1 | B29: For each team, populate the Manual Entry cells. Refer to the 'Steps' guidance for help on how to get going
A30: 2 | B30: Start with the Team Projection line to project total play volume and passing %
A31: 3 | B31: Insert the players against their positions and all other Manual Entry Cells (target share, catch %, yards per reception, etc)
A32: 4 | B32: Note: 2024 Regular Season Data is shown underneath to help with the process
A33: 5 | B33: As well as detailed 2024 Regular Season data at the bottom of each team page, you can see a single player's stats right there where you're projecting to help guide you
A34: 6 | B34: The Top Projected Players for each team will be nicely summarised at the top of the page so you can quickly see what you're projecting
A35: 7 | B35: Note: Target Share % and Rush Share % should each add up to 100%. If they don't, you will see an Error comment at the top
A36: 8 | B36: Once the skill position players have been completed, most of the Quarterback stats will auto-populate. Now update the Manual Entry elements for the Quarterbacks
A37: 9 | B37: If Calculations are turned to Manual (recommended if running slow), press F9 at any time to calculate
A38: 10 | B38: When projecting touchdowns, think about projecting in decimals (e.g. 0.5 of a touchdown). There are only so many touchdowns to go around in a game so you have to play the probability game
A39: 11 | B39: Compare the Expected Touchdowns at the top of each team to see what vegas thinks they'll do compared to how many touchdowns you're projecting
A40: 12 | B40: When each team is completed, you will see the players and their projections listed under Total Projections and QB Projections
A41: 13 | B41: The Total Rankings (excl QB), QB Rankings and Positional Rankings tabs will automatically rank each player
A42: 14 | B42: Prop Checker. Select your player/position and the prop you want to check, then put in the over/under from your preferred betting site and select your risk appetite.
B43: It will give you a recommendation of "over", "under" or "no bet" depending on those thresholds.
B44: Note: This is a tool to give you a recommendation based on your own projections. Please ensure you've given full consideration before making any bets
A45: 15 | B45: DFS. Select which DFS site you're using and you'll automatically see the best value plays based on your own projections. Or you can add two separate players and compare their values
B47: NOTE: If a player is not returning a value on the DFS Dashboard, check the spelling and remove any suffix (,,, etc)

Sheet Prop Checker
A1: Yards Per Fantasy Prop Checker | E1: Instructions: Choose a player and select their position then
E2: select the prop and your risk appetite | O2: Targets | Q2: Quarterback | S2: Low Risk | T2: 0.9 | U2: 1.1
A3: Populate the light blue cells | E3: Finally, input the over/under from your preferred site and | O3: Receptions | Q3: Wide Receiver | S3: Medium Risk | T3: 0.95 | U3: 1.05
E4: see the recommendation of "Over" or "Under" | O4: Receiving Yards | Q4: Running Back | S4: High Risk | T4: 1 | U4: 1
A5: INSERT PLAYER: | B5: Justin Jefferson | O5: Receiving TDs | Q5: Tight End
A6: POSITION: | B6: Wide Receiver | O6: Rush Att
O7: Rushing Yards | T7: =IF($F$8=$S$2,T2,IF($F$8=$S$3,T3,IF($F$8=$S$4,T4,0))) -> 0.9 | U7: =IF($F$8=$S$2,U2,IF($F$8=$S$3,U3,IF($F$8=$S$4,U4,0))) -> 1.1
A8: SELECT PROP: | B8: Receptions | E8: RISK APPETITE | F8: Low Risk | O8: Rushing TDs
A9: OVER/UNDER: | B9: 3 | O9: Pass Att. | T9: =IFERROR(B11/B9,0) -> 0
O10: Completions
A11: PROJECTION: | B11: =IF(B6="Quarterback",INDEX('QB Projections'!A3:K17,MATCH('Prop Checker'!B5,'QB Projections'!C3:C17,0),MATCH('Prop Checker'!B8,'QB Projections'!A3:K3,0)),INDEX('Total Projections (excl QB)'!A3:N227,MATCH('Prop Checker'!B5,'Total Projections (excl QB)'!D3:D227,0),MATCH('Prop Checker'!B8,'Total Projections (excl QB)'!A3:N3,0))) -> 0 | O11: Pass Yds.
O12: Pass TD
A13: +/- to Prop | B13: =B11-B9 -> -3 | E13: Recommendation: | F13: =IF(T9>U7,"OVER",IF(T9<T7,"UNDER","NO BET")) -> UNDER
A16: PROMO CODES
A17: BetUS - use promo code YARDSPER | E17: Note: This is a tool to give you a recommendation based on your own projections, it is not gambling advice
A18: Underdog - use promo code YARDSPER | E18: Please ensure you've given full consideration before making any bets
E19: If you need any help, call 1-800-GAMBLER

Sheet DFS Dashboard
A1: Yards Per Fantasy DFS Dashboard | G1: DFS SITE: | H1: FanDuel | J1: Step 1: Select which site you're playing on
Q2: Quarterback | R2: DraftKings | T2: DraftKings | U2: Fanduel
Q3: Wide Receiver | R3: FanDuel | S3: Passing Yards | T3: =1/25 -> 0.04 | U3: 0.04
A4: Individual Player Check or Compare Two Players | F4: Step 2: Choose 2 players to compare the projection and value | Q4: Running Back | S4: Passing TD | T4: 4 | U4: 4
Q5: Tight End | S5: Interceptions | T5: -1 | U5: -1
S6: Rush yards | T6: 0.1 | U6: 0.1
A7: INSERT PLAYER: | B7: Josh Allen | G7: INSERT PLAYER: | H7: Lamar Jackson | S7: Rush TD | T7: 6 | U7: 6
S8: Rec Yards | T8: 0.1 | U8: 0.1
S9: Rec TD | T9: 6 | U9: 6
A10: Projected Fantasy Points | C10: =IFERROR(IFERROR(VLOOKUP(B7,'QB Projections'!$C:$L,10,0),VLOOKUP(B7,'Total Projections (excl QB)'!$D:$O,12,0)),0) -> 0 | G10: Projected Fantasy Points | I10: =IFERROR(IFERROR(VLOOKUP(H7,'QB Projections'!$C:$L,10,0),VLOOKUP(H7,'Total Projections (excl QB)'!$D:$O,12,0)),0) -> 0 | S10: Receptions | T10: 1 | U10: 0.5
A11: $ Value | C11: =IF($H$1="Draftkings",IFERROR(VLOOKUP(B7,DraftKings!$A:$B,2,0),VLOOKUP(B7,DraftKings!$C:$D,2,0)),IF($H$1="FanDuel",IFERROR(VLOOKUP(B7,FanDuel!$A:$B,2,0),VLOOKUP(B7,FanDuel!$C:$D,2,0)))) -> 8900 | G11: $ Value | I11: =IF($H$1="Draftkings",IFERROR(VLOOKUP(H7,DraftKings!$A:$B,2,0),VLOOKUP(H7,DraftKings!$C:$D,2,0)),IF($H$1="FanDuel",IFERROR(VLOOKUP(H7,FanDuel!$A:$B,2,0),VLOOKUP(H7,FanDuel!$C:$D,2,0)))) -> 8700 | S11: 100 yard rush bonus | T11: 3 | U11: 3
S12: 100 yard rec bonus | T12: 3 | U12: 3
A13: $ / point | C13: =IFERROR(C11/C10,"No Projection") -> No Projection | G13: $ / point | I13: =IFERROR(I11/I10,"No Projection") -> No Projection | S13: 300 pass yard bonus | T13: 3 | U13: 3
C15: =IF(C13<I13,"Better Value","") ->  | I15: =IF(I13<C13,"Better Value","") -> 
A18: Step 3: See the top 5 value plays (lowest $ / point) by position & your highest projected scorers by position
A20: Best Value Plays by Position | G20: Highest Projected Scorers by Position
A22: Quarterback | G22: Quarterback
A23: =IFERROR(INDEX('QB Rankings'!A:O,MATCH(1,'QB Rankings'!O:O,0),3),"") -> Lamar Jackson | B23: =IFERROR(VLOOKUP($A23,'QB Rankings'!$C:$O,11,0),"") -> 8700 | C23: =IF(IFERROR(VLOOKUP($A23,'QB Rankings'!$C:$O,12,0),"")=100000,"",IFERROR(VLOOKUP($A23,'QB Rankings'!$C:$O,12,0),"")) ->  | D23: =IF(C23="","","per point") ->  | G23: ='QB Rankings'!C4 -> Lamar Jackson | H23: =IFERROR(VLOOKUP($G23,'QB Rankings'!$C:$O,11,0),"") -> 8700 | I23: =IFERROR('QB Rankings'!D4,"") -> 0 | J23: =IF(I23="","","fantasy points") -> fantasy points
A24: =IFERROR(INDEX('QB Rankings'!A:O,MATCH(2,'QB Rankings'!O:O,0),3),"") -> Josh Allen | B24: =IFERROR(VLOOKUP($A24,'QB Rankings'!$C:$O,11,0),"") -> 8900 | C24: =IF(IFERROR(VLOOKUP($A24,'QB Rankings'!$C:$O,12,0),"")=100000,"",IFERROR(VLOOKUP($A24,'QB Rankings'!$C:$O,12,0),"")) ->  | G24: ='QB Rankings'!C5 -> Josh Allen | H24: =IFERROR(VLOOKUP($G24,'QB Rankings'!$C:$O,11,0),"") -> 8900 | I24: =IFERROR('QB Rankings'!D5,"") -> 0 | J24: =IF(I24="","","fantasy points") -> fantasy points
A25: =IFERROR(INDEX('QB Rankings'!A:O,MATCH(3,'QB Rankings'!O:O,0),3),"") -> Bo Nix | B25: =IFERROR(VLOOKUP($A25,'QB Rankings'!$C:$O,11,0),"") -> 7500 | C25: =IF(IFERROR(VLOOKUP($A25,'QB Rankings'!$C:$O,12,0),"")=100000,"",IFERROR(VLOOKUP($A25,'QB Rankings'!$C:$O,12,0),"")) ->  | D25: =IF(C25="","","per point") ->  | G25: ='QB Rankings'!C6 -> Bo Nix | H25: =IFERROR(VLOOKUP($G25,'QB Rankings'!$C:$O,11,0),"") -> 7500 | I25: =IFERROR('QB Rankings'!D6,"") -> 0 | J25: fantasy points
A26: =IFERROR(INDEX('QB Rankings'!A:O,MATCH(4,'QB Rankings'!O:O,0),3),"") -> Jared Goff | B26: =IFERROR(VLOOKUP($A26,'QB Rankings'!$C:$O,11,0),"") ->  | C26: =IF(IFERROR(VLOOKUP($A26,'QB Rankings'!$C:$O,12,0),"")=100000,"",IFERROR(VLOOKUP($A26,'QB Rankings'!$C:$O,12,0),"")) ->  | D26: =IF(C26="","","per point") ->  | G26: ='QB Rankings'!C7 -> Jared Goff | H26: =IFERROR(VLOOKUP($G26,'QB Rankings'!$C:$O,11,0),"") ->  | I26: =IFERROR('QB Rankings'!D7,"") -> 0 | J26: fantasy points
A27: =IFERROR(INDEX('QB Rankings'!A:O,MATCH(5,'QB Rankings'!O:O,0),3),"") -> Jordan Love | B27: =IFERROR(VLOOKUP($A27,'QB Rankings'!$C:$O,11,0),"") -> 7200 | C27: =IF(IFERROR(VLOOKUP($A27,'QB Rankings'!$C:$O,12,0),"")=100000,"",IFERROR(VLOOKUP($A27,'QB Rankings'!$C:$O,12,0),"")) ->  | G27: ='QB Rankings'!C8 -> Jordan Love | H27: =IFERROR(VLOOKUP($G27,'QB Rankings'!$C:$O,11,0),"") -> 7200 | I27: =IFERROR('QB Rankings'!D8,"") -> 0 | J27: fantasy points
A29: Running Back | G29: Running Back
A30: =IFERROR(INDEX('Total Rankings (excl QB)'!A:P,MATCH("RB1",'Total Rankings (excl QB)'!P:P,0),4),"") -> Derrick Henry | B30: =IFERROR(VLOOKUP($A30,'Total Rankings (excl QB)'!D:M,10,0),"") -> 9800 | C30: =IF(IFERROR(VLOOKUP($A30,'Total Rankings (excl QB)'!D:N,11,0),"")=100000,"",IFERROR(VLOOKUP($A30,'Total Rankings (excl QB)'!D:N,11,0),"")) ->  | D30: =IF(C30="","","per point") ->  | G30: ='Positional Ranks'!G4 -> Derrick Henry | H30: =IFERROR(VLOOKUP($G30,'Total Rankings (excl QB)'!$D:$O,10,0),"") -> 9800 | I30: =IFERROR('Positional Ranks'!H4,"") -> 0 | J30: =IF(G30="","","fantasy points") -> fantasy points
A31: =IFERROR(INDEX('Total Rankings (excl QB)'!A:P,MATCH("RB2",'Total Rankings (excl QB)'!P:P,0),4),"") ->  | B31: =IFERROR(VLOOKUP($A31,'Total Rankings (excl QB)'!D:M,10,0),"") ->  | C31: =IF(IFERROR(VLOOKUP($A31,'Total Rankings (excl QB)'!D:N,11,0),"")=100000,"",IFERROR(VLOOKUP($A31,'Total Rankings (excl QB)'!D:N,11,0),"")) ->  | G31: ='Positional Ranks'!G5 ->  | H31: =IFERROR(VLOOKUP($G31,'Total Rankings (excl QB)'!$D:$O,10,0),"") ->  | I31: =IFERROR('Positional Ranks'!H5,"") -> 0 | J31: =IF(G31="","","fantasy points") -> 
A32: =IFERROR(INDEX('Total Rankings (excl QB)'!A:P,MATCH("RB3",'Total Rankings (excl QB)'!P:P,0),4),"") ->  | B32: =IFERROR(VLOOKUP($A32,'Total Rankings (excl QB)'!D:M,10,0),"") ->  | C32: =IF(IFERROR(VLOOKUP($A32,'Total Rankings (excl QB)'!D:N,11,0),"")=100000,"",IFERROR(VLOOKUP($A32,'Total Rankings (excl QB)'!D:N,11,0),"")) ->  | G32: ='Positional Ranks'!G6 ->  | H32: =IFERROR(VLOOKUP($G32,'Total Rankings (excl QB)'!$D:$O,10,0),"") ->  | I32: =IFERROR('Positional Ranks'!H6,"") -> 0
A33: =IFERROR(INDEX('Total Rankings (excl QB)'!A:P,MATCH("RB4",'Total Rankings (excl QB)'!P:P,0),4),"") ->  | B33: =IFERROR(VLOOKUP($A33,'Total Rankings (excl QB)'!D:M,10,0),"") ->  | C33: =IF(IFERROR(VLOOKUP($A33,'Total Rankings (excl QB)'!D:N,11,0),"")=100000,"",IFERROR(VLOOKUP($A33,'Total Rankings (excl QB)'!D:N,11,0),"")) ->  | G33: ='Positional Ranks'!G7 ->  | H33: =IFERROR(VLOOKUP($G33,'Total Rankings (excl QB)'!$D:$O,10,0),"") ->  | I33: =IFERROR('Positional Ranks'!H7,"") -> 0
A34: =IFERROR(INDEX('Total Rankings (excl QB)'!A:P,MATCH("RB5",'Total Rankings (excl QB)'!P:P,0),4),"") ->  | B34: =IFERROR(VLOOKUP($A34,'Total Rankings (excl QB)'!D:M,10,0),"") ->  | C34: =IF(IFERROR(VLOOKUP($A34,'Total Rankings (excl QB)'!D:N,11,0),"")=100000,"",IFERROR(VLOOKUP($A34,'Total Rankings (excl QB)'!D:N,11,0),"")) ->  | G34: ='Positional Ranks'!G8 ->  | H34: =IFERROR(VLOOKUP($G34,'Total Rankings (excl QB)'!$D:$O,10,0),"") ->  | I34: =IFERROR('Positional Ranks'!H8,"") -> 0
A36: Wide Receiver | G36: Wide Receiver
A37: =IFERROR(INDEX('Total Rankings (excl QB)'!A:P,MATCH("WR1",'Total Rankings (excl QB)'!P:P,0),4),"") -> Zay Flowers | B37: =IFERROR(VLOOKUP($A37,'Total Rankings (excl QB)'!D:M,10,0),"") -> 6700 | C37: =IF(IFERROR(VLOOKUP($A37,'Total Rankings (excl QB)'!D:N,11,0),"")=100000,"",IFERROR(VLOOKUP($A37,'Total Rankings (excl QB)'!D:N,11,0),"")) ->  | D37: =IF(C37="","","per point") ->  | G37: ='Positional Ranks'!B4 -> Zay Flowers | H37: =IFERROR(VLOOKUP($G37,'Total Rankings (excl QB)'!$D:$O,10,0),"") -> 6700 | I37: =IFERROR('Positional Ranks'!C4,"") -> 0 | J37: =IF(G37="","","fantasy points") -> fantasy points
A38: =IFERROR(INDEX('Total Rankings (excl QB)'!A:P,MATCH("WR2",'Total Rankings (excl QB)'!P:P,0),4),"") ->  | B38: =IFERROR(VLOOKUP($A38,'Total Rankings (excl QB)'!D:M,10,0),"") ->  | C38: =IF(IFERROR(VLOOKUP($A38,'Total Rankings (excl QB)'!D:N,11,0),"")=100000,"",IFERROR(VLOOKUP($A38,'Total Rankings (excl QB)'!D:N,11,0),"")) ->  | G38: ='Positional Ranks'!B5 ->  | H38: =IFERROR(VLOOKUP($G38,'Total Rankings (excl QB)'!$D:$O,10,0),"") ->  | I38: =IFERROR('Positional Ranks'!C5,"") -> 0 | J38: =IF(G38="","","fantasy points") -> 
A39: =IFERROR(INDEX('Total Rankings (excl QB)'!A:P,MATCH("WR3",'Total Rankings (excl QB)'!P:P,0),4),"") ->  | B39: =IFERROR(VLOOKUP($A39,'Total Rankings (excl QB)'!D:M,10,0),"") ->  | C39: =IF(IFERROR(VLOOKUP($A39,'Total Rankings (excl QB)'!D:N,11,0),"")=100000,"",IFERROR(VLOOKUP($A39,'Total Rankings (excl QB)'!D:N,11,0),"")) ->  | G39: ='Positional Ranks'!B6 ->  | H39: =IFERROR(VLOOKUP($G39,'Total Rankings (excl QB)'!$D:$O,10,0),"") ->  | I39: =IFERROR('Positional Ranks'!C6,"") -> 0
A40: =IFERROR(INDEX('Total Rankings (excl QB)'!A:P,MATCH("WR4",'Total Rankings (excl QB)'!P:P,0),4),"") ->  | B40: =IFERROR(VLOOKUP($A40,'Total Rankings (excl QB)'!D:M,10,0),"") ->  | C40: =IF(IFERROR(VLOOKUP($A40,'Total Rankings (excl QB)'!D:N,11,0),"")=100000,"",IFERROR(VLOOKUP($A40,'Total Rankings (excl QB)'!D:N,11,0),"")) ->  | G40: ='Positional Ranks'!B7 ->  | H40: =IFERROR(VLOOKUP($G40,'Total Rankings (excl QB)'!$D:$O,10,0),"") ->  | I40: =IFERROR('Positional Ranks'!C7,"") -> 0
A41: =IFERROR(INDEX('Total Rankings (excl QB)'!A:P,MATCH("WR5",'Total Rankings (excl QB)'!P:P,0),4),"") ->  | B41: =IFERROR(VLOOKUP($A41,'Total Rankings (excl QB)'!D:M,10,0),"") ->  | C41: =IF(IFERROR(VLOOKUP($A41,'Total Rankings (excl QB)'!D:N,11,0),"")=100000,"",IFERROR(VLOOKUP($A41,'Total Rankings (excl QB)'!D:N,11,0),"")) ->  | G41: ='Positional Ranks'!B8 ->  | H41: =IFERROR(VLOOKUP($G41,'Total Rankings (excl QB)'!$D:$O,10,0),"") ->  | I41: =IFERROR('Positional Ranks'!C8,"") -> 0
A43: Tight End | G43: Tight End
A44: =IFERROR(INDEX('Total Rankings (excl QB)'!A:P,MATCH("TE1",'Total Rankings (excl QB)'!P:P,0),4),"") -> Mark Andrews | B44: =IFERROR(VLOOKUP($A44,'Total Rankings (excl QB)'!D:M,10,0),"") -> 6200 | C44: =IF(IFERROR(VLOOKUP($A44,'Total Rankings (excl QB)'!D:N,11,0),"")=100000,"",IFERROR(VLOOKUP($A44,'Total Rankings (excl QB)'!D:N,11,0),"")) ->  | D44: =IF(C44="","","per point") ->  | G44: ='Positional Ranks'!L4 -> Mark Andrews | H44: =IFERROR(VLOOKUP($G44,'Total Rankings (excl QB)'!$D:$O,10,0),"") -> 6200 | I44: =IFERROR('Positional Ranks'!M4,"") -> 0 | J44: fantasy points
A45: =IFERROR(INDEX('Total Rankings (excl QB)'!A:P,MATCH("TE2",'Total Rankings (excl QB)'!P:P,0),4),"") ->  | B45: =IFERROR(VLOOKUP($A45,'Total Rankings (excl QB)'!D:M,10,0),"") ->  | C45: =IF(IFERROR(VLOOKUP($A45,'Total Rankings (excl QB)'!D:N,11,0),"")=100000,"",IFERROR(VLOOKUP($A45,'Total Rankings (excl QB)'!D:N,11,0),"")) ->  | G45: ='Positional Ranks'!L5 ->  | H45: =IFERROR(VLOOKUP($G45,'Total Rankings (excl QB)'!$D:$O,10,0),"") ->  | I45: =IFERROR('Positional Ranks'!M5,"") -> 0
A46: =IFERROR(INDEX('Total Rankings (excl QB)'!A:P,MATCH("TE3",'Total Rankings (excl QB)'!P:P,0),4),"") ->  | B46: =IFERROR(VLOOKUP($A46,'Total Rankings (excl QB)'!D:M,10,0),"") ->  | C46: =IF(IFERROR(VLOOKUP($A46,'Total Rankings (excl QB)'!D:N,11,0),"")=100000,"",IFERROR(VLOOKUP($A46,'Total Rankings (excl QB)'!D:N,11,0),"")) ->  | G46: ='Positional Ranks'!L6 ->  | H46: =IFERROR(VLOOKUP($G46,'Total Rankings (excl QB)'!$D:$O,10,0),"") ->  | I46: =IFERROR('Positional Ranks'!M6,"") -> 0
A47: =IFERROR(INDEX('Total Rankings (excl QB)'!A:P,MATCH("TE4",'Total Rankings (excl QB)'!P:P,0),4),"") ->  | B47: =IFERROR(VLOOKUP($A47,'Total Rankings (excl QB)'!D:M,10,0),"") ->  | C47: =IF(IFERROR(VLOOKUP($A47,'Total Rankings (excl QB)'!D:N,11,0),"")=100000,"",IFERROR(VLOOKUP($A47,'Total Rankings (excl QB)'!D:N,11,0),"")) ->  | G47: ='Positional Ranks'!L7 ->  | H47: =IFERROR(VLOOKUP($G47,'Total Rankings (excl QB)'!$D:$O,10,0),"") ->  | I47: =IFERROR('Positional Ranks'!M7,"") -> 0
A48: =IFERROR(INDEX('Total Rankings (excl QB)'!A:P,MATCH("TE5",'Total Rankings (excl QB)'!P:P,0),4),"") ->  | B48: =IFERROR(VLOOKUP($A48,'Total Rankings (excl QB)'!D:M,10,0),"") ->  | C48: =IF(IFERROR(VLOOKUP($A48,'Total Rankings (excl QB)'!D:N,11,0),"")=100000,"",IFERROR(VLOOKUP($A48,'Total Rankings (excl QB)'!D:N,11,0),"")) ->  | G48: ='Positional Ranks'!L8 ->  | H48: =IFERROR(VLOOKUP($G48,'Total Rankings (excl QB)'!$D:$O,10,0),"") ->  | I48: =IFERROR('Positional Ranks'!M8,"") -> 0

Sheet Total Projections (excl QB)
A1: Total Projections (Excl QB)
A3: Rank | B3: Team | C3: Position | D3: Player | E3: Targets | F3: Catch % | G3: Receptions | H3: Yards per Reception | I3: Receiving Yards | J3: Receiving TDs | K3: Rush Att | L3: Yards per Carry | M3: Rushing Yards | N3: Rushing TDs | O3: Fantasy Points
A4: =RANK(O4,$O:$O,0)+COUNTIF($O$4:O4,O4)-1 -> 1 | B4: Baltimore Ravens | C4: Running Back | D4: ='Baltimore Ravens'!$B$142 -> Derrick Henry | E4: ='Baltimore Ravens'!$D$142 -> 0 | F4: ='Baltimore Ravens'!$E$142 -> 0 | G4: ='Baltimore Ravens'!$F$142 -> 0 | H4: ='Baltimore Ravens'!$G$142 -> 0 | I4: ='Baltimore Ravens'!$H$142 -> 0 | J4: ='Baltimore Ravens'!$I$142 -> 0 | K4: ='Baltimore Ravens'!$K$142 -> 0 | L4: ='Baltimore Ravens'!$L$142 -> 0 | M4: ='Baltimore Ravens'!$M$142 -> 0 | N4: ='Baltimore Ravens'!$N$142 -> 0 | O4: =IF('DFS Dashboard'!$H$1="DraftKings",'Total Projections (excl QB)'!G4*'DFS Dashboard'!$T$10+'Total Projections (excl QB)'!I4*'DFS Dashboard'!$T$8+'Total Projections (excl QB)'!J4*'DFS Dashboard'!$T$9+'Total Projections (excl QB)'!M4*'DFS Dashboard'!$T$6+'Total Projections (excl QB)'!N4*'DFS Dashboard'!$T$7+IF('Total Projections (excl QB)'!I4>99.99,'DFS Dashboard'!$T$12,0)+IF('Total Projections (excl QB)'!M4>99.99,'DFS Dashboard'!$T$11,0),IF('DFS Dashboard'!$H$1="FanDuel",'Total Projections (excl QB)'!G4*'DFS Dashboard'!$U$10+'Total Projections (excl QB)'!I4*'DFS Dashboard'!$U$8+'Total Projections (excl QB)'!J4*'DFS Dashboard'!$U$9+'Total Projections (excl QB)'!M4*'DFS Dashboard'!$U$6+'Total Projections (excl QB)'!N4*'DFS Dashboard'!$U$7+IF('Total Projections (excl QB)'!I4>99.99,'DFS Dashboard'!$U$12,0)+IF('Total Projections (excl QB)'!M4>99.99,'DFS Dashboard'!$U$11,0),0)) -> 0
A5: =RANK(O5,$O:$O,0)+COUNTIF($O$4:O5,O5)-1 -> 2 | B5: Baltimore Ravens | C5: Running Back | D5: ='Baltimore Ravens'!$B$143 -> Justice Hill | E5: ='Baltimore Ravens'!$D$143 -> 0 | F5: ='Baltimore Ravens'!$E$143 -> 0 | G5: ='Baltimore Ravens'!$F$143 -> 0 | H5: ='Baltimore Ravens'!$G$143 -> 0 | I5: ='Baltimore Ravens'!$H$143 -> 0 | J5: ='Baltimore Ravens'!$I$143 -> 0 | K5: ='Baltimore Ravens'!$K$143 -> 0 | L5: ='Baltimore Ravens'!$L$143 -> 0 | M5: ='Baltimore Ravens'!$M$143 -> 0 | N5: ='Baltimore Ravens'!$N$143 -> 0 | O5: =IF('DFS Dashboard'!$H$1="DraftKings",'Total Projections (excl QB)'!G5*'DFS Dashboard'!$T$10+'Total Projections (excl QB)'!I5*'DFS Dashboard'!$T$8+'Total Projections (excl QB)'!J5*'DFS Dashboard'!$T$9+'Total Projections (excl QB)'!M5*'DFS Dashboard'!$T$6+'Total Projections (excl QB)'!N5*'DFS Dashboard'!$T$7+IF('Total Projections (excl QB)'!I5>99.99,'DFS Dashboard'!$T$12,0)+IF('Total Projections (excl QB)'!M5>99.99,'DFS Dashboard'!$T$11,0),IF('DFS Dashboard'!$H$1="FanDuel",'Total Projections (excl QB)'!G5*'DFS Dashboard'!$U$10+'Total Projections (excl QB)'!I5*'DFS Dashboard'!$U$8+'Total Projections (excl QB)'!J5*'DFS Dashboard'!$U$9+'Total Projections (excl QB)'!M5*'DFS Dashboard'!$U$6+'Total Projections (excl QB)'!N5*'DFS Dashboard'!$U$7+IF('Total Projections (excl QB)'!I5>99.99,'DFS Dashboard'!$U$12,0)+IF('Total Projections (excl QB)'!M5>99.99,'DFS Dashboard'!$U$11,0),0)) -> 0
A6: =RANK(O6,$O:$O,0)+COUNTIF($O$4:O6,O6)-1 -> 3 | B6: Baltimore Ravens | C6: Running Back | D6: ='Baltimore Ravens'!$B$144 -> Keaton Mitchell | E6: ='Baltimore Ravens'!$D$144 -> 0 | F6: ='Baltimore Ravens'!$E$144 -> 0 | G6: ='Baltimore Ravens'!$F$144 -> 0 | H6: ='Baltimore Ravens'!$G$144 -> 0 | I6: ='Baltimore Ravens'!$H$144 -> 0 | J6: ='Baltimore Ravens'!$I$144 -> 0 | K6: ='Baltimore Ravens'!$K$144 -> 0 | L6: ='Baltimore Ravens'!$L$144 -> 0 | M6: ='Baltimore Ravens'!$M$144 -> 0 | N6: ='Baltimore Ravens'!$N$144 -> 0 | O6: =IF('DFS Dashboard'!$H$1="DraftKings",'Total Projections (excl QB)'!G6*'DFS Dashboard'!$T$10+'Total Projections (excl QB)'!I6*'DFS Dashboard'!$T$8+'Total Projections (excl QB)'!J6*'DFS Dashboard'!$T$9+'Total Projections (excl QB)'!M6*'DFS Dashboard'!$T$6+'Total Projections (excl QB)'!N6*'DFS Dashboard'!$T$7+IF('Total Projections (excl QB)'!I6>99.99,'DFS Dashboard'!$T$12,0)+IF('Total Projections (excl QB)'!M6>99.99,'DFS Dashboard'!$T$11,0),IF('DFS Dashboard'!$H$1="FanDuel",'Total Projections (excl QB)'!G6*'DFS Dashboard'!$U$10+'Total Projections (excl QB)'!I6*'DFS Dashboard'!$U$8+'Total Projections (excl QB)'!J6*'DFS Dashboard'!$U$9+'Total Projections (excl QB)'!M6*'DFS Dashboard'!$U$6+'Total Projections (excl QB)'!N6*'DFS Dashboard'!$U$7+IF('Total Projections (excl QB)'!I6>99.99,'DFS Dashboard'!$U$12,0)+IF('Total Projections (excl QB)'!M6>99.99,'DFS Dashboard'!$U$11,0),0)) -> 0
A7: =RANK(O7,$O:$O,0)+COUNTIF($O$4:O7,O7)-1 -> 4 | B7: Baltimore Ravens | C7: Running Back | D7: ='Baltimore Ravens'!$B$145 -> Rasheen Ali | E7: ='Baltimore Ravens'!$D$145 -> 0 | F7: ='Baltimore Ravens'!$E$145 -> 0 | G7: ='Baltimore Ravens'!$F$145 -> 0 | H7: ='Baltimore Ravens'!$G$145 -> 0 | I7: ='Baltimore Ravens'!$H$145 -> 0 | J7: ='Baltimore Ravens'!$I$145 -> 0 | K7: ='Baltimore Ravens'!$K$145 -> 0 | L7: ='Baltimore Ravens'!$L$145 -> 0 | M7: ='Baltimore Ravens'!$M$145 -> 0 | N7: ='Baltimore Ravens'!$N$145 -> 0 | O7: =IF('DFS Dashboard'!$H$1="DraftKings",'Total Projections (excl QB)'!G7*'DFS Dashboard'!$T$10+'Total Projections (excl QB)'!I7*'DFS Dashboard'!$T$8+'Total Projections (excl QB)'!J7*'DFS Dashboard'!$T$9+'Total Projections (excl QB)'!M7*'DFS Dashboard'!$T$6+'Total Projections (excl QB)'!N7*'DFS Dashboard'!$T$7+IF('Total Projections (excl QB)'!I7>99.99,'DFS Dashboard'!$T$12,0)+IF('Total Projections (excl QB)'!M7>99.99,'DFS Dashboard'!$T$11,0),IF('DFS Dashboard'!$H$1="FanDuel",'Total Projections (excl QB)'!G7*'DFS Dashboard'!$U$10+'Total Projections (excl QB)'!I7*'DFS Dashboard'!$U$8+'Total Projections (excl QB)'!J7*'DFS Dashboard'!$U$9+'Total Projections (excl QB)'!M7*'DFS Dashboard'!$U$6+'Total Projections (excl QB)'!N7*'DFS Dashboard'!$U$7+IF('Total Projections (excl QB)'!I7>99.99,'DFS Dashboard'!$U$12,0)+IF('Total Projections (excl QB)'!M7>99.99,'DFS Dashboard'!$U$11,0),0)) -> 0
A8: =RANK(O8,$O:$O,0)+COUNTIF($O$4:O8,O8)-1 -> 5 | B8: Baltimore Ravens | C8: Wide Receiver | D8: ='Baltimore Ravens'!$B$118 -> Zay Flowers | E8: ='Baltimore Ravens'!$D$118 -> 0 | F8: ='Baltimore Ravens'!$E$118 -> 0 | G8: ='Baltimore Ravens'!$F$118 -> 0 | H8: ='Baltimore Ravens'!$G$118 -> 0 | I8: ='Baltimore Ravens'!$H$118 -> 0 | J8: ='Baltimore Ravens'!$I$118 -> 0 | K8: ='Baltimore Ravens'!$K$118 -> 0 | L8: ='Baltimore Ravens'!$L$118 -> 0 | M8: ='Baltimore Ravens'!$M$118 -> 0 | N8: ='Baltimore Ravens'!$N$118 -> 0 | O8: =IF('DFS Dashboard'!$H$1="DraftKings",'Total Projections (excl QB)'!G8*'DFS Dashboard'!$T$10+'Total Projections (excl QB)'!I8*'DFS Dashboard'!$T$8+'Total Projections (excl QB)'!J8*'DFS Dashboard'!$T$9+'Total Projections (excl QB)'!M8*'DFS Dashboard'!$T$6+'Total Projections (excl QB)'!N8*'DFS Dashboard'!$T$7+IF('Total Projections (excl QB)'!I8>99.99,'DFS Dashboard'!$T$12,0)+IF('Total Projections (excl QB)'!M8>99.99,'DFS Dashboard'!$T$11,0),IF('DFS Dashboard'!$H$1="FanDuel",'Total Projections (excl QB)'!G8*'DFS Dashboard'!$U$10+'Total Projections (excl QB)'!I8*'DFS Dashboard'!$U$8+'Total Projections (excl QB)'!J8*'DFS Dashboard'!$U$9+'Total Projections (excl QB)'!M8*'DFS Dashboard'!$U$6+'Total Projections (excl QB)'!N8*'DFS Dashboard'!$U$7+IF('Total Projections (excl QB)'!I8>99.99,'DFS Dashboard'!$U$12,0)+IF('Total Projections (excl QB)'!M8>99.99,'DFS Dashboard'!$U$11,0),0)) -> 0
A9: =RANK(O9,$O:$O,0)+COUNTIF($O$4:O9,O9)-1 -> 6 | B9: Baltimore Ravens | C9: Wide Receiver | D9: ='Baltimore Ravens'!$B$119 -> Rashod Bateman | E9: ='Baltimore Ravens'!$D$119 -> 0 | F9: ='Baltimore Ravens'!$E$119 -> 0 | G9: ='Baltimore Ravens'!$F$119 -> 0 | H9: ='Baltimore Ravens'!$G$119 -> 0 | I9: ='Baltimore Ravens'!$H$119 -> 0 | J9: ='Baltimore Ravens'!$I$119 -> 0 | K9: ='Baltimore Ravens'!$K$119 -> 0 | L9: ='Baltimore Ravens'!$L$119 -> 0 | M9: ='Baltimore Ravens'!$M$119 -> 0 | N9: ='Baltimore Ravens'!$N$119 -> 0 | O9: =IF('DFS Dashboard'!$H$1="DraftKings",'Total Projections (excl QB)'!G9*'DFS Dashboard'!$T$10+'Total Projections (excl QB)'!I9*'DFS Dashboard'!$T$8+'Total Projections (excl QB)'!J9*'DFS Dashboard'!$T$9+'Total Projections (excl QB)'!M9*'DFS Dashboard'!$T$6+'Total Projections (excl QB)'!N9*'DFS Dashboard'!$T$7+IF('Total Projections (excl QB)'!I9>99.99,'DFS Dashboard'!$T$12,0)+IF('Total Projections (excl QB)'!M9>99.99,'DFS Dashboard'!$T$11,0),IF('DFS Dashboard'!$H$1="FanDuel",'Total Projections (excl QB)'!G9*'DFS Dashboard'!$U$10+'Total Projections (excl QB)'!I9*'DFS Dashboard'!$U$8+'Total Projections (excl QB)'!J9*'DFS Dashboard'!$U$9+'Total Projections (excl QB)'!M9*'DFS Dashboard'!$U$6+'Total Projections (excl QB)'!N9*'DFS Dashboard'!$U$7+IF('Total Projections (excl QB)'!I9>99.99,'DFS Dashboard'!$U$12,0)+IF('Total Projections (excl QB)'!M9>99.99,'DFS Dashboard'!$U$11,0),0)) -> 0
A10: =RANK(O10,$O:$O,0)+COUNTIF($O$4:O10,O10)-1 -> 7 | B10: Baltimore Ravens | C10: Wide Receiver | D10: ='Baltimore Ravens'!$B$120 -> Nelson Agholor | E10: ='Baltimore Ravens'!$D$120 -> 0 | F10: ='Baltimore Ravens'!$E$120 -> 0 | G10: ='Baltimore Ravens'!$F$120 -> 0 | H10: ='Baltimore Ravens'!$G$120 -> 0 | I10: ='Baltimore Ravens'!$H$120 -> 0 | J10: ='Baltimore Ravens'!$I$120 -> 0 | K10: ='Baltimore Ravens'!$K$120 -> 0 | L10: ='Baltimore Ravens'!$L$120 -> 0 | M10: ='Baltimore Ravens'!$M$120 -> 0 | N10: ='Baltimore Ravens'!$N$120 -> 0 | O10: =IF('DFS Dashboard'!$H$1="DraftKings",'Total Projections (excl QB)'!G10*'DFS Dashboard'!$T$10+'Total Projections (excl QB)'!I10*'DFS Dashboard'!$T$8+'Total Projections (excl QB)'!J10*'DFS Dashboard'!$T$9+'Total Projections (excl QB)'!M10*'DFS Dashboard'!$T$6+'Total Projections (excl QB)'!N10*'DFS Dashboard'!$T$7+IF('Total Projections (excl QB)'!I10>99.99,'DFS Dashboard'!$T$12,0)+IF('Total Projections (excl QB)'!M10>99.99,'DFS Dashboard'!$T$11,0),IF('DFS Dashboard'!$H$1="FanDuel",'Total Projections (excl QB)'!G10*'DFS Dashboard'!$U$10+'Total Projections (excl QB)'!I10*'DFS Dashboard'!$U$8+'Total Projections (excl QB)'!J10*'DFS Dashboard'!$U$9+'Total Projections (excl QB)'!M10*'DFS Dashboard'!$U$6+'Total Projections (excl QB)'!N10*'DFS Dashboard'!$U$7+IF('Total Projections (excl QB)'!I10>99.99,'DFS Dashboard'!$U$12,0)+IF('Total Projections (excl QB)'!M10>99.99,'DFS Dashboard'!$U$11,0),0)) -> 0
A11: =RANK(O11,$O:$O,0)+COUNTIF($O$4:O11,O11)-1 -> 8 | B11: Baltimore Ravens | C11: Wide Receiver | D11: ='Baltimore Ravens'!$B$121 -> Tylan Wallace | E11: ='Baltimore Ravens'!$D$121 -> 0 | F11: ='Baltimore Ravens'!$E$121 -> 0 | G11: ='Baltimore Ravens'!$F$121 -> 0 | H11: ='Baltimore Ravens'!$G$121 -> 0 | I11: ='Baltimore Ravens'!$H$121 -> 0 | J11: ='Baltimore Ravens'!$I$121 -> 0 | K11: ='Baltimore Ravens'!$K$121 -> 0 | L11: ='Baltimore Ravens'!$L$121 -> 0 | M11: ='Baltimore Ravens'!$M$121 -> 0 | N11: ='Baltimore Ravens'!$N$121 -> 0 | O11: =IF('DFS Dashboard'!$H$1="DraftKings",'Total Projections (excl QB)'!G11*'DFS Dashboard'!$T$10+'Total Projections (excl QB)'!I11*'DFS Dashboard'!$T$8+'Total Projections (excl QB)'!J11*'DFS Dashboard'!$T$9+'Total Projections (excl QB)'!M11*'DFS Dashboard'!$T$6+'Total Projections (excl QB)'!N11*'DFS Dashboard'!$T$7+IF('Total Projections (excl QB)'!I11>99.99,'DFS Dashboard'!$T$12,0)+IF('Total Projections (excl QB)'!M11>99.99,'DFS Dashboard'!$T$11,0),IF('DFS Dashboard'!$H$1="FanDuel",'Total Projections (excl QB)'!G11*'DFS Dashboard'!$U$10+'Total Projections (excl QB)'!I11*'DFS Dashboard'!$U$8+'Total Projections (excl QB)'!J11*'DFS Dashboard'!$U$9+'Total Projections (excl QB)'!M11*'DFS Dashboard'!$U$6+'Total Projections (excl QB)'!N11*'DFS Dashboard'!$U$7+IF('Total Projections (excl QB)'!I11>99.99,'DFS Dashboard'!$U$12,0)+IF('Total Projections (excl QB)'!M11>99.99,'DFS Dashboard'!$U$11,0),0)) -> 0
A12: =RANK(O12,$O:$O,0)+COUNTIF($O$4:O12,O12)-1 -> 9 | B12: Baltimore Ravens | C12: Wide Receiver | D12: ='Baltimore Ravens'!$B$122 -> Devontez Walker | E12: ='Baltimore Ravens'!$D$122 -> 0 | F12: ='Baltimore Ravens'!$E$122 -> 0 | G12: ='Baltimore Ravens'!$F$122 -> 0 | H12: ='Baltimore Ravens'!$G$122 -> 0 | I12: ='Baltimore Ravens'!$H$122 -> 0 | J12: ='Baltimore Ravens'!$I$122 -> 0 | K12: ='Baltimore Ravens'!$K$122 -> 0 | L12: ='Baltimore Ravens'!$L$122 -> 0 | M12: ='Baltimore Ravens'!$M$122 -> 0 | N12: ='Baltimore Ravens'!$N$122 -> 0 | O12: =IF('DFS Dashboard'!$H$1="DraftKings",'Total Projections (excl QB)'!G12*'DFS Dashboard'!$T$10+'Total Projections (excl QB)'!I12*'DFS Dashboard'!$T$8+'Total Projections (excl QB)'!J12*'DFS Dashboard'!$T$9+'Total Projections (excl QB)'!M12*'DFS Dashboard'!$T$6+'Total Projections (excl QB)'!N12*'DFS Dashboard'!$T$7+IF('Total Projections (excl QB)'!I12>99.99,'DFS Dashboard'!$T$12,0)+IF('Total Projections (excl QB)'!M12>99.99,'DFS Dashboard'!$T$11,0),IF('DFS Dashboard'!$H$1="FanDuel",'Total Projections (excl QB)'!G12*'DFS Dashboard'!$U$10+'Total Projections (excl QB)'!I12*'DFS Dashboard'!$U$8+'Total Projections (excl QB)'!J12*'DFS Dashboard'!$U$9+'Total Projections (excl QB)'!M12*'DFS Dashboard'!$U$6+'Total Projections (excl QB)'!N12*'DFS Dashboard'!$U$7+IF('Total Projections (excl QB)'!I12>99.99,'DFS Dashboard'!$U$12,0)+IF('Total Projections (excl QB)'!M12>99.99,'DFS Dashboard'!$U$11,0),0)) -> 0
A13: =RANK(O13,$O:$O,0)+COUNTIF($O$4:O13,O13)-1 -> 10 | B13: Baltimore Ravens | C13: Wide Receiver | D13: ='Baltimore Ravens'!$B$123 -> Anthony Miller | E13: ='Baltimore Ravens'!$D$123 -> 0 | F13: ='Baltimore Ravens'!$E$123 -> 0 | G13: ='Baltimore Ravens'!$F$123 -> 0 | H13: ='Baltimore Ravens'!$G$123 -> 0 | I13: ='Baltimore Ravens'!$H$123 -> 0 | J13: ='Baltimore Ravens'!$I$123 -> 0 | K13: ='Baltimore Ravens'!$K$123 -> 0 | L13: ='Baltimore Ravens'!$L$123 -> 0 | M13: ='Baltimore Ravens'!$M$123 -> 0 | N13: ='Baltimore Ravens'!$N$123 -> 0 | O13: =IF('DFS Dashboard'!$H$1="DraftKings",'Total Projections (excl QB)'!G13*'DFS Dashboard'!$T$10+'Total Projections (excl QB)'!I13*'DFS Dashboard'!$T$8+'Total Projections (excl QB)'!J13*'DFS Dashboard'!$T$9+'Total Projections (excl QB)'!M13*'DFS Dashboard'!$T$6+'Total Projections (excl QB)'!N13*'DFS Dashboard'!$T$7+IF('Total Projections (excl QB)'!I13>99.99,'DFS Dashboard'!$T$12,0)+IF('Total Projections (excl QB)'!M13>99.99,'DFS Dashboard'!$T$11,0),IF('DFS Dashboard'!$H$1="FanDuel",'Total Projections (excl QB)'!G13*'DFS Dashboard'!$U$10+'Total Projections (excl QB)'!I13*'DFS Dashboard'!$U$8+'Total Projections (excl QB)'!J13*'DFS Dashboard'!$U$9+'Total Projections (excl QB)'!M13*'DFS Dashboard'!$U$6+'Total Projections (excl QB)'!N13*'DFS Dashboard'!$U$7+IF('Total Projections (excl QB)'!I13>99.99,'DFS Dashboard'!$U$12,0)+IF('Total Projections (excl QB)'!M13>99.99,'DFS Dashboard'!$U$11,0),0)) -> 0
A14: =RANK(O14,$O:$O,0)+COUNTIF($O$4:O14,O14)-1 -> 11 | B14: Baltimore Ravens | C14: Wide Receiver | D14: ='Baltimore Ravens'!$B$124 -> Diontae Johnson | E14: ='Baltimore Ravens'!$D$124 -> 0 | F14: ='Baltimore Ravens'!$E$124 -> 0 | G14: ='Baltimore Ravens'!$F$124 -> 0 | H14: ='Baltimore Ravens'!$G$124 -> 0 | I14: ='Baltimore Ravens'!$H$124 -> 0 | J14: ='Baltimore Ravens'!$I$124 -> 0 | K14: ='Baltimore Ravens'!$K$124 -> 0 | L14: ='Baltimore Ravens'!$L$124 -> 0 | M14: ='Baltimore Ravens'!$M$124 -> 0 | N14: ='Baltimore Ravens'!$N$124 -> 0 | O14: =IF('DFS Dashboard'!$H$1="DraftKings",'Total Projections (excl QB)'!G14*'DFS Dashboard'!$T$10+'Total Projections (excl QB)'!I14*'DFS Dashboard'!$T$8+'Total Projections (excl QB)'!J14*'DFS Dashboard'!$T$9+'Total Projections (excl QB)'!M14*'DFS Dashboard'!$T$6+'Total Projections (excl QB)'!N14*'DFS Dashboard'!$T$7+IF('Total Projections (excl QB)'!I14>99.99,'DFS Dashboard'!$T$12,0)+IF('Total Projections (excl QB)'!M14>99.99,'DFS Dashboard'!$T$11,0),IF('DFS Dashboard'!$H$1="FanDuel",'Total Projections (excl QB)'!G14*'DFS Dashboard'!$U$10+'Total Projections (excl QB)'!I14*'DFS Dashboard'!$U$8+'Total Projections (excl QB)'!J14*'DFS Dashboard'!$U$9+'Total Projections (excl QB)'!M14*'DFS Dashboard'!$U$6+'Total Projections (excl QB)'!N14*'DFS Dashboard'!$U$7+IF('Total Projections (excl QB)'!I14>99.99,'DFS Dashboard'!$U$12,0)+IF('Total Projections (excl QB)'!M14>99.99,'DFS Dashboard'!$U$11,0),0)) -> 0
A15: =RANK(O15,$O:$O,0)+COUNTIF($O$4:O15,O15)-1 -> 12 | B15: Baltimore Ravens | C15: Wide Receiver | D15: ='Baltimore Ravens'!$B$125 -> 0 | E15: ='Baltimore Ravens'!$D$125 -> 0 | F15: ='Baltimore Ravens'!$E$125 -> 0 | G15: ='Baltimore Ravens'!$F$125 -> 0 | H15: ='Baltimore Ravens'!$G$125 -> 0 | I15: ='Baltimore Ravens'!$H$125 -> 0 | J15: ='Baltimore Ravens'!$I$125 -> 0 | K15: ='Baltimore Ravens'!$K$125 -> 0 | L15: ='Baltimore Ravens'!$L$125 -> 0 | M15: ='Baltimore Ravens'!$M$125 -> 0 | N15: ='Baltimore Ravens'!$N$125 -> 0 | O15: =IF('DFS Dashboard'!$H$1="DraftKings",'Total Projections (excl QB)'!G15*'DFS Dashboard'!$T$10+'Total Projections (excl QB)'!I15*'DFS Dashboard'!$T$8+'Total Projections (excl QB)'!J15*'DFS Dashboard'!$T$9+'Total Projections (excl QB)'!M15*'DFS Dashboard'!$T$6+'Total Projections (excl QB)'!N15*'DFS Dashboard'!$T$7+IF('Total Projections (excl QB)'!I15>99.99,'DFS Dashboard'!$T$12,0)+IF('Total Projections (excl QB)'!M15>99.99,'DFS Dashboard'!$T$11,0),IF('DFS Dashboard'!$H$1="FanDuel",'Total Projections (excl QB)'!G15*'DFS Dashboard'!$U$10+'Total Projections (excl QB)'!I15*'DFS Dashboard'!$U$8+'Total Projections (excl QB)'!J15*'DFS Dashboard'!$U$9+'Total Projections (excl QB)'!M15*'DFS Dashboard'!$U$6+'Total Projections (excl QB)'!N15*'DFS Dashboard'!$U$7+IF('Total Projections (excl QB)'!I15>99.99,'DFS Dashboard'!$U$12,0)+IF('Total Projections (excl QB)'!M15>99.99,'DFS Dashboard'!$U$11,0),0)) -> 0
A16: =RANK(O16,$O:$O,0)+COUNTIF($O$4:O16,O16)-1 -> 13 | B16: Baltimore Ravens | C16: Tight End | D16: ='Baltimore Ravens'!$B$162 -> Mark Andrews | E16: ='Baltimore Ravens'!$D$162 -> 0 | F16: ='Baltimore Ravens'!$E$162 -> 0 | G16: ='Baltimore Ravens'!$F$162 -> 0 | H16: ='Baltimore Ravens'!$G$162 -> 0 | I16: ='Baltimore Ravens'!$H$162 -> 0 | J16: ='Baltimore Ravens'!$I$162 -> 0 | K16: ='Baltimore Ravens'!$K$162 -> 0 | L16: ='Baltimore Ravens'!$L$162 -> 0 | M16: ='Baltimore Ravens'!$M$162 -> 0 | N16: ='Baltimore Ravens'!$N$162 -> 0 | O16: =IF('DFS Dashboard'!$H$1="DraftKings",'Total Projections (excl QB)'!G16*'DFS Dashboard'!$T$10+'Total Projections (excl QB)'!I16*'DFS Dashboard'!$T$8+'Total Projections (excl QB)'!J16*'DFS Dashboard'!$T$9+'Total Projections (excl QB)'!M16*'DFS Dashboard'!$T$6+'Total Projections (excl QB)'!N16*'DFS Dashboard'!$T$7+IF('Total Projections (excl QB)'!I16>99.99,'DFS Dashboard'!$T$12,0)+IF('Total Projections (excl QB)'!M16>99.99,'DFS Dashboard'!$T$11,0),IF('DFS Dashboard'!$H$1="FanDuel",'Total Projections (excl QB)'!G16*'DFS Dashboard'!$U$10+'Total Projections (excl QB)'!I16*'DFS Dashboard'!$U$8+'Total Projections (excl QB)'!J16*'DFS Dashboard'!$U$9+'Total Projections (excl QB)'!M16*'DFS Dashboard'!$U$6+'Total Projections (excl QB)'!N16*'DFS Dashboard'!$U$7+IF('Total Projections (excl QB)'!I16>99.99,'DFS Dashboard'!$U$12,0)+IF('Total Projections (excl QB)'!M16>99.99,'DFS Dashboard'!$U$11,0),0)) -> 0
A17: =RANK(O17,$O:$O,0)+COUNTIF($O$4:O17,O17)-1 -> 14 | B17: Baltimore Ravens | C17: Tight End | D17: ='Baltimore Ravens'!$B$163 -> Isaiah Likely | E17: ='Baltimore Ravens'!$D$163 -> 0 | F17: ='Baltimore Ravens'!$E$163 -> 0 | G17: ='Baltimore Ravens'!$F$163 -> 0 | H17: ='Baltimore Ravens'!$G$163 -> 0 | I17: ='Baltimore Ravens'!$H$163 -> 0 | J17: ='Baltimore Ravens'!$I$163 -> 0 | K17: ='Baltimore Ravens'!$K$163 -> 0 | L17: ='Baltimore Ravens'!$L$163 -> 0 | M17: ='Baltimore Ravens'!$M$163 -> 0 | N17: ='Baltimore Ravens'!$N$163 -> 0 | O17: =IF('DFS Dashboard'!$H$1="DraftKings",'Total Projections (excl QB)'!G17*'DFS Dashboard'!$T$10+'Total Projections (excl QB)'!I17*'DFS Dashboard'!$T$8+'Total Projections (excl QB)'!J17*'DFS Dashboard'!$T$9+'Total Projections (excl QB)'!M17*'DFS Dashboard'!$T$6+'Total Projections (excl QB)'!N17*'DFS Dashboard'!$T$7+IF('Total Projections (excl QB)'!I17>99.99,'DFS Dashboard'!$T$12,0)+IF('Total Projections (excl QB)'!M17>99.99,'DFS Dashboard'!$T$11,0),IF('DFS Dashboard'!$H$1="FanDuel",'Total Projections (excl QB)'!G17*'DFS Dashboard'!$U$10+'Total Projections (excl QB)'!I17*'DFS Dashboard'!$U$8+'Total Projections (excl QB)'!J17*'DFS Dashboard'!$U$9+'Total Projections (excl QB)'!M17*'DFS Dashboard'!$U$6+'Total Projections (excl QB)'!N17*'DFS Dashboard'!$U$7+IF('Total Projections (excl QB)'!I17>99.99,'DFS Dashboard'!$U$12,0)+IF('Total Projections (excl QB)'!M17>99.99,'DFS Dashboard'!$U$11,0),0)) -> 0
A18: =RANK(O18,$O:$O,0)+COUNTIF($O$4:O18,O18)-1 -> 15 | B18: Baltimore Ravens | C18: Tight End | D18: ='Baltimore Ravens'!$B$164 -> Charlie Kolar | E18: ='Baltimore Ravens'!$D$164 -> 0 | F18: ='Baltimore Ravens'!$E$164 -> 0 | G18: ='Baltimore Ravens'!$F$164 -> 0 | H18: ='Baltimore Ravens'!$G$164 -> 0 | I18: ='Baltimore Ravens'!$H$164 -> 0 | J18: ='Baltimore Ravens'!$I$164 -> 0 | K18: ='Baltimore Ravens'!$K$164 -> 0 | L18: ='Baltimore Ravens'!$L$164 -> 0 | M18: ='Baltimore Ravens'!$M$164 -> 0 | N18: ='Baltimore Ravens'!$N$164 -> 0 | O18: =IF('DFS Dashboard'!$H$1="DraftKings",'Total Projections (excl QB)'!G18*'DFS Dashboard'!$T$10+'Total Projections (excl QB)'!I18*'DFS Dashboard'!$T$8+'Total Projections (excl QB)'!J18*'DFS Dashboard'!$T$9+'Total Projections (excl QB)'!M18*'DFS Dashboard'!$T$6+'Total Projections (excl QB)'!N18*'DFS Dashboard'!$T$7+IF('Total Projections (excl QB)'!I18>99.99,'DFS Dashboard'!$T$12,0)+IF('Total Projections (excl QB)'!M18>99.99,'DFS Dashboard'!$T$11,0),IF('DFS Dashboard'!$H$1="FanDuel",'Total Projections (excl QB)'!G18*'DFS Dashboard'!$U$10+'Total Projections (excl QB)'!I18*'DFS Dashboard'!$U$8+'Total Projections (excl QB)'!J18*'DFS Dashboard'!$U$9+'Total Projections (excl QB)'!M18*'DFS Dashboard'!$U$6+'Total Projections (excl QB)'!N18*'DFS Dashboard'!$U$7+IF('Total Projections (excl QB)'!I18>99.99,'DFS Dashboard'!$U$12,0)+IF('Total Projections (excl QB)'!M18>99.99,'DFS Dashboard'!$U$11,0),0)) -> 0
A19: =RANK(O19,$O:$O,0)+COUNTIF($O$4:O19,O19)-1 -> 16 | B19: Baltimore Ravens | C19: Tight End | D19: ='Baltimore Ravens'!$B$165 -> 0 | E19: ='Baltimore Ravens'!$D$165 -> 0 | F19: ='Baltimore Ravens'!$E$165 -> 0 | G19: ='Baltimore Ravens'!$F$165 -> 0 | H19: ='Baltimore Ravens'!$G$165 -> 0 | I19: ='Baltimore Ravens'!$H$165 -> 0 | J19: ='Baltimore Ravens'!$I$165 -> 0 | K19: ='Baltimore Ravens'!$K$165 -> 0 | L19: ='Baltimore Ravens'!$L$165 -> 0 | M19: ='Baltimore Ravens'!$M$165 -> 0 | N19: ='Baltimore Ravens'!$N$165 -> 0 | O19: =IF('DFS Dashboard'!$H$1="DraftKings",'Total Projections (excl QB)'!G19*'DFS Dashboard'!$T$10+'Total Projections (excl QB)'!I19*'DFS Dashboard'!$T$8+'Total Projections (excl QB)'!J19*'DFS Dashboard'!$T$9+'Total Projections (excl QB)'!M19*'DFS Dashboard'!$T$6+'Total Projections (excl QB)'!N19*'DFS Dashboard'!$T$7+IF('Total Projections (excl QB)'!I19>99.99,'DFS Dashboard'!$T$12,0)+IF('Total Projections (excl QB)'!M19>99.99,'DFS Dashboard'!$T$11,0),IF('DFS Dashboard'!$H$1="FanDuel",'Total Projections (excl QB)'!G19*'DFS Dashboard'!$U$10+'Total Projections (excl QB)'!I19*'DFS Dashboard'!$U$8+'Total Projections (excl QB)'!J19*'DFS Dashboard'!$U$9+'Total Projections (excl QB)'!M19*'DFS Dashboard'!$U$6+'Total Projections (excl QB)'!N19*'DFS Dashboard'!$U$7+IF('Total Projections (excl QB)'!I19>99.99,'DFS Dashboard'!$U$12,0)+IF('Total Projections (excl QB)'!M19>99.99,'DFS Dashboard'!$U$11,0),0)) -> 0
A20: =RANK(O20,$O:$O,0)+COUNTIF($O$4:O20,O20)-1 -> 17 | B20: Buffalo Bills | C20: Running Back | D20: ='Buffalo Bills'!$B$142 -> James Cook | E20: ='Buffalo Bills'!$D$142 -> 0 | F20: ='Buffalo Bills'!$E$142 -> 0 | G20: ='Buffalo Bills'!$F$142 -> 0 | H20: ='Buffalo Bills'!$G$142 -> 0 | I20: ='Buffalo Bills'!$H$142 -> 0 | J20: ='Buffalo Bills'!$I$142 -> 0 | K20: ='Buffalo Bills'!$K$142 -> 0 | L20: ='Buffalo Bills'!$L$142 -> 0 | M20: ='Buffalo Bills'!$M$142 -> 0 | N20: ='Buffalo Bills'!$N$142 -> 0 | O20: =IF('DFS Dashboard'!$H$1="DraftKings",'Total Projections (excl QB)'!G20*'DFS Dashboard'!$T$10+'Total Projections (excl QB)'!I20*'DFS Dashboard'!$T$8+'Total Projections (excl QB)'!J20*'DFS Dashboard'!$T$9+'Total Projections (excl QB)'!M20*'DFS Dashboard'!$T$6+'Total Projections (excl QB)'!N20*'DFS Dashboard'!$T$7+IF('Total Projections (excl QB)'!I20>99.99,'DFS Dashboard'!$T$12,0)+IF('Total Projections (excl QB)'!M20>99.99,'DFS Dashboard'!$T$11,0),IF('DFS Dashboard'!$H$1="FanDuel",'Total Projections (excl QB)'!G20*'DFS Dashboard'!$U$10+'Total Projections (excl QB)'!I20*'DFS Dashboard'!$U$8+'Total Projections (excl QB)'!J20*'DFS Dashboard'!$U$9+'Total Projections (excl QB)'!M20*'DFS Dashboard'!$U$6+'Total Projections (excl QB)'!N20*'DFS Dashboard'!$U$7+IF('Total Projections (excl QB)'!I20>99.99,'DFS Dashboard'!$U$12,0)+IF('Total Projections (excl QB)'!M20>99.99,'DFS Dashboard'!$U$11,0),0)) -> 0
A21: =RANK(O21,$O:$O,0)+COUNTIF($O$4:O21,O21)-1 -> 18 | B21: Buffalo Bills | C21: Running Back | D21: ='Buffalo Bills'!$B$143 -> Ray Davis | E21: ='Buffalo Bills'!$D$143 -> 0 | F21: ='Buffalo Bills'!$E$143 -> 0 | G21: ='Buffalo Bills'!$F$143 -> 0 | H21: ='Buffalo Bills'!$G$143 -> 0 | I21: ='Buffalo Bills'!$H$143 -> 0 | J21: ='Buffalo Bills'!$I$143 -> 0 | K21: ='Buffalo Bills'!$K$143 -> 0 | L21: ='Buffalo Bills'!$L$143 -> 0 | M21: ='Buffalo Bills'!$M$143 -> 0 | N21: ='Buffalo Bills'!$N$143 -> 0 | O21: =IF('DFS Dashboard'!$H$1="DraftKings",'Total Projections (excl QB)'!G21*'DFS Dashboard'!$T$10+'Total Projections (excl QB)'!I21*'DFS Dashboard'!$T$8+'Total Projections (excl QB)'!J21*'DFS Dashboard'!$T$9+'Total Projections (excl QB)'!M21*'DFS Dashboard'!$T$6+'Total Projections (excl QB)'!N21*'DFS Dashboard'!$T$7+IF('Total Projections (excl QB)'!I21>99.99,'DFS Dashboard'!$T$12,0)+IF('Total Projections (excl QB)'!M21>99.99,'DFS Dashboard'!$T$11,0),IF('DFS Dashboard'!$H$1="FanDuel",'Total Projections (excl QB)'!G21*'DFS Dashboard'!$U$10+'Total Projections (excl QB)'!I21*'DFS Dashboard'!$U$8+'Total Projections (excl QB)'!J21*'DFS Dashboard'!$U$9+'Total Projections (excl QB)'!M21*'DFS Dashboard'!$U$6+'Total Projections (excl QB)'!N21*'DFS Dashboard'!$U$7+IF('Total Projections (excl QB)'!I21>99.99,'DFS Dashboard'!$U$12,0)+IF('Total Projections (excl QB)'!M21>99.99,'DFS Dashboard'!$U$11,0),0)) -> 0
A22: =RANK(O22,$O:$O,0)+COUNTIF($O$4:O22,O22)-1 -> 19 | B22: Buffalo Bills | C22: Running Back | D22: ='Buffalo Bills'!$B$144 -> Ty Johnson | E22: ='Buffalo Bills'!$D$144 -> 0 | F22: ='Buffalo Bills'!$E$144 -> 0 | G22: ='Buffalo Bills'!$F$144 -> 0 | H22: ='Buffalo Bills'!$G$144 -> 0 | I22: ='Buffalo Bills'!$H$144 -> 0 | J22: ='Buffalo Bills'!$I$144 -> 0 | K22: ='Buffalo Bills'!$K$144 -> 0 | L22: ='Buffalo Bills'!$L$144 -> 0 | M22: ='Buffalo Bills'!$M$144 -> 0 | N22: ='Buffalo Bills'!$N$144 -> 0 | O22: =IF('DFS Dashboard'!$H$1="DraftKings",'Total Projections (excl QB)'!G22*'DFS Dashboard'!$T$10+'Total Projections (excl QB)'!I22*'DFS Dashboard'!$T$8+'Total Projections (excl QB)'!J22*'DFS Dashboard'!$T$9+'Total Projections (excl QB)'!M22*'DFS Dashboard'!$T$6+'Total Projections (excl QB)'!N22*'DFS Dashboard'!$T$7+IF('Total Projections (excl QB)'!I22>99.99,'DFS Dashboard'!$T$12,0)+IF('Total Projections (excl QB)'!M22>99.99,'DFS Dashboard'!$T$11,0),IF('DFS Dashboard'!$H$1="FanDuel",'Total Projections (excl QB)'!G22*'DFS Dashboard'!$U$10+'Total Projections (excl QB)'!I22*'DFS Dashboard'!$U$8+'Total Projections (excl QB)'!J22*'DFS Dashboard'!$U$9+'Total Projections (excl QB)'!M22*'DFS Dashboard'!$U$6+'Total Projections (excl QB)'!N22*'DFS Dashboard'!$U$7+IF('Total Projections (excl QB)'!I22>99.99,'DFS Dashboard'!$U$12,0)+IF('Total Projections (excl QB)'!M22>99.99,'DFS Dashboard'!$U$11,0),0)) -> 0
A23: =RANK(O23,$O:$O,0)+COUNTIF($O$4:O23,O23)-1 -> 20 | B23: Buffalo Bills | C23: Running Back | D23: ='Buffalo Bills'!$B$145 -> 0 | E23: ='Buffalo Bills'!$D$145 -> 0 | F23: ='Buffalo Bills'!$E$145 -> 0 | G23: ='Buffalo Bills'!$F$145 -> 0 | H23: ='Buffalo Bills'!$G$145 -> 0 | I23: ='Buffalo Bills'!$H$145 -> 0 | J23: ='Buffalo Bills'!$I$145 -> 0 | K23: ='Buffalo Bills'!$K$145 -> 0 | L23: ='Buffalo Bills'!$L$145 -> 0 | M23: ='Buffalo Bills'!$M$145 -> 0 | N23: ='Buffalo Bills'!$N$145 -> 0 | O23: =IF('DFS Dashboard'!$H$1="DraftKings",'Total Projections (excl QB)'!G23*'DFS Dashboard'!$T$10+'Total Projections (excl QB)'!I23*'DFS Dashboard'!$T$8+'Total Projections (excl QB)'!J23*'DFS Dashboard'!$T$9+'Total Projections (excl QB)'!M23*'DFS Dashboard'!$T$6+'Total Projections (excl QB)'!N23*'DFS Dashboard'!$T$7+IF('Total Projections (excl QB)'!I23>99.99,'DFS Dashboard'!$T$12,0)+IF('Total Projections (excl QB)'!M23>99.99,'DFS Dashboard'!$T$11,0),IF('DFS Dashboard'!$H$1="FanDuel",'Total Projections (excl QB)'!G23*'DFS Dashboard'!$U$10+'Total Projections (excl QB)'!I23*'DFS Dashboard'!$U$8+'Total Projections (excl QB)'!J23*'DFS Dashboard'!$U$9+'Total Projections (excl QB)'!M23*'DFS Dashboard'!$U$6+'Total Projections (excl QB)'!N23*'DFS Dashboard'!$U$7+IF('Total Projections (excl QB)'!I23>99.99,'DFS Dashboard'!$U$12,0)+IF('Total Projections (excl QB)'!M23>99.99,'DFS Dashboard'!$U$11,0),0)) -> 0
A24: =RANK(O24,$O:$O,0)+COUNTIF($O$4:O24,O24)-1 -> 21 | B24: Buffalo Bills | C24: Wide Receiver | D24: ='Buffalo Bills'!$B$118 -> Khalil Shakir | E24: ='Buffalo Bills'!$D$118 -> 0 | F24: ='Buffalo Bills'!$E$118 -> 0 | G24: ='Buffalo Bills'!$F$118 -> 0 | H24: ='Buffalo Bills'!$G$118 -> 0 | I24: ='Buffalo Bills'!$H$118 -> 0 | J24: ='Buffalo Bills'!$I$118 -> 0 | K24: ='Buffalo Bills'!$K$118 -> 0 | L24: ='Buffalo Bills'!$L$118 -> 0 | M24: ='Buffalo Bills'!$M$118 -> 0 | N24: ='Buffalo Bills'!$N$118 -> 0 | O24: =IF('DFS Dashboard'!$H$1="DraftKings",'Total Projections (excl QB)'!G24*'DFS Dashboard'!$T$10+'Total Projections (excl QB)'!I24*'DFS Dashboard'!$T$8+'Total Projections (excl QB)'!J24*'DFS Dashboard'!$T$9+'Total Projections (excl QB)'!M24*'DFS Dashboard'!$T$6+'Total Projections (excl QB)'!N24*'DFS Dashboard'!$T$7+IF('Total Projections (excl QB)'!I24>99.99,'DFS Dashboard'!$T$12,0)+IF('Total Projections (excl QB)'!M24>99.99,'DFS Dashboard'!$T$11,0),IF('DFS Dashboard'!$H$1="FanDuel",'Total Projections (excl QB)'!G24*'DFS Dashboard'!$U$10+'Total Projections (excl QB)'!I24*'DFS Dashboard'!$U$8+'Total Projections (excl QB)'!J24*'DFS Dashboard'!$U$9+'Total Projections (excl QB)'!M24*'DFS Dashboard'!$U$6+'Total Projections (excl QB)'!N24*'DFS Dashboard'!$U$7+IF('Total Projections (excl QB)'!I24>99.99,'DFS Dashboard'!$U$12,0)+IF('Total Projections (excl QB)'!M24>99.99,'DFS Dashboard'!$U$11,0),0)) -> 0
A25: =RANK(O25,$O:$O,0)+COUNTIF($O$4:O25,O25)-1 -> 22 | B25: Buffalo Bills | C25: Wide Receiver | D25: ='Buffalo Bills'!$B$119 -> Keon Coleman | E25: ='Buffalo Bills'!$D$119 -> 0 | F25: ='Buffalo Bills'!$E$119 -> 0 | G25: ='Buffalo Bills'!$F$119 -> 0 | H25: ='Buffalo Bills'!$G$119 -> 0 | I25: ='Buffalo Bills'!$H$119 -> 0 | J25: ='Buffalo Bills'!$I$119 -> 0 | K25: ='Buffalo Bills'!$K$119 -> 0 | L25: ='Buffalo Bills'!$L$119 -> 0 | M25: ='Buffalo Bills'!$M$119 -> 0 | N25: ='Buffalo Bills'!$N$119 -> 0 | O25: =IF('DFS Dashboard'!$H$1="DraftKings",'Total Projections (excl QB)'!G25*'DFS Dashboard'!$T$10+'Total Projections (excl QB)'!I25*'DFS Dashboard'!$T$8+'Total Projections (excl QB)'!J25*'DFS Dashboard'!$T$9+'Total Projections (excl QB)'!M25*'DFS Dashboard'!$T$6+'Total Projections (excl QB)'!N25*'DFS Dashboard'!$T$7+IF('Total Projections (excl QB)'!I25>99.99,'DFS Dashboard'!$T$12,0)+IF('Total Projections (excl QB)'!M25>99.99,'DFS Dashboard'!$T$11,0),IF('DFS Dashboard'!$H$1="FanDuel",'Total Projections (excl QB)'!G25*'DFS Dashboard'!$U$10+'Total Projections (excl QB)'!I25*'DFS Dashboard'!$U$8+'Total Projections (excl QB)'!J25*'DFS Dashboard'!$U$9+'Total Projections (excl QB)'!M25*'DFS Dashboard'!$U$6+'Total Projections (excl QB)'!N25*'DFS Dashboard'!$U$7+IF('Total Projections (excl QB)'!I25>99.99,'DFS Dashboard'!$U$12,0)+IF('Total Projections (excl QB)'!M25>99.99,'DFS Dashboard'!$U$11,0),0)) -> 0
A26: =RANK(O26,$O:$O,0)+COUNTIF($O$4:O26,O26)-1 -> 23 | B26: Buffalo Bills | C26: Wide Receiver | D26: ='Buffalo Bills'!$B$120 -> Mack Hollins | E26: ='Buffalo Bills'!$D$120 -> 0 | F26: ='Buffalo Bills'!$E$120 -> 0 | G26: ='Buffalo Bills'!$F$120 -> 0 | H26: ='Buffalo Bills'!$G$120 -> 0 | I26: ='Buffalo Bills'!$H$120 -> 0 | J26: ='Buffalo Bills'!$I$120 -> 0 | K26: ='Buffalo Bills'!$K$120 -> 0 | L26: ='Buffalo Bills'!$L$120 -> 0 | M26: ='Buffalo Bills'!$M$120 -> 0 | N26: ='Buffalo Bills'!$N$120 -> 0 | O26: =IF('DFS Dashboard'!$H$1="DraftKings",'Total Projections (excl QB)'!G26*'DFS Dashboard'!$T$10+'Total Projections (excl QB)'!I26*'DFS Dashboard'!$T$8+'Total Projections (excl QB)'!J26*'DFS Dashboard'!$T$9+'Total Projections (excl QB)'!M26*'DFS Dashboard'!$T$6+'Total Projections (excl QB)'!N26*'DFS Dashboard'!$T$7+IF('Total Projections (excl QB)'!I26>99.99,'DFS Dashboard'!$T$12,0)+IF('Total Projections (excl QB)'!M26>99.99,'DFS Dashboard'!$T$11,0),IF('DFS Dashboard'!$H$1="FanDuel",'Total Projections (excl QB)'!G26*'DFS Dashboard'!$U$10+'Total Projections (excl QB)'!I26*'DFS Dashboard'!$U$8+'Total Projections (excl QB)'!J26*'DFS Dashboard'!$U$9+'Total Projections (excl QB)'!M26*'DFS Dashboard'!$U$6+'Total Projections (excl QB)'!N26*'DFS Dashboard'!$U$7+IF('Total Projections (excl QB)'!I26>99.99,'DFS Dashboard'!$U$12,0)+IF('Total Projections (excl QB)'!M26>99.99,'DFS Dashboard'!$U$11,0),0)) -> 0
A27: =RANK(O27,$O:$O,0)+COUNTIF($O$4:O27,O27)-1 -> 24 | B27: Buffalo Bills | C27: Wide Receiver | D27: ='Buffalo Bills'!$B$121 -> Amari Cooper | E27: ='Buffalo Bills'!$D$121 -> 0 | F27: ='Buffalo Bills'!$E$121 -> 0 | G27: ='Buffalo Bills'!$F$121 -> 0 | H27: ='Buffalo Bills'!$G$121 -> 0 | I27: ='Buffalo Bills'!$H$121 -> 0 | J27: ='Buffalo Bills'!$I$121 -> 0 | K27: ='Buffalo Bills'!$K$121 -> 0 | L27: ='Buffalo Bills'!$L$121 -> 0 | M27: ='Buffalo Bills'!$M$121 -> 0 | N27: ='Buffalo Bills'!$N$121 -> 0 | O27: =IF('DFS Dashboard'!$H$1="DraftKings",'Total Projections (excl QB)'!G27*'DFS Dashboard'!$T$10+'Total Projections (excl QB)'!I27*'DFS Dashboard'!$T$8+'Total Projections (excl QB)'!J27*'DFS Dashboard'!$T$9+'Total Projections (excl QB)'!M27*'DFS Dashboard'!$T$6+'Total Projections (excl QB)'!N27*'DFS Dashboard'!$T$7+IF('Total Projections (excl QB)'!I27>99.99,'DFS Dashboard'!$T$12,0)+IF('Total Projections (excl QB)'!M27>99.99,'DFS Dashboard'!$T$11,0),IF('DFS Dashboard'!$H$1="FanDuel",'Total Projections (excl QB)'!G27*'DFS Dashboard'!$U$10+'Total Projections (excl QB)'!I27*'DFS Dashboard'!$U$8+'Total Projections (excl QB)'!J27*'DFS Dashboard'!$U$9+'Total Projections (excl QB)'!M27*'DFS Dashboard'!$U$6+'Total Projections (excl QB)'!N27*'DFS Dashboard'!$U$7+IF('Total Projections (excl QB)'!I27>99.99,'DFS Dashboard'!$U$12,0)+IF('Total Projections (excl QB)'!M27>99.99,'DFS Dashboard'!$U$11,0),0)) -> 0
A28: =RANK(O28,$O:$O,0)+COUNTIF($O$4:O28,O28)-1 -> 25 | B28: Buffalo Bills | C28: Wide Receiver | D28: ='Buffalo Bills'!$B$122 -> Curtis Samuel | E28: ='Buffalo Bills'!$D$122 -> 0 | F28: ='Buffalo Bills'!$E$122 -> 0 | G28: ='Buffalo Bills'!$F$122 -> 0 | H28: ='Buffalo Bills'!$G$122 -> 0 | I28: ='Buffalo Bills'!$H$122 -> 0 | J28: ='Buffalo Bills'!$I$122 -> 0 | K28: ='Buffalo Bills'!$K$122 -> 0 | L28: ='Buffalo Bills'!$L$122 -> 0 | M28: ='Buffalo Bills'!$M$122 -> 0 | N28: ='Buffalo Bills'!$N$122 -> 0 | O28: =IF('DFS Dashboard'!$H$1="DraftKings",'Total Projections (excl QB)'!G28*'DFS Dashboard'!$T$10+'Total Projections (excl QB)'!I28*'DFS Dashboard'!$T$8+'Total Projections (excl QB)'!J28*'DFS Dashboard'!$T$9+'Total Projections (excl QB)'!M28*'DFS Dashboard'!$T$6+'Total Projections (excl QB)'!N28*'DFS Dashboard'!$T$7+IF('Total Projections (excl QB)'!I28>99.99,'DFS Dashboard'!$T$12,0)+IF('Total Projections (excl QB)'!M28>99.99,'DFS Dashboard'!$T$11,0),IF('DFS Dashboard'!$H$1="FanDuel",'Total Projections (excl QB)'!G28*'DFS Dashboard'!$U$10+'Total Projections (excl QB)'!I28*'DFS Dashboard'!$U$8+'Total Projections (excl QB)'!J28*'DFS Dashboard'!$U$9+'Total Projections (excl QB)'!M28*'DFS Dashboard'!$U$6+'Total Projections (excl QB)'!N28*'DFS Dashboard'!$U$7+IF('Total Projections (excl QB)'!I28>99.99,'DFS Dashboard'!$U$12,0)+IF('Total Projections (excl QB)'!M28>99.99,'DFS Dashboard'!$U$11,0),0)) -> 0
A29: =RANK(O29,$O:$O,0)+COUNTIF($O$4:O29,O29)-1 -> 26 | B29: Buffalo Bills | C29: Wide Receiver | D29: ='Buffalo Bills'!$B$123 -> Tyrell Shavers | E29: ='Buffalo Bills'!$D$123 -> 0 | F29: ='Buffalo Bills'!$E$123 -> 0 | G29: ='Buffalo Bills'!$F$123 -> 0 | H29: ='Buffalo Bills'!$G$123 -> 0 | I29: ='Buffalo Bills'!$H$123 -> 0 | J29: ='Buffalo Bills'!$I$123 -> 0 | K29: ='Buffalo Bills'!$K$123 -> 0 | L29: ='Buffalo Bills'!$L$123 -> 0 | M29: ='Buffalo Bills'!$M$123 -> 0 | N29: ='Buffalo Bills'!$N$123 -> 0 | O29: =IF('DFS Dashboard'!$H$1="DraftKings",'Total Projections (excl QB)'!G29*'DFS Dashboard'!$T$10+'Total Projections (excl QB)'!I29*'DFS Dashboard'!$T$8+'Total Projections (excl QB)'!J29*'DFS Dashboard'!$T$9+'Total Projections (excl QB)'!M29*'DFS Dashboard'!$T$6+'Total Projections (excl QB)'!N29*'DFS Dashboard'!$T$7+IF('Total Projections (excl QB)'!I29>99.99,'DFS Dashboard'!$T$12,0)+IF('Total Projections (excl QB)'!M29>99.99,'DFS Dashboard'!$T$11,0),IF('DFS Dashboard'!$H$1="FanDuel",'Total Projections (excl QB)'!G29*'DFS Dashboard'!$U$10+'Total Projections (excl QB)'!I29*'DFS Dashboard'!$U$8+'Total Projections (excl QB)'!J29*'DFS Dashboard'!$U$9+'Total Projections (excl QB)'!M29*'DFS Dashboard'!$U$6+'Total Projections (excl QB)'!N29*'DFS Dashboard'!$U$7+IF('Total Projections (excl QB)'!I29>99.99,'DFS Dashboard'!$U$12,0)+IF('Total Projections (excl QB)'!M29>99.99,'DFS Dashboard'!$U$11,0),0)) -> 0
A30: =RANK(O30,$O:$O,0)+COUNTIF($O$4:O30,O30)-1 -> 27 | B30: Buffalo Bills | C30: Wide Receiver | D30: ='Buffalo Bills'!$B$124 -> Marquez Valdes-Scantling | E30: ='Buffalo Bills'!$D$124 -> 0 | F30: ='Buffalo Bills'!$E$124 -> 0 | G30: ='Buffalo Bills'!$F$124 -> 0 | H30: ='Buffalo Bills'!$G$124 -> 0 | I30: ='Buffalo Bills'!$H$124 -> 0 | J30: ='Buffalo Bills'!$I$124 -> 0 | K30: ='Buffalo Bills'!$K$124 -> 0 | L30: ='Buffalo Bills'!$L$124 -> 0 | M30: ='Buffalo Bills'!$M$124 -> 0 | N30: ='Buffalo Bills'!$N$124 -> 0 | O30: =IF('DFS Dashboard'!$H$1="DraftKings",'Total Projections (excl QB)'!G30*'DFS Dashboard'!$T$10+'Total Projections (excl QB)'!I30*'DFS Dashboard'!$T$8+'Total Projections (excl QB)'!J30*'DFS Dashboard'!$T$9+'Total Projections (excl QB)'!M30*'DFS Dashboard'!$T$6+'Total Projections (excl QB)'!N30*'DFS Dashboard'!$T$7+IF('Total Projections (excl QB)'!I30>99.99,'DFS Dashboard'!$T$12,0)+IF('Total Projections (excl QB)'!M30>99.99,'DFS Dashboard'!$T$11,0),IF('DFS Dashboard'!$H$1="FanDuel",'Total Projections (excl QB)'!G30*'DFS Dashboard'!$U$10+'Total Projections (excl QB)'!I30*'DFS Dashboard'!$U$8+'Total Projections (excl QB)'!J30*'DFS Dashboard'!$U$9+'Total Projections (excl QB)'!M30*'DFS Dashboard'!$U$6+'Total Projections (excl QB)'!N30*'DFS Dashboard'!$U$7+IF('Total Projections (excl QB)'!I30>99.99,'DFS Dashboard'!$U$12,0)+IF('Total Projections (excl QB)'!M30>99.99,'DFS Dashboard'!$U$11,0),0)) -> 0
A31: =RANK(O31,$O:$O,0)+COUNTIF($O$4:O31,O31)-1 -> 28 | B31: Buffalo Bills | C31: Wide Receiver | D31: ='Buffalo Bills'!$B$125 -> 0 | E31: ='Buffalo Bills'!$D$125 -> 0 | F31: ='Buffalo Bills'!$E$125 -> 0 | G31: ='Buffalo Bills'!$F$125 -> 0 | H31: ='Buffalo Bills'!$G$125 -> 0 | I31: ='Buffalo Bills'!$H$125 -> 0 | J31: ='Buffalo Bills'!$I$125 -> 0 | K31: ='Buffalo Bills'!$K$125 -> 0 | L31: ='Buffalo Bills'!$L$125 -> 0 | M31: ='Buffalo Bills'!$M$125 -> 0 | N31: ='Buffalo Bills'!$N$125 -> 0 | O31: =IF('DFS Dashboard'!$H$1="DraftKings",'Total Projections (excl QB)'!G31*'DFS Dashboard'!$T$10+'Total Projections (excl QB)'!I31*'DFS Dashboard'!$T$8+'Total Projections (excl QB)'!J31*'DFS Dashboard'!$T$9+'Total Projections (excl QB)'!M31*'DFS Dashboard'!$T$6+'Total Projections (excl QB)'!N31*'DFS Dashboard'!$T$7+IF('Total Projections (excl QB)'!I31>99.99,'DFS Dashboard'!$T$12,0)+IF('Total Projections (excl QB)'!M31>99.99,'DFS Dashboard'!$T$11,0),IF('DFS Dashboard'!$H$1="FanDuel",'Total Projections (excl QB)'!G31*'DFS Dashboard'!$U$10+'Total Projections (excl QB)'!I31*'DFS Dashboard'!$U$8+'Total Projections (excl QB)'!J31*'DFS Dashboard'!$U$9+'Total Projections (excl QB)'!M31*'DFS Dashboard'!$U$6+'Total Projections (excl QB)'!N31*'DFS Dashboard'!$U$7+IF('Total Projections (excl QB)'!I31>99.99,'DFS Dashboard'!$U$12,0)+IF('Total Projections (excl QB)'!M31>99.99,'DFS Dashboard'!$U$11,0),0)) -> 0
A32: =RANK(O32,$O:$O,0)+COUNTIF($O$4:O32,O32)-1 -> 29 | B32: Buffalo Bills | C32: Tight End | D32: ='Buffalo Bills'!$B$162 -> Dalton Kincaid | E32: ='Buffalo Bills'!$D$162 -> 0 | F32: ='Buffalo Bills'!$E$162 -> 0 | G32: ='Buffalo Bills'!$F$162 -> 0 | H32: ='Buffalo Bills'!$G$162 -> 0 | I32: ='Buffalo Bills'!$H$162 -> 0 | J32: ='Buffalo Bills'!$I$162 -> 0 | K32: ='Buffalo Bills'!$K$162 -> 0 | L32: ='Buffalo Bills'!$L$162 -> 0 | M32: ='Buffalo Bills'!$M$162 -> 0 | N32: ='Buffalo Bills'!$N$162 -> 0 | O32: =IF('DFS Dashboard'!$H$1="DraftKings",'Total Projections (excl QB)'!G32*'DFS Dashboard'!$T$10+'Total Projections (excl QB)'!I32*'DFS Dashboard'!$T$8+'Total Projections (excl QB)'!J32*'DFS Dashboard'!$T$9+'Total Projections (excl QB)'!M32*'DFS Dashboard'!$T$6+'Total Projections (excl QB)'!N32*'DFS Dashboard'!$T$7+IF('Total Projections (excl QB)'!I32>99.99,'DFS Dashboard'!$T$12,0)+IF('Total Projections (excl QB)'!M32>99.99,'DFS Dashboard'!$T$11,0),IF('DFS Dashboard'!$H$1="FanDuel",'Total Projections (excl QB)'!G32*'DFS Dashboard'!$U$10+'Total Projections (excl QB)'!I32*'DFS Dashboard'!$U$8+'Total Projections (excl QB)'!J32*'DFS Dashboard'!$U$9+'Total Projections (excl QB)'!M32*'DFS Dashboard'!$U$6+'Total Projections (excl QB)'!N32*'DFS Dashboard'!$U$7+IF('Total Projections (excl QB)'!I32>99.99,'DFS Dashboard'!$U$12,0)+IF('Total Projections (excl QB)'!M32>99.99,'DFS Dashboard'!$U$11,0),0)) -> 0
A33: =RANK(O33,$O:$O,0)+COUNTIF($O$4:O33,O33)-1 -> 30 | B33: Buffalo Bills | C33: Tight End | D33: ='Buffalo Bills'!$B$163 -> Dawson Knox | E33: ='Buffalo Bills'!$D$163 -> 0 | F33: ='Buffalo Bills'!$E$163 -> 0 | G33: ='Buffalo Bills'!$F$163 -> 0 | H33: ='Buffalo Bills'!$G$163 -> 0 | I33: ='Buffalo Bills'!$H$163 -> 0 | J33: ='Buffalo Bills'!$I$163 -> 0 | K33: ='Buffalo Bills'!$K$163 -> 0 | L33: ='Buffalo Bills'!$L$163 -> 0 | M33: ='Buffalo Bills'!$M$163 -> 0 | N33: ='Buffalo Bills'!$N$163 -> 0 | O33: =IF('DFS Dashboard'!$H$1="DraftKings",'Total Projections (excl QB)'!G33*'DFS Dashboard'!$T$10+'Total Projections (excl QB)'!I33*'DFS Dashboard'!$T$8+'Total Projections (excl QB)'!J33*'DFS Dashboard'!$T$9+'Total Projections (excl QB)'!M33*'DFS Dashboard'!$T$6+'Total Projections (excl QB)'!N33*'DFS Dashboard'!$T$7+IF('Total Projections (excl QB)'!I33>99.99,'DFS Dashboard'!$T$12,0)+IF('Total Projections (excl QB)'!M33>99.99,'DFS Dashboard'!$T$11,0),IF('DFS Dashboard'!$H$1="FanDuel",'Total Projections (excl QB)'!G33*'DFS Dashboard'!$U$10+'Total Projections (excl QB)'!I33*'DFS Dashboard'!$U$8+'Total Projections (excl QB)'!J33*'DFS Dashboard'!$U$9+'Total Projections (excl QB)'!M33*'DFS Dashboard'!$U$6+'Total Projections (excl QB)'!N33*'DFS Dashboard'!$U$7+IF('Total Projections (excl QB)'!I33>99.99,'DFS Dashboard'!$U$12,0)+IF('Total Projections (excl QB)'!M33>99.99,'DFS Dashboard'!$U$11,0),0)) -> 0
A34: =RANK(O34,$O:$O,0)+COUNTIF($O$4:O34,O34)-1 -> 31 | B34: Buffalo Bills | C34: Tight End | D34: ='Buffalo Bills'!$B$164 -> Quintin Morris | E34: ='Buffalo Bills'!$D$164 -> 0 | F34: ='Buffalo Bills'!$E$164 -> 0 | G34: ='Buffalo Bills'!$F$164 -> 0 | H34: ='Buffalo Bills'!$G$164 -> 0 | I34: ='Buffalo Bills'!$H$164 -> 0 | J34: ='Buffalo Bills'!$I$164 -> 0 | K34: ='Buffalo Bills'!$K$164 -> 0 | L34: ='Buffalo Bills'!$L$164 -> 0 | M34: ='Buffalo Bills'!$M$164 -> 0 | N34: ='Buffalo Bills'!$N$164 -> 0 | O34: =IF('DFS Dashboard'!$H$1="DraftKings",'Total Projections (excl QB)'!G34*'DFS Dashboard'!$T$10+'Total Projections (excl QB)'!I34*'DFS Dashboard'!$T$8+'Total Projections (excl QB)'!J34*'DFS Dashboard'!$T$9+'Total Projections (excl QB)'!M34*'DFS Dashboard'!$T$6+'Total Projections (excl QB)'!N34*'DFS Dashboard'!$T$7+IF('Total Projections (excl QB)'!I34>99.99,'DFS Dashboard'!$T$12,0)+IF('Total Projections (excl QB)'!M34>99.99,'DFS Dashboard'!$T$11,0),IF('DFS Dashboard'!$H$1="FanDuel",'Total Projections (excl QB)'!G34*'DFS Dashboard'!$U$10+'Total Projections (excl QB)'!I34*'DFS Dashboard'!$U$8+'Total Projections (excl QB)'!J34*'DFS Dashboard'!$U$9+'Total Projections (excl QB)'!M34*'DFS Dashboard'!$U$6+'Total Projections (excl QB)'!N34*'DFS Dashboard'!$U$7+IF('Total Projections (excl QB)'!I34>99.99,'DFS Dashboard'!$U$12,0)+IF('Total Projections (excl QB)'!M34>99.99,'DFS Dashboard'!$U$11,0),0)) -> 0
A35: =RANK(O35,$O:$O,0)+COUNTIF($O$4:O35,O35)-1 -> 32 | B35: Buffalo Bills | C35: Tight End | D35: ='Buffalo Bills'!$B$165 -> Zach Davidson | E35: ='Buffalo Bills'!$D$165 -> 0 | F35: ='Buffalo Bills'!$E$165 -> 0 | G35: ='Buffalo Bills'!$F$165 -> 0 | H35: ='Buffalo Bills'!$G$165 -> 0 | I35: ='Buffalo Bills'!$H$165 -> 0 | J35: ='Buffalo Bills'!$I$165 -> 0 | K35: ='Buffalo Bills'!$K$165 -> 0 | L35: ='Buffalo Bills'!$L$165 -> 0 | M35: ='Buffalo Bills'!$M$165 -> 0 | N35: ='Buffalo Bills'!$N$165 -> 0 | O35: =IF('DFS Dashboard'!$H$1="DraftKings",'Total Projections (excl QB)'!G35*'DFS Dashboard'!$T$10+'Total Projections (excl QB)'!I35*'DFS Dashboard'!$T$8+'Total Projections (excl QB)'!J35*'DFS Dashboard'!$T$9+'Total Projections (excl QB)'!M35*'DFS Dashboard'!$T$6+'Total Projections (excl QB)'!N35*'DFS Dashboard'!$T$7+IF('Total Projections (excl QB)'!I35>99.99,'DFS Dashboard'!$T$12,0)+IF('Total Projections (excl QB)'!M35>99.99,'DFS Dashboard'!$T$11,0),IF('DFS Dashboard'!$H$1="FanDuel",'Total Projections (excl QB)'!G35*'DFS Dashboard'!$U$10+'Total Projections (excl QB)'!I35*'DFS Dashboard'!$U$8+'Total Projections (excl QB)'!J35*'DFS Dashboard'!$U$9+'Total Projections (excl QB)'!M35*'DFS Dashboard'!$U$6+'Total Projections (excl QB)'!N35*'DFS Dashboard'!$U$7+IF('Total Projections (excl QB)'!I35>99.99,'DFS Dashboard'!$U$12,0)+IF('Total Projections (excl QB)'!M35>99.99,'DFS Dashboard'!$U$11,0),0)) -> 0
A36: =RANK(O36,$O:$O,0)+COUNTIF($O$4:O36,O36)-1 -> 33 | B36: Denver Broncos | C36: Running Back | D36: ='Denver Broncos'!$B$142 -> Javonte Williams | E36: ='Denver Broncos'!$D$142 -> 0 | F36: ='Denver Broncos'!$E$142 -> 0 | G36: ='Denver Broncos'!$F$142 -> 0 | H36: ='Denver Broncos'!$G$142 -> 0 | I36: ='Denver Broncos'!$H$142 -> 0 | J36: ='Denver Broncos'!$I$142 -> 0 | K36: ='Denver Broncos'!$K$142 -> 0 | L36: ='Denver Broncos'!$L$142 -> 0 | M36: ='Denver Broncos'!$M$142 -> 0 | N36: ='Denver Broncos'!$N$142 -> 0 | O36: =IF('DFS Dashboard'!$H$1="DraftKings",'Total Projections (excl QB)'!G36*'DFS Dashboard'!$T$10+'Total Projections (excl QB)'!I36*'DFS Dashboard'!$T$8+'Total Projections (excl QB)'!J36*'DFS Dashboard'!$T$9+'Total Projections (excl QB)'!M36*'DFS Dashboard'!$T$6+'Total Projections (excl QB)'!N36*'DFS Dashboard'!$T$7+IF('Total Projections (excl QB)'!I36>99.99,'DFS Dashboard'!$T$12,0)+IF('Total Projections (excl QB)'!M36>99.99,'DFS Dashboard'!$T$11,0),IF('DFS Dashboard'!$H$1="FanDuel",'Total Projections (excl QB)'!G36*'DFS Dashboard'!$U$10+'Total Projections (excl QB)'!I36*'DFS Dashboard'!$U$8+'Total Projections (excl QB)'!J36*'DFS Dashboard'!$U$9+'Total Projections (excl QB)'!M36*'DFS Dashboard'!$U$6+'Total Projections (excl QB)'!N36*'DFS Dashboard'!$U$7+IF('Total Projections (excl QB)'!I36>99.99,'DFS Dashboard'!$U$12,0)+IF('Total Projections (excl QB)'!M36>99.99,'DFS Dashboard'!$U$11,0),0)) -> 0
A37: =RANK(O37,$O:$O,0)+COUNTIF($O$4:O37,O37)-1 -> 34 | B37: Denver Broncos | C37: Running Back | D37: ='Denver Broncos'!$B$143 -> Jaleel McLaughlin | E37: ='Denver Broncos'!$D$143 -> 0 | F37: ='Denver Broncos'!$E$143 -> 0 | G37: ='Denver Broncos'!$F$143 -> 0 | H37: ='Denver Broncos'!$G$143 -> 0 | I37: ='Denver Broncos'!$H$143 -> 0 | J37: ='Denver Broncos'!$I$143 -> 0 | K37: ='Denver Broncos'!$K$143 -> 0 | L37: ='Denver Broncos'!$L$143 -> 0 | M37: ='Denver Broncos'!$M$143 -> 0 | N37: ='Denver Broncos'!$N$143 -> 0 | O37: =IF('DFS Dashboard'!$H$1="DraftKings",'Total Projections (excl QB)'!G37*'DFS Dashboard'!$T$10+'Total Projections (excl QB)'!I37*'DFS Dashboard'!$T$8+'Total Projections (excl QB)'!J37*'DFS Dashboard'!$T$9+'Total Projections (excl QB)'!M37*'DFS Dashboard'!$T$6+'Total Projections (excl QB)'!N37*'DFS Dashboard'!$T$7+IF('Total Projections (excl QB)'!I37>99.99,'DFS Dashboard'!$T$12,0)+IF('Total Projections (excl QB)'!M37>99.99,'DFS Dashboard'!$T$11,0),IF('DFS Dashboard'!$H$1="FanDuel",'Total Projections (excl QB)'!G37*'DFS Dashboard'!$U$10+'Total Projections (excl QB)'!I37*'DFS Dashboard'!$U$8+'Total Projections (excl QB)'!J37*'DFS Dashboard'!$U$9+'Total Projections (excl QB)'!M37*'DFS Dashboard'!$U$6+'Total Projections (excl QB)'!N37*'DFS Dashboard'!$U$7+IF('Total Projections (excl QB)'!I37>99.99,'DFS Dashboard'!$U$12,0)+IF('Total Projections (excl QB)'!M37>99.99,'DFS Dashboard'!$U$11,0),0)) -> 0
A38: =RANK(O38,$O:$O,0)+COUNTIF($O$4:O38,O38)-1 -> 35 | B38: Denver Broncos | C38: Running Back | D38: ='Denver Broncos'!$B$144 -> Audric Estime | E38: ='Denver Broncos'!$D$144 -> 0 | F38: ='Denver Broncos'!$E$144 -> 0 | G38: ='Denver Broncos'!$F$144 -> 0 | H38: ='Denver Broncos'!$G$144 -> 0 | I38: ='Denver Broncos'!$H$144 -> 0 | J38: ='Denver Broncos'!$I$144 -> 0 | K38: ='Denver Broncos'!$K$144 -> 0 | L38: ='Denver Broncos'!$L$144 -> 0 | M38: ='Denver Broncos'!$M$144 -> 0 | N38: ='Denver Broncos'!$N$144 -> 0 | O38: =IF('DFS Dashboard'!$H$1="DraftKings",'Total Projections (excl QB)'!G38*'DFS Dashboard'!$T$10+'Total Projections (excl QB)'!I38*'DFS Dashboard'!$T$8+'Total Projections (excl QB)'!J38*'DFS Dashboard'!$T$9+'Total Projections (excl QB)'!M38*'DFS Dashboard'!$T$6+'Total Projections (excl QB)'!N38*'DFS Dashboard'!$T$7+IF('Total Projections (excl QB)'!I38>99.99,'DFS Dashboard'!$T$12,0)+IF('Total Projections (excl QB)'!M38>99.99,'DFS Dashboard'!$T$11,0),IF('DFS Dashboard'!$H$1="FanDuel",'Total Projections (excl QB)'!G38*'DFS Dashboard'!$U$10+'Total Projections (excl QB)'!I38*'DFS Dashboard'!$U$8+'Total Projections (excl QB)'!J38*'DFS Dashboard'!$U$9+'Total Projections (excl QB)'!M38*'DFS Dashboard'!$U$6+'Total Projections (excl QB)'!N38*'DFS Dashboard'!$U$7+IF('Total Projections (excl QB)'!I38>99.99,'DFS Dashboard'!$U$12,0)+IF('Total Projections (excl QB)'!M38>99.99,'DFS Dashboard'!$U$11,0),0)) -> 0
A39: =RANK(O39,$O:$O,0)+COUNTIF($O$4:O39,O39)-1 -> 36 | B39: Denver Broncos | C39: Running Back | D39: ='Denver Broncos'!$B$145 -> Tyler Badie | E39: ='Denver Broncos'!$D$145 -> 0 | F39: ='Denver Broncos'!$E$145 -> 0 | G39: ='Denver Broncos'!$F$145 -> 0 | H39: ='Denver Broncos'!$G$145 -> 0 | I39: ='Denver Broncos'!$H$145 -> 0 | J39: ='Denver Broncos'!$I$145 -> 0 | K39: ='Denver Broncos'!$K$145 -> 0 | L39: ='Denver Broncos'!$L$145 -> 0 | M39: ='Denver Broncos'!$M$145 -> 0 | N39: ='Denver Broncos'!$N$145 -> 0 | O39: =IF('DFS Dashboard'!$H$1="DraftKings",'Total Projections (excl QB)'!G39*'DFS Dashboard'!$T$10+'Total Projections (excl QB)'!I39*'DFS Dashboard'!$T$8+'Total Projections (excl QB)'!J39*'DFS Dashboard'!$T$9+'Total Projections (excl QB)'!M39*'DFS Dashboard'!$T$6+'Total Projections (excl QB)'!N39*'DFS Dashboard'!$T$7+IF('Total Projections (excl QB)'!I39>99.99,'DFS Dashboard'!$T$12,0)+IF('Total Projections (excl QB)'!M39>99.99,'DFS Dashboard'!$T$11,0),IF('DFS Dashboard'!$H$1="FanDuel",'Total Projections (excl QB)'!G39*'DFS Dashboard'!$U$10+'Total Projections (excl QB)'!I39*'DFS Dashboard'!$U$8+'Total Projections (excl QB)'!J39*'DFS Dashboard'!$U$9+'Total Projections (excl QB)'!M39*'DFS Dashboard'!$U$6+'Total Projections (excl QB)'!N39*'DFS Dashboard'!$U$7+IF('Total Projections (excl QB)'!I39>99.99,'DFS Dashboard'!$U$12,0)+IF('Total Projections (excl QB)'!M39>99.99,'DFS Dashboard'!$U$11,0),0)) -> 0
A40: =RANK(O40,$O:$O,0)+COUNTIF($O$4:O40,O40)-1 -> 37 | B40: Denver Broncos | C40: Wide Receiver | D40: ='Denver Broncos'!$B$118 -> Courtland Sutton | E40: ='Denver Broncos'!$D$118 -> 0 | F40: ='Denver Broncos'!$E$118 -> 0 | G40: ='Denver Broncos'!$F$118 -> 0 | H40: ='Denver Broncos'!$G$118 -> 0 | I40: ='Denver Broncos'!$H$118 -> 0 | J40: ='Denver Broncos'!$I$118 -> 0 | K40: ='Denver Broncos'!$K$118 -> 0 | L40: ='Denver Broncos'!$L$118 -> 0 | M40: ='Denver Broncos'!$M$118 -> 0 | N40: ='Denver Broncos'!$N$118 -> 0 | O40: =IF('DFS Dashboard'!$H$1="DraftKings",'Total Projections (excl QB)'!G40*'DFS Dashboard'!$T$10+'Total Projections (excl QB)'!I40*'DFS Dashboard'!$T$8+'Total Projections (excl QB)'!J40*'DFS Dashboard'!$T$9+'Total Projections (excl QB)'!M40*'DFS Dashboard'!$T$6+'Total Projections (excl QB)'!N40*'DFS Dashboard'!$T$7+IF('Total Projections (excl QB)'!I40>99.99,'DFS Dashboard'!$T$12,0)+IF('Total Projections (excl QB)'!M40>99.99,'DFS Dashboard'!$T$11,0),IF('DFS Dashboard'!$H$1="FanDuel",'Total Projections (excl QB)'!G40*'DFS Dashboard'!$U$10+'Total Projections (excl QB)'!I40*'DFS Dashboard'!$U$8+'Total Projections (excl QB)'!J40*'DFS Dashboard'!$U$9+'Total Projections (excl QB)'!M40*'DFS Dashboard'!$U$6+'Total Projections (excl QB)'!N40*'DFS Dashboard'!$U$7+IF('Total Projections (excl QB)'!I40>99.99,'DFS Dashboard'!$U$12,0)+IF('Total Projections (excl QB)'!M40>99.99,'DFS Dashboard'!$U$11,0),0)) -> 0
A41: =RANK(O41,$O:$O,0)+COUNTIF($O$4:O41,O41)-1 -> 38 | B41: Denver Broncos | C41: Wide Receiver | D41: ='Denver Broncos'!$B$119 -> Marvin Mims | E41: ='Denver Broncos'!$D$119 -> 0 | F41: ='Denver Broncos'!$E$119 -> 0 | G41: ='Denver Broncos'!$F$119 -> 0 | H41: ='Denver Broncos'!$G$119 -> 0 | I41: ='Denver Broncos'!$H$119 -> 0 | J41: ='Denver Broncos'!$I$119 -> 0 | K41: ='Denver Broncos'!$K$119 -> 0 | L41: ='Denver Broncos'!$L$119 -> 0 | M41: ='Denver Broncos'!$M$119 -> 0 | N41: ='Denver Broncos'!$N$119 -> 0 | O41: =IF('DFS Dashboard'!$H$1="DraftKings",'Total Projections (excl QB)'!G41*'DFS Dashboard'!$T$10+'Total Projections (excl QB)'!I41*'DFS Dashboard'!$T$8+'Total Projections (excl QB)'!J41*'DFS Dashboard'!$T$9+'Total Projections (excl QB)'!M41*'DFS Dashboard'!$T$6+'Total Projections (excl QB)'!N41*'DFS Dashboard'!$T$7+IF('Total Projections (excl QB)'!I41>99.99,'DFS Dashboard'!$T$12,0)+IF('Total Projections (excl QB)'!M41>99.99,'DFS Dashboard'!$T$11,0),IF('DFS Dashboard'!$H$1="FanDuel",'Total Projections (excl QB)'!G41*'DFS Dashboard'!$U$10+'Total Projections (excl QB)'!I41*'DFS Dashboard'!$U$8+'Total Projections (excl QB)'!J41*'DFS Dashboard'!$U$9+'Total Projections (excl QB)'!M41*'DFS Dashboard'!$U$6+'Total Projections (excl QB)'!N41*'DFS Dashboard'!$U$7+IF('Total Projections (excl QB)'!I41>99.99,'DFS Dashboard'!$U$12,0)+IF('Total Projections (excl QB)'!M41>99.99,'DFS Dashboard'!$U$11,0),0)) -> 0
A42: =RANK(O42,$O:$O,0)+COUNTIF($O$4:O42,O42)-1 -> 39 | B42: Denver Broncos | C42: Wide Receiver | D42: ='Denver Broncos'!$B$120 -> Devaughn Vele | E42: ='Denver Broncos'!$D$120 -> 0 | F42: ='Denver Broncos'!$E$120 -> 0 | G42: ='Denver Broncos'!$F$120 -> 0 | H42: ='Denver Broncos'!$G$120 -> 0 | I42: ='Denver Broncos'!$H$120 -> 0 | J42: ='Denver Broncos'!$I$120 -> 0 | K42: ='Denver Broncos'!$K$120 -> 0 | L42: ='Denver Broncos'!$L$120 -> 0 | M42: ='Denver Broncos'!$M$120 -> 0 | N42: ='Denver Broncos'!$N$120 -> 0 | O42: =IF('DFS Dashboard'!$H$1="DraftKings",'Total Projections (excl QB)'!G42*'DFS Dashboard'!$T$10+'Total Projections (excl QB)'!I42*'DFS Dashboard'!$T$8+'Total Projections (excl QB)'!J42*'DFS Dashboard'!$T$9+'Total Projections (excl QB)'!M42*'DFS Dashboard'!$T$6+'Total Projections (excl QB)'!N42*'DFS Dashboard'!$T$7+IF('Total Projections (excl QB)'!I42>99.99,'DFS Dashboard'!$T$12,0)+IF('Total Projections (excl QB)'!M42>99.99,'DFS Dashboard'!$T$11,0),IF('DFS Dashboard'!$H$1="FanDuel",'Total Projections (excl QB)'!G42*'DFS Dashboard'!$U$10+'Total Projections (excl QB)'!I42*'DFS Dashboard'!$U$8+'Total Projections (excl QB)'!J42*'DFS Dashboard'!$U$9+'Total Projections (excl QB)'!M42*'DFS Dashboard'!$U$6+'Total Projections (excl QB)'!N42*'DFS Dashboard'!$U$7+IF('Total Projections (excl QB)'!I42>99.99,'DFS Dashboard'!$U$12,0)+IF('Total Projections (excl QB)'!M42>99.99,'DFS Dashboard'!$U$11,0),0)) -> 0
A43: =RANK(O43,$O:$O,0)+COUNTIF($O$4:O43,O43)-1 -> 40 | B43: Denver Broncos | C43: Wide Receiver | D43: ='Denver Broncos'!$B$121 -> Lil'Jordan Humphrey | E43: ='Denver Broncos'!$D$121 -> 0 | F43: ='Denver Broncos'!$E$121 -> 0 | G43: ='Denver Broncos'!$F$121 -> 0 | H43: ='Denver Broncos'!$G$121 -> 0 | I43: ='Denver Broncos'!$H$121 -> 0 | J43: ='Denver Broncos'!$I$121 -> 0 | K43: ='Denver Broncos'!$K$121 -> 0 | L43: ='Denver Broncos'!$L$121 -> 0 | M43: ='Denver Broncos'!$M$121 -> 0 | N43: ='Denver Broncos'!$N$121 -> 0 | O43: =IF('DFS Dashboard'!$H$1="DraftKings",'Total Projections (excl QB)'!G43*'DFS Dashboard'!$T$10+'Total Projections (excl QB)'!I43*'DFS Dashboard'!$T$8+'Total Projections (excl QB)'!J43*'DFS Dashboard'!$T$9+'Total Projections (excl QB)'!M43*'DFS Dashboard'!$T$6+'Total Projections (excl QB)'!N43*'DFS Dashboard'!$T$7+IF('Total Projections (excl QB)'!I43>99.99,'DFS Dashboard'!$T$12,0)+IF('Total Projections (excl QB)'!M43>99.99,'DFS Dashboard'!$T$11,0),IF('DFS Dashboard'!$H$1="FanDuel",'Total Projections (excl QB)'!G43*'DFS Dashboard'!$U$10+'Total Projections (excl QB)'!I43*'DFS Dashboard'!$U$8+'Total Projections (excl QB)'!J43*'DFS Dashboard'!$U$9+'Total Projections (excl QB)'!M43*'DFS Dashboard'!$U$6+'Total Projections (excl QB)'!N43*'DFS Dashboard'!$U$7+IF('Total Projections (excl QB)'!I43>99.99,'DFS Dashboard'!$U$12,0)+IF('Total Projections (excl QB)'!M43>99.99,'DFS Dashboard'!$U$11,0),0)) -> 0
A44: =RANK(O44,$O:$O,0)+COUNTIF($O$4:O44,O44)-1 -> 41 | B44: Denver Broncos | C44: Wide Receiver | D44: ='Denver Broncos'!$B$122 -> Troy Franklin | E44: ='Denver Broncos'!$D$122 -> 0 | F44: ='Denver Broncos'!$E$122 -> 0 | G44: ='Denver Broncos'!$F$122 -> 0 | H44: ='Denver Broncos'!$G$122 -> 0 | I44: ='Denver Broncos'!$H$122 -> 0 | J44: ='Denver Broncos'!$I$122 -> 0 | K44: ='Denver Broncos'!$K$122 -> 0 | L44: ='Denver Broncos'!$L$122 -> 0 | M44: ='Denver Broncos'!$M$122 -> 0 | N44: ='Denver Broncos'!$N$122 -> 0 | O44: =IF('DFS Dashboard'!$H$1="DraftKings",'Total Projections (excl QB)'!G44*'DFS Dashboard'!$T$10+'Total Projections (excl QB)'!I44*'DFS Dashboard'!$T$8+'Total Projections (excl QB)'!J44*'DFS Dashboard'!$T$9+'Total Projections (excl QB)'!M44*'DFS Dashboard'!$T$6+'Total Projections (excl QB)'!N44*'DFS Dashboard'!$T$7+IF('Total Projections (excl QB)'!I44>99.99,'DFS Dashboard'!$T$12,0)+IF('Total Projections (excl QB)'!M44>99.99,'DFS Dashboard'!$T$11,0),IF('DFS Dashboard'!$H$1="FanDuel",'Total Projections (excl QB)'!G44*'DFS Dashboard'!$U$10+'Total Projections (excl QB)'!I44*'DFS Dashboard'!$U$8+'Total Projections (excl QB)'!J44*'DFS Dashboard'!$U$9+'Total Projections (excl QB)'!M44*'DFS Dashboard'!$U$6+'Total Projections (excl QB)'!N44*'DFS Dashboard'!$U$7+IF('Total Projections (excl QB)'!I44>99.99,'DFS Dashboard'!$U$12,0)+IF('Total Projections (excl QB)'!M44>99.99,'DFS Dashboard'!$U$11,0),0)) -> 0
A45: =RANK(O45,$O:$O,0)+COUNTIF($O$4:O45,O45)-1 -> 42 | B45: Denver Broncos | C45: Wide Receiver | D45: ='Denver Broncos'!$B$123 -> Josh Reynolds | E45: ='Denver Broncos'!$D$123 -> 0 | F45: ='Denver Broncos'!$E$123 -> 0 | G45: ='Denver Broncos'!$F$123 -> 0 | H45: ='Denver Broncos'!$G$123 -> 0 | I45: ='Denver Broncos'!$H$123 -> 0 | J45: ='Denver Broncos'!$I$123 -> 0 | K45: ='Denver Broncos'!$K$123 -> 0 | L45: ='Denver Broncos'!$L$123 -> 0 | M45: ='Denver Broncos'!$M$123 -> 0 | N45: ='Denver Broncos'!$N$123 -> 0 | O45: =IF('DFS Dashboard'!$H$1="DraftKings",'Total Projections (excl QB)'!G45*'DFS Dashboard'!$T$10+'Total Projections (excl QB)'!I45*'DFS Dashboard'!$T$8+'Total Projections (excl QB)'!J45*'DFS Dashboard'!$T$9+'Total Projections (excl QB)'!M45*'DFS Dashboard'!$T$6+'Total Projections (excl QB)'!N45*'DFS Dashboard'!$T$7+IF('Total Projections (excl QB)'!I45>99.99,'DFS Dashboard'!$T$12,0)+IF('Total Projections (excl QB)'!M45>99.99,'DFS Dashboard'!$T$11,0),IF('DFS Dashboard'!$H$1="FanDuel",'Total Projections (excl QB)'!G45*'DFS Dashboard'!$U$10+'Total Projections (excl QB)'!I45*'DFS Dashboard'!$U$8+'Total Projections (excl QB)'!J45*'DFS Dashboard'!$U$9+'Total Projections (excl QB)'!M45*'DFS Dashboard'!$U$6+'Total Projections (excl QB)'!N45*'DFS Dashboard'!$U$7+IF('Total Projections (excl QB)'!I45>99.99,'DFS Dashboard'!$U$12,0)+IF('Total Projections (excl QB)'!M45>99.99,'DFS Dashboard'!$U$11,0),0)) -> 0
A46: =RANK(O46,$O:$O,0)+COUNTIF($O$4:O46,O46)-1 -> 43 | B46: Denver Broncos | C46: Wide Receiver | D46: ='Denver Broncos'!$B$124 -> 0 | E46: ='Denver Broncos'!$D$124 -> 0 | F46: ='Denver Broncos'!$E$124 -> 0 | G46: ='Denver Broncos'!$F$124 -> 0 | H46: ='Denver Broncos'!$G$124 -> 0 | I46: ='Denver Broncos'!$H$124 -> 0 | J46: ='Denver Broncos'!$I$124 -> 0 | K46: ='Denver Broncos'!$K$124 -> 0 | L46: ='Denver Broncos'!$L$124 -> 0 | M46: ='Denver Broncos'!$M$124 -> 0 | N46: ='Denver Broncos'!$N$124 -> 0 | O46: =IF('DFS Dashboard'!$H$1="DraftKings",'Total Projections (excl QB)'!G46*'DFS Dashboard'!$T$10+'Total Projections (excl QB)'!I46*'DFS Dashboard'!$T$8+'Total Projections (excl QB)'!J46*'DFS Dashboard'!$T$9+'Total Projections (excl QB)'!M46*'DFS Dashboard'!$T$6+'Total Projections (excl QB)'!N46*'DFS Dashboard'!$T$7+IF('Total Projections (excl QB)'!I46>99.99,'DFS Dashboard'!$T$12,0)+IF('Total Projections (excl QB)'!M46>99.99,'DFS Dashboard'!$T$11,0),IF('DFS Dashboard'!$H$1="FanDuel",'Total Projections (excl QB)'!G46*'DFS Dashboard'!$U$10+'Total Projections (excl QB)'!I46*'DFS Dashboard'!$U$8+'Total Projections (excl QB)'!J46*'DFS Dashboard'!$U$9+'Total Projections (excl QB)'!M46*'DFS Dashboard'!$U$6+'Total Projections (excl QB)'!N46*'DFS Dashboard'!$U$7+IF('Total Projections (excl QB)'!I46>99.99,'DFS Dashboard'!$U$12,0)+IF('Total Projections (excl QB)'!M46>99.99,'DFS Dashboard'!$U$11,0),0)) -> 0
A47: =RANK(O47,$O:$O,0)+COUNTIF($O$4:O47,O47)-1 -> 44 | B47: Denver Broncos | C47: Wide Receiver | D47: ='Denver Broncos'!$B$125 -> 0 | E47: ='Denver Broncos'!$D$125 -> 0 | F47: ='Denver Broncos'!$E$125 -> 0 | G47: ='Denver Broncos'!$F$125 -> 0 | H47: ='Denver Broncos'!$G$125 -> 0 | I47: ='Denver Broncos'!$H$125 -> 0 | J47: ='Denver Broncos'!$I$125 -> 0 | K47: ='Denver Broncos'!$K$125 -> 0 | L47: ='Denver Broncos'!$L$125 -> 0 | M47: ='Denver Broncos'!$M$125 -> 0 | N47: ='Denver Broncos'!$N$125 -> 0 | O47: =IF('DFS Dashboard'!$H$1="DraftKings",'Total Projections (excl QB)'!G47*'DFS Dashboard'!$T$10+'Total Projections (excl QB)'!I47*'DFS Dashboard'!$T$8+'Total Projections (excl QB)'!J47*'DFS Dashboard'!$T$9+'Total Projections (excl QB)'!M47*'DFS Dashboard'!$T$6+'Total Projections (excl QB)'!N47*'DFS Dashboard'!$T$7+IF('Total Projections (excl QB)'!I47>99.99,'DFS Dashboard'!$T$12,0)+IF('Total Projections (excl QB)'!M47>99.99,'DFS Dashboard'!$T$11,0),IF('DFS Dashboard'!$H$1="FanDuel",'Total Projections (excl QB)'!G47*'DFS Dashboard'!$U$10+'Total Projections (excl QB)'!I47*'DFS Dashboard'!$U$8+'Total Projections (excl QB)'!J47*'DFS Dashboard'!$U$9+'Total Projections (excl QB)'!M47*'DFS Dashboard'!$U$6+'Total Projections (excl QB)'!N47*'DFS Dashboard'!$U$7+IF('Total Projections (excl QB)'!I47>99.99,'DFS Dashboard'!$U$12,0)+IF('Total Projections (excl QB)'!M47>99.99,'DFS Dashboard'!$U$11,0),0)) -> 0
A48: =RANK(O48,$O:$O,0)+COUNTIF($O$4:O48,O48)-1 -> 45 | B48: Denver Broncos | C48: Tight End | D48: ='Denver Broncos'!$B$162 -> Adam Trautman | E48: ='Denver Broncos'!$D$162 -> 0 | F48: ='Denver Broncos'!$E$162 -> 0 | G48: ='Denver Broncos'!$F$162 -> 0 | H48: ='Denver Broncos'!$G$162 -> 0 | I48: ='Denver Broncos'!$H$162 -> 0 | J48: ='Denver Broncos'!$I$162 -> 0 | K48: ='Denver Broncos'!$K$162 -> 0 | L48: ='Denver Broncos'!$L$162 -> 0 | M48: ='Denver Broncos'!$M$162 -> 0 | N48: ='Denver Broncos'!$N$162 -> 0 | O48: =IF('DFS Dashboard'!$H$1="DraftKings",'Total Projections (excl QB)'!G48*'DFS Dashboard'!$T$10+'Total Projections (excl QB)'!I48*'DFS Dashboard'!$T$8+'Total Projections (excl QB)'!J48*'DFS Dashboard'!$T$9+'Total Projections (excl QB)'!M48*'DFS Dashboard'!$T$6+'Total Projections (excl QB)'!N48*'DFS Dashboard'!$T$7+IF('Total Projections (excl QB)'!I48>99.99,'DFS Dashboard'!$T$12,0)+IF('Total Projections (excl QB)'!M48>99.99,'DFS Dashboard'!$T$11,0),IF('DFS Dashboard'!$H$1="FanDuel",'Total Projections (excl QB)'!G48*'DFS Dashboard'!$U$10+'Total Projections (excl QB)'!I48*'DFS Dashboard'!$U$8+'Total Projections (excl QB)'!J48*'DFS Dashboard'!$U$9+'Total Projections (excl QB)'!M48*'DFS Dashboard'!$U$6+'Total Projections (excl QB)'!N48*'DFS Dashboard'!$U$7+IF('Total Projections (excl QB)'!I48>99.99,'DFS Dashboard'!$U$12,0)+IF('Total Projections (excl QB)'!M48>99.99,'DFS Dashboard'!$U$11,0),0)) -> 0
A49: =RANK(O49,$O:$O,0)+COUNTIF($O$4:O49,O49)-1 -> 46 | B49: Denver Broncos | C49: Tight End | D49: ='Denver Broncos'!$B$163 -> Lucas Krull | E49: ='Denver Broncos'!$D$163 -> 0 | F49: ='Denver Broncos'!$E$163 -> 0 | G49: ='Denver Broncos'!$F$163 -> 0 | H49: ='Denver Broncos'!$G$163 -> 0 | I49: ='Denver Broncos'!$H$163 -> 0 | J49: ='Denver Broncos'!$I$163 -> 0 | K49: ='Denver Broncos'!$K$163 -> 0 | L49: ='Denver Broncos'!$L$163 -> 0 | M49: ='Denver Broncos'!$M$163 -> 0 | N49: ='Denver Broncos'!$N$163 -> 0 | O49: =IF('DFS Dashboard'!$H$1="DraftKings",'Total Projections (excl QB)'!G49*'DFS Dashboard'!$T$10+'Total Projections (excl QB)'!I49*'DFS Dashboard'!$T$8+'Total Projections (excl QB)'!J49*'DFS Dashboard'!$T$9+'Total Projections (excl QB)'!M49*'DFS Dashboard'!$T$6+'Total Projections (excl QB)'!N49*'DFS Dashboard'!$T$7+IF('Total Projections (excl QB)'!I49>99.99,'DFS Dashboard'!$T$12,0)+IF('Total Projections (excl QB)'!M49>99.99,'DFS Dashboard'!$T$11,0),IF('DFS Dashboard'!$H$1="FanDuel",'Total Projections (excl QB)'!G49*'DFS Dashboard'!$U$10+'Total Projections (excl QB)'!I49*'DFS Dashboard'!$U$8+'Total Projections (excl QB)'!J49*'DFS Dashboard'!$U$9+'Total Projections (excl QB)'!M49*'DFS Dashboard'!$U$6+'Total Projections (excl QB)'!N49*'DFS Dashboard'!$U$7+IF('Total Projections (excl QB)'!I49>99.99,'DFS Dashboard'!$U$12,0)+IF('Total Projections (excl QB)'!M49>99.99,'DFS Dashboard'!$U$11,0),0)) -> 0
A50: =RANK(O50,$O:$O,0)+COUNTIF($O$4:O50,O50)-1 -> 47 | B50: Denver Broncos | C50: Tight End | D50: ='Denver Broncos'!$B$164 -> Nate Adkins | E50: ='Denver Broncos'!$D$164 -> 0 | F50: ='Denver Broncos'!$E$164 -> 0 | G50: ='Denver Broncos'!$F$164 -> 0 | H50: ='Denver Broncos'!$G$164 -> 0 | I50: ='Denver Broncos'!$H$164 -> 0 | J50: ='Denver Broncos'!$I$164 -> 0 | K50: ='Denver Broncos'!$K$164 -> 0 | L50: ='Denver Broncos'!$L$164 -> 0 | M50: ='Denver Broncos'!$M$164 -> 0 | N50: ='Denver Broncos'!$N$164 -> 0 | O50: =IF('DFS Dashboard'!$H$1="DraftKings",'Total Projections (excl QB)'!G50*'DFS Dashboard'!$T$10+'Total Projections (excl QB)'!I50*'DFS Dashboard'!$T$8+'Total Projections (excl QB)'!J50*'DFS Dashboard'!$T$9+'Total Projections (excl QB)'!M50*'DFS Dashboard'!$T$6+'Total Projections (excl QB)'!N50*'DFS Dashboard'!$T$7+IF('Total Projections (excl QB)'!I50>99.99,'DFS Dashboard'!$T$12,0)+IF('Total Projections (excl QB)'!M50>99.99,'DFS Dashboard'!$T$11,0),IF('DFS Dashboard'!$H$1="FanDuel",'Total Projections (excl QB)'!G50*'DFS Dashboard'!$U$10+'Total Projections (excl QB)'!I50*'DFS Dashboard'!$U$8+'Total Projections (excl QB)'!J50*'DFS Dashboard'!$U$9+'Total Projections (excl QB)'!M50*'DFS Dashboard'!$U$6+'Total Projections (excl QB)'!N50*'DFS Dashboard'!$U$7+IF('Total Projections (excl QB)'!I50>99.99,'DFS Dashboard'!$U$12,0)+IF('Total Projections (excl QB)'!M50>99.99,'DFS Dashboard'!$U$11,0),0)) -> 0
A51: =RANK(O51,$O:$O,0)+COUNTIF($O$4:O51,O51)-1 -> 48 | B51: Denver Broncos | C51: Tight End | D51: ='Denver Broncos'!$B$165 -> 0 | E51: ='Denver Broncos'!$D$165 -> 0 | F51: ='Denver Broncos'!$E$165 -> 0 | G51: ='Denver Broncos'!$F$165 -> 0 | H51: ='Denver Broncos'!$G$165 -> 0 | I51: ='Denver Broncos'!$H$165 -> 0 | J51: ='Denver Broncos'!$I$165 -> 0 | K51: ='Denver Broncos'!$K$165 -> 0 | L51: ='Denver Broncos'!$L$165 -> 0 | M51: ='Denver Broncos'!$M$165 -> 0 | N51: ='Denver Broncos'!$N$165 -> 0 | O51: =IF('DFS Dashboard'!$H$1="DraftKings",'Total Projections (excl QB)'!G51*'DFS Dashboard'!$T$10+'Total Projections (excl QB)'!I51*'DFS Dashboard'!$T$8+'Total Projections (excl QB)'!J51*'DFS Dashboard'!$T$9+'Total Projections (excl QB)'!M51*'DFS Dashboard'!$T$6+'Total Projections (excl QB)'!N51*'DFS Dashboard'!$T$7+IF('Total Projections (excl QB)'!I51>99.99,'DFS Dashboard'!$T$12,0)+IF('Total Projections (excl QB)'!M51>99.99,'DFS Dashboard'!$T$11,0),IF('DFS Dashboard'!$H$1="FanDuel",'Total Projections (excl QB)'!G51*'DFS Dashboard'!$U$10+'Total Projections (excl QB)'!I51*'DFS Dashboard'!$U$8+'Total Projections (excl QB)'!J51*'DFS Dashboard'!$U$9+'Total Projections (excl QB)'!M51*'DFS Dashboard'!$U$6+'Total Projections (excl QB)'!N51*'DFS Dashboard'!$U$7+IF('Total Projections (excl QB)'!I51>99.99,'DFS Dashboard'!$U$12,0)+IF('Total Projections (excl QB)'!M51>99.99,'DFS Dashboard'!$U$11,0),0)) -> 0
A52: =RANK(O52,$O:$O,0)+COUNTIF($O$4:O52,O52)-1 -> 49 | B52: Detroit Lions | C52: Running Back | D52: ='Detroit Lions'!$B$142 -> Jahmyr Gibbs | E52: ='Detroit Lions'!$D$142 -> 0 | F52: ='Detroit Lions'!$E$142 -> 0 | G52: ='Detroit Lions'!$F$142 -> 0 | H52: ='Detroit Lions'!$G$142 -> 0 | I52: ='Detroit Lions'!$H$142 -> 0 | J52: ='Detroit Lions'!$I$142 -> 0 | K52: ='Detroit Lions'!$K$142 -> 0 | L52: ='Detroit Lions'!$L$142 -> 0 | M52: ='Detroit Lions'!$M$142 -> 0 | N52: ='Detroit Lions'!$N$142 -> 0 | O52: =IF('DFS Dashboard'!$H$1="DraftKings",'Total Projections (excl QB)'!G52*'DFS Dashboard'!$T$10+'Total Projections (excl QB)'!I52*'DFS Dashboard'!$T$8+'Total Projections (excl QB)'!J52*'DFS Dashboard'!$T$9+'Total Projections (excl QB)'!M52*'DFS Dashboard'!$T$6+'Total Projections (excl QB)'!N52*'DFS Dashboard'!$T$7+IF('Total Projections (excl QB)'!I52>99.99,'DFS Dashboard'!$T$12,0)+IF('Total Projections (excl QB)'!M52>99.99,'DFS Dashboard'!$T$11,0),IF('DFS Dashboard'!$H$1="FanDuel",'Total Projections (excl QB)'!G52*'DFS Dashboard'!$U$10+'Total Projections (excl QB)'!I52*'DFS Dashboard'!$U$8+'Total Projections (excl QB)'!J52*'DFS Dashboard'!$U$9+'Total Projections (excl QB)'!M52*'DFS Dashboard'!$U$6+'Total Projections (excl QB)'!N52*'DFS Dashboard'!$U$7+IF('Total Projections (excl QB)'!I52>99.99,'DFS Dashboard'!$U$12,0)+IF('Total Projections (excl QB)'!M52>99.99,'DFS Dashboard'!$U$11,0),0)) -> 0
A53: =RANK(O53,$O:$O,0)+COUNTIF($O$4:O53,O53)-1 -> 50 | B53: Detroit Lions | C53: Running Back | D53: ='Detroit Lions'!$B$143 -> David Montgomery | E53: ='Detroit Lions'!$D$143 -> 0 | F53: ='Detroit Lions'!$E$143 -> 0 | G53: ='Detroit Lions'!$F$143 -> 0 | H53: ='Detroit Lions'!$G$143 -> 0 | I53: ='Detroit Lions'!$H$143 -> 0 | J53: ='Detroit Lions'!$I$143 -> 0 | K53: ='Detroit Lions'!$K$143 -> 0 | L53: ='Detroit Lions'!$L$143 -> 0 | M53: ='Detroit Lions'!$M$143 -> 0 | N53: ='Detroit Lions'!$N$143 -> 0 | O53: =IF('DFS Dashboard'!$H$1="DraftKings",'Total Projections (excl QB)'!G53*'DFS Dashboard'!$T$10+'Total Projections (excl QB)'!I53*'DFS Dashboard'!$T$8+'Total Projections (excl QB)'!J53*'DFS Dashboard'!$T$9+'Total Projections (excl QB)'!M53*'DFS Dashboard'!$T$6+'Total Projections (excl QB)'!N53*'DFS Dashboard'!$T$7+IF('Total Projections (excl QB)'!I53>99.99,'DFS Dashboard'!$T$12,0)+IF('Total Projections (excl QB)'!M53>99.99,'DFS Dashboard'!$T$11,0),IF('DFS Dashboard'!$H$1="FanDuel",'Total Projections (excl QB)'!G53*'DFS Dashboard'!$U$10+'Total Projections (excl QB)'!I53*'DFS Dashboard'!$U$8+'Total Projections (excl QB)'!J53*'DFS Dashboard'!$U$9+'Total Projections (excl QB)'!M53*'DFS Dashboard'!$U$6+'Total Projections (excl QB)'!N53*'DFS Dashboard'!$U$7+IF('Total Projections (excl QB)'!I53>99.99,'DFS Dashboard'!$U$12,0)+IF('Total Projections (excl QB)'!M53>99.99,'DFS Dashboard'!$U$11,0),0)) -> 0
A54: =RANK(O54,$O:$O,0)+COUNTIF($O$4:O54,O54)-1 -> 51 | B54: Detroit Lions | C54: Running Back | D54: ='Detroit Lions'!$B$144 -> Craig Reynolds | E54: ='Detroit Lions'!$D$144 -> 0 | F54: ='Detroit Lions'!$E$144 -> 0 | G54: ='Detroit Lions'!$F$144 -> 0 | H54: ='Detroit Lions'!$G$144 -> 0 | I54: ='Detroit Lions'!$H$144 -> 0 | J54: ='Detroit Lions'!$I$144 -> 0 | K54: ='Detroit Lions'!$K$144 -> 0 | L54: ='Detroit Lions'!$L$144 -> 0 | M54: ='Detroit Lions'!$M$144 -> 0 | N54: ='Detroit Lions'!$N$144 -> 0 | O54: =IF('DFS Dashboard'!$H$1="DraftKings",'Total Projections (excl QB)'!G54*'DFS Dashboard'!$T$10+'Total Projections (excl QB)'!I54*'DFS Dashboard'!$T$8+'Total Projections (excl QB)'!J54*'DFS Dashboard'!$T$9+'Total Projections (excl QB)'!M54*'DFS Dashboard'!$T$6+'Total Projections (excl QB)'!N54*'DFS Dashboard'!$T$7+IF('Total Projections (excl QB)'!I54>99.99,'DFS Dashboard'!$T$12,0)+IF('Total Projections (excl QB)'!M54>99.99,'DFS Dashboard'!$T$11,0),IF('DFS Dashboard'!$H$1="FanDuel",'Total Projections (excl QB)'!G54*'DFS Dashboard'!$U$10+'Total Projections (excl QB)'!I54*'DFS Dashboard'!$U$8+'Total Projections (excl QB)'!J54*'DFS Dashboard'!$U$9+'Total Projections (excl QB)'!M54*'DFS Dashboard'!$U$6+'Total Projections (excl QB)'!N54*'DFS Dashboard'!$U$7+IF('Total Projections (excl QB)'!I54>99.99,'DFS Dashboard'!$U$12,0)+IF('Total Projections (excl QB)'!M54>99.99,'DFS Dashboard'!$U$11,0),0)) -> 0
A55: =RANK(O55,$O:$O,0)+COUNTIF($O$4:O55,O55)-1 -> 52 | B55: Detroit Lions | C55: Running Back | D55: ='Detroit Lions'!$B$145 -> Sione Vaki | E55: ='Detroit Lions'!$D$145 -> 0 | F55: ='Detroit Lions'!$E$145 -> 0 | G55: ='Detroit Lions'!$F$145 -> 0 | H55: ='Detroit Lions'!$G$145 -> 0 | I55: ='Detroit Lions'!$H$145 -> 0 | J55: ='Detroit Lions'!$I$145 -> 0 | K55: ='Detroit Lions'!$K$145 -> 0 | L55: ='Detroit Lions'!$L$145 -> 0 | M55: ='Detroit Lions'!$M$145 -> 0 | N55: ='Detroit Lions'!$N$145 -> 0 | O55: =IF('DFS Dashboard'!$H$1="DraftKings",'Total Projections (excl QB)'!G55*'DFS Dashboard'!$T$10+'Total Projections (excl QB)'!I55*'DFS Dashboard'!$T$8+'Total Projections (excl QB)'!J55*'DFS Dashboard'!$T$9+'Total Projections (excl QB)'!M55*'DFS Dashboard'!$T$6+'Total Projections (excl QB)'!N55*'DFS Dashboard'!$T$7+IF('Total Projections (excl QB)'!I55>99.99,'DFS Dashboard'!$T$12,0)+IF('Total Projections (excl QB)'!M55>99.99,'DFS Dashboard'!$T$11,0),IF('DFS Dashboard'!$H$1="FanDuel",'Total Projections (excl QB)'!G55*'DFS Dashboard'!$U$10+'Total Projections (excl QB)'!I55*'DFS Dashboard'!$U$8+'Total Projections (excl QB)'!J55*'DFS Dashboard'!$U$9+'Total Projections (excl QB)'!M55*'DFS Dashboard'!$U$6+'Total Projections (excl QB)'!N55*'DFS Dashboard'!$U$7+IF('Total Projections (excl QB)'!I55>99.99,'DFS Dashboard'!$U$12,0)+IF('Total Projections (excl QB)'!M55>99.99,'DFS Dashboard'!$U$11,0),0)) -> 0
A56: =RANK(O56,$O:$O,0)+COUNTIF($O$4:O56,O56)-1 -> 53 | B56: Detroit Lions | C56: Wide Receiver | D56: ='Detroit Lions'!$B$118 -> Amon-Ra St. Brown | E56: ='Detroit Lions'!$D$118 -> 0 | F56: ='Detroit Lions'!$E$118 -> 0 | G56: ='Detroit Lions'!$F$118 -> 0 | H56: ='Detroit Lions'!$G$118 -> 0 | I56: ='Detroit Lions'!$H$118 -> 0 | J56: ='Detroit Lions'!$I$118 -> 0 | K56: ='Detroit Lions'!$K$118 -> 0 | L56: ='Detroit Lions'!$L$118 -> 0 | M56: ='Detroit Lions'!$M$118 -> 0 | N56: ='Detroit Lions'!$N$118 -> 0 | O56: =IF('DFS Dashboard'!$H$1="DraftKings",'Total Projections (excl QB)'!G56*'DFS Dashboard'!$T$10+'Total Projections (excl QB)'!I56*'DFS Dashboard'!$T$8+'Total Projections (excl QB)'!J56*'DFS Dashboard'!$T$9+'Total Projections (excl QB)'!M56*'DFS Dashboard'!$T$6+'Total Projections (excl QB)'!N56*'DFS Dashboard'!$T$7+IF('Total Projections (excl QB)'!I56>99.99,'DFS Dashboard'!$T$12,0)+IF('Total Projections (excl QB)'!M56>99.99,'DFS Dashboard'!$T$11,0),IF('DFS Dashboard'!$H$1="FanDuel",'Total Projections (excl QB)'!G56*'DFS Dashboard'!$U$10+'Total Projections (excl QB)'!I56*'DFS Dashboard'!$U$8+'Total Projections (excl QB)'!J56*'DFS Dashboard'!$U$9+'Total Projections (excl QB)'!M56*'DFS Dashboard'!$U$6+'Total Projections (excl QB)'!N56*'DFS Dashboard'!$U$7+IF('Total Projections (excl QB)'!I56>99.99,'DFS Dashboard'!$U$12,0)+IF('Total Projections (excl QB)'!M56>99.99,'DFS Dashboard'!$U$11,0),0)) -> 0
A57: =RANK(O57,$O:$O,0)+COUNTIF($O$4:O57,O57)-1 -> 54 | B57: Detroit Lions | C57: Wide Receiver | D57: ='Detroit Lions'!$B$119 -> Jameson Williams | E57: ='Detroit Lions'!$D$119 -> 0 | F57: ='Detroit Lions'!$E$119 -> 0 | G57: ='Detroit Lions'!$F$119 -> 0 | H57: ='Detroit Lions'!$G$119 -> 0 | I57: ='Detroit Lions'!$H$119 -> 0 | J57: ='Detroit Lions'!$I$119 -> 0 | K57: ='Detroit Lions'!$K$119 -> 0 | L57: ='Detroit Lions'!$L$119 -> 0 | M57: ='Detroit Lions'!$M$119 -> 0 | N57: ='Detroit Lions'!$N$119 -> 0 | O57: =IF('DFS Dashboard'!$H$1="DraftKings",'Total Projections (excl QB)'!G57*'DFS Dashboard'!$T$10+'Total Projections (excl QB)'!I57*'DFS Dashboard'!$T$8+'Total Projections (excl QB)'!J57*'DFS Dashboard'!$T$9+'Total Projections (excl QB)'!M57*'DFS Dashboard'!$T$6+'Total Projections (excl QB)'!N57*'DFS Dashboard'!$T$7+IF('Total Projections (excl QB)'!I57>99.99,'DFS Dashboard'!$T$12,0)+IF('Total Projections (excl QB)'!M57>99.99,'DFS Dashboard'!$T$11,0),IF('DFS Dashboard'!$H$1="FanDuel",'Total Projections (excl QB)'!G57*'DFS Dashboard'!$U$10+'Total Projections (excl QB)'!I57*'DFS Dashboard'!$U$8+'Total Projections (excl QB)'!J57*'DFS Dashboard'!$U$9+'Total Projections (excl QB)'!M57*'DFS Dashboard'!$U$6+'Total Projections (excl QB)'!N57*'DFS Dashboard'!$U$7+IF('Total Projections (excl QB)'!I57>99.99,'DFS Dashboard'!$U$12,0)+IF('Total Projections (excl QB)'!M57>99.99,'DFS Dashboard'!$U$11,0),0)) -> 0
A58: =RANK(O58,$O:$O,0)+COUNTIF($O$4:O58,O58)-1 -> 55 | B58: Detroit Lions | C58: Wide Receiver | D58: ='Detroit Lions'!$B$120 -> Tim Patrick | E58: ='Detroit Lions'!$D$120 -> 0 | F58: ='Detroit Lions'!$E$120 -> 0 | G58: ='Detroit Lions'!$F$120 -> 0 | H58: ='Detroit Lions'!$G$120 -> 0 | I58: ='Detroit Lions'!$H$120 -> 0 | J58: ='Detroit Lions'!$I$120 -> 0 | K58: ='Detroit Lions'!$K$120 -> 0 | L58: ='Detroit Lions'!$L$120 -> 0 | M58: ='Detroit Lions'!$M$120 -> 0 | N58: ='Detroit Lions'!$N$120 -> 0 | O58: =IF('DFS Dashboard'!$H$1="DraftKings",'Total Projections (excl QB)'!G58*'DFS Dashboard'!$T$10+'Total Projections (excl QB)'!I58*'DFS Dashboard'!$T$8+'Total Projections (excl QB)'!J58*'DFS Dashboard'!$T$9+'Total Projections (excl QB)'!M58*'DFS Dashboard'!$T$6+'Total Projections (excl QB)'!N58*'DFS Dashboard'!$T$7+IF('Total Projections (excl QB)'!I58>99.99,'DFS Dashboard'!$T$12,0)+IF('Total Projections (excl QB)'!M58>99.99,'DFS Dashboard'!$T$11,0),IF('DFS Dashboard'!$H$1="FanDuel",'Total Projections (excl QB)'!G58*'DFS Dashboard'!$U$10+'Total Projections (excl QB)'!I58*'DFS Dashboard'!$U$8+'Total Projections (excl QB)'!J58*'DFS Dashboard'!$U$9+'Total Projections (excl QB)'!M58*'DFS Dashboard'!$U$6+'Total Projections (excl QB)'!N58*'DFS Dashboard'!$U$7+IF('Total Projections (excl QB)'!I58>99.99,'DFS Dashboard'!$U$12,0)+IF('Total Projections (excl QB)'!M58>99.99,'DFS Dashboard'!$U$11,0),0)) -> 0
A59: =RANK(O59,$O:$O,0)+COUNTIF($O$4:O59,O59)-1 -> 56 | B59: Detroit Lions | C59: Wide Receiver | D59: ='Detroit Lions'!$B$121 -> Kalif Raymond | E59: ='Detroit Lions'!$D$121 -> 0 | F59: ='Detroit Lions'!$E$121 -> 0 | G59: ='Detroit Lions'!$F$121 -> 0 | H59: ='Detroit Lions'!$G$121 -> 0 | I59: ='Detroit Lions'!$H$121 -> 0 | J59: ='Detroit Lions'!$I$121 -> 0 | K59: ='Detroit Lions'!$K$121 -> 0 | L59: ='Detroit Lions'!$L$121 -> 0 | M59: ='Detroit Lions'!$M$121 -> 0 | N59: ='Detroit Lions'!$N$121 -> 0 | O59: =IF('DFS Dashboard'!$H$1="DraftKings",'Total Projections (excl QB)'!G59*'DFS Dashboard'!$T$10+'Total Projections (excl QB)'!I59*'DFS Dashboard'!$T$8+'Total Projections (excl QB)'!J59*'DFS Dashboard'!$T$9+'Total Projections (excl QB)'!M59*'DFS Dashboard'!$T$6+'Total Projections (excl QB)'!N59*'DFS Dashboard'!$T$7+IF('Total Projections (excl QB)'!I59>99.99,'DFS Dashboard'!$T$12,0)+IF('Total Projections (excl QB)'!M59>99.99,'DFS Dashboard'!$T$11,0),IF('DFS Dashboard'!$H$1="FanDuel",'Total Projections (excl QB)'!G59*'DFS Dashboard'!$U$10+'Total Projections (excl QB)'!I59*'DFS Dashboard'!$U$8+'Total Projections (excl QB)'!J59*'DFS Dashboard'!$U$9+'Total Projections (excl QB)'!M59*'DFS Dashboard'!$U$6+'Total Projections (excl QB)'!N59*'DFS Dashboard'!$U$7+IF('Total Projections (excl QB)'!I59>99.99,'DFS Dashboard'!$U$12,0)+IF('Total Projections (excl QB)'!M59>99.99,'DFS Dashboard'!$U$11,0),0)) -> 0
A60: =RANK(O60,$O:$O,0)+COUNTIF($O$4:O60,O60)-1 -> 57 | B60: Detroit Lions | C60: Wide Receiver | D60: ='Detroit Lions'!$B$122 -> Allen Robinson | E60: ='Detroit Lions'!$D$122 -> 0 | F60: ='Detroit Lions'!$E$122 -> 0 | G60: ='Detroit Lions'!$F$122 -> 0 | H60: ='Detroit Lions'!$G$122 -> 0 | I60: ='Detroit Lions'!$H$122 -> 0 | J60: ='Detroit Lions'!$I$122 -> 0 | K60: ='Detroit Lions'!$K$122 -> 0 | L60: ='Detroit Lions'!$L$122 -> 0 | M60: ='Detroit Lions'!$M$122 -> 0 | N60: ='Detroit Lions'!$N$122 -> 0 | O60: =IF('DFS Dashboard'!$H$1="DraftKings",'Total Projections (excl QB)'!G60*'DFS Dashboard'!$T$10+'Total Projections (excl QB)'!I60*'DFS Dashboard'!$T$8+'Total Projections (excl QB)'!J60*'DFS Dashboard'!$T$9+'Total Projections (excl QB)'!M60*'DFS Dashboard'!$T$6+'Total Projections (excl QB)'!N60*'DFS Dashboard'!$T$7+IF('Total Projections (excl QB)'!I60>99.99,'DFS Dashboard'!$T$12,0)+IF('Total Projections (excl QB)'!M60>99.99,'DFS Dashboard'!$T$11,0),IF('DFS Dashboard'!$H$1="FanDuel",'Total Projections (excl QB)'!G60*'DFS Dashboard'!$U$10+'Total Projections (excl QB)'!I60*'DFS Dashboard'!$U$8+'Total Projections (excl QB)'!J60*'DFS Dashboard'!$U$9+'Total Projections (excl QB)'!M60*'DFS Dashboard'!$U$6+'Total Projections (excl QB)'!N60*'DFS Dashboard'!$U$7+IF('Total Projections (excl QB)'!I60>99.99,'DFS Dashboard'!$U$12,0)+IF('Total Projections (excl QB)'!M60>99.99,'DFS Dashboard'!$U$11,0),0)) -> 0
A61: =RANK(O61,$O:$O,0)+COUNTIF($O$4:O61,O61)-1 -> 58 | B61: Detroit Lions | C61: Wide Receiver | D61: ='Detroit Lions'!$B$123 -> Isaiah Williams | E61: ='Detroit Lions'!$D$123 -> 0 | F61: ='Detroit Lions'!$E$123 -> 0 | G61: ='Detroit Lions'!$F$123 -> 0 | H61: ='Detroit Lions'!$G$123 -> 0 | I61: ='Detroit Lions'!$H$123 -> 0 | J61: ='Detroit Lions'!$I$123 -> 0 | K61: ='Detroit Lions'!$K$123 -> 0 | L61: ='Detroit Lions'!$L$123 -> 0 | M61: ='Detroit Lions'!$M$123 -> 0 | N61: ='Detroit Lions'!$N$123 -> 0 | O61: =IF('DFS Dashboard'!$H$1="DraftKings",'Total Projections (excl QB)'!G61*'DFS Dashboard'!$T$10+'Total Projections (excl QB)'!I61*'DFS Dashboard'!$T$8+'Total Projections (excl QB)'!J61*'DFS Dashboard'!$T$9+'Total Projections (excl QB)'!M61*'DFS Dashboard'!$T$6+'Total Projections (excl QB)'!N61*'DFS Dashboard'!$T$7+IF('Total Projections (excl QB)'!I61>99.99,'DFS Dashboard'!$T$12,0)+IF('Total Projections (excl QB)'!M61>99.99,'DFS Dashboard'!$T$11,0),IF('DFS Dashboard'!$H$1="FanDuel",'Total Projections (excl QB)'!G61*'DFS Dashboard'!$U$10+'Total Projections (excl QB)'!I61*'DFS Dashboard'!$U$8+'Total Projections (excl QB)'!J61*'DFS Dashboard'!$U$9+'Total Projections (excl QB)'!M61*'DFS Dashboard'!$U$6+'Total Projections (excl QB)'!N61*'DFS Dashboard'!$U$7+IF('Total Projections (excl QB)'!I61>99.99,'DFS Dashboard'!$U$12,0)+IF('Total Projections (excl QB)'!M61>99.99,'DFS Dashboard'!$U$11,0),0)) -> 0
A62: =RANK(O62,$O:$O,0)+COUNTIF($O$4:O62,O62)-1 -> 59 | B62: Detroit Lions | C62: Wide Receiver | D62: ='Detroit Lions'!$B$124 -> Tom Kennedy | E62: ='Detroit Lions'!$D$124 -> 0 | F62: ='Detroit Lions'!$E$124 -> 0 | G62: ='Detroit Lions'!$F$124 -> 0 | H62: ='Detroit Lions'!$G$124 -> 0 | I62: ='Detroit Lions'!$H$124 -> 0 | J62: ='Detroit Lions'!$I$124 -> 0 | K62: ='Detroit Lions'!$K$124 -> 0 | L62: ='Detroit Lions'!$L$124 -> 0 | M62: ='Detroit Lions'!$M$124 -> 0 | N62: ='Detroit Lions'!$N$124 -> 0 | O62: =IF('DFS Dashboard'!$H$1="DraftKings",'Total Projections (excl QB)'!G62*'DFS Dashboard'!$T$10+'Total Projections (excl QB)'!I62*'DFS Dashboard'!$T$8+'Total Projections (excl QB)'!J62*'DFS Dashboard'!$T$9+'Total Projections (excl QB)'!M62*'DFS Dashboard'!$T$6+'Total Projections (excl QB)'!N62*'DFS Dashboard'!$T$7+IF('Total Projections (excl QB)'!I62>99.99,'DFS Dashboard'!$T$12,0)+IF('Total Projections (excl QB)'!M62>99.99,'DFS Dashboard'!$T$11,0),IF('DFS Dashboard'!$H$1="FanDuel",'Total Projections (excl QB)'!G62*'DFS Dashboard'!$U$10+'Total Projections (excl QB)'!I62*'DFS Dashboard'!$U$8+'Total Projections (excl QB)'!J62*'DFS Dashboard'!$U$9+'Total Projections (excl QB)'!M62*'DFS Dashboard'!$U$6+'Total Projections (excl QB)'!N62*'DFS Dashboard'!$U$7+IF('Total Projections (excl QB)'!I62>99.99,'DFS Dashboard'!$U$12,0)+IF('Total Projections (excl QB)'!M62>99.99,'DFS Dashboard'!$U$11,0),0)) -> 0
A63: =RANK(O63,$O:$O,0)+COUNTIF($O$4:O63,O63)-1 -> 60 | B63: Detroit Lions | C63: Wide Receiver | D63: ='Detroit Lions'!$B$125 -> 0 | E63: ='Detroit Lions'!$D$125 -> 0 | F63: ='Detroit Lions'!$E$125 -> 0 | G63: ='Detroit Lions'!$F$125 -> 0 | H63: ='Detroit Lions'!$G$125 -> 0 | I63: ='Detroit Lions'!$H$125 -> 0 | J63: ='Detroit Lions'!$I$125 -> 0 | K63: ='Detroit Lions'!$K$125 -> 0 | L63: ='Detroit Lions'!$L$125 -> 0 | M63: ='Detroit Lions'!$M$125 -> 0 | N63: ='Detroit Lions'!$N$125 -> 0 | O63: =IF('DFS Dashboard'!$H$1="DraftKings",'Total Projections (excl QB)'!G63*'DFS Dashboard'!$T$10+'Total Projections (excl QB)'!I63*'DFS Dashboard'!$T$8+'Total Projections (excl QB)'!J63*'DFS Dashboard'!$T$9+'Total Projections (excl QB)'!M63*'DFS Dashboard'!$T$6+'Total Projections (excl QB)'!N63*'DFS Dashboard'!$T$7+IF('Total Projections (excl QB)'!I63>99.99,'DFS Dashboard'!$T$12,0)+IF('Total Projections (excl QB)'!M63>99.99,'DFS Dashboard'!$T$11,0),IF('DFS Dashboard'!$H$1="FanDuel",'Total Projections (excl QB)'!G63*'DFS Dashboard'!$U$10+'Total Projections (excl QB)'!I63*'DFS Dashboard'!$U$8+'Total Projections (excl QB)'!J63*'DFS Dashboard'!$U$9+'Total Projections (excl QB)'!M63*'DFS Dashboard'!$U$6+'Total Projections (excl QB)'!N63*'DFS Dashboard'!$U$7+IF('Total Projections (excl QB)'!I63>99.99,'DFS Dashboard'!$U$12,0)+IF('Total Projections (excl QB)'!M63>99.99,'DFS Dashboard'!$U$11,0),0)) -> 0
A64: =RANK(O64,$O:$O,0)+COUNTIF($O$4:O64,O64)-1 -> 61 | B64: Detroit Lions | C64: Tight End | D64: ='Detroit Lions'!$B$162 -> Sam LaPorta | E64: ='Detroit Lions'!$D$162 -> 0 | F64: ='Detroit Lions'!$E$162 -> 0 | G64: ='Detroit Lions'!$F$162 -> 0 | H64: ='Detroit Lions'!$G$162 -> 0 | I64: ='Detroit Lions'!$H$162 -> 0 | J64: ='Detroit Lions'!$I$162 -> 0 | K64: ='Detroit Lions'!$K$162 -> 0 | L64: ='Detroit Lions'!$L$162 -> 0 | M64: ='Detroit Lions'!$M$162 -> 0 | N64: ='Detroit Lions'!$N$162 -> 0 | O64: =IF('DFS Dashboard'!$H$1="DraftKings",'Total Projections (excl QB)'!G64*'DFS Dashboard'!$T$10+'Total Projections (excl QB)'!I64*'DFS Dashboard'!$T$8+'Total Projections (excl QB)'!J64*'DFS Dashboard'!$T$9+'Total Projections (excl QB)'!M64*'DFS Dashboard'!$T$6+'Total Projections (excl QB)'!N64*'DFS Dashboard'!$T$7+IF('Total Projections (excl QB)'!I64>99.99,'DFS Dashboard'!$T$12,0)+IF('Total Projections (excl QB)'!M64>99.99,'DFS Dashboard'!$T$11,0),IF('DFS Dashboard'!$H$1="FanDuel",'Total Projections (excl QB)'!G64*'DFS Dashboard'!$U$10+'Total Projections (excl QB)'!I64*'DFS Dashboard'!$U$8+'Total Projections (excl QB)'!J64*'DFS Dashboard'!$U$9+'Total Projections (excl QB)'!M64*'DFS Dashboard'!$U$6+'Total Projections (excl QB)'!N64*'DFS Dashboard'!$U$7+IF('Total Projections (excl QB)'!I64>99.99,'DFS Dashboard'!$U$12,0)+IF('Total Projections (excl QB)'!M64>99.99,'DFS Dashboard'!$U$11,0),0)) -> 0
A65: =RANK(O65,$O:$O,0)+COUNTIF($O$4:O65,O65)-1 -> 62 | B65: Detroit Lions | C65: Tight End | D65: ='Detroit Lions'!$B$163 -> Brock Wright | E65: ='Detroit Lions'!$D$163 -> 0 | F65: ='Detroit Lions'!$E$163 -> 0 | G65: ='Detroit Lions'!$F$163 -> 0 | H65: ='Detroit Lions'!$G$163 -> 0 | I65: ='Detroit Lions'!$H$163 -> 0 | J65: ='Detroit Lions'!$I$163 -> 0 | K65: ='Detroit Lions'!$K$163 -> 0 | L65: ='Detroit Lions'!$L$163 -> 0 | M65: ='Detroit Lions'!$M$163 -> 0 | N65: ='Detroit Lions'!$N$163 -> 0 | O65: =IF('DFS Dashboard'!$H$1="DraftKings",'Total Projections (excl QB)'!G65*'DFS Dashboard'!$T$10+'Total Projections (excl QB)'!I65*'DFS Dashboard'!$T$8+'Total Projections (excl QB)'!J65*'DFS Dashboard'!$T$9+'Total Projections (excl QB)'!M65*'DFS Dashboard'!$T$6+'Total Projections (excl QB)'!N65*'DFS Dashboard'!$T$7+IF('Total Projections (excl QB)'!I65>99.99,'DFS Dashboard'!$T$12,0)+IF('Total Projections (excl QB)'!M65>99.99,'DFS Dashboard'!$T$11,0),IF('DFS Dashboard'!$H$1="FanDuel",'Total Projections (excl QB)'!G65*'DFS Dashboard'!$U$10+'Total Projections (excl QB)'!I65*'DFS Dashboard'!$U$8+'Total Projections (excl QB)'!J65*'DFS Dashboard'!$U$9+'Total Projections (excl QB)'!M65*'DFS Dashboard'!$U$6+'Total Projections (excl QB)'!N65*'DFS Dashboard'!$U$7+IF('Total Projections (excl QB)'!I65>99.99,'DFS Dashboard'!$U$12,0)+IF('Total Projections (excl QB)'!M65>99.99,'DFS Dashboard'!$U$11,0),0)) -> 0
A66: =RANK(O66,$O:$O,0)+COUNTIF($O$4:O66,O66)-1 -> 63 | B66: Detroit Lions | C66: Tight End | D66: ='Detroit Lions'!$B$164 -> Shane Zylstra | E66: ='Detroit Lions'!$D$164 -> 0 | F66: ='Detroit Lions'!$E$164 -> 0 | G66: ='Detroit Lions'!$F$164 -> 0 | H66: ='Detroit Lions'!$G$164 -> 0 | I66: ='Detroit Lions'!$H$164 -> 0 | J66: ='Detroit Lions'!$I$164 -> 0 | K66: ='Detroit Lions'!$K$164 -> 0 | L66: ='Detroit Lions'!$L$164 -> 0 | M66: ='Detroit Lions'!$M$164 -> 0 | N66: ='Detroit Lions'!$N$164 -> 0 | O66: =IF('DFS Dashboard'!$H$1="DraftKings",'Total Projections (excl QB)'!G66*'DFS Dashboard'!$T$10+'Total Projections (excl QB)'!I66*'DFS Dashboard'!$T$8+'Total Projections (excl QB)'!J66*'DFS Dashboard'!$T$9+'Total Projections (excl QB)'!M66*'DFS Dashboard'!$T$6+'Total Projections (excl QB)'!N66*'DFS Dashboard'!$T$7+IF('Total Projections (excl QB)'!I66>99.99,'DFS Dashboard'!$T$12,0)+IF('Total Projections (excl QB)'!M66>99.99,'DFS Dashboard'!$T$11,0),IF('DFS Dashboard'!$H$1="FanDuel",'Total Projections (excl QB)'!G66*'DFS Dashboard'!$U$10+'Total Projections (excl QB)'!I66*'DFS Dashboard'!$U$8+'Total Projections (excl QB)'!J66*'DFS Dashboard'!$U$9+'Total Projections (excl QB)'!M66*'DFS Dashboard'!$U$6+'Total Projections (excl QB)'!N66*'DFS Dashboard'!$U$7+IF('Total Projections (excl QB)'!I66>99.99,'DFS Dashboard'!$U$12,0)+IF('Total Projections (excl QB)'!M66>99.99,'DFS Dashboard'!$U$11,0),0)) -> 0
A67: =RANK(O67,$O:$O,0)+COUNTIF($O$4:O67,O67)-1 -> 64 | B67: Detroit Lions | C67: Tight End | D67: ='Detroit Lions'!$B$165 -> 0 | E67: ='Detroit Lions'!$D$165 -> 0 | F67: ='Detroit Lions'!$E$165 -> 0 | G67: ='Detroit Lions'!$F$165 -> 0 | H67: ='Detroit Lions'!$G$165 -> 0 | I67: ='Detroit Lions'!$H$165 -> 0 | J67: ='Detroit Lions'!$I$165 -> 0 | K67: ='Detroit Lions'!$K$165 -> 0 | L67: ='Detroit Lions'!$L$165 -> 0 | M67: ='Detroit Lions'!$M$165 -> 0 | N67: ='Detroit Lions'!$N$165 -> 0 | O67: =IF('DFS Dashboard'!$H$1="DraftKings",'Total Projections (excl QB)'!G67*'DFS Dashboard'!$T$10+'Total Projections (excl QB)'!I67*'DFS Dashboard'!$T$8+'Total Projections (excl QB)'!J67*'DFS Dashboard'!$T$9+'Total Projections (excl QB)'!M67*'DFS Dashboard'!$T$6+'Total Projections (excl QB)'!N67*'DFS Dashboard'!$T$7+IF('Total Projections (excl QB)'!I67>99.99,'DFS Dashboard'!$T$12,0)+IF('Total Projections (excl QB)'!M67>99.99,'DFS Dashboard'!$T$11,0),IF('DFS Dashboard'!$H$1="FanDuel",'Total Projections (excl QB)'!G67*'DFS Dashboard'!$U$10+'Total Projections (excl QB)'!I67*'DFS Dashboard'!$U$8+'Total Projections (excl QB)'!J67*'DFS Dashboard'!$U$9+'Total Projections (excl QB)'!M67*'DFS Dashboard'!$U$6+'Total Projections (excl QB)'!N67*'DFS Dashboard'!$U$7+IF('Total Projections (excl QB)'!I67>99.99,'DFS Dashboard'!$U$12,0)+IF('Total Projections (excl QB)'!M67>99.99,'DFS Dashboard'!$U$11,0),0)) -> 0
A68: =RANK(O68,$O:$O,0)+COUNTIF($O$4:O68,O68)-1 -> 65 | B68: Green Bay Packers | C68: Running Back | D68: ='Green Bay Packers'!$B$142 -> Josh Jacobs | E68: ='Green Bay Packers'!$D$142 -> 0 | F68: ='Green Bay Packers'!$E$142 -> 0 | G68: ='Green Bay Packers'!$F$142 -> 0 | H68: ='Green Bay Packers'!$G$142 -> 0 | I68: ='Green Bay Packers'!$H$142 -> 0 | J68: ='Green Bay Packers'!$I$142 -> 0 | K68: ='Green Bay Packers'!$K$142 -> 0 | L68: ='Green Bay Packers'!$L$142 -> 0 | M68: ='Green Bay Packers'!$M$142 -> 0 | N68: ='Green Bay Packers'!$N$142 -> 0 | O68: =IF('DFS Dashboard'!$H$1="DraftKings",'Total Projections (excl QB)'!G68*'DFS Dashboard'!$T$10+'Total Projections (excl QB)'!I68*'DFS Dashboard'!$T$8+'Total Projections (excl QB)'!J68*'DFS Dashboard'!$T$9+'Total Projections (excl QB)'!M68*'DFS Dashboard'!$T$6+'Total Projections (excl QB)'!N68*'DFS Dashboard'!$T$7+IF('Total Projections (excl QB)'!I68>99.99,'DFS Dashboard'!$T$12,0)+IF('Total Projections (excl QB)'!M68>99.99,'DFS Dashboard'!$T$11,0),IF('DFS Dashboard'!$H$1="FanDuel",'Total Projections (excl QB)'!G68*'DFS Dashboard'!$U$10+'Total Projections (excl QB)'!I68*'DFS Dashboard'!$U$8+'Total Projections (excl QB)'!J68*'DFS Dashboard'!$U$9+'Total Projections (excl QB)'!M68*'DFS Dashboard'!$U$6+'Total Projections (excl QB)'!N68*'DFS Dashboard'!$U$7+IF('Total Projections (excl QB)'!I68>99.99,'DFS Dashboard'!$U$12,0)+IF('Total Projections (excl QB)'!M68>99.99,'DFS Dashboard'!$U$11,0),0)) -> 0
A69: =RANK(O69,$O:$O,0)+COUNTIF($O$4:O69,O69)-1 -> 66 | B69: Green Bay Packers | C69: Running Back | D69: ='Green Bay Packers'!$B$143 -> Emanuel Wilson | E69: ='Green Bay Packers'!$D$143 -> 0 | F69: ='Green Bay Packers'!$E$143 -> 0 | G69: ='Green Bay Packers'!$F$143 -> 0 | H69: ='Green Bay Packers'!$G$143 -> 0 | I69: ='Green Bay Packers'!$H$143 -> 0 | J69: ='Green Bay Packers'!$I$143 -> 0 | K69: ='Green Bay Packers'!$K$143 -> 0 | L69: ='Green Bay Packers'!$L$143 -> 0 | M69: ='Green Bay Packers'!$M$143 -> 0 | N69: ='Green Bay Packers'!$N$143 -> 0 | O69: =IF('DFS Dashboard'!$H$1="DraftKings",'Total Projections (excl QB)'!G69*'DFS Dashboard'!$T$10+'Total Projections (excl QB)'!I69*'DFS Dashboard'!$T$8+'Total Projections (excl QB)'!J69*'DFS Dashboard'!$T$9+'Total Projections (excl QB)'!M69*'DFS Dashboard'!$T$6+'Total Projections (excl QB)'!N69*'DFS Dashboard'!$T$7+IF('Total Projections (excl QB)'!I69>99.99,'DFS Dashboard'!$T$12,0)+IF('Total Projections (excl QB)'!M69>99.99,'DFS Dashboard'!$T$11,0),IF('DFS Dashboard'!$H$1="FanDuel",'Total Projections (excl QB)'!G69*'DFS Dashboard'!$U$10+'Total Projections (excl QB)'!I69*'DFS Dashboard'!$U$8+'Total Projections (excl QB)'!J69*'DFS Dashboard'!$U$9+'Total Projections (excl QB)'!M69*'DFS Dashboard'!$U$6+'Total Projections (excl QB)'!N69*'DFS Dashboard'!$U$7+IF('Total Projections (excl QB)'!I69>99.99,'DFS Dashboard'!$U$12,0)+IF('Total Projections (excl QB)'!M69>99.99,'DFS Dashboard'!$U$11,0),0)) -> 0
A70: =RANK(O70,$O:$O,0)+COUNTIF($O$4:O70,O70)-1 -> 67 | B70: Green Bay Packers | C70: Running Back | D70: ='Green Bay Packers'!$B$144 -> Chris Brooks | E70: ='Green Bay Packers'!$D$144 -> 0 | F70: ='Green Bay Packers'!$E$144 -> 0 | G70: ='Green Bay Packers'!$F$144 -> 0 | H70: ='Green Bay Packers'!$G$144 -> 0 | I70: ='Green Bay Packers'!$H$144 -> 0 | J70: ='Green Bay Packers'!$I$144 -> 0 | K70: ='Green Bay Packers'!$K$144 -> 0 | L70: ='Green Bay Packers'!$L$144 -> 0 | M70: ='Green Bay Packers'!$M$144 -> 0 | N70: ='Green Bay Packers'!$N$144 -> 0 | O70: =IF('DFS Dashboard'!$H$1="DraftKings",'Total Projections (excl QB)'!G70*'DFS Dashboard'!$T$10+'Total Projections (excl QB)'!I70*'DFS Dashboard'!$T$8+'Total Projections (excl QB)'!J70*'DFS Dashboard'!$T$9+'Total Projections (excl QB)'!M70*'DFS Dashboard'!$T$6+'Total Projections (excl QB)'!N70*'DFS Dashboard'!$T$7+IF('Total Projections (excl QB)'!I70>99.99,'DFS Dashboard'!$T$12,0)+IF('Total Projections (excl QB)'!M70>99.99,'DFS Dashboard'!$T$11,0),IF('DFS Dashboard'!$H$1="FanDuel",'Total Projections (excl QB)'!G70*'DFS Dashboard'!$U$10+'Total Projections (excl QB)'!I70*'DFS Dashboard'!$U$8+'Total Projections (excl QB)'!J70*'DFS Dashboard'!$U$9+'Total Projections (excl QB)'!M70*'DFS Dashboard'!$U$6+'Total Projections (excl QB)'!N70*'DFS Dashboard'!$U$7+IF('Total Projections (excl QB)'!I70>99.99,'DFS Dashboard'!$U$12,0)+IF('Total Projections (excl QB)'!M70>99.99,'DFS Dashboard'!$U$11,0),0)) -> 0
A71: =RANK(O71,$O:$O,0)+COUNTIF($O$4:O71,O71)-1 -> 68 | B71: Green Bay Packers | C71: Running Back | D71: ='Green Bay Packers'!$B$145 -> MarShawn Lloyd | E71: ='Green Bay Packers'!$D$145 -> 0 | F71: ='Green Bay Packers'!$E$145 -> 0 | G71: ='Green Bay Packers'!$F$145 -> 0 | H71: ='Green Bay Packers'!$G$145 -> 0 | I71: ='Green Bay Packers'!$H$145 -> 0 | J71: ='Green Bay Packers'!$I$145 -> 0 | K71: ='Green Bay Packers'!$K$145 -> 0 | L71: ='Green Bay Packers'!$L$145 -> 0 | M71: ='Green Bay Packers'!$M$145 -> 0 | N71: ='Green Bay Packers'!$N$145 -> 0 | O71: =IF('DFS Dashboard'!$H$1="DraftKings",'Total Projections (excl QB)'!G71*'DFS Dashboard'!$T$10+'Total Projections (excl QB)'!I71*'DFS Dashboard'!$T$8+'Total Projections (excl QB)'!J71*'DFS Dashboard'!$T$9+'Total Projections (excl QB)'!M71*'DFS Dashboard'!$T$6+'Total Projections (excl QB)'!N71*'DFS Dashboard'!$T$7+IF('Total Projections (excl QB)'!I71>99.99,'DFS Dashboard'!$T$12,0)+IF('Total Projections (excl QB)'!M71>99.99,'DFS Dashboard'!$T$11,0),IF('DFS Dashboard'!$H$1="FanDuel",'Total Projections (excl QB)'!G71*'DFS Dashboard'!$U$10+'Total Projections (excl QB)'!I71*'DFS Dashboard'!$U$8+'Total Projections (excl QB)'!J71*'DFS Dashboard'!$U$9+'Total Projections (excl QB)'!M71*'DFS Dashboard'!$U$6+'Total Projections (excl QB)'!N71*'DFS Dashboard'!$U$7+IF('Total Projections (excl QB)'!I71>99.99,'DFS Dashboard'!$U$12,0)+IF('Total Projections (excl QB)'!M71>99.99,'DFS Dashboard'!$U$11,0),0)) -> 0
A72: =RANK(O72,$O:$O,0)+COUNTIF($O$4:O72,O72)-1 -> 69 | B72: Green Bay Packers | C72: Wide Receiver | D72: ='Green Bay Packers'!$B$118 -> Jayden Reed | E72: ='Green Bay Packers'!$D$118 -> 0 | F72: ='Green Bay Packers'!$E$118 -> 0 | G72: ='Green Bay Packers'!$F$118 -> 0 | H72: ='Green Bay Packers'!$G$118 -> 0 | I72: ='Green Bay Packers'!$H$118 -> 0 | J72: ='Green Bay Packers'!$I$118 -> 0 | K72: ='Green Bay Packers'!$K$118 -> 0 | L72: ='Green Bay Packers'!$L$118 -> 0 | M72: ='Green Bay Packers'!$M$118 -> 0 | N72: ='Green Bay Packers'!$N$118 -> 0 | O72: =IF('DFS Dashboard'!$H$1="DraftKings",'Total Projections (excl QB)'!G72*'DFS Dashboard'!$T$10+'Total Projections (excl QB)'!I72*'DFS Dashboard'!$T$8+'Total Projections (excl QB)'!J72*'DFS Dashboard'!$T$9+'Total Projections (excl QB)'!M72*'DFS Dashboard'!$T$6+'Total Projections (excl QB)'!N72*'DFS Dashboard'!$T$7+IF('Total Projections (excl QB)'!I72>99.99,'DFS Dashboard'!$T$12,0)+IF('Total Projections (excl QB)'!M72>99.99,'DFS Dashboard'!$T$11,0),IF('DFS Dashboard'!$H$1="FanDuel",'Total Projections (excl QB)'!G72*'DFS Dashboard'!$U$10+'Total Projections (excl QB)'!I72*'DFS Dashboard'!$U$8+'Total Projections (excl QB)'!J72*'DFS Dashboard'!$U$9+'Total Projections (excl QB)'!M72*'DFS Dashboard'!$U$6+'Total Projections (excl QB)'!N72*'DFS Dashboard'!$U$7+IF('Total Projections (excl QB)'!I72>99.99,'DFS Dashboard'!$U$12,0)+IF('Total Projections (excl QB)'!M72>99.99,'DFS Dashboard'!$U$11,0),0)) -> 0
A73: =RANK(O73,$O:$O,0)+COUNTIF($O$4:O73,O73)-1 -> 70 | B73: Green Bay Packers | C73: Wide Receiver | D73: ='Green Bay Packers'!$B$119 -> Christian Watson | E73: ='Green Bay Packers'!$D$119 -> 0 | F73: ='Green Bay Packers'!$E$119 -> 0 | G73: ='Green Bay Packers'!$F$119 -> 0 | H73: ='Green Bay Packers'!$G$119 -> 0 | I73: ='Green Bay Packers'!$H$119 -> 0 | J73: ='Green Bay Packers'!$I$119 -> 0 | K73: ='Green Bay Packers'!$K$119 -> 0 | L73: ='Green Bay Packers'!$L$119 -> 0 | M73: ='Green Bay Packers'!$M$119 -> 0 | N73: ='Green Bay Packers'!$N$119 -> 0 | O73: =IF('DFS Dashboard'!$H$1="DraftKings",'Total Projections (excl QB)'!G73*'DFS Dashboard'!$T$10+'Total Projections (excl QB)'!I73*'DFS Dashboard'!$T$8+'Total Projections (excl QB)'!J73*'DFS Dashboard'!$T$9+'Total Projections (excl QB)'!M73*'DFS Dashboard'!$T$6+'Total Projections (excl QB)'!N73*'DFS Dashboard'!$T$7+IF('Total Projections (excl QB)'!I73>99.99,'DFS Dashboard'!$T$12,0)+IF('Total Projections (excl QB)'!M73>99.99,'DFS Dashboard'!$T$11,0),IF('DFS Dashboard'!$H$1="FanDuel",'Total Projections (excl QB)'!G73*'DFS Dashboard'!$U$10+'Total Projections (excl QB)'!I73*'DFS Dashboard'!$U$8+'Total Projections (excl QB)'!J73*'DFS Dashboard'!$U$9+'Total Projections (excl QB)'!M73*'DFS Dashboard'!$U$6+'Total Projections (excl QB)'!N73*'DFS Dashboard'!$U$7+IF('Total Projections (excl QB)'!I73>99.99,'DFS Dashboard'!$U$12,0)+IF('Total Projections (excl QB)'!M73>99.99,'DFS Dashboard'!$U$11,0),0)) -> 0
A74: =RANK(O74,$O:$O,0)+COUNTIF($O$4:O74,O74)-1 -> 71 | B74: Green Bay Packers | C74: Wide Receiver | D74: ='Green Bay Packers'!$B$120 -> Romeo Doubs | E74: ='Green Bay Packers'!$D$120 -> 0 | F74: ='Green Bay Packers'!$E$120 -> 0 | G74: ='Green Bay Packers'!$F$120 -> 0 | H74: ='Green Bay Packers'!$G$120 -> 0 | I74: ='Green Bay Packers'!$H$120 -> 0 | J74: ='Green Bay Packers'!$I$120 -> 0 | K74: ='Green Bay Packers'!$K$120 -> 0 | L74: ='Green Bay Packers'!$L$120 -> 0 | M74: ='Green Bay Packers'!$M$120 -> 0 | N74: ='Green Bay Packers'!$N$120 -> 0 | O74: =IF('DFS Dashboard'!$H$1="DraftKings",'Total Projections (excl QB)'!G74*'DFS Dashboard'!$T$10+'Total Projections (excl QB)'!I74*'DFS Dashboard'!$T$8+'Total Projections (excl QB)'!J74*'DFS Dashboard'!$T$9+'Total Projections (excl QB)'!M74*'DFS Dashboard'!$T$6+'Total Projections (excl QB)'!N74*'DFS Dashboard'!$T$7+IF('Total Projections (excl QB)'!I74>99.99,'DFS Dashboard'!$T$12,0)+IF('Total Projections (excl QB)'!M74>99.99,'DFS Dashboard'!$T$11,0),IF('DFS Dashboard'!$H$1="FanDuel",'Total Projections (excl QB)'!G74*'DFS Dashboard'!$U$10+'Total Projections (excl QB)'!I74*'DFS Dashboard'!$U$8+'Total Projections (excl QB)'!J74*'DFS Dashboard'!$U$9+'Total Projections (excl QB)'!M74*'DFS Dashboard'!$U$6+'Total Projections (excl QB)'!N74*'DFS Dashboard'!$U$7+IF('Total Projections (excl QB)'!I74>99.99,'DFS Dashboard'!$U$12,0)+IF('Total Projections (excl QB)'!M74>99.99,'DFS Dashboard'!$U$11,0),0)) -> 0
A75: =RANK(O75,$O:$O,0)+COUNTIF($O$4:O75,O75)-1 -> 72 | B75: Green Bay Packers | C75: Wide Receiver | D75: ='Green Bay Packers'!$B$121 -> Dontayvion Wicks | E75: ='Green Bay Packers'!$D$121 -> 0 | F75: ='Green Bay Packers'!$E$121 -> 0 | G75: ='Green Bay Packers'!$F$121 -> 0 | H75: ='Green Bay Packers'!$G$121 -> 0 | I75: ='Green Bay Packers'!$H$121 -> 0 | J75: ='Green Bay Packers'!$I$121 -> 0 | K75: ='Green Bay Packers'!$K$121 -> 0 | L75: ='Green Bay Packers'!$L$121 -> 0 | M75: ='Green Bay Packers'!$M$121 -> 0 | N75: ='Green Bay Packers'!$N$121 -> 0 | O75: =IF('DFS Dashboard'!$H$1="DraftKings",'Total Projections (excl QB)'!G75*'DFS Dashboard'!$T$10+'Total Projections (excl QB)'!I75*'DFS Dashboard'!$T$8+'Total Projections (excl QB)'!J75*'DFS Dashboard'!$T$9+'Total Projections (excl QB)'!M75*'DFS Dashboard'!$T$6+'Total Projections (excl QB)'!N75*'DFS Dashboard'!$T$7+IF('Total Projections (excl QB)'!I75>99.99,'DFS Dashboard'!$T$12,0)+IF('Total Projections (excl QB)'!M75>99.99,'DFS Dashboard'!$T$11,0),IF('DFS Dashboard'!$H$1="FanDuel",'Total Projections (excl QB)'!G75*'DFS Dashboard'!$U$10+'Total Projections (excl QB)'!I75*'DFS Dashboard'!$U$8+'Total Projections (excl QB)'!J75*'DFS Dashboard'!$U$9+'Total Projections (excl QB)'!M75*'DFS Dashboard'!$U$6+'Total Projections (excl QB)'!N75*'DFS Dashboard'!$U$7+IF('Total Projections (excl QB)'!I75>99.99,'DFS Dashboard'!$U$12,0)+IF('Total Projections (excl QB)'!M75>99.99,'DFS Dashboard'!$U$11,0),0)) -> 0
A76: =RANK(O76,$O:$O,0)+COUNTIF($O$4:O76,O76)-1 -> 73 | B76: Green Bay Packers | C76: Wide Receiver | D76: ='Green Bay Packers'!$B$122 -> Bo Melton | E76: ='Green Bay Packers'!$D$122 -> 0 | F76: ='Green Bay Packers'!$E$122 -> 0 | G76: ='Green Bay Packers'!$F$122 -> 0 | H76: ='Green Bay Packers'!$G$122 -> 0 | I76: ='Green Bay Packers'!$H$122 -> 0 | J76: ='Green Bay Packers'!$I$122 -> 0 | K76: ='Green Bay Packers'!$K$122 -> 0 | L76: ='Green Bay Packers'!$L$122 -> 0 | M76: ='Green Bay Packers'!$M$122 -> 0 | N76: ='Green Bay Packers'!$N$122 -> 0 | O76: =IF('DFS Dashboard'!$H$1="DraftKings",'Total Projections (excl QB)'!G76*'DFS Dashboard'!$T$10+'Total Projections (excl QB)'!I76*'DFS Dashboard'!$T$8+'Total Projections (excl QB)'!J76*'DFS Dashboard'!$T$9+'Total Projections (excl QB)'!M76*'DFS Dashboard'!$T$6+'Total Projections (excl QB)'!N76*'DFS Dashboard'!$T$7+IF('Total Projections (excl QB)'!I76>99.99,'DFS Dashboard'!$T$12,0)+IF('Total Projections (excl QB)'!M76>99.99,'DFS Dashboard'!$T$11,0),IF('DFS Dashboard'!$H$1="FanDuel",'Total Projections (excl QB)'!G76*'DFS Dashboard'!$U$10+'Total Projections (excl QB)'!I76*'DFS Dashboard'!$U$8+'Total Projections (excl QB)'!J76*'DFS Dashboard'!$U$9+'Total Projections (excl QB)'!M76*'DFS Dashboard'!$U$6+'Total Projections (excl QB)'!N76*'DFS Dashboard'!$U$7+IF('Total Projections (excl QB)'!I76>99.99,'DFS Dashboard'!$U$12,0)+IF('Total Projections (excl QB)'!M76>99.99,'DFS Dashboard'!$U$11,0),0)) -> 0
A77: =RANK(O77,$O:$O,0)+COUNTIF($O$4:O77,O77)-1 -> 74 | B77: Green Bay Packers | C77: Wide Receiver | D77: ='Green Bay Packers'!$B$123 -> Malik Heath | E77: ='Green Bay Packers'!$D$123 -> 0 | F77: ='Green Bay Packers'!$E$123 -> 0 | G77: ='Green Bay Packers'!$F$123 -> 0 | H77: ='Green Bay Packers'!$G$123 -> 0 | I77: ='Green Bay Packers'!$H$123 -> 0 | J77: ='Green Bay Packers'!$I$123 -> 0 | K77: ='Green Bay Packers'!$K$123 -> 0 | L77: ='Green Bay Packers'!$L$123 -> 0 | M77: ='Green Bay Packers'!$M$123 -> 0 | N77: ='Green Bay Packers'!$N$123 -> 0 | O77: =IF('DFS Dashboard'!$H$1="DraftKings",'Total Projections (excl QB)'!G77*'DFS Dashboard'!$T$10+'Total Projections (excl QB)'!I77*'DFS Dashboard'!$T$8+'Total Projections (excl QB)'!J77*'DFS Dashboard'!$T$9+'Total Projections (excl QB)'!M77*'DFS Dashboard'!$T$6+'Total Projections (excl QB)'!N77*'DFS Dashboard'!$T$7+IF('Total Projections (excl QB)'!I77>99.99,'DFS Dashboard'!$T$12,0)+IF('Total Projections (excl QB)'!M77>99.99,'DFS Dashboard'!$T$11,0),IF('DFS Dashboard'!$H$1="FanDuel",'Total Projections (excl QB)'!G77*'DFS Dashboard'!$U$10+'Total Projections (excl QB)'!I77*'DFS Dashboard'!$U$8+'Total Projections (excl QB)'!J77*'DFS Dashboard'!$U$9+'Total Projections (excl QB)'!M77*'DFS Dashboard'!$U$6+'Total Projections (excl QB)'!N77*'DFS Dashboard'!$U$7+IF('Total Projections (excl QB)'!I77>99.99,'DFS Dashboard'!$U$12,0)+IF('Total Projections (excl QB)'!M77>99.99,'DFS Dashboard'!$U$11,0),0)) -> 0
A78: =RANK(O78,$O:$O,0)+COUNTIF($O$4:O78,O78)-1 -> 75 | B78: Green Bay Packers | C78: Wide Receiver | D78: ='Green Bay Packers'!$B$124 -> 0 | E78: ='Green Bay Packers'!$D$124 -> 0 | F78: ='Green Bay Packers'!$E$124 -> 0 | G78: ='Green Bay Packers'!$F$124 -> 0 | H78: ='Green Bay Packers'!$G$124 -> 0 | I78: ='Green Bay Packers'!$H$124 -> 0 | J78: ='Green Bay Packers'!$I$124 -> 0 | K78: ='Green Bay Packers'!$K$124 -> 0 | L78: ='Green Bay Packers'!$L$124 -> 0 | M78: ='Green Bay Packers'!$M$124 -> 0 | N78: ='Green Bay Packers'!$N$124 -> 0 | O78: =IF('DFS Dashboard'!$H$1="DraftKings",'Total Projections (excl QB)'!G78*'DFS Dashboard'!$T$10+'Total Projections (excl QB)'!I78*'DFS Dashboard'!$T$8+'Total Projections (excl QB)'!J78*'DFS Dashboard'!$T$9+'Total Projections (excl QB)'!M78*'DFS Dashboard'!$T$6+'Total Projections (excl QB)'!N78*'DFS Dashboard'!$T$7+IF('Total Projections (excl QB)'!I78>99.99,'DFS Dashboard'!$T$12,0)+IF('Total Projections (excl QB)'!M78>99.99,'DFS Dashboard'!$T$11,0),IF('DFS Dashboard'!$H$1="FanDuel",'Total Projections (excl QB)'!G78*'DFS Dashboard'!$U$10+'Total Projections (excl QB)'!I78*'DFS Dashboard'!$U$8+'Total Projections (excl QB)'!J78*'DFS Dashboard'!$U$9+'Total Projections (excl QB)'!M78*'DFS Dashboard'!$U$6+'Total Projections (excl QB)'!N78*'DFS Dashboard'!$U$7+IF('Total Projections (excl QB)'!I78>99.99,'DFS Dashboard'!$U$12,0)+IF('Total Projections (excl QB)'!M78>99.99,'DFS Dashboard'!$U$11,0),0)) -> 0
A79: =RANK(O79,$O:$O,0)+COUNTIF($O$4:O79,O79)-1 -> 76 | B79: Green Bay Packers | C79: Wide Receiver | D79: ='Green Bay Packers'!$B$125 -> 0 | E79: ='Green Bay Packers'!$D$125 -> 0 | F79: ='Green Bay Packers'!$E$125 -> 0 | G79: ='Green Bay Packers'!$F$125 -> 0 | H79: ='Green Bay Packers'!$G$125 -> 0 | I79: ='Green Bay Packers'!$H$125 -> 0 | J79: ='Green Bay Packers'!$I$125 -> 0 | K79: ='Green Bay Packers'!$K$125 -> 0 | L79: ='Green Bay Packers'!$L$125 -> 0 | M79: ='Green Bay Packers'!$M$125 -> 0 | N79: ='Green Bay Packers'!$N$125 -> 0 | O79: =IF('DFS Dashboard'!$H$1="DraftKings",'Total Projections (excl QB)'!G79*'DFS Dashboard'!$T$10+'Total Projections (excl QB)'!I79*'DFS Dashboard'!$T$8+'Total Projections (excl QB)'!J79*'DFS Dashboard'!$T$9+'Total Projections (excl QB)'!M79*'DFS Dashboard'!$T$6+'Total Projections (excl QB)'!N79*'DFS Dashboard'!$T$7+IF('Total Projections (excl QB)'!I79>99.99,'DFS Dashboard'!$T$12,0)+IF('Total Projections (excl QB)'!M79>99.99,'DFS Dashboard'!$T$11,0),IF('DFS Dashboard'!$H$1="FanDuel",'Total Projections (excl QB)'!G79*'DFS Dashboard'!$U$10+'Total Projections (excl QB)'!I79*'DFS Dashboard'!$U$8+'Total Projections (excl QB)'!J79*'DFS Dashboard'!$U$9+'Total Projections (excl QB)'!M79*'DFS Dashboard'!$U$6+'Total Projections (excl QB)'!N79*'DFS Dashboard'!$U$7+IF('Total Projections (excl QB)'!I79>99.99,'DFS Dashboard'!$U$12,0)+IF('Total Projections (excl QB)'!M79>99.99,'DFS Dashboard'!$U$11,0),0)) -> 0
A80: =RANK(O80,$O:$O,0)+COUNTIF($O$4:O80,O80)-1 -> 77 | B80: Green Bay Packers | C80: Tight End | D80: ='Green Bay Packers'!$B$162 -> Tucker Kraft | E80: ='Green Bay Packers'!$D$162 -> 0 | F80: ='Green Bay Packers'!$E$162 -> 0 | G80: ='Green Bay Packers'!$F$162 -> 0 | H80: ='Green Bay Packers'!$G$162 -> 0 | I80: ='Green Bay Packers'!$H$162 -> 0 | J80: ='Green Bay Packers'!$I$162 -> 0 | K80: ='Green Bay Packers'!$K$162 -> 0 | L80: ='Green Bay Packers'!$L$162 -> 0 | M80: ='Green Bay Packers'!$M$162 -> 0 | N80: ='Green Bay Packers'!$N$162 -> 0 | O80: =IF('DFS Dashboard'!$H$1="DraftKings",'Total Projections (excl QB)'!G80*'DFS Dashboard'!$T$10+'Total Projections (excl QB)'!I80*'DFS Dashboard'!$T$8+'Total Projections (excl QB)'!J80*'DFS Dashboard'!$T$9+'Total Projections (excl QB)'!M80*'DFS Dashboard'!$T$6+'Total Projections (excl QB)'!N80*'DFS Dashboard'!$T$7+IF('Total Projections (excl QB)'!I80>99.99,'DFS Dashboard'!$T$12,0)+IF('Total Projections (excl QB)'!M80>99.99,'DFS Dashboard'!$T$11,0),IF('DFS Dashboard'!$H$1="FanDuel",'Total Projections (excl QB)'!G80*'DFS Dashboard'!$U$10+'Total Projections (excl QB)'!I80*'DFS Dashboard'!$U$8+'Total Projections (excl QB)'!J80*'DFS Dashboard'!$U$9+'Total Projections (excl QB)'!M80*'DFS Dashboard'!$U$6+'Total Projections (excl QB)'!N80*'DFS Dashboard'!$U$7+IF('Total Projections (excl QB)'!I80>99.99,'DFS Dashboard'!$U$12,0)+IF('Total Projections (excl QB)'!M80>99.99,'DFS Dashboard'!$U$11,0),0)) -> 0
A81: =RANK(O81,$O:$O,0)+COUNTIF($O$4:O81,O81)-1 -> 78 | B81: Green Bay Packers | C81: Tight End | D81: ='Green Bay Packers'!$B$163 -> Luke Musgrave | E81: ='Green Bay Packers'!$D$163 -> 0 | F81: ='Green Bay Packers'!$E$163 -> 0 | G81: ='Green Bay Packers'!$F$163 -> 0 | H81: ='Green Bay Packers'!$G$163 -> 0 | I81: ='Green Bay Packers'!$H$163 -> 0 | J81: ='Green Bay Packers'!$I$163 -> 0 | K81: ='Green Bay Packers'!$K$163 -> 0 | L81: ='Green Bay Packers'!$L$163 -> 0 | M81: ='Green Bay Packers'!$M$163 -> 0 | N81: ='Green Bay Packers'!$N$163 -> 0 | O81: =IF('DFS Dashboard'!$H$1="DraftKings",'Total Projections (excl QB)'!G81*'DFS Dashboard'!$T$10+'Total Projections (excl QB)'!I81*'DFS Dashboard'!$T$8+'Total Projections (excl QB)'!J81*'DFS Dashboard'!$T$9+'Total Projections (excl QB)'!M81*'DFS Dashboard'!$T$6+'Total Projections (excl QB)'!N81*'DFS Dashboard'!$T$7+IF('Total Projections (excl QB)'!I81>99.99,'DFS Dashboard'!$T$12,0)+IF('Total Projections (excl QB)'!M81>99.99,'DFS Dashboard'!$T$11,0),IF('DFS Dashboard'!$H$1="FanDuel",'Total Projections (excl QB)'!G81*'DFS Dashboard'!$U$10+'Total Projections (excl QB)'!I81*'DFS Dashboard'!$U$8+'Total Projections (excl QB)'!J81*'DFS Dashboard'!$U$9+'Total Projections (excl QB)'!M81*'DFS Dashboard'!$U$6+'Total Projections (excl QB)'!N81*'DFS Dashboard'!$U$7+IF('Total Projections (excl QB)'!I81>99.99,'DFS Dashboard'!$U$12,0)+IF('Total Projections (excl QB)'!M81>99.99,'DFS Dashboard'!$U$11,0),0)) -> 0
A82: =RANK(O82,$O:$O,0)+COUNTIF($O$4:O82,O82)-1 -> 79 | B82: Green Bay Packers | C82: Tight End | D82: ='Green Bay Packers'!$B$164 -> Ben Sims | E82: ='Green Bay Packers'!$D$164 -> 0 | F82: ='Green Bay Packers'!$E$164 -> 0 | G82: ='Green Bay Packers'!$F$164 -> 0 | H82: ='Green Bay Packers'!$G$164 -> 0 | I82: ='Green Bay Packers'!$H$164 -> 0 | J82: ='Green Bay Packers'!$I$164 -> 0 | K82: ='Green Bay Packers'!$K$164 -> 0 | L82: ='Green Bay Packers'!$L$164 -> 0 | M82: ='Green Bay Packers'!$M$164 -> 0 | N82: ='Green Bay Packers'!$N$164 -> 0 | O82: =IF('DFS Dashboard'!$H$1="DraftKings",'Total Projections (excl QB)'!G82*'DFS Dashboard'!$T$10+'Total Projections (excl QB)'!I82*'DFS Dashboard'!$T$8+'Total Projections (excl QB)'!J82*'DFS Dashboard'!$T$9+'Total Projections (excl QB)'!M82*'DFS Dashboard'!$T$6+'Total Projections (excl QB)'!N82*'DFS Dashboard'!$T$7+IF('Total Projections (excl QB)'!I82>99.99,'DFS Dashboard'!$T$12,0)+IF('Total Projections (excl QB)'!M82>99.99,'DFS Dashboard'!$T$11,0),IF('DFS Dashboard'!$H$1="FanDuel",'Total Projections (excl QB)'!G82*'DFS Dashboard'!$U$10+'Total Projections (excl QB)'!I82*'DFS Dashboard'!$U$8+'Total Projections (excl QB)'!J82*'DFS Dashboard'!$U$9+'Total Projections (excl QB)'!M82*'DFS Dashboard'!$U$6+'Total Projections (excl QB)'!N82*'DFS Dashboard'!$U$7+IF('Total Projections (excl QB)'!I82>99.99,'DFS Dashboard'!$U$12,0)+IF('Total Projections (excl QB)'!M82>99.99,'DFS Dashboard'!$U$11,0),0)) -> 0
A83: =RANK(O83,$O:$O,0)+COUNTIF($O$4:O83,O83)-1 -> 80 | B83: Green Bay Packers | C83: Tight End | D83: ='Green Bay Packers'!$B$165 -> John FitzPatrick | E83: ='Green Bay Packers'!$D$165 -> 0 | F83: ='Green Bay Packers'!$E$165 -> 0 | G83: ='Green Bay Packers'!$F$165 -> 0 | H83: ='Green Bay Packers'!$G$165 -> 0 | I83: ='Green Bay Packers'!$H$165 -> 0 | J83: ='Green Bay Packers'!$I$165 -> 0 | K83: ='Green Bay Packers'!$K$165 -> 0 | L83: ='Green Bay Packers'!$L$165 -> 0 | M83: ='Green Bay Packers'!$M$165 -> 0 | N83: ='Green Bay Packers'!$N$165 -> 0 | O83: =IF('DFS Dashboard'!$H$1="DraftKings",'Total Projections (excl QB)'!G83*'DFS Dashboard'!$T$10+'Total Projections (excl QB)'!I83*'DFS Dashboard'!$T$8+'Total Projections (excl QB)'!J83*'DFS Dashboard'!$T$9+'Total Projections (excl QB)'!M83*'DFS Dashboard'!$T$6+'Total Projections (excl QB)'!N83*'DFS Dashboard'!$T$7+IF('Total Projections (excl QB)'!I83>99.99,'DFS Dashboard'!$T$12,0)+IF('Total Projections (excl QB)'!M83>99.99,'DFS Dashboard'!$T$11,0),IF('DFS Dashboard'!$H$1="FanDuel",'Total Projections (excl QB)'!G83*'DFS Dashboard'!$U$10+'Total Projections (excl QB)'!I83*'DFS Dashboard'!$U$8+'Total Projections (excl QB)'!J83*'DFS Dashboard'!$U$9+'Total Projections (excl QB)'!M83*'DFS Dashboard'!$U$6+'Total Projections (excl QB)'!N83*'DFS Dashboard'!$U$7+IF('Total Projections (excl QB)'!I83>99.99,'DFS Dashboard'!$U$12,0)+IF('Total Projections (excl QB)'!M83>99.99,'DFS Dashboard'!$U$11,0),0)) -> 0
A84: =RANK(O84,$O:$O,0)+COUNTIF($O$4:O84,O84)-1 -> 81 | B84: Houston Texans | C84: Running Back | D84: ='Houston Texans'!$B$142 -> Joe Mixon | E84: ='Houston Texans'!$D$142 -> 0 | F84: ='Houston Texans'!$E$142 -> 0 | G84: ='Houston Texans'!$F$142 -> 0 | H84: ='Houston Texans'!$G$142 -> 0 | I84: ='Houston Texans'!$H$142 -> 0 | J84: ='Houston Texans'!$I$142 -> 0 | K84: ='Houston Texans'!$K$142 -> 0 | L84: ='Houston Texans'!$L$142 -> 0 | M84: ='Houston Texans'!$M$142 -> 0 | N84: ='Houston Texans'!$N$142 -> 0 | O84: =IF('DFS Dashboard'!$H$1="DraftKings",'Total Projections (excl QB)'!G84*'DFS Dashboard'!$T$10+'Total Projections (excl QB)'!I84*'DFS Dashboard'!$T$8+'Total Projections (excl QB)'!J84*'DFS Dashboard'!$T$9+'Total Projections (excl QB)'!M84*'DFS Dashboard'!$T$6+'Total Projections (excl QB)'!N84*'DFS Dashboard'!$T$7+IF('Total Projections (excl QB)'!I84>99.99,'DFS Dashboard'!$T$12,0)+IF('Total Projections (excl QB)'!M84>99.99,'DFS Dashboard'!$T$11,0),IF('DFS Dashboard'!$H$1="FanDuel",'Total Projections (excl QB)'!G84*'DFS Dashboard'!$U$10+'Total Projections (excl QB)'!I84*'DFS Dashboard'!$U$8+'Total Projections (excl QB)'!J84*'DFS Dashboard'!$U$9+'Total Projections (excl QB)'!M84*'DFS Dashboard'!$U$6+'Total Projections (excl QB)'!N84*'DFS Dashboard'!$U$7+IF('Total Projections (excl QB)'!I84>99.99,'DFS Dashboard'!$U$12,0)+IF('Total Projections (excl QB)'!M84>99.99,'DFS Dashboard'!$U$11,0),0)) -> 0
A85: =RANK(O85,$O:$O,0)+COUNTIF($O$4:O85,O85)-1 -> 82 | B85: Houston Texans | C85: Running Back | D85: ='Houston Texans'!$B$143 -> Dare Ogunbowale | E85: ='Houston Texans'!$D$143 -> 0 | F85: ='Houston Texans'!$E$143 -> 0 | G85: ='Houston Texans'!$F$143 -> 0 | H85: ='Houston Texans'!$G$143 -> 0 | I85: ='Houston Texans'!$H$143 -> 0 | J85: ='Houston Texans'!$I$143 -> 0 | K85: ='Houston Texans'!$K$143 -> 0 | L85: ='Houston Texans'!$L$143 -> 0 | M85: ='Houston Texans'!$M$143 -> 0 | N85: ='Houston Texans'!$N$143 -> 0 | O85: =IF('DFS Dashboard'!$H$1="DraftKings",'Total Projections (excl QB)'!G85*'DFS Dashboard'!$T$10+'Total Projections (excl QB)'!I85*'DFS Dashboard'!$T$8+'Total Projections (excl QB)'!J85*'DFS Dashboard'!$T$9+'Total Projections (excl QB)'!M85*'DFS Dashboard'!$T$6+'Total Projections (excl QB)'!N85*'DFS Dashboard'!$T$7+IF('Total Projections (excl QB)'!I85>99.99,'DFS Dashboard'!$T$12,0)+IF('Total Projections (excl QB)'!M85>99.99,'DFS Dashboard'!$T$11,0),IF('DFS Dashboard'!$H$1="FanDuel",'Total Projections (excl QB)'!G85*'DFS Dashboard'!$U$10+'Total Projections (excl QB)'!I85*'DFS Dashboard'!$U$8+'Total Projections (excl QB)'!J85*'DFS Dashboard'!$U$9+'Total Projections (excl QB)'!M85*'DFS Dashboard'!$U$6+'Total Projections (excl QB)'!N85*'DFS Dashboard'!$U$7+IF('Total Projections (excl QB)'!I85>99.99,'DFS Dashboard'!$U$12,0)+IF('Total Projections (excl QB)'!M85>99.99,'DFS Dashboard'!$U$11,0),0)) -> 0
A86: =RANK(O86,$O:$O,0)+COUNTIF($O$4:O86,O86)-1 -> 83 | B86: Houston Texans | C86: Running Back | D86: ='Houston Texans'!$B$144 -> Cam Akers | E86: ='Houston Texans'!$D$144 -> 0 | F86: ='Houston Texans'!$E$144 -> 0 | G86: ='Houston Texans'!$F$144 -> 0 | H86: ='Houston Texans'!$G$144 -> 0 | I86: ='Houston Texans'!$H$144 -> 0 | J86: ='Houston Texans'!$I$144 -> 0 | K86: ='Houston Texans'!$K$144 -> 0 | L86: ='Houston Texans'!$L$144 -> 0 | M86: ='Houston Texans'!$M$144 -> 0 | N86: ='Houston Texans'!$N$144 -> 0 | O86: =IF('DFS Dashboard'!$H$1="DraftKings",'Total Projections (excl QB)'!G86*'DFS Dashboard'!$T$10+'Total Projections (excl QB)'!I86*'DFS Dashboard'!$T$8+'Total Projections (excl QB)'!J86*'DFS Dashboard'!$T$9+'Total Projections (excl QB)'!M86*'DFS Dashboard'!$T$6+'Total Projections (excl QB)'!N86*'DFS Dashboard'!$T$7+IF('Total Projections (excl QB)'!I86>99.99,'DFS Dashboard'!$T$12,0)+IF('Total Projections (excl QB)'!M86>99.99,'DFS Dashboard'!$T$11,0),IF('DFS Dashboard'!$H$1="FanDuel",'Total Projections (excl QB)'!G86*'DFS Dashboard'!$U$10+'Total Projections (excl QB)'!I86*'DFS Dashboard'!$U$8+'Total Projections (excl QB)'!J86*'DFS Dashboard'!$U$9+'Total Projections (excl QB)'!M86*'DFS Dashboard'!$U$6+'Total Projections (excl QB)'!N86*'DFS Dashboard'!$U$7+IF('Total Projections (excl QB)'!I86>99.99,'DFS Dashboard'!$U$12,0)+IF('Total Projections (excl QB)'!M86>99.99,'DFS Dashboard'!$U$11,0),0)) -> 0
A87: =RANK(O87,$O:$O,0)+COUNTIF($O$4:O87,O87)-1 -> 84 | B87: Houston Texans | C87: Running Back | D87: ='Houston Texans'!$B$145 -> Dameon Pierce | E87: ='Houston Texans'!$D$145 -> 0 | F87: ='Houston Texans'!$E$145 -> 0 | G87: ='Houston Texans'!$F$145 -> 0 | H87: ='Houston Texans'!$G$145 -> 0 | I87: ='Houston Texans'!$H$145 -> 0 | J87: ='Houston Texans'!$I$145 -> 0 | K87: ='Houston Texans'!$K$145 -> 0 | L87: ='Houston Texans'!$L$145 -> 0 | M87: ='Houston Texans'!$M$145 -> 0 | N87: ='Houston Texans'!$N$145 -> 0 | O87: =IF('DFS Dashboard'!$H$1="DraftKings",'Total Projections (excl QB)'!G87*'DFS Dashboard'!$T$10+'Total Projections (excl QB)'!I87*'DFS Dashboard'!$T$8+'Total Projections (excl QB)'!J87*'DFS Dashboard'!$T$9+'Total Projections (excl QB)'!M87*'DFS Dashboard'!$T$6+'Total Projections (excl QB)'!N87*'DFS Dashboard'!$T$7+IF('Total Projections (excl QB)'!I87>99.99,'DFS Dashboard'!$T$12,0)+IF('Total Projections (excl QB)'!M87>99.99,'DFS Dashboard'!$T$11,0),IF('DFS Dashboard'!$H$1="FanDuel",'Total Projections (excl QB)'!G87*'DFS Dashboard'!$U$10+'Total Projections (excl QB)'!I87*'DFS Dashboard'!$U$8+'Total Projections (excl QB)'!J87*'DFS Dashboard'!$U$9+'Total Projections (excl QB)'!M87*'DFS Dashboard'!$U$6+'Total Projections (excl QB)'!N87*'DFS Dashboard'!$U$7+IF('Total Projections (excl QB)'!I87>99.99,'DFS Dashboard'!$U$12,0)+IF('Total Projections (excl QB)'!M87>99.99,'DFS Dashboard'!$U$11,0),0)) -> 0
A88: =RANK(O88,$O:$O,0)+COUNTIF($O$4:O88,O88)-1 -> 85 | B88: Houston Texans | C88: Wide Receiver | D88: ='Houston Texans'!$B$118 -> Nico Collins | E88: ='Houston Texans'!$D$118 -> 0 | F88: ='Houston Texans'!$E$118 -> 0 | G88: ='Houston Texans'!$F$118 -> 0 | H88: ='Houston Texans'!$G$118 -> 0 | I88: ='Houston Texans'!$H$118 -> 0 | J88: ='Houston Texans'!$I$118 -> 0 | K88: ='Houston Texans'!$K$118 -> 0 | L88: ='Houston Texans'!$L$118 -> 0 | M88: ='Houston Texans'!$M$118 -> 0 | N88: ='Houston Texans'!$N$118 -> 0 | O88: =IF('DFS Dashboard'!$H$1="DraftKings",'Total Projections (excl QB)'!G88*'DFS Dashboard'!$T$10+'Total Projections (excl QB)'!I88*'DFS Dashboard'!$T$8+'Total Projections (excl QB)'!J88*'DFS Dashboard'!$T$9+'Total Projections (excl QB)'!M88*'DFS Dashboard'!$T$6+'Total Projections (excl QB)'!N88*'DFS Dashboard'!$T$7+IF('Total Projections (excl QB)'!I88>99.99,'DFS Dashboard'!$T$12,0)+IF('Total Projections (excl QB)'!M88>99.99,'DFS Dashboard'!$T$11,0),IF('DFS Dashboard'!$H$1="FanDuel",'Total Projections (excl QB)'!G88*'DFS Dashboard'!$U$10+'Total Projections (excl QB)'!I88*'DFS Dashboard'!$U$8+'Total Projections (excl QB)'!J88*'DFS Dashboard'!$U$9+'Total Projections (excl QB)'!M88*'DFS Dashboard'!$U$6+'Total Projections (excl QB)'!N88*'DFS Dashboard'!$U$7+IF('Total Projections (excl QB)'!I88>99.99,'DFS Dashboard'!$U$12,0)+IF('Total Projections (excl QB)'!M88>99.99,'DFS Dashboard'!$U$11,0),0)) -> 0
A89: =RANK(O89,$O:$O,0)+COUNTIF($O$4:O89,O89)-1 -> 86 | B89: Houston Texans | C89: Wide Receiver | D89: ='Houston Texans'!$B$119 -> Tank Dell | E89: ='Houston Texans'!$D$119 -> 0 | F89: ='Houston Texans'!$E$119 -> 0 | G89: ='Houston Texans'!$F$119 -> 0 | H89: ='Houston Texans'!$G$119 -> 0 | I89: ='Houston Texans'!$H$119 -> 0 | J89: ='Houston Texans'!$I$119 -> 0 | K89: ='Houston Texans'!$K$119 -> 0 | L89: ='Houston Texans'!$L$119 -> 0 | M89: ='Houston Texans'!$M$119 -> 0 | N89: ='Houston Texans'!$N$119 -> 0 | O89: =IF('DFS Dashboard'!$H$1="DraftKings",'Total Projections (excl QB)'!G89*'DFS Dashboard'!$T$10+'Total Projections (excl QB)'!I89*'DFS Dashboard'!$T$8+'Total Projections (excl QB)'!J89*'DFS Dashboard'!$T$9+'Total Projections (excl QB)'!M89*'DFS Dashboard'!$T$6+'Total Projections (excl QB)'!N89*'DFS Dashboard'!$T$7+IF('Total Projections (excl QB)'!I89>99.99,'DFS Dashboard'!$T$12,0)+IF('Total Projections (excl QB)'!M89>99.99,'DFS Dashboard'!$T$11,0),IF('DFS Dashboard'!$H$1="FanDuel",'Total Projections (excl QB)'!G89*'DFS Dashboard'!$U$10+'Total Projections (excl QB)'!I89*'DFS Dashboard'!$U$8+'Total Projections (excl QB)'!J89*'DFS Dashboard'!$U$9+'Total Projections (excl QB)'!M89*'DFS Dashboard'!$U$6+'Total Projections (excl QB)'!N89*'DFS Dashboard'!$U$7+IF('Total Projections (excl QB)'!I89>99.99,'DFS Dashboard'!$U$12,0)+IF('Total Projections (excl QB)'!M89>99.99,'DFS Dashboard'!$U$11,0),0)) -> 0
A90: =RANK(O90,$O:$O,0)+COUNTIF($O$4:O90,O90)-1 -> 87 | B90: Houston Texans | C90: Wide Receiver | D90: ='Houston Texans'!$B$120 -> Stefon Diggs | E90: ='Houston Texans'!$D$120 -> 0 | F90: ='Houston Texans'!$E$120 -> 0 | G90: ='Houston Texans'!$F$120 -> 0 | H90: ='Houston Texans'!$G$120 -> 0 | I90: ='Houston Texans'!$H$120 -> 0 | J90: ='Houston Texans'!$I$120 -> 0 | K90: ='Houston Texans'!$K$120 -> 0 | L90: ='Houston Texans'!$L$120 -> 0 | M90: ='Houston Texans'!$M$120 -> 0 | N90: ='Houston Texans'!$N$120 -> 0 | O90: =IF('DFS Dashboard'!$H$1="DraftKings",'Total Projections (excl QB)'!G90*'DFS Dashboard'!$T$10+'Total Projections (excl QB)'!I90*'DFS Dashboard'!$T$8+'Total Projections (excl QB)'!J90*'DFS Dashboard'!$T$9+'Total Projections (excl QB)'!M90*'DFS Dashboard'!$T$6+'Total Projections (excl QB)'!N90*'DFS Dashboard'!$T$7+IF('Total Projections (excl QB)'!I90>99.99,'DFS Dashboard'!$T$12,0)+IF('Total Projections (excl QB)'!M90>99.99,'DFS Dashboard'!$T$11,0),IF('DFS Dashboard'!$H$1="FanDuel",'Total Projections (excl QB)'!G90*'DFS Dashboard'!$U$10+'Total Projections (excl QB)'!I90*'DFS Dashboard'!$U$8+'Total Projections (excl QB)'!J90*'DFS Dashboard'!$U$9+'Total Projections (excl QB)'!M90*'DFS Dashboard'!$U$6+'Total Projections (excl QB)'!N90*'DFS Dashboard'!$U$7+IF('Total Projections (excl QB)'!I90>99.99,'DFS Dashboard'!$U$12,0)+IF('Total Projections (excl QB)'!M90>99.99,'DFS Dashboard'!$U$11,0),0)) -> 0
A91: =RANK(O91,$O:$O,0)+COUNTIF($O$4:O91,O91)-1 -> 88 | B91: Houston Texans | C91: Wide Receiver | D91: ='Houston Texans'!$B$121 -> John Metchie | E91: ='Houston Texans'!$D$121 -> 0 | F91: ='Houston Texans'!$E$121 -> 0 | G91: ='Houston Texans'!$F$121 -> 0 | H91: ='Houston Texans'!$G$121 -> 0 | I91: ='Houston Texans'!$H$121 -> 0 | J91: ='Houston Texans'!$I$121 -> 0 | K91: ='Houston Texans'!$K$121 -> 0 | L91: ='Houston Texans'!$L$121 -> 0 | M91: ='Houston Texans'!$M$121 -> 0 | N91: ='Houston Texans'!$N$121 -> 0 | O91: =IF('DFS Dashboard'!$H$1="DraftKings",'Total Projections (excl QB)'!G91*'DFS Dashboard'!$T$10+'Total Projections (excl QB)'!I91*'DFS Dashboard'!$T$8+'Total Projections (excl QB)'!J91*'DFS Dashboard'!$T$9+'Total Projections (excl QB)'!M91*'DFS Dashboard'!$T$6+'Total Projections (excl QB)'!N91*'DFS Dashboard'!$T$7+IF('Total Projections (excl QB)'!I91>99.99,'DFS Dashboard'!$T$12,0)+IF('Total Projections (excl QB)'!M91>99.99,'DFS Dashboard'!$T$11,0),IF('DFS Dashboard'!$H$1="FanDuel",'Total Projections (excl QB)'!G91*'DFS Dashboard'!$U$10+'Total Projections (excl QB)'!I91*'DFS Dashboard'!$U$8+'Total Projections (excl QB)'!J91*'DFS Dashboard'!$U$9+'Total Projections (excl QB)'!M91*'DFS Dashboard'!$U$6+'Total Projections (excl QB)'!N91*'DFS Dashboard'!$U$7+IF('Total Projections (excl QB)'!I91>99.99,'DFS Dashboard'!$U$12,0)+IF('Total Projections (excl QB)'!M91>99.99,'DFS Dashboard'!$U$11,0),0)) -> 0
A92: =RANK(O92,$O:$O,0)+COUNTIF($O$4:O92,O92)-1 -> 89 | B92: Houston Texans | C92: Wide Receiver | D92: ='Houston Texans'!$B$122 -> Robert Woods | E92: ='Houston Texans'!$D$122 -> 0 | F92: ='Houston Texans'!$E$122 -> 0 | G92: ='Houston Texans'!$F$122 -> 0 | H92: ='Houston Texans'!$G$122 -> 0 | I92: ='Houston Texans'!$H$122 -> 0 | J92: ='Houston Texans'!$I$122 -> 0 | K92: ='Houston Texans'!$K$122 -> 0 | L92: ='Houston Texans'!$L$122 -> 0 | M92: ='Houston Texans'!$M$122 -> 0 | N92: ='Houston Texans'!$N$122 -> 0 | O92: =IF('DFS Dashboard'!$H$1="DraftKings",'Total Projections (excl QB)'!G92*'DFS Dashboard'!$T$10+'Total Projections (excl QB)'!I92*'DFS Dashboard'!$T$8+'Total Projections (excl QB)'!J92*'DFS Dashboard'!$T$9+'Total Projections (excl QB)'!M92*'DFS Dashboard'!$T$6+'Total Projections (excl QB)'!N92*'DFS Dashboard'!$T$7+IF('Total Projections (excl QB)'!I92>99.99,'DFS Dashboard'!$T$12,0)+IF('Total Projections (excl QB)'!M92>99.99,'DFS Dashboard'!$T$11,0),IF('DFS Dashboard'!$H$1="FanDuel",'Total Projections (excl QB)'!G92*'DFS Dashboard'!$U$10+'Total Projections (excl QB)'!I92*'DFS Dashboard'!$U$8+'Total Projections (excl QB)'!J92*'DFS Dashboard'!$U$9+'Total Projections (excl QB)'!M92*'DFS Dashboard'!$U$6+'Total Projections (excl QB)'!N92*'DFS Dashboard'!$U$7+IF('Total Projections (excl QB)'!I92>99.99,'DFS Dashboard'!$U$12,0)+IF('Total Projections (excl QB)'!M92>99.99,'DFS Dashboard'!$U$11,0),0)) -> 0
A93: =RANK(O93,$O:$O,0)+COUNTIF($O$4:O93,O93)-1 -> 90 | B93: Houston Texans | C93: Wide Receiver | D93: ='Houston Texans'!$B$123 -> Xavier Hutchinson | E93: ='Houston Texans'!$D$123 -> 0 | F93: ='Houston Texans'!$E$123 -> 0 | G93: ='Houston Texans'!$F$123 -> 0 | H93: ='Houston Texans'!$G$123 -> 0 | I93: ='Houston Texans'!$H$123 -> 0 | J93: ='Houston Texans'!$I$123 -> 0 | K93: ='Houston Texans'!$K$123 -> 0 | L93: ='Houston Texans'!$L$123 -> 0 | M93: ='Houston Texans'!$M$123 -> 0 | N93: ='Houston Texans'!$N$123 -> 0 | O93: =IF('DFS Dashboard'!$H$1="DraftKings",'Total Projections (excl QB)'!G93*'DFS Dashboard'!$T$10+'Total Projections (excl QB)'!I93*'DFS Dashboard'!$T$8+'Total Projections (excl QB)'!J93*'DFS Dashboard'!$T$9+'Total Projections (excl QB)'!M93*'DFS Dashboard'!$T$6+'Total Projections (excl QB)'!N93*'DFS Dashboard'!$T$7+IF('Total Projections (excl QB)'!I93>99.99,'DFS Dashboard'!$T$12,0)+IF('Total Projections (excl QB)'!M93>99.99,'DFS Dashboard'!$T$11,0),IF('DFS Dashboard'!$H$1="FanDuel",'Total Projections (excl QB)'!G93*'DFS Dashboard'!$U$10+'Total Projections (excl QB)'!I93*'DFS Dashboard'!$U$8+'Total Projections (excl QB)'!J93*'DFS Dashboard'!$U$9+'Total Projections (excl QB)'!M93*'DFS Dashboard'!$U$6+'Total Projections (excl QB)'!N93*'DFS Dashboard'!$U$7+IF('Total Projections (excl QB)'!I93>99.99,'DFS Dashboard'!$U$12,0)+IF('Total Projections (excl QB)'!M93>99.99,'DFS Dashboard'!$U$11,0),0)) -> 0
A94: =RANK(O94,$O:$O,0)+COUNTIF($O$4:O94,O94)-1 -> 91 | B94: Houston Texans | C94: Wide Receiver | D94: ='Houston Texans'!$B$124 -> Steven Sims | E94: ='Houston Texans'!$D$124 -> 0 | F94: ='Houston Texans'!$E$124 -> 0 | G94: ='Houston Texans'!$F$124 -> 0 | H94: ='Houston Texans'!$G$124 -> 0 | I94: ='Houston Texans'!$H$124 -> 0 | J94: ='Houston Texans'!$I$124 -> 0 | K94: ='Houston Texans'!$K$124 -> 0 | L94: ='Houston Texans'!$L$124 -> 0 | M94: ='Houston Texans'!$M$124 -> 0 | N94: ='Houston Texans'!$N$124 -> 0 | O94: =IF('DFS Dashboard'!$H$1="DraftKings",'Total Projections (excl QB)'!G94*'DFS Dashboard'!$T$10+'Total Projections (excl QB)'!I94*'DFS Dashboard'!$T$8+'Total Projections (excl QB)'!J94*'DFS Dashboard'!$T$9+'Total Projections (excl QB)'!M94*'DFS Dashboard'!$T$6+'Total Projections (excl QB)'!N94*'DFS Dashboard'!$T$7+IF('Total Projections (excl QB)'!I94>99.99,'DFS Dashboard'!$T$12,0)+IF('Total Projections (excl QB)'!M94>99.99,'DFS Dashboard'!$T$11,0),IF('DFS Dashboard'!$H$1="FanDuel",'Total Projections (excl QB)'!G94*'DFS Dashboard'!$U$10+'Total Projections (excl QB)'!I94*'DFS Dashboard'!$U$8+'Total Projections (excl QB)'!J94*'DFS Dashboard'!$U$9+'Total Projections (excl QB)'!M94*'DFS Dashboard'!$U$6+'Total Projections (excl QB)'!N94*'DFS Dashboard'!$U$7+IF('Total Projections (excl QB)'!I94>99.99,'DFS Dashboard'!$U$12,0)+IF('Total Projections (excl QB)'!M94>99.99,'DFS Dashboard'!$U$11,0),0)) -> 0
A95: =RANK(O95,$O:$O,0)+COUNTIF($O$4:O95,O95)-1 -> 92 | B95: Houston Texans | C95: Wide Receiver | D95: ='Houston Texans'!$B$125 -> 0 | E95: ='Houston Texans'!$D$125 -> 0 | F95: ='Houston Texans'!$E$125 -> 0 | G95: ='Houston Texans'!$F$125 -> 0 | H95: ='Houston Texans'!$G$125 -> 0 | I95: ='Houston Texans'!$H$125 -> 0 | J95: ='Houston Texans'!$I$125 -> 0 | K95: ='Houston Texans'!$K$125 -> 0 | L95: ='Houston Texans'!$L$125 -> 0 | M95: ='Houston Texans'!$M$125 -> 0 | N95: ='Houston Texans'!$N$125 -> 0 | O95: =IF('DFS Dashboard'!$H$1="DraftKings",'Total Projections (excl QB)'!G95*'DFS Dashboard'!$T$10+'Total Projections (excl QB)'!I95*'DFS Dashboard'!$T$8+'Total Projections (excl QB)'!J95*'DFS Dashboard'!$T$9+'Total Projections (excl QB)'!M95*'DFS Dashboard'!$T$6+'Total Projections (excl QB)'!N95*'DFS Dashboard'!$T$7+IF('Total Projections (excl QB)'!I95>99.99,'DFS Dashboard'!$T$12,0)+IF('Total Projections (excl QB)'!M95>99.99,'DFS Dashboard'!$T$11,0),IF('DFS Dashboard'!$H$1="FanDuel",'Total Projections (excl QB)'!G95*'DFS Dashboard'!$U$10+'Total Projections (excl QB)'!I95*'DFS Dashboard'!$U$8+'Total Projections (excl QB)'!J95*'DFS Dashboard'!$U$9+'Total Projections (excl QB)'!M95*'DFS Dashboard'!$U$6+'Total Projections (excl QB)'!N95*'DFS Dashboard'!$U$7+IF('Total Projections (excl QB)'!I95>99.99,'DFS Dashboard'!$U$12,0)+IF('Total Projections (excl QB)'!M95>99.99,'DFS Dashboard'!$U$11,0),0)) -> 0
A96: =RANK(O96,$O:$O,0)+COUNTIF($O$4:O96,O96)-1 -> 93 | B96: Houston Texans | C96: Tight End | D96: ='Houston Texans'!$B$162 -> Dalton Schultz | E96: ='Houston Texans'!$D$162 -> 0 | F96: ='Houston Texans'!$E$162 -> 0 | G96: ='Houston Texans'!$F$162 -> 0 | H96: ='Houston Texans'!$G$162 -> 0 | I96: ='Houston Texans'!$H$162 -> 0 | J96: ='Houston Texans'!$I$162 -> 0 | K96: ='Houston Texans'!$K$162 -> 0 | L96: ='Houston Texans'!$L$162 -> 0 | M96: ='Houston Texans'!$M$162 -> 0 | N96: ='Houston Texans'!$N$162 -> 0 | O96: =IF('DFS Dashboard'!$H$1="DraftKings",'Total Projections (excl QB)'!G96*'DFS Dashboard'!$T$10+'Total Projections (excl QB)'!I96*'DFS Dashboard'!$T$8+'Total Projections (excl QB)'!J96*'DFS Dashboard'!$T$9+'Total Projections (excl QB)'!M96*'DFS Dashboard'!$T$6+'Total Projections (excl QB)'!N96*'DFS Dashboard'!$T$7+IF('Total Projections (excl QB)'!I96>99.99,'DFS Dashboard'!$T$12,0)+IF('Total Projections (excl QB)'!M96>99.99,'DFS Dashboard'!$T$11,0),IF('DFS Dashboard'!$H$1="FanDuel",'Total Projections (excl QB)'!G96*'DFS Dashboard'!$U$10+'Total Projections (excl QB)'!I96*'DFS Dashboard'!$U$8+'Total Projections (excl QB)'!J96*'DFS Dashboard'!$U$9+'Total Projections (excl QB)'!M96*'DFS Dashboard'!$U$6+'Total Projections (excl QB)'!N96*'DFS Dashboard'!$U$7+IF('Total Projections (excl QB)'!I96>99.99,'DFS Dashboard'!$U$12,0)+IF('Total Projections (excl QB)'!M96>99.99,'DFS Dashboard'!$U$11,0),0)) -> 0
A97: =RANK(O97,$O:$O,0)+COUNTIF($O$4:O97,O97)-1 -> 94 | B97: Houston Texans | C97: Tight End | D97: ='Houston Texans'!$B$163 -> Cade Stover | E97: ='Houston Texans'!$D$163 -> 0 | F97: ='Houston Texans'!$E$163 -> 0 | G97: ='Houston Texans'!$F$163 -> 0 | H97: ='Houston Texans'!$G$163 -> 0 | I97: ='Houston Texans'!$H$163 -> 0 | J97: ='Houston Texans'!$I$163 -> 0 | K97: ='Houston Texans'!$K$163 -> 0 | L97: ='Houston Texans'!$L$163 -> 0 | M97: ='Houston Texans'!$M$163 -> 0 | N97: ='Houston Texans'!$N$163 -> 0 | O97: =IF('DFS Dashboard'!$H$1="DraftKings",'Total Projections (excl QB)'!G97*'DFS Dashboard'!$T$10+'Total Projections (excl QB)'!I97*'DFS Dashboard'!$T$8+'Total Projections (excl QB)'!J97*'DFS Dashboard'!$T$9+'Total Projections (excl QB)'!M97*'DFS Dashboard'!$T$6+'Total Projections (excl QB)'!N97*'DFS Dashboard'!$T$7+IF('Total Projections (excl QB)'!I97>99.99,'DFS Dashboard'!$T$12,0)+IF('Total Projections (excl QB)'!M97>99.99,'DFS Dashboard'!$T$11,0),IF('DFS Dashboard'!$H$1="FanDuel",'Total Projections (excl QB)'!G97*'DFS Dashboard'!$U$10+'Total Projections (excl QB)'!I97*'DFS Dashboard'!$U$8+'Total Projections (excl QB)'!J97*'DFS Dashboard'!$U$9+'Total Projections (excl QB)'!M97*'DFS Dashboard'!$U$6+'Total Projections (excl QB)'!N97*'DFS Dashboard'!$U$7+IF('Total Projections (excl QB)'!I97>99.99,'DFS Dashboard'!$U$12,0)+IF('Total Projections (excl QB)'!M97>99.99,'DFS Dashboard'!$U$11,0),0)) -> 0
A98: =RANK(O98,$O:$O,0)+COUNTIF($O$4:O98,O98)-1 -> 95 | B98: Houston Texans | C98: Tight End | D98: ='Houston Texans'!$B$164 -> Brevin Jordan | E98: ='Houston Texans'!$D$164 -> 0 | F98: ='Houston Texans'!$E$164 -> 0 | G98: ='Houston Texans'!$F$164 -> 0 | H98: ='Houston Texans'!$G$164 -> 0 | I98: ='Houston Texans'!$H$164 -> 0 | J98: ='Houston Texans'!$I$164 -> 0 | K98: ='Houston Texans'!$K$164 -> 0 | L98: ='Houston Texans'!$L$164 -> 0 | M98: ='Houston Texans'!$M$164 -> 0 | N98: ='Houston Texans'!$N$164 -> 0 | O98: =IF('DFS Dashboard'!$H$1="DraftKings",'Total Projections (excl QB)'!G98*'DFS Dashboard'!$T$10+'Total Projections (excl QB)'!I98*'DFS Dashboard'!$T$8+'Total Projections (excl QB)'!J98*'DFS Dashboard'!$T$9+'Total Projections (excl QB)'!M98*'DFS Dashboard'!$T$6+'Total Projections (excl QB)'!N98*'DFS Dashboard'!$T$7+IF('Total Projections (excl QB)'!I98>99.99,'DFS Dashboard'!$T$12,0)+IF('Total Projections (excl QB)'!M98>99.99,'DFS Dashboard'!$T$11,0),IF('DFS Dashboard'!$H$1="FanDuel",'Total Projections (excl QB)'!G98*'DFS Dashboard'!$U$10+'Total Projections (excl QB)'!I98*'DFS Dashboard'!$U$8+'Total Projections (excl QB)'!J98*'DFS Dashboard'!$U$9+'Total Projections (excl QB)'!M98*'DFS Dashboard'!$U$6+'Total Projections (excl QB)'!N98*'DFS Dashboard'!$U$7+IF('Total Projections (excl QB)'!I98>99.99,'DFS Dashboard'!$U$12,0)+IF('Total Projections (excl QB)'!M98>99.99,'DFS Dashboard'!$U$11,0),0)) -> 0
A99: =RANK(O99,$O:$O,0)+COUNTIF($O$4:O99,O99)-1 -> 96 | B99: Houston Texans | C99: Tight End | D99: ='Houston Texans'!$B$165 -> 0 | E99: ='Houston Texans'!$D$165 -> 0 | F99: ='Houston Texans'!$E$165 -> 0 | G99: ='Houston Texans'!$F$165 -> 0 | H99: ='Houston Texans'!$G$165 -> 0 | I99: ='Houston Texans'!$H$165 -> 0 | J99: ='Houston Texans'!$I$165 -> 0 | K99: ='Houston Texans'!$K$165 -> 0 | L99: ='Houston Texans'!$L$165 -> 0 | M99: ='Houston Texans'!$M$165 -> 0 | N99: ='Houston Texans'!$N$165 -> 0 | O99: =IF('DFS Dashboard'!$H$1="DraftKings",'Total Projections (excl QB)'!G99*'DFS Dashboard'!$T$10+'Total Projections (excl QB)'!I99*'DFS Dashboard'!$T$8+'Total Projections (excl QB)'!J99*'DFS Dashboard'!$T$9+'Total Projections (excl QB)'!M99*'DFS Dashboard'!$T$6+'Total Projections (excl QB)'!N99*'DFS Dashboard'!$T$7+IF('Total Projections (excl QB)'!I99>99.99,'DFS Dashboard'!$T$12,0)+IF('Total Projections (excl QB)'!M99>99.99,'DFS Dashboard'!$T$11,0),IF('DFS Dashboard'!$H$1="FanDuel",'Total Projections (excl QB)'!G99*'DFS Dashboard'!$U$10+'Total Projections (excl QB)'!I99*'DFS Dashboard'!$U$8+'Total Projections (excl QB)'!J99*'DFS Dashboard'!$U$9+'Total Projections (excl QB)'!M99*'DFS Dashboard'!$U$6+'Total Projections (excl QB)'!N99*'DFS Dashboard'!$U$7+IF('Total Projections (excl QB)'!I99>99.99,'DFS Dashboard'!$U$12,0)+IF('Total Projections (excl QB)'!M99>99.99,'DFS Dashboard'!$U$11,0),0)) -> 0
A100: =RANK(O100,$O:$O,0)+COUNTIF($O$4:O100,O100)-1 -> 97 | B100: Kansas City Chiefs | C100: Running Back | D100: ='Kansas City Chiefs'!$B$142 -> Kareem Hunt | E100: ='Kansas City Chiefs'!$D$142 -> 0 | F100: ='Kansas City Chiefs'!$E$142 -> 0 | G100: ='Kansas City Chiefs'!$F$142 -> 0 | H100: ='Kansas City Chiefs'!$G$142 -> 0 | I100: ='Kansas City Chiefs'!$H$142 -> 0 | J100: ='Kansas City Chiefs'!$I$142 -> 0 | K100: ='Kansas City Chiefs'!$K$142 -> 0 | L100: ='Kansas City Chiefs'!$L$142 -> 0 | M100: ='Kansas City Chiefs'!$M$142 -> 0 | N100: ='Kansas City Chiefs'!$N$142 -> 0 | O100: =IF('DFS Dashboard'!$H$1="DraftKings",'Total Projections (excl QB)'!G100*'DFS Dashboard'!$T$10+'Total Projections (excl QB)'!I100*'DFS Dashboard'!$T$8+'Total Projections (excl QB)'!J100*'DFS Dashboard'!$T$9+'Total Projections (excl QB)'!M100*'DFS Dashboard'!$T$6+'Total Projections (excl QB)'!N100*'DFS Dashboard'!$T$7+IF('Total Projections (excl QB)'!I100>99.99,'DFS Dashboard'!$T$12,0)+IF('Total Projections (excl QB)'!M100>99.99,'DFS Dashboard'!$T$11,0),IF('DFS Dashboard'!$H$1="FanDuel",'Total Projections (excl QB)'!G100*'DFS Dashboard'!$U$10+'Total Projections (excl QB)'!I100*'DFS Dashboard'!$U$8+'Total Projections (excl QB)'!J100*'DFS Dashboard'!$U$9+'Total Projections (excl QB)'!M100*'DFS Dashboard'!$U$6+'Total Projections (excl QB)'!N100*'DFS Dashboard'!$U$7+IF('Total Projections (excl QB)'!I100>99.99,'DFS Dashboard'!$U$12,0)+IF('Total Projections (excl QB)'!M100>99.99,'DFS Dashboard'!$U$11,0),0)) -> 0
A101: =RANK(O101,$O:$O,0)+COUNTIF($O$4:O101,O101)-1 -> 98 | B101: Kansas City Chiefs | C101: Running Back | D101: ='Kansas City Chiefs'!$B$143 -> Samaje Perine | E101: ='Kansas City Chiefs'!$D$143 -> 0 | F101: ='Kansas City Chiefs'!$E$143 -> 0 | G101: ='Kansas City Chiefs'!$F$143 -> 0 | H101: ='Kansas City Chiefs'!$G$143 -> 0 | I101: ='Kansas City Chiefs'!$H$143 -> 0 | J101: ='Kansas City Chiefs'!$I$143 -> 0 | K101: ='Kansas City Chiefs'!$K$143 -> 0 | L101: ='Kansas City Chiefs'!$L$143 -> 0 | M101: ='Kansas City Chiefs'!$M$143 -> 0 | N101: ='Kansas City Chiefs'!$N$143 -> 0 | O101: =IF('DFS Dashboard'!$H$1="DraftKings",'Total Projections (excl QB)'!G101*'DFS Dashboard'!$T$10+'Total Projections (excl QB)'!I101*'DFS Dashboard'!$T$8+'Total Projections (excl QB)'!J101*'DFS Dashboard'!$T$9+'Total Projections (excl QB)'!M101*'DFS Dashboard'!$T$6+'Total Projections (excl QB)'!N101*'DFS Dashboard'!$T$7+IF('Total Projections (excl QB)'!I101>99.99,'DFS Dashboard'!$T$12,0)+IF('Total Projections (excl QB)'!M101>99.99,'DFS Dashboard'!$T$11,0),IF('DFS Dashboard'!$H$1="FanDuel",'Total Projections (excl QB)'!G101*'DFS Dashboard'!$U$10+'Total Projections (excl QB)'!I101*'DFS Dashboard'!$U$8+'Total Projections (excl QB)'!J101*'DFS Dashboard'!$U$9+'Total Projections (excl QB)'!M101*'DFS Dashboard'!$U$6+'Total Projections (excl QB)'!N101*'DFS Dashboard'!$U$7+IF('Total Projections (excl QB)'!I101>99.99,'DFS Dashboard'!$U$12,0)+IF('Total Projections (excl QB)'!M101>99.99,'DFS Dashboard'!$U$11,0),0)) -> 0
A102: =RANK(O102,$O:$O,0)+COUNTIF($O$4:O102,O102)-1 -> 99 | B102: Kansas City Chiefs | C102: Running Back | D102: ='Kansas City Chiefs'!$B$144 -> Isiah Pacheco | E102: ='Kansas City Chiefs'!$D$144 -> 0 | F102: ='Kansas City Chiefs'!$E$144 -> 0 | G102: ='Kansas City Chiefs'!$F$144 -> 0 | H102: ='Kansas City Chiefs'!$G$144 -> 0 | I102: ='Kansas City Chiefs'!$H$144 -> 0 | J102: ='Kansas City Chiefs'!$I$144 -> 0 | K102: ='Kansas City Chiefs'!$K$144 -> 0 | L102: ='Kansas City Chiefs'!$L$144 -> 0 | M102: ='Kansas City Chiefs'!$M$144 -> 0 | N102: ='Kansas City Chiefs'!$N$144 -> 0 | O102: =IF('DFS Dashboard'!$H$1="DraftKings",'Total Projections (excl QB)'!G102*'DFS Dashboard'!$T$10+'Total Projections (excl QB)'!I102*'DFS Dashboard'!$T$8+'Total Projections (excl QB)'!J102*'DFS Dashboard'!$T$9+'Total Projections (excl QB)'!M102*'DFS Dashboard'!$T$6+'Total Projections (excl QB)'!N102*'DFS Dashboard'!$T$7+IF('Total Projections (excl QB)'!I102>99.99,'DFS Dashboard'!$T$12,0)+IF('Total Projections (excl QB)'!M102>99.99,'DFS Dashboard'!$T$11,0),IF('DFS Dashboard'!$H$1="FanDuel",'Total Projections (excl QB)'!G102*'DFS Dashboard'!$U$10+'Total Projections (excl QB)'!I102*'DFS Dashboard'!$U$8+'Total Projections (excl QB)'!J102*'DFS Dashboard'!$U$9+'Total Projections (excl QB)'!M102*'DFS Dashboard'!$U$6+'Total Projections (excl QB)'!N102*'DFS Dashboard'!$U$7+IF('Total Projections (excl QB)'!I102>99.99,'DFS Dashboard'!$U$12,0)+IF('Total Projections (excl QB)'!M102>99.99,'DFS Dashboard'!$U$11,0),0)) -> 0
A103: =RANK(O103,$O:$O,0)+COUNTIF($O$4:O103,O103)-1 -> 100 | B103: Kansas City Chiefs | C103: Running Back | D103: ='Kansas City Chiefs'!$B$145 -> Carson Steele | E103: ='Kansas City Chiefs'!$D$145 -> 0 | F103: ='Kansas City Chiefs'!$E$145 -> 0 | G103: ='Kansas City Chiefs'!$F$145 -> 0 | H103: ='Kansas City Chiefs'!$G$145 -> 0 | I103: ='Kansas City Chiefs'!$H$145 -> 0 | J103: ='Kansas City Chiefs'!$I$145 -> 0 | K103: ='Kansas City Chiefs'!$K$145 -> 0 | L103: ='Kansas City Chiefs'!$L$145 -> 0 | M103: ='Kansas City Chiefs'!$M$145 -> 0 | N103: ='Kansas City Chiefs'!$N$145 -> 0 | O103: =IF('DFS Dashboard'!$H$1="DraftKings",'Total Projections (excl QB)'!G103*'DFS Dashboard'!$T$10+'Total Projections (excl QB)'!I103*'DFS Dashboard'!$T$8+'Total Projections (excl QB)'!J103*'DFS Dashboard'!$T$9+'Total Projections (excl QB)'!M103*'DFS Dashboard'!$T$6+'Total Projections (excl QB)'!N103*'DFS Dashboard'!$T$7+IF('Total Projections (excl QB)'!I103>99.99,'DFS Dashboard'!$T$12,0)+IF('Total Projections (excl QB)'!M103>99.99,'DFS Dashboard'!$T$11,0),IF('DFS Dashboard'!$H$1="FanDuel",'Total Projections (excl QB)'!G103*'DFS Dashboard'!$U$10+'Total Projections (excl QB)'!I103*'DFS Dashboard'!$U$8+'Total Projections (excl QB)'!J103*'DFS Dashboard'!$U$9+'Total Projections (excl QB)'!M103*'DFS Dashboard'!$U$6+'Total Projections (excl QB)'!N103*'DFS Dashboard'!$U$7+IF('Total Projections (excl QB)'!I103>99.99,'DFS Dashboard'!$U$12,0)+IF('Total Projections (excl QB)'!M103>99.99,'DFS Dashboard'!$U$11,0),0)) -> 0
A104: =RANK(O104,$O:$O,0)+COUNTIF($O$4:O104,O104)-1 -> 101 | B104: Kansas City Chiefs | C104: Wide Receiver | D104: ='Kansas City Chiefs'!$B$118 -> Xavier Worthy | E104: ='Kansas City Chiefs'!$D$118 -> 0 | F104: ='Kansas City Chiefs'!$E$118 -> 0 | G104: ='Kansas City Chiefs'!$F$118 -> 0 | H104: ='Kansas City Chiefs'!$G$118 -> 0 | I104: ='Kansas City Chiefs'!$H$118 -> 0 | J104: ='Kansas City Chiefs'!$I$118 -> 0 | K104: ='Kansas City Chiefs'!$K$118 -> 0 | L104: ='Kansas City Chiefs'!$L$118 -> 0 | M104: ='Kansas City Chiefs'!$M$118 -> 0 | N104: ='Kansas City Chiefs'!$N$118 -> 0 | O104: =IF('DFS Dashboard'!$H$1="DraftKings",'Total Projections (excl QB)'!G104*'DFS Dashboard'!$T$10+'Total Projections (excl QB)'!I104*'DFS Dashboard'!$T$8+'Total Projections (excl QB)'!J104*'DFS Dashboard'!$T$9+'Total Projections (excl QB)'!M104*'DFS Dashboard'!$T$6+'Total Projections (excl QB)'!N104*'DFS Dashboard'!$T$7+IF('Total Projections (excl QB)'!I104>99.99,'DFS Dashboard'!$T$12,0)+IF('Total Projections (excl QB)'!M104>99.99,'DFS Dashboard'!$T$11,0),IF('DFS Dashboard'!$H$1="FanDuel",'Total Projections (excl QB)'!G104*'DFS Dashboard'!$U$10+'Total Projections (excl QB)'!I104*'DFS Dashboard'!$U$8+'Total Projections (excl QB)'!J104*'DFS Dashboard'!$U$9+'Total Projections (excl QB)'!M104*'DFS Dashboard'!$U$6+'Total Projections (excl QB)'!N104*'DFS Dashboard'!$U$7+IF('Total Projections (excl QB)'!I104>99.99,'DFS Dashboard'!$U$12,0)+IF('Total Projections (excl QB)'!M104>99.99,'DFS Dashboard'!$U$11,0),0)) -> 0
A105: =RANK(O105,$O:$O,0)+COUNTIF($O$4:O105,O105)-1 -> 102 | B105: Kansas City Chiefs | C105: Wide Receiver | D105: ='Kansas City Chiefs'!$B$119 -> DeAndre Hopkins | E105: ='Kansas City Chiefs'!$D$119 -> 0 | F105: ='Kansas City Chiefs'!$E$119 -> 0 | G105: ='Kansas City Chiefs'!$F$119 -> 0 | H105: ='Kansas City Chiefs'!$G$119 -> 0 | I105: ='Kansas City Chiefs'!$H$119 -> 0 | J105: ='Kansas City Chiefs'!$I$119 -> 0 | K105: ='Kansas City Chiefs'!$K$119 -> 0 | L105: ='Kansas City Chiefs'!$L$119 -> 0 | M105: ='Kansas City Chiefs'!$M$119 -> 0 | N105: ='Kansas City Chiefs'!$N$119 -> 0 | O105: =IF('DFS Dashboard'!$H$1="DraftKings",'Total Projections (excl QB)'!G105*'DFS Dashboard'!$T$10+'Total Projections (excl QB)'!I105*'DFS Dashboard'!$T$8+'Total Projections (excl QB)'!J105*'DFS Dashboard'!$T$9+'Total Projections (excl QB)'!M105*'DFS Dashboard'!$T$6+'Total Projections (excl QB)'!N105*'DFS Dashboard'!$T$7+IF('Total Projections (excl QB)'!I105>99.99,'DFS Dashboard'!$T$12,0)+IF('Total Projections (excl QB)'!M105>99.99,'DFS Dashboard'!$T$11,0),IF('DFS Dashboard'!$H$1="FanDuel",'Total Projections (excl QB)'!G105*'DFS Dashboard'!$U$10+'Total Projections (excl QB)'!I105*'DFS Dashboard'!$U$8+'Total Projections (excl QB)'!J105*'DFS Dashboard'!$U$9+'Total Projections (excl QB)'!M105*'DFS Dashboard'!$U$6+'Total Projections (excl QB)'!N105*'DFS Dashboard'!$U$7+IF('Total Projections (excl QB)'!I105>99.99,'DFS Dashboard'!$U$12,0)+IF('Total Projections (excl QB)'!M105>99.99,'DFS Dashboard'!$U$11,0),0)) -> 0
A106: =RANK(O106,$O:$O,0)+COUNTIF($O$4:O106,O106)-1 -> 103 | B106: Kansas City Chiefs | C106: Wide Receiver | D106: ='Kansas City Chiefs'!$B$120 -> Rashee Rice | E106: ='Kansas City Chiefs'!$D$120 -> 0 | F106: ='Kansas City Chiefs'!$E$120 -> 0 | G106: ='Kansas City Chiefs'!$F$120 -> 0 | H106: ='Kansas City Chiefs'!$G$120 -> 0 | I106: ='Kansas City Chiefs'!$H$120 -> 0 | J106: ='Kansas City Chiefs'!$I$120 -> 0 | K106: ='Kansas City Chiefs'!$K$120 -> 0 | L106: ='Kansas City Chiefs'!$L$120 -> 0 | M106: ='Kansas City Chiefs'!$M$120 -> 0 | N106: ='Kansas City Chiefs'!$N$120 -> 0 | O106: =IF('DFS Dashboard'!$H$1="DraftKings",'Total Projections (excl QB)'!G106*'DFS Dashboard'!$T$10+'Total Projections (excl QB)'!I106*'DFS Dashboard'!$T$8+'Total Projections (excl QB)'!J106*'DFS Dashboard'!$T$9+'Total Projections (excl QB)'!M106*'DFS Dashboard'!$T$6+'Total Projections (excl QB)'!N106*'DFS Dashboard'!$T$7+IF('Total Projections (excl QB)'!I106>99.99,'DFS Dashboard'!$T$12,0)+IF('Total Projections (excl QB)'!M106>99.99,'DFS Dashboard'!$T$11,0),IF('DFS Dashboard'!$H$1="FanDuel",'Total Projections (excl QB)'!G106*'DFS Dashboard'!$U$10+'Total Projections (excl QB)'!I106*'DFS Dashboard'!$U$8+'Total Projections (excl QB)'!J106*'DFS Dashboard'!$U$9+'Total Projections (excl QB)'!M106*'DFS Dashboard'!$U$6+'Total Projections (excl QB)'!N106*'DFS Dashboard'!$U$7+IF('Total Projections (excl QB)'!I106>99.99,'DFS Dashboard'!$U$12,0)+IF('Total Projections (excl QB)'!M106>99.99,'DFS Dashboard'!$U$11,0),0)) -> 0
A107: =RANK(O107,$O:$O,0)+COUNTIF($O$4:O107,O107)-1 -> 104 | B107: Kansas City Chiefs | C107: Wide Receiver | D107: ='Kansas City Chiefs'!$B$121 -> Justin Watson | E107: ='Kansas City Chiefs'!$D$121 -> 0 | F107: ='Kansas City Chiefs'!$E$121 -> 0 | G107: ='Kansas City Chiefs'!$F$121 -> 0 | H107: ='Kansas City Chiefs'!$G$121 -> 0 | I107: ='Kansas City Chiefs'!$H$121 -> 0 | J107: ='Kansas City Chiefs'!$I$121 -> 0 | K107: ='Kansas City Chiefs'!$K$121 -> 0 | L107: ='Kansas City Chiefs'!$L$121 -> 0 | M107: ='Kansas City Chiefs'!$M$121 -> 0 | N107: ='Kansas City Chiefs'!$N$121 -> 0 | O107: =IF('DFS Dashboard'!$H$1="DraftKings",'Total Projections (excl QB)'!G107*'DFS Dashboard'!$T$10+'Total Projections (excl QB)'!I107*'DFS Dashboard'!$T$8+'Total Projections (excl QB)'!J107*'DFS Dashboard'!$T$9+'Total Projections (excl QB)'!M107*'DFS Dashboard'!$T$6+'Total Projections (excl QB)'!N107*'DFS Dashboard'!$T$7+IF('Total Projections (excl QB)'!I107>99.99,'DFS Dashboard'!$T$12,0)+IF('Total Projections (excl QB)'!M107>99.99,'DFS Dashboard'!$T$11,0),IF('DFS Dashboard'!$H$1="FanDuel",'Total Projections (excl QB)'!G107*'DFS Dashboard'!$U$10+'Total Projections (excl QB)'!I107*'DFS Dashboard'!$U$8+'Total Projections (excl QB)'!J107*'DFS Dashboard'!$U$9+'Total Projections (excl QB)'!M107*'DFS Dashboard'!$U$6+'Total Projections (excl QB)'!N107*'DFS Dashboard'!$U$7+IF('Total Projections (excl QB)'!I107>99.99,'DFS Dashboard'!$U$12,0)+IF('Total Projections (excl QB)'!M107>99.99,'DFS Dashboard'!$U$11,0),0)) -> 0
A108: =RANK(O108,$O:$O,0)+COUNTIF($O$4:O108,O108)-1 -> 105 | B108: Kansas City Chiefs | C108: Wide Receiver | D108: ='Kansas City Chiefs'!$B$122 -> Juju Smith-Schuster | E108: ='Kansas City Chiefs'!$D$122 -> 0 | F108: ='Kansas City Chiefs'!$E$122 -> 0 | G108: ='Kansas City Chiefs'!$F$122 -> 0 | H108: ='Kansas City Chiefs'!$G$122 -> 0 | I108: ='Kansas City Chiefs'!$H$122 -> 0 | J108: ='Kansas City Chiefs'!$I$122 -> 0 | K108: ='Kansas City Chiefs'!$K$122 -> 0 | L108: ='Kansas City Chiefs'!$L$122 -> 0 | M108: ='Kansas City Chiefs'!$M$122 -> 0 | N108: ='Kansas City Chiefs'!$N$122 -> 0 | O108: =IF('DFS Dashboard'!$H$1="DraftKings",'Total Projections (excl QB)'!G108*'DFS Dashboard'!$T$10+'Total Projections (excl QB)'!I108*'DFS Dashboard'!$T$8+'Total Projections (excl QB)'!J108*'DFS Dashboard'!$T$9+'Total Projections (excl QB)'!M108*'DFS Dashboard'!$T$6+'Total Projections (excl QB)'!N108*'DFS Dashboard'!$T$7+IF('Total Projections (excl QB)'!I108>99.99,'DFS Dashboard'!$T$12,0)+IF('Total Projections (excl QB)'!M108>99.99,'DFS Dashboard'!$T$11,0),IF('DFS Dashboard'!$H$1="FanDuel",'Total Projections (excl QB)'!G108*'DFS Dashboard'!$U$10+'Total Projections (excl QB)'!I108*'DFS Dashboard'!$U$8+'Total Projections (excl QB)'!J108*'DFS Dashboard'!$U$9+'Total Projections (excl QB)'!M108*'DFS Dashboard'!$U$6+'Total Projections (excl QB)'!N108*'DFS Dashboard'!$U$7+IF('Total Projections (excl QB)'!I108>99.99,'DFS Dashboard'!$U$12,0)+IF('Total Projections (excl QB)'!M108>99.99,'DFS Dashboard'!$U$11,0),0)) -> 0
A109: =RANK(O109,$O:$O,0)+COUNTIF($O$4:O109,O109)-1 -> 106 | B109: Kansas City Chiefs | C109: Wide Receiver | D109: ='Kansas City Chiefs'!$B$123 -> Mecole Hardman | E109: ='Kansas City Chiefs'!$D$123 -> 0 | F109: ='Kansas City Chiefs'!$E$123 -> 0 | G109: ='Kansas City Chiefs'!$F$123 -> 0 | H109: ='Kansas City Chiefs'!$G$123 -> 0 | I109: ='Kansas City Chiefs'!$H$123 -> 0 | J109: ='Kansas City Chiefs'!$I$123 -> 0 | K109: ='Kansas City Chiefs'!$K$123 -> 0 | L109: ='Kansas City Chiefs'!$L$123 -> 0 | M109: ='Kansas City Chiefs'!$M$123 -> 0 | N109: ='Kansas City Chiefs'!$N$123 -> 0 | O109: =IF('DFS Dashboard'!$H$1="DraftKings",'Total Projections (excl QB)'!G109*'DFS Dashboard'!$T$10+'Total Projections (excl QB)'!I109*'DFS Dashboard'!$T$8+'Total Projections (excl QB)'!J109*'DFS Dashboard'!$T$9+'Total Projections (excl QB)'!M109*'DFS Dashboard'!$T$6+'Total Projections (excl QB)'!N109*'DFS Dashboard'!$T$7+IF('Total Projections (excl QB)'!I109>99.99,'DFS Dashboard'!$T$12,0)+IF('Total Projections (excl QB)'!M109>99.99,'DFS Dashboard'!$T$11,0),IF('DFS Dashboard'!$H$1="FanDuel",'Total Projections (excl QB)'!G109*'DFS Dashboard'!$U$10+'Total Projections (excl QB)'!I109*'DFS Dashboard'!$U$8+'Total Projections (excl QB)'!J109*'DFS Dashboard'!$U$9+'Total Projections (excl QB)'!M109*'DFS Dashboard'!$U$6+'Total Projections (excl QB)'!N109*'DFS Dashboard'!$U$7+IF('Total Projections (excl QB)'!I109>99.99,'DFS Dashboard'!$U$12,0)+IF('Total Projections (excl QB)'!M109>99.99,'DFS Dashboard'!$U$11,0),0)) -> 0
A110: =RANK(O110,$O:$O,0)+COUNTIF($O$4:O110,O110)-1 -> 107 | B110: Kansas City Chiefs | C110: Wide Receiver | D110: ='Kansas City Chiefs'!$B$124 -> Marquise Brown | E110: ='Kansas City Chiefs'!$D$124 -> 0 | F110: ='Kansas City Chiefs'!$E$124 -> 0 | G110: ='Kansas City Chiefs'!$F$124 -> 0 | H110: ='Kansas City Chiefs'!$G$124 -> 0 | I110: ='Kansas City Chiefs'!$H$124 -> 0 | J110: ='Kansas City Chiefs'!$I$124 -> 0 | K110: ='Kansas City Chiefs'!$K$124 -> 0 | L110: ='Kansas City Chiefs'!$L$124 -> 0 | M110: ='Kansas City Chiefs'!$M$124 -> 0 | N110: ='Kansas City Chiefs'!$N$124 -> 0 | O110: =IF('DFS Dashboard'!$H$1="DraftKings",'Total Projections (excl QB)'!G110*'DFS Dashboard'!$T$10+'Total Projections (excl QB)'!I110*'DFS Dashboard'!$T$8+'Total Projections (excl QB)'!J110*'DFS Dashboard'!$T$9+'Total Projections (excl QB)'!M110*'DFS Dashboard'!$T$6+'Total Projections (excl QB)'!N110*'DFS Dashboard'!$T$7+IF('Total Projections (excl QB)'!I110>99.99,'DFS Dashboard'!$T$12,0)+IF('Total Projections (excl QB)'!M110>99.99,'DFS Dashboard'!$T$11,0),IF('DFS Dashboard'!$H$1="FanDuel",'Total Projections (excl QB)'!G110*'DFS Dashboard'!$U$10+'Total Projections (excl QB)'!I110*'DFS Dashboard'!$U$8+'Total Projections (excl QB)'!J110*'DFS Dashboard'!$U$9+'Total Projections (excl QB)'!M110*'DFS Dashboard'!$U$6+'Total Projections (excl QB)'!N110*'DFS Dashboard'!$U$7+IF('Total Projections (excl QB)'!I110>99.99,'DFS Dashboard'!$U$12,0)+IF('Total Projections (excl QB)'!M110>99.99,'DFS Dashboard'!$U$11,0),0)) -> 0
A111: =RANK(O111,$O:$O,0)+COUNTIF($O$4:O111,O111)-1 -> 108 | B111: Kansas City Chiefs | C111: Wide Receiver | D111: ='Kansas City Chiefs'!$B$125 -> Skyy Moore | E111: ='Kansas City Chiefs'!$D$125 -> 0 | F111: ='Kansas City Chiefs'!$E$125 -> 0 | G111: ='Kansas City Chiefs'!$F$125 -> 0 | H111: ='Kansas City Chiefs'!$G$125 -> 0 | I111: ='Kansas City Chiefs'!$H$125 -> 0 | J111: ='Kansas City Chiefs'!$I$125 -> 0 | K111: ='Kansas City Chiefs'!$K$125 -> 0 | L111: ='Kansas City Chiefs'!$L$125 -> 0 | M111: ='Kansas City Chiefs'!$M$125 -> 0 | N111: ='Kansas City Chiefs'!$N$125 -> 0 | O111: =IF('DFS Dashboard'!$H$1="DraftKings",'Total Projections (excl QB)'!G111*'DFS Dashboard'!$T$10+'Total Projections (excl QB)'!I111*'DFS Dashboard'!$T$8+'Total Projections (excl QB)'!J111*'DFS Dashboard'!$T$9+'Total Projections (excl QB)'!M111*'DFS Dashboard'!$T$6+'Total Projections (excl QB)'!N111*'DFS Dashboard'!$T$7+IF('Total Projections (excl QB)'!I111>99.99,'DFS Dashboard'!$T$12,0)+IF('Total Projections (excl QB)'!M111>99.99,'DFS Dashboard'!$T$11,0),IF('DFS Dashboard'!$H$1="FanDuel",'Total Projections (excl QB)'!G111*'DFS Dashboard'!$U$10+'Total Projections (excl QB)'!I111*'DFS Dashboard'!$U$8+'Total Projections (excl QB)'!J111*'DFS Dashboard'!$U$9+'Total Projections (excl QB)'!M111*'DFS Dashboard'!$U$6+'Total Projections (excl QB)'!N111*'DFS Dashboard'!$U$7+IF('Total Projections (excl QB)'!I111>99.99,'DFS Dashboard'!$U$12,0)+IF('Total Projections (excl QB)'!M111>99.99,'DFS Dashboard'!$U$11,0),0)) -> 0
A112: =RANK(O112,$O:$O,0)+COUNTIF($O$4:O112,O112)-1 -> 109 | B112: Kansas City Chiefs | C112: Tight End | D112: ='Kansas City Chiefs'!$B$162 -> Travis Kelce | E112: ='Kansas City Chiefs'!$D$162 -> 0 | F112: ='Kansas City Chiefs'!$E$162 -> 0 | G112: ='Kansas City Chiefs'!$F$162 -> 0 | H112: ='Kansas City Chiefs'!$G$162 -> 0 | I112: ='Kansas City Chiefs'!$H$162 -> 0 | J112: ='Kansas City Chiefs'!$I$162 -> 0 | K112: ='Kansas City Chiefs'!$K$162 -> 0 | L112: ='Kansas City Chiefs'!$L$162 -> 0 | M112: ='Kansas City Chiefs'!$M$162 -> 0 | N112: ='Kansas City Chiefs'!$N$162 -> 0 | O112: =IF('DFS Dashboard'!$H$1="DraftKings",'Total Projections (excl QB)'!G112*'DFS Dashboard'!$T$10+'Total Projections (excl QB)'!I112*'DFS Dashboard'!$T$8+'Total Projections (excl QB)'!J112*'DFS Dashboard'!$T$9+'Total Projections (excl QB)'!M112*'DFS Dashboard'!$T$6+'Total Projections (excl QB)'!N112*'DFS Dashboard'!$T$7+IF('Total Projections (excl QB)'!I112>99.99,'DFS Dashboard'!$T$12,0)+IF('Total Projections (excl QB)'!M112>99.99,'DFS Dashboard'!$T$11,0),IF('DFS Dashboard'!$H$1="FanDuel",'Total Projections (excl QB)'!G112*'DFS Dashboard'!$U$10+'Total Projections (excl QB)'!I112*'DFS Dashboard'!$U$8+'Total Projections (excl QB)'!J112*'DFS Dashboard'!$U$9+'Total Projections (excl QB)'!M112*'DFS Dashboard'!$U$6+'Total Projections (excl QB)'!N112*'DFS Dashboard'!$U$7+IF('Total Projections (excl QB)'!I112>99.99,'DFS Dashboard'!$U$12,0)+IF('Total Projections (excl QB)'!M112>99.99,'DFS Dashboard'!$U$11,0),0)) -> 0
A113: =RANK(O113,$O:$O,0)+COUNTIF($O$4:O113,O113)-1 -> 110 | B113: Kansas City Chiefs | C113: Tight End | D113: ='Kansas City Chiefs'!$B$163 -> Noah Gray | E113: ='Kansas City Chiefs'!$D$163 -> 0 | F113: ='Kansas City Chiefs'!$E$163 -> 0 | G113: ='Kansas City Chiefs'!$F$163 -> 0 | H113: ='Kansas City Chiefs'!$G$163 -> 0 | I113: ='Kansas City Chiefs'!$H$163 -> 0 | J113: ='Kansas City Chiefs'!$I$163 -> 0 | K113: ='Kansas City Chiefs'!$K$163 -> 0 | L113: ='Kansas City Chiefs'!$L$163 -> 0 | M113: ='Kansas City Chiefs'!$M$163 -> 0 | N113: ='Kansas City Chiefs'!$N$163 -> 0 | O113: =IF('DFS Dashboard'!$H$1="DraftKings",'Total Projections (excl QB)'!G113*'DFS Dashboard'!$T$10+'Total Projections (excl QB)'!I113*'DFS Dashboard'!$T$8+'Total Projections (excl QB)'!J113*'DFS Dashboard'!$T$9+'Total Projections (excl QB)'!M113*'DFS Dashboard'!$T$6+'Total Projections (excl QB)'!N113*'DFS Dashboard'!$T$7+IF('Total Projections (excl QB)'!I113>99.99,'DFS Dashboard'!$T$12,0)+IF('Total Projections (excl QB)'!M113>99.99,'DFS Dashboard'!$T$11,0),IF('DFS Dashboard'!$H$1="FanDuel",'Total Projections (excl QB)'!G113*'DFS Dashboard'!$U$10+'Total Projections (excl QB)'!I113*'DFS Dashboard'!$U$8+'Total Projections (excl QB)'!J113*'DFS Dashboard'!$U$9+'Total Projections (excl QB)'!M113*'DFS Dashboard'!$U$6+'Total Projections (excl QB)'!N113*'DFS Dashboard'!$U$7+IF('Total Projections (excl QB)'!I113>99.99,'DFS Dashboard'!$U$12,0)+IF('Total Projections (excl QB)'!M113>99.99,'DFS Dashboard'!$U$11,0),0)) -> 0
A114: =RANK(O114,$O:$O,0)+COUNTIF($O$4:O114,O114)-1 -> 111 | B114: Kansas City Chiefs | C114: Tight End | D114: ='Kansas City Chiefs'!$B$164 -> Peyton Hendershot | E114: ='Kansas City Chiefs'!$D$164 -> 0 | F114: ='Kansas City Chiefs'!$E$164 -> 0 | G114: ='Kansas City Chiefs'!$F$164 -> 0 | H114: ='Kansas City Chiefs'!$G$164 -> 0 | I114: ='Kansas City Chiefs'!$H$164 -> 0 | J114: ='Kansas City Chiefs'!$I$164 -> 0 | K114: ='Kansas City Chiefs'!$K$164 -> 0 | L114: ='Kansas City Chiefs'!$L$164 -> 0 | M114: ='Kansas City Chiefs'!$M$164 -> 0 | N114: ='Kansas City Chiefs'!$N$164 -> 0 | O114: =IF('DFS Dashboard'!$H$1="DraftKings",'Total Projections (excl QB)'!G114*'DFS Dashboard'!$T$10+'Total Projections (excl QB)'!I114*'DFS Dashboard'!$T$8+'Total Projections (excl QB)'!J114*'DFS Dashboard'!$T$9+'Total Projections (excl QB)'!M114*'DFS Dashboard'!$T$6+'Total Projections (excl QB)'!N114*'DFS Dashboard'!$T$7+IF('Total Projections (excl QB)'!I114>99.99,'DFS Dashboard'!$T$12,0)+IF('Total Projections (excl QB)'!M114>99.99,'DFS Dashboard'!$T$11,0),IF('DFS Dashboard'!$H$1="FanDuel",'Total Projections (excl QB)'!G114*'DFS Dashboard'!$U$10+'Total Projections (excl QB)'!I114*'DFS Dashboard'!$U$8+'Total Projections (excl QB)'!J114*'DFS Dashboard'!$U$9+'Total Projections (excl QB)'!M114*'DFS Dashboard'!$U$6+'Total Projections (excl QB)'!N114*'DFS Dashboard'!$U$7+IF('Total Projections (excl QB)'!I114>99.99,'DFS Dashboard'!$U$12,0)+IF('Total Projections (excl QB)'!M114>99.99,'DFS Dashboard'!$U$11,0),0)) -> 0
A115: =RANK(O115,$O:$O,0)+COUNTIF($O$4:O115,O115)-1 -> 112 | B115: Kansas City Chiefs | C115: Tight End | D115: ='Kansas City Chiefs'!$B$165 -> Jared Wiley | E115: ='Kansas City Chiefs'!$D$165 -> 0 | F115: ='Kansas City Chiefs'!$E$165 -> 0 | G115: ='Kansas City Chiefs'!$F$165 -> 0 | H115: ='Kansas City Chiefs'!$G$165 -> 0 | I115: ='Kansas City Chiefs'!$H$165 -> 0 | J115: ='Kansas City Chiefs'!$I$165 -> 0 | K115: ='Kansas City Chiefs'!$K$165 -> 0 | L115: ='Kansas City Chiefs'!$L$165 -> 0 | M115: ='Kansas City Chiefs'!$M$165 -> 0 | N115: ='Kansas City Chiefs'!$N$165 -> 0 | O115: =IF('DFS Dashboard'!$H$1="DraftKings",'Total Projections (excl QB)'!G115*'DFS Dashboard'!$T$10+'Total Projections (excl QB)'!I115*'DFS Dashboard'!$T$8+'Total Projections (excl QB)'!J115*'DFS Dashboard'!$T$9+'Total Projections (excl QB)'!M115*'DFS Dashboard'!$T$6+'Total Projections (excl QB)'!N115*'DFS Dashboard'!$T$7+IF('Total Projections (excl QB)'!I115>99.99,'DFS Dashboard'!$T$12,0)+IF('Total Projections (excl QB)'!M115>99.99,'DFS Dashboard'!$T$11,0),IF('DFS Dashboard'!$H$1="FanDuel",'Total Projections (excl QB)'!G115*'DFS Dashboard'!$U$10+'Total Projections (excl QB)'!I115*'DFS Dashboard'!$U$8+'Total Projections (excl QB)'!J115*'DFS Dashboard'!$U$9+'Total Projections (excl QB)'!M115*'DFS Dashboard'!$U$6+'Total Projections (excl QB)'!N115*'DFS Dashboard'!$U$7+IF('Total Projections (excl QB)'!I115>99.99,'DFS Dashboard'!$U$12,0)+IF('Total Projections (excl QB)'!M115>99.99,'DFS Dashboard'!$U$11,0),0)) -> 0
A116: =RANK(O116,$O:$O,0)+COUNTIF($O$4:O116,O116)-1 -> 113 | B116: Los Angeles Chargers | C116: Running Back | D116: ='Los Angeles Chargers'!$B$142 -> J.K. Dobbins | E116: ='Los Angeles Chargers'!$D$142 -> 0 | F116: ='Los Angeles Chargers'!$E$142 -> 0 | G116: ='Los Angeles Chargers'!$F$142 -> 0 | H116: ='Los Angeles Chargers'!$G$142 -> 0 | I116: ='Los Angeles Chargers'!$H$142 -> 0 | J116: ='Los Angeles Chargers'!$I$142 -> 0 | K116: ='Los Angeles Chargers'!$K$142 -> 0 | L116: ='Los Angeles Chargers'!$L$142 -> 0 | M116: ='Los Angeles Chargers'!$M$142 -> 0 | N116: ='Los Angeles Chargers'!$N$142 -> 0 | O116: =IF('DFS Dashboard'!$H$1="DraftKings",'Total Projections (excl QB)'!G116*'DFS Dashboard'!$T$10+'Total Projections (excl QB)'!I116*'DFS Dashboard'!$T$8+'Total Projections (excl QB)'!J116*'DFS Dashboard'!$T$9+'Total Projections (excl QB)'!M116*'DFS Dashboard'!$T$6+'Total Projections (excl QB)'!N116*'DFS Dashboard'!$T$7+IF('Total Projections (excl QB)'!I116>99.99,'DFS Dashboard'!$T$12,0)+IF('Total Projections (excl QB)'!M116>99.99,'DFS Dashboard'!$T$11,0),IF('DFS Dashboard'!$H$1="FanDuel",'Total Projections (excl QB)'!G116*'DFS Dashboard'!$U$10+'Total Projections (excl QB)'!I116*'DFS Dashboard'!$U$8+'Total Projections (excl QB)'!J116*'DFS Dashboard'!$U$9+'Total Projections (excl QB)'!M116*'DFS Dashboard'!$U$6+'Total Projections (excl QB)'!N116*'DFS Dashboard'!$U$7+IF('Total Projections (excl QB)'!I116>99.99,'DFS Dashboard'!$U$12,0)+IF('Total Projections (excl QB)'!M116>99.99,'DFS Dashboard'!$U$11,0),0)) -> 0
A117: =RANK(O117,$O:$O,0)+COUNTIF($O$4:O117,O117)-1 -> 114 | B117: Los Angeles Chargers | C117: Running Back | D117: ='Los Angeles Chargers'!$B$143 -> Gus Edwards | E117: ='Los Angeles Chargers'!$D$143 -> 0 | F117: ='Los Angeles Chargers'!$E$143 -> 0 | G117: ='Los Angeles Chargers'!$F$143 -> 0 | H117: ='Los Angeles Chargers'!$G$143 -> 0 | I117: ='Los Angeles Chargers'!$H$143 -> 0 | J117: ='Los Angeles Chargers'!$I$143 -> 0 | K117: ='Los Angeles Chargers'!$K$143 -> 0 | L117: ='Los Angeles Chargers'!$L$143 -> 0 | M117: ='Los Angeles Chargers'!$M$143 -> 0 | N117: ='Los Angeles Chargers'!$N$143 -> 0 | O117: =IF('DFS Dashboard'!$H$1="DraftKings",'Total Projections (excl QB)'!G117*'DFS Dashboard'!$T$10+'Total Projections (excl QB)'!I117*'DFS Dashboard'!$T$8+'Total Projections (excl QB)'!J117*'DFS Dashboard'!$T$9+'Total Projections (excl QB)'!M117*'DFS Dashboard'!$T$6+'Total Projections (excl QB)'!N117*'DFS Dashboard'!$T$7+IF('Total Projections (excl QB)'!I117>99.99,'DFS Dashboard'!$T$12,0)+IF('Total Projections (excl QB)'!M117>99.99,'DFS Dashboard'!$T$11,0),IF('DFS Dashboard'!$H$1="FanDuel",'Total Projections (excl QB)'!G117*'DFS Dashboard'!$U$10+'Total Projections (excl QB)'!I117*'DFS Dashboard'!$U$8+'Total Projections (excl QB)'!J117*'DFS Dashboard'!$U$9+'Total Projections (excl QB)'!M117*'DFS Dashboard'!$U$6+'Total Projections (excl QB)'!N117*'DFS Dashboard'!$U$7+IF('Total Projections (excl QB)'!I117>99.99,'DFS Dashboard'!$U$12,0)+IF('Total Projections (excl QB)'!M117>99.99,'DFS Dashboard'!$U$11,0),0)) -> 0
A118: =RANK(O118,$O:$O,0)+COUNTIF($O$4:O118,O118)-1 -> 115 | B118: Los Angeles Chargers | C118: Running Back | D118: ='Los Angeles Chargers'!$B$144 -> Kimani Vidal | E118: ='Los Angeles Chargers'!$D$144 -> 0 | F118: ='Los Angeles Chargers'!$E$144 -> 0 | G118: ='Los Angeles Chargers'!$F$144 -> 0 | H118: ='Los Angeles Chargers'!$G$144 -> 0 | I118: ='Los Angeles Chargers'!$H$144 -> 0 | J118: ='Los Angeles Chargers'!$I$144 -> 0 | K118: ='Los Angeles Chargers'!$K$144 -> 0 | L118: ='Los Angeles Chargers'!$L$144 -> 0 | M118: ='Los Angeles Chargers'!$M$144 -> 0 | N118: ='Los Angeles Chargers'!$N$144 -> 0 | O118: =IF('DFS Dashboard'!$H$1="DraftKings",'Total Projections (excl QB)'!G118*'DFS Dashboard'!$T$10+'Total Projections (excl QB)'!I118*'DFS Dashboard'!$T$8+'Total Projections (excl QB)'!J118*'DFS Dashboard'!$T$9+'Total Projections (excl QB)'!M118*'DFS Dashboard'!$T$6+'Total Projections (excl QB)'!N118*'DFS Dashboard'!$T$7+IF('Total Projections (excl QB)'!I118>99.99,'DFS Dashboard'!$T$12,0)+IF('Total Projections (excl QB)'!M118>99.99,'DFS Dashboard'!$T$11,0),IF('DFS Dashboard'!$H$1="FanDuel",'Total Projections (excl QB)'!G118*'DFS Dashboard'!$U$10+'Total Projections (excl QB)'!I118*'DFS Dashboard'!$U$8+'Total Projections (excl QB)'!J118*'DFS Dashboard'!$U$9+'Total Projections (excl QB)'!M118*'DFS Dashboard'!$U$6+'Total Projections (excl QB)'!N118*'DFS Dashboard'!$U$7+IF('Total Projections (excl QB)'!I118>99.99,'DFS Dashboard'!$U$12,0)+IF('Total Projections (excl QB)'!M118>99.99,'DFS Dashboard'!$U$11,0),0)) -> 0
A119: =RANK(O119,$O:$O,0)+COUNTIF($O$4:O119,O119)-1 -> 116 | B119: Los Angeles Chargers | C119: Running Back | D119: ='Los Angeles Chargers'!$B$145 -> Hassan Haskins | E119: ='Los Angeles Chargers'!$D$145 -> 0 | F119: ='Los Angeles Chargers'!$E$145 -> 0 | G119: ='Los Angeles Chargers'!$F$145 -> 0 | H119: ='Los Angeles Chargers'!$G$145 -> 0 | I119: ='Los Angeles Chargers'!$H$145 -> 0 | J119: ='Los Angeles Chargers'!$I$145 -> 0 | K119: ='Los Angeles Chargers'!$K$145 -> 0 | L119: ='Los Angeles Chargers'!$L$145 -> 0 | M119: ='Los Angeles Chargers'!$M$145 -> 0 | N119: ='Los Angeles Chargers'!$N$145 -> 0 | O119: =IF('DFS Dashboard'!$H$1="DraftKings",'Total Projections (excl QB)'!G119*'DFS Dashboard'!$T$10+'Total Projections (excl QB)'!I119*'DFS Dashboard'!$T$8+'Total Projections (excl QB)'!J119*'DFS Dashboard'!$T$9+'Total Projections (excl QB)'!M119*'DFS Dashboard'!$T$6+'Total Projections (excl QB)'!N119*'DFS Dashboard'!$T$7+IF('Total Projections (excl QB)'!I119>99.99,'DFS Dashboard'!$T$12,0)+IF('Total Projections (excl QB)'!M119>99.99,'DFS Dashboard'!$T$11,0),IF('DFS Dashboard'!$H$1="FanDuel",'Total Projections (excl QB)'!G119*'DFS Dashboard'!$U$10+'Total Projections (excl QB)'!I119*'DFS Dashboard'!$U$8+'Total Projections (excl QB)'!J119*'DFS Dashboard'!$U$9+'Total Projections (excl QB)'!M119*'DFS Dashboard'!$U$6+'Total Projections (excl QB)'!N119*'DFS Dashboard'!$U$7+IF('Total Projections (excl QB)'!I119>99.99,'DFS Dashboard'!$U$12,0)+IF('Total Projections (excl QB)'!M119>99.99,'DFS Dashboard'!$U$11,0),0)) -> 0
A120: =RANK(O120,$O:$O,0)+COUNTIF($O$4:O120,O120)-1 -> 117 | B120: Los Angeles Chargers | C120: Wide Receiver | D120: ='Los Angeles Chargers'!$B$118 -> Ladd McConkey | E120: ='Los Angeles Chargers'!$D$118 -> 0 | F120: ='Los Angeles Chargers'!$E$118 -> 0 | G120: ='Los Angeles Chargers'!$F$118 -> 0 | H120: ='Los Angeles Chargers'!$G$118 -> 0 | I120: ='Los Angeles Chargers'!$H$118 -> 0 | J120: ='Los Angeles Chargers'!$I$118 -> 0 | K120: ='Los Angeles Chargers'!$K$118 -> 0 | L120: ='Los Angeles Chargers'!$L$118 -> 0 | M120: ='Los Angeles Chargers'!$M$118 -> 0 | N120: ='Los Angeles Chargers'!$N$118 -> 0 | O120: =IF('DFS Dashboard'!$H$1="DraftKings",'Total Projections (excl QB)'!G120*'DFS Dashboard'!$T$10+'Total Projections (excl QB)'!I120*'DFS Dashboard'!$T$8+'Total Projections (excl QB)'!J120*'DFS Dashboard'!$T$9+'Total Projections (excl QB)'!M120*'DFS Dashboard'!$T$6+'Total Projections (excl QB)'!N120*'DFS Dashboard'!$T$7+IF('Total Projections (excl QB)'!I120>99.99,'DFS Dashboard'!$T$12,0)+IF('Total Projections (excl QB)'!M120>99.99,'DFS Dashboard'!$T$11,0),IF('DFS Dashboard'!$H$1="FanDuel",'Total Projections (excl QB)'!G120*'DFS Dashboard'!$U$10+'Total Projections (excl QB)'!I120*'DFS Dashboard'!$U$8+'Total Projections (excl QB)'!J120*'DFS Dashboard'!$U$9+'Total Projections (excl QB)'!M120*'DFS Dashboard'!$U$6+'Total Projections (excl QB)'!N120*'DFS Dashboard'!$U$7+IF('Total Projections (excl QB)'!I120>99.99,'DFS Dashboard'!$U$12,0)+IF('Total Projections (excl QB)'!M120>99.99,'DFS Dashboard'!$U$11,0),0)) -> 0
A121: =RANK(O121,$O:$O,0)+COUNTIF($O$4:O121,O121)-1 -> 118 | B121: Los Angeles Chargers | C121: Wide Receiver | D121: ='Los Angeles Chargers'!$B$119 -> Josh Palmer | E121: ='Los Angeles Chargers'!$D$119 -> 0 | F121: ='Los Angeles Chargers'!$E$119 -> 0 | G121: ='Los Angeles Chargers'!$F$119 -> 0 | H121: ='Los Angeles Chargers'!$G$119 -> 0 | I121: ='Los Angeles Chargers'!$H$119 -> 0 | J121: ='Los Angeles Chargers'!$I$119 -> 0 | K121: ='Los Angeles Chargers'!$K$119 -> 0 | L121: ='Los Angeles Chargers'!$L$119 -> 0 | M121: ='Los Angeles Chargers'!$M$119 -> 0 | N121: ='Los Angeles Chargers'!$N$119 -> 0 | O121: =IF('DFS Dashboard'!$H$1="DraftKings",'Total Projections (excl QB)'!G121*'DFS Dashboard'!$T$10+'Total Projections (excl QB)'!I121*'DFS Dashboard'!$T$8+'Total Projections (excl QB)'!J121*'DFS Dashboard'!$T$9+'Total Projections (excl QB)'!M121*'DFS Dashboard'!$T$6+'Total Projections (excl QB)'!N121*'DFS Dashboard'!$T$7+IF('Total Projections (excl QB)'!I121>99.99,'DFS Dashboard'!$T$12,0)+IF('Total Projections (excl QB)'!M121>99.99,'DFS Dashboard'!$T$11,0),IF('DFS Dashboard'!$H$1="FanDuel",'Total Projections (excl QB)'!G121*'DFS Dashboard'!$U$10+'Total Projections (excl QB)'!I121*'DFS Dashboard'!$U$8+'Total Projections (excl QB)'!J121*'DFS Dashboard'!$U$9+'Total Projections (excl QB)'!M121*'DFS Dashboard'!$U$6+'Total Projections (excl QB)'!N121*'DFS Dashboard'!$U$7+IF('Total Projections (excl QB)'!I121>99.99,'DFS Dashboard'!$U$12,0)+IF('Total Projections (excl QB)'!M121>99.99,'DFS Dashboard'!$U$11,0),0)) -> 0
A122: =RANK(O122,$O:$O,0)+COUNTIF($O$4:O122,O122)-1 -> 119 | B122: Los Angeles Chargers | C122: Wide Receiver | D122: ='Los Angeles Chargers'!$B$120 -> Quentin Johnston | E122: ='Los Angeles Chargers'!$D$120 -> 0 | F122: ='Los Angeles Chargers'!$E$120 -> 0 | G122: ='Los Angeles Chargers'!$F$120 -> 0 | H122: ='Los Angeles Chargers'!$G$120 -> 0 | I122: ='Los Angeles Chargers'!$H$120 -> 0 | J122: ='Los Angeles Chargers'!$I$120 -> 0 | K122: ='Los Angeles Chargers'!$K$120 -> 0 | L122: ='Los Angeles Chargers'!$L$120 -> 0 | M122: ='Los Angeles Chargers'!$M$120 -> 0 | N122: ='Los Angeles Chargers'!$N$120 -> 0 | O122: =IF('DFS Dashboard'!$H$1="DraftKings",'Total Projections (excl QB)'!G122*'DFS Dashboard'!$T$10+'Total Projections (excl QB)'!I122*'DFS Dashboard'!$T$8+'Total Projections (excl QB)'!J122*'DFS Dashboard'!$T$9+'Total Projections (excl QB)'!M122*'DFS Dashboard'!$T$6+'Total Projections (excl QB)'!N122*'DFS Dashboard'!$T$7+IF('Total Projections (excl QB)'!I122>99.99,'DFS Dashboard'!$T$12,0)+IF('Total Projections (excl QB)'!M122>99.99,'DFS Dashboard'!$T$11,0),IF('DFS Dashboard'!$H$1="FanDuel",'Total Projections (excl QB)'!G122*'DFS Dashboard'!$U$10+'Total Projections (excl QB)'!I122*'DFS Dashboard'!$U$8+'Total Projections (excl QB)'!J122*'DFS Dashboard'!$U$9+'Total Projections (excl QB)'!M122*'DFS Dashboard'!$U$6+'Total Projections (excl QB)'!N122*'DFS Dashboard'!$U$7+IF('Total Projections (excl QB)'!I122>99.99,'DFS Dashboard'!$U$12,0)+IF('Total Projections (excl QB)'!M122>99.99,'DFS Dashboard'!$U$11,0),0)) -> 0
A123: =RANK(O123,$O:$O,0)+COUNTIF($O$4:O123,O123)-1 -> 120 | B123: Los Angeles Chargers | C123: Wide Receiver | D123: ='Los Angeles Chargers'!$B$121 -> Derius Davis | E123: ='Los Angeles Chargers'!$D$121 -> 0 | F123: ='Los Angeles Chargers'!$E$121 -> 0 | G123: ='Los Angeles Chargers'!$F$121 -> 0 | H123: ='Los Angeles Chargers'!$G$121 -> 0 | I123: ='Los Angeles Chargers'!$H$121 -> 0 | J123: ='Los Angeles Chargers'!$I$121 -> 0 | K123: ='Los Angeles Chargers'!$K$121 -> 0 | L123: ='Los Angeles Chargers'!$L$121 -> 0 | M123: ='Los Angeles Chargers'!$M$121 -> 0 | N123: ='Los Angeles Chargers'!$N$121 -> 0 | O123: =IF('DFS Dashboard'!$H$1="DraftKings",'Total Projections (excl QB)'!G123*'DFS Dashboard'!$T$10+'Total Projections (excl QB)'!I123*'DFS Dashboard'!$T$8+'Total Projections (excl QB)'!J123*'DFS Dashboard'!$T$9+'Total Projections (excl QB)'!M123*'DFS Dashboard'!$T$6+'Total Projections (excl QB)'!N123*'DFS Dashboard'!$T$7+IF('Total Projections (excl QB)'!I123>99.99,'DFS Dashboard'!$T$12,0)+IF('Total Projections (excl QB)'!M123>99.99,'DFS Dashboard'!$T$11,0),IF('DFS Dashboard'!$H$1="FanDuel",'Total Projections (excl QB)'!G123*'DFS Dashboard'!$U$10+'Total Projections (excl QB)'!I123*'DFS Dashboard'!$U$8+'Total Projections (excl QB)'!J123*'DFS Dashboard'!$U$9+'Total Projections (excl QB)'!M123*'DFS Dashboard'!$U$6+'Total Projections (excl QB)'!N123*'DFS Dashboard'!$U$7+IF('Total Projections (excl QB)'!I123>99.99,'DFS Dashboard'!$U$12,0)+IF('Total Projections (excl QB)'!M123>99.99,'DFS Dashboard'!$U$11,0),0)) -> 0
A124: =RANK(O124,$O:$O,0)+COUNTIF($O$4:O124,O124)-1 -> 121 | B124: Los Angeles Chargers | C124: Wide Receiver | D124: ='Los Angeles Chargers'!$B$122 -> Simi Fehoko | E124: ='Los Angeles Chargers'!$D$122 -> 0 | F124: ='Los Angeles Chargers'!$E$122 -> 0 | G124: ='Los Angeles Chargers'!$F$122 -> 0 | H124: ='Los Angeles Chargers'!$G$122 -> 0 | I124: ='Los Angeles Chargers'!$H$122 -> 0 | J124: ='Los Angeles Chargers'!$I$122 -> 0 | K124: ='Los Angeles Chargers'!$K$122 -> 0 | L124: ='Los Angeles Chargers'!$L$122 -> 0 | M124: ='Los Angeles Chargers'!$M$122 -> 0 | N124: ='Los Angeles Chargers'!$N$122 -> 0 | O124: =IF('DFS Dashboard'!$H$1="DraftKings",'Total Projections (excl QB)'!G124*'DFS Dashboard'!$T$10+'Total Projections (excl QB)'!I124*'DFS Dashboard'!$T$8+'Total Projections (excl QB)'!J124*'DFS Dashboard'!$T$9+'Total Projections (excl QB)'!M124*'DFS Dashboard'!$T$6+'Total Projections (excl QB)'!N124*'DFS Dashboard'!$T$7+IF('Total Projections (excl QB)'!I124>99.99,'DFS Dashboard'!$T$12,0)+IF('Total Projections (excl QB)'!M124>99.99,'DFS Dashboard'!$T$11,0),IF('DFS Dashboard'!$H$1="FanDuel",'Total Projections (excl QB)'!G124*'DFS Dashboard'!$U$10+'Total Projections (excl QB)'!I124*'DFS Dashboard'!$U$8+'Total Projections (excl QB)'!J124*'DFS Dashboard'!$U$9+'Total Projections (excl QB)'!M124*'DFS Dashboard'!$U$6+'Total Projections (excl QB)'!N124*'DFS Dashboard'!$U$7+IF('Total Projections (excl QB)'!I124>99.99,'DFS Dashboard'!$U$12,0)+IF('Total Projections (excl QB)'!M124>99.99,'DFS Dashboard'!$U$11,0),0)) -> 0
A125: =RANK(O125,$O:$O,0)+COUNTIF($O$4:O125,O125)-1 -> 122 | B125: Los Angeles Chargers | C125: Wide Receiver | D125: ='Los Angeles Chargers'!$B$123 -> Jalen Reagor | E125: ='Los Angeles Chargers'!$D$123 -> 0 | F125: ='Los Angeles Chargers'!$E$123 -> 0 | G125: ='Los Angeles Chargers'!$F$123 -> 0 | H125: ='Los Angeles Chargers'!$G$123 -> 0 | I125: ='Los Angeles Chargers'!$H$123 -> 0 | J125: ='Los Angeles Chargers'!$I$123 -> 0 | K125: ='Los Angeles Chargers'!$K$123 -> 0 | L125: ='Los Angeles Chargers'!$L$123 -> 0 | M125: ='Los Angeles Chargers'!$M$123 -> 0 | N125: ='Los Angeles Chargers'!$N$123 -> 0 | O125: =IF('DFS Dashboard'!$H$1="DraftKings",'Total Projections (excl QB)'!G125*'DFS Dashboard'!$T$10+'Total Projections (excl QB)'!I125*'DFS Dashboard'!$T$8+'Total Projections (excl QB)'!J125*'DFS Dashboard'!$T$9+'Total Projections (excl QB)'!M125*'DFS Dashboard'!$T$6+'Total Projections (excl QB)'!N125*'DFS Dashboard'!$T$7+IF('Total Projections (excl QB)'!I125>99.99,'DFS Dashboard'!$T$12,0)+IF('Total Projections (excl QB)'!M125>99.99,'DFS Dashboard'!$T$11,0),IF('DFS Dashboard'!$H$1="FanDuel",'Total Projections (excl QB)'!G125*'DFS Dashboard'!$U$10+'Total Projections (excl QB)'!I125*'DFS Dashboard'!$U$8+'Total Projections (excl QB)'!J125*'DFS Dashboard'!$U$9+'Total Projections (excl QB)'!M125*'DFS Dashboard'!$U$6+'Total Projections (excl QB)'!N125*'DFS Dashboard'!$U$7+IF('Total Projections (excl QB)'!I125>99.99,'DFS Dashboard'!$U$12,0)+IF('Total Projections (excl QB)'!M125>99.99,'DFS Dashboard'!$U$11,0),0)) -> 0
A126: =RANK(O126,$O:$O,0)+COUNTIF($O$4:O126,O126)-1 -> 123 | B126: Los Angeles Chargers | C126: Wide Receiver | D126: ='Los Angeles Chargers'!$B$124 -> DJ Chark | E126: ='Los Angeles Chargers'!$D$124 -> 0 | F126: ='Los Angeles Chargers'!$E$124 -> 0 | G126: ='Los Angeles Chargers'!$F$124 -> 0 | H126: ='Los Angeles Chargers'!$G$124 -> 0 | I126: ='Los Angeles Chargers'!$H$124 -> 0 | J126: ='Los Angeles Chargers'!$I$124 -> 0 | K126: ='Los Angeles Chargers'!$K$124 -> 0 | L126: ='Los Angeles Chargers'!$L$124 -> 0 | M126: ='Los Angeles Chargers'!$M$124 -> 0 | N126: ='Los Angeles Chargers'!$N$124 -> 0 | O126: =IF('DFS Dashboard'!$H$1="DraftKings",'Total Projections (excl QB)'!G126*'DFS Dashboard'!$T$10+'Total Projections (excl QB)'!I126*'DFS Dashboard'!$T$8+'Total Projections (excl QB)'!J126*'DFS Dashboard'!$T$9+'Total Projections (excl QB)'!M126*'DFS Dashboard'!$T$6+'Total Projections (excl QB)'!N126*'DFS Dashboard'!$T$7+IF('Total Projections (excl QB)'!I126>99.99,'DFS Dashboard'!$T$12,0)+IF('Total Projections (excl QB)'!M126>99.99,'DFS Dashboard'!$T$11,0),IF('DFS Dashboard'!$H$1="FanDuel",'Total Projections (excl QB)'!G126*'DFS Dashboard'!$U$10+'Total Projections (excl QB)'!I126*'DFS Dashboard'!$U$8+'Total Projections (excl QB)'!J126*'DFS Dashboard'!$U$9+'Total Projections (excl QB)'!M126*'DFS Dashboard'!$U$6+'Total Projections (excl QB)'!N126*'DFS Dashboard'!$U$7+IF('Total Projections (excl QB)'!I126>99.99,'DFS Dashboard'!$U$12,0)+IF('Total Projections (excl QB)'!M126>99.99,'DFS Dashboard'!$U$11,0),0)) -> 0
A127: =RANK(O127,$O:$O,0)+COUNTIF($O$4:O127,O127)-1 -> 124 | B127: Los Angeles Chargers | C127: Wide Receiver | D127: ='Los Angeles Chargers'!$B$125 -> 0 | E127: ='Los Angeles Chargers'!$D$125 -> 0 | F127: ='Los Angeles Chargers'!$E$125 -> 0 | G127: ='Los Angeles Chargers'!$F$125 -> 0 | H127: ='Los Angeles Chargers'!$G$125 -> 0 | I127: ='Los Angeles Chargers'!$H$125 -> 0 | J127: ='Los Angeles Chargers'!$I$125 -> 0 | K127: ='Los Angeles Chargers'!$K$125 -> 0 | L127: ='Los Angeles Chargers'!$L$125 -> 0 | M127: ='Los Angeles Chargers'!$M$125 -> 0 | N127: ='Los Angeles Chargers'!$N$125 -> 0 | O127: =IF('DFS Dashboard'!$H$1="DraftKings",'Total Projections (excl QB)'!G127*'DFS Dashboard'!$T$10+'Total Projections (excl QB)'!I127*'DFS Dashboard'!$T$8+'Total Projections (excl QB)'!J127*'DFS Dashboard'!$T$9+'Total Projections (excl QB)'!M127*'DFS Dashboard'!$T$6+'Total Projections (excl QB)'!N127*'DFS Dashboard'!$T$7+IF('Total Projections (excl QB)'!I127>99.99,'DFS Dashboard'!$T$12,0)+IF('Total Projections (excl QB)'!M127>99.99,'DFS Dashboard'!$T$11,0),IF('DFS Dashboard'!$H$1="FanDuel",'Total Projections (excl QB)'!G127*'DFS Dashboard'!$U$10+'Total Projections (excl QB)'!I127*'DFS Dashboard'!$U$8+'Total Projections (excl QB)'!J127*'DFS Dashboard'!$U$9+'Total Projections (excl QB)'!M127*'DFS Dashboard'!$U$6+'Total Projections (excl QB)'!N127*'DFS Dashboard'!$U$7+IF('Total Projections (excl QB)'!I127>99.99,'DFS Dashboard'!$U$12,0)+IF('Total Projections (excl QB)'!M127>99.99,'DFS Dashboard'!$U$11,0),0)) -> 0
A128: =RANK(O128,$O:$O,0)+COUNTIF($O$4:O128,O128)-1 -> 125 | B128: Los Angeles Chargers | C128: Tight End | D128: ='Los Angeles Chargers'!$B$162 -> Will Dissly | E128: ='Los Angeles Chargers'!$D$162 -> 0 | F128: ='Los Angeles Chargers'!$E$162 -> 0 | G128: ='Los Angeles Chargers'!$F$162 -> 0 | H128: ='Los Angeles Chargers'!$G$162 -> 0 | I128: ='Los Angeles Chargers'!$H$162 -> 0 | J128: ='Los Angeles Chargers'!$I$162 -> 0 | K128: ='Los Angeles Chargers'!$K$162 -> 0 | L128: ='Los Angeles Chargers'!$L$162 -> 0 | M128: ='Los Angeles Chargers'!$M$162 -> 0 | N128: ='Los Angeles Chargers'!$N$162 -> 0 | O128: =IF('DFS Dashboard'!$H$1="DraftKings",'Total Projections (excl QB)'!G128*'DFS Dashboard'!$T$10+'Total Projections (excl QB)'!I128*'DFS Dashboard'!$T$8+'Total Projections (excl QB)'!J128*'DFS Dashboard'!$T$9+'Total Projections (excl QB)'!M128*'DFS Dashboard'!$T$6+'Total Projections (excl QB)'!N128*'DFS Dashboard'!$T$7+IF('Total Projections (excl QB)'!I128>99.99,'DFS Dashboard'!$T$12,0)+IF('Total Projections (excl QB)'!M128>99.99,'DFS Dashboard'!$T$11,0),IF('DFS Dashboard'!$H$1="FanDuel",'Total Projections (excl QB)'!G128*'DFS Dashboard'!$U$10+'Total Projections (excl QB)'!I128*'DFS Dashboard'!$U$8+'Total Projections (excl QB)'!J128*'DFS Dashboard'!$U$9+'Total Projections (excl QB)'!M128*'DFS Dashboard'!$U$6+'Total Projections (excl QB)'!N128*'DFS Dashboard'!$U$7+IF('Total Projections (excl QB)'!I128>99.99,'DFS Dashboard'!$U$12,0)+IF('Total Projections (excl QB)'!M128>99.99,'DFS Dashboard'!$U$11,0),0)) -> 0
A129: =RANK(O129,$O:$O,0)+COUNTIF($O$4:O129,O129)-1 -> 126 | B129: Los Angeles Chargers | C129: Tight End | D129: ='Los Angeles Chargers'!$B$163 -> Stone Smartt | E129: ='Los Angeles Chargers'!$D$163 -> 0 | F129: ='Los Angeles Chargers'!$E$163 -> 0 | G129: ='Los Angeles Chargers'!$F$163 -> 0 | H129: ='Los Angeles Chargers'!$G$163 -> 0 | I129: ='Los Angeles Chargers'!$H$163 -> 0 | J129: ='Los Angeles Chargers'!$I$163 -> 0 | K129: ='Los Angeles Chargers'!$K$163 -> 0 | L129: ='Los Angeles Chargers'!$L$163 -> 0 | M129: ='Los Angeles Chargers'!$M$163 -> 0 | N129: ='Los Angeles Chargers'!$N$163 -> 0 | O129: =IF('DFS Dashboard'!$H$1="DraftKings",'Total Projections (excl QB)'!G129*'DFS Dashboard'!$T$10+'Total Projections (excl QB)'!I129*'DFS Dashboard'!$T$8+'Total Projections (excl QB)'!J129*'DFS Dashboard'!$T$9+'Total Projections (excl QB)'!M129*'DFS Dashboard'!$T$6+'Total Projections (excl QB)'!N129*'DFS Dashboard'!$T$7+IF('Total Projections (excl QB)'!I129>99.99,'DFS Dashboard'!$T$12,0)+IF('Total Projections (excl QB)'!M129>99.99,'DFS Dashboard'!$T$11,0),IF('DFS Dashboard'!$H$1="FanDuel",'Total Projections (excl QB)'!G129*'DFS Dashboard'!$U$10+'Total Projections (excl QB)'!I129*'DFS Dashboard'!$U$8+'Total Projections (excl QB)'!J129*'DFS Dashboard'!$U$9+'Total Projections (excl QB)'!M129*'DFS Dashboard'!$U$6+'Total Projections (excl QB)'!N129*'DFS Dashboard'!$U$7+IF('Total Projections (excl QB)'!I129>99.99,'DFS Dashboard'!$U$12,0)+IF('Total Projections (excl QB)'!M129>99.99,'DFS Dashboard'!$U$11,0),0)) -> 0
A130: =RANK(O130,$O:$O,0)+COUNTIF($O$4:O130,O130)-1 -> 127 | B130: Los Angeles Chargers | C130: Tight End | D130: ='Los Angeles Chargers'!$B$164 -> Hayden Hurst | E130: ='Los Angeles Chargers'!$D$164 -> 0 | F130: ='Los Angeles Chargers'!$E$164 -> 0 | G130: ='Los Angeles Chargers'!$F$164 -> 0 | H130: ='Los Angeles Chargers'!$G$164 -> 0 | I130: ='Los Angeles Chargers'!$H$164 -> 0 | J130: ='Los Angeles Chargers'!$I$164 -> 0 | K130: ='Los Angeles Chargers'!$K$164 -> 0 | L130: ='Los Angeles Chargers'!$L$164 -> 0 | M130: ='Los Angeles Chargers'!$M$164 -> 0 | N130: ='Los Angeles Chargers'!$N$164 -> 0 | O130: =IF('DFS Dashboard'!$H$1="DraftKings",'Total Projections (excl QB)'!G130*'DFS Dashboard'!$T$10+'Total Projections (excl QB)'!I130*'DFS Dashboard'!$T$8+'Total Projections (excl QB)'!J130*'DFS Dashboard'!$T$9+'Total Projections (excl QB)'!M130*'DFS Dashboard'!$T$6+'Total Projections (excl QB)'!N130*'DFS Dashboard'!$T$7+IF('Total Projections (excl QB)'!I130>99.99,'DFS Dashboard'!$T$12,0)+IF('Total Projections (excl QB)'!M130>99.99,'DFS Dashboard'!$T$11,0),IF('DFS Dashboard'!$H$1="FanDuel",'Total Projections (excl QB)'!G130*'DFS Dashboard'!$U$10+'Total Projections (excl QB)'!I130*'DFS Dashboard'!$U$8+'Total Projections (excl QB)'!J130*'DFS Dashboard'!$U$9+'Total Projections (excl QB)'!M130*'DFS Dashboard'!$U$6+'Total Projections (excl QB)'!N130*'DFS Dashboard'!$U$7+IF('Total Projections (excl QB)'!I130>99.99,'DFS Dashboard'!$U$12,0)+IF('Total Projections (excl QB)'!M130>99.99,'DFS Dashboard'!$U$11,0),0)) -> 0
A131: =RANK(O131,$O:$O,0)+COUNTIF($O$4:O131,O131)-1 -> 128 | B131: Los Angeles Chargers | C131: Tight End | D131: ='Los Angeles Chargers'!$B$165 -> Tucker Fisk | E131: ='Los Angeles Chargers'!$D$165 -> 0 | F131: ='Los Angeles Chargers'!$E$165 -> 0 | G131: ='Los Angeles Chargers'!$F$165 -> 0 | H131: ='Los Angeles Chargers'!$G$165 -> 0 | I131: ='Los Angeles Chargers'!$H$165 -> 0 | J131: ='Los Angeles Chargers'!$I$165 -> 0 | K131: ='Los Angeles Chargers'!$K$165 -> 0 | L131: ='Los Angeles Chargers'!$L$165 -> 0 | M131: ='Los Angeles Chargers'!$M$165 -> 0 | N131: ='Los Angeles Chargers'!$N$165 -> 0 | O131: =IF('DFS Dashboard'!$H$1="DraftKings",'Total Projections (excl QB)'!G131*'DFS Dashboard'!$T$10+'Total Projections (excl QB)'!I131*'DFS Dashboard'!$T$8+'Total Projections (excl QB)'!J131*'DFS Dashboard'!$T$9+'Total Projections (excl QB)'!M131*'DFS Dashboard'!$T$6+'Total Projections (excl QB)'!N131*'DFS Dashboard'!$T$7+IF('Total Projections (excl QB)'!I131>99.99,'DFS Dashboard'!$T$12,0)+IF('Total Projections (excl QB)'!M131>99.99,'DFS Dashboard'!$T$11,0),IF('DFS Dashboard'!$H$1="FanDuel",'Total Projections (excl QB)'!G131*'DFS Dashboard'!$U$10+'Total Projections (excl QB)'!I131*'DFS Dashboard'!$U$8+'Total Projections (excl QB)'!J131*'DFS Dashboard'!$U$9+'Total Projections (excl QB)'!M131*'DFS Dashboard'!$U$6+'Total Projections (excl QB)'!N131*'DFS Dashboard'!$U$7+IF('Total Projections (excl QB)'!I131>99.99,'DFS Dashboard'!$U$12,0)+IF('Total Projections (excl QB)'!M131>99.99,'DFS Dashboard'!$U$11,0),0)) -> 0
A132: =RANK(O132,$O:$O,0)+COUNTIF($O$4:O132,O132)-1 -> 129 | B132: Los Angeles Rams | C132: Running Back | D132: ='Los Angeles Rams'!$B$142 -> Kyren Williams | E132: ='Los Angeles Rams'!$D$142 -> 0 | F132: ='Los Angeles Rams'!$E$142 -> 0 | G132: ='Los Angeles Rams'!$F$142 -> 0 | H132: ='Los Angeles Rams'!$G$142 -> 0 | I132: ='Los Angeles Rams'!$H$142 -> 0 | J132: ='Los Angeles Rams'!$I$142 -> 0 | K132: ='Los Angeles Rams'!$K$142 -> 0 | L132: ='Los Angeles Rams'!$L$142 -> 0 | M132: ='Los Angeles Rams'!$M$142 -> 0 | N132: ='Los Angeles Rams'!$N$142 -> 0 | O132: =IF('DFS Dashboard'!$H$1="DraftKings",'Total Projections (excl QB)'!G132*'DFS Dashboard'!$T$10+'Total Projections (excl QB)'!I132*'DFS Dashboard'!$T$8+'Total Projections (excl QB)'!J132*'DFS Dashboard'!$T$9+'Total Projections (excl QB)'!M132*'DFS Dashboard'!$T$6+'Total Projections (excl QB)'!N132*'DFS Dashboard'!$T$7+IF('Total Projections (excl QB)'!I132>99.99,'DFS Dashboard'!$T$12,0)+IF('Total Projections (excl QB)'!M132>99.99,'DFS Dashboard'!$T$11,0),IF('DFS Dashboard'!$H$1="FanDuel",'Total Projections (excl QB)'!G132*'DFS Dashboard'!$U$10+'Total Projections (excl QB)'!I132*'DFS Dashboard'!$U$8+'Total Projections (excl QB)'!J132*'DFS Dashboard'!$U$9+'Total Projections (excl QB)'!M132*'DFS Dashboard'!$U$6+'Total Projections (excl QB)'!N132*'DFS Dashboard'!$U$7+IF('Total Projections (excl QB)'!I132>99.99,'DFS Dashboard'!$U$12,0)+IF('Total Projections (excl QB)'!M132>99.99,'DFS Dashboard'!$U$11,0),0)) -> 0
A133: =RANK(O133,$O:$O,0)+COUNTIF($O$4:O133,O133)-1 -> 130 | B133: Los Angeles Rams | C133: Running Back | D133: ='Los Angeles Rams'!$B$143 -> Blake Corum | E133: ='Los Angeles Rams'!$D$143 -> 0 | F133: ='Los Angeles Rams'!$E$143 -> 0 | G133: ='Los Angeles Rams'!$F$143 -> 0 | H133: ='Los Angeles Rams'!$G$143 -> 0 | I133: ='Los Angeles Rams'!$H$143 -> 0 | J133: ='Los Angeles Rams'!$I$143 -> 0 | K133: ='Los Angeles Rams'!$K$143 -> 0 | L133: ='Los Angeles Rams'!$L$143 -> 0 | M133: ='Los Angeles Rams'!$M$143 -> 0 | N133: ='Los Angeles Rams'!$N$143 -> 0 | O133: =IF('DFS Dashboard'!$H$1="DraftKings",'Total Projections (excl QB)'!G133*'DFS Dashboard'!$T$10+'Total Projections (excl QB)'!I133*'DFS Dashboard'!$T$8+'Total Projections (excl QB)'!J133*'DFS Dashboard'!$T$9+'Total Projections (excl QB)'!M133*'DFS Dashboard'!$T$6+'Total Projections (excl QB)'!N133*'DFS Dashboard'!$T$7+IF('Total Projections (excl QB)'!I133>99.99,'DFS Dashboard'!$T$12,0)+IF('Total Projections (excl QB)'!M133>99.99,'DFS Dashboard'!$T$11,0),IF('DFS Dashboard'!$H$1="FanDuel",'Total Projections (excl QB)'!G133*'DFS Dashboard'!$U$10+'Total Projections (excl QB)'!I133*'DFS Dashboard'!$U$8+'Total Projections (excl QB)'!J133*'DFS Dashboard'!$U$9+'Total Projections (excl QB)'!M133*'DFS Dashboard'!$U$6+'Total Projections (excl QB)'!N133*'DFS Dashboard'!$U$7+IF('Total Projections (excl QB)'!I133>99.99,'DFS Dashboard'!$U$12,0)+IF('Total Projections (excl QB)'!M133>99.99,'DFS Dashboard'!$U$11,0),0)) -> 0
A134: =RANK(O134,$O:$O,0)+COUNTIF($O$4:O134,O134)-1 -> 131 | B134: Los Angeles Rams | C134: Running Back | D134: ='Los Angeles Rams'!$B$144 -> Ronnie Rivers | E134: ='Los Angeles Rams'!$D$144 -> 0 | F134: ='Los Angeles Rams'!$E$144 -> 0 | G134: ='Los Angeles Rams'!$F$144 -> 0 | H134: ='Los Angeles Rams'!$G$144 -> 0 | I134: ='Los Angeles Rams'!$H$144 -> 0 | J134: ='Los Angeles Rams'!$I$144 -> 0 | K134: ='Los Angeles Rams'!$K$144 -> 0 | L134: ='Los Angeles Rams'!$L$144 -> 0 | M134: ='Los Angeles Rams'!$M$144 -> 0 | N134: ='Los Angeles Rams'!$N$144 -> 0 | O134: =IF('DFS Dashboard'!$H$1="DraftKings",'Total Projections (excl QB)'!G134*'DFS Dashboard'!$T$10+'Total Projections (excl QB)'!I134*'DFS Dashboard'!$T$8+'Total Projections (excl QB)'!J134*'DFS Dashboard'!$T$9+'Total Projections (excl QB)'!M134*'DFS Dashboard'!$T$6+'Total Projections (excl QB)'!N134*'DFS Dashboard'!$T$7+IF('Total Projections (excl QB)'!I134>99.99,'DFS Dashboard'!$T$12,0)+IF('Total Projections (excl QB)'!M134>99.99,'DFS Dashboard'!$T$11,0),IF('DFS Dashboard'!$H$1="FanDuel",'Total Projections (excl QB)'!G134*'DFS Dashboard'!$U$10+'Total Projections (excl QB)'!I134*'DFS Dashboard'!$U$8+'Total Projections (excl QB)'!J134*'DFS Dashboard'!$U$9+'Total Projections (excl QB)'!M134*'DFS Dashboard'!$U$6+'Total Projections (excl QB)'!N134*'DFS Dashboard'!$U$7+IF('Total Projections (excl QB)'!I134>99.99,'DFS Dashboard'!$U$12,0)+IF('Total Projections (excl QB)'!M134>99.99,'DFS Dashboard'!$U$11,0),0)) -> 0
A135: =RANK(O135,$O:$O,0)+COUNTIF($O$4:O135,O135)-1 -> 132 | B135: Los Angeles Rams | C135: Running Back | D135: ='Los Angeles Rams'!$B$145 -> 0 | E135: ='Los Angeles Rams'!$D$145 -> 0 | F135: ='Los Angeles Rams'!$E$145 -> 0 | G135: ='Los Angeles Rams'!$F$145 -> 0 | H135: ='Los Angeles Rams'!$G$145 -> 0 | I135: ='Los Angeles Rams'!$H$145 -> 0 | J135: ='Los Angeles Rams'!$I$145 -> 0 | K135: ='Los Angeles Rams'!$K$145 -> 0 | L135: ='Los Angeles Rams'!$L$145 -> 0 | M135: ='Los Angeles Rams'!$M$145 -> 0 | N135: ='Los Angeles Rams'!$N$145 -> 0 | O135: =IF('DFS Dashboard'!$H$1="DraftKings",'Total Projections (excl QB)'!G135*'DFS Dashboard'!$T$10+'Total Projections (excl QB)'!I135*'DFS Dashboard'!$T$8+'Total Projections (excl QB)'!J135*'DFS Dashboard'!$T$9+'Total Projections (excl QB)'!M135*'DFS Dashboard'!$T$6+'Total Projections (excl QB)'!N135*'DFS Dashboard'!$T$7+IF('Total Projections (excl QB)'!I135>99.99,'DFS Dashboard'!$T$12,0)+IF('Total Projections (excl QB)'!M135>99.99,'DFS Dashboard'!$T$11,0),IF('DFS Dashboard'!$H$1="FanDuel",'Total Projections (excl QB)'!G135*'DFS Dashboard'!$U$10+'Total Projections (excl QB)'!I135*'DFS Dashboard'!$U$8+'Total Projections (excl QB)'!J135*'DFS Dashboard'!$U$9+'Total Projections (excl QB)'!M135*'DFS Dashboard'!$U$6+'Total Projections (excl QB)'!N135*'DFS Dashboard'!$U$7+IF('Total Projections (excl QB)'!I135>99.99,'DFS Dashboard'!$U$12,0)+IF('Total Projections (excl QB)'!M135>99.99,'DFS Dashboard'!$U$11,0),0)) -> 0
A136: =RANK(O136,$O:$O,0)+COUNTIF($O$4:O136,O136)-1 -> 133 | B136: Los Angeles Rams | C136: Wide Receiver | D136: ='Los Angeles Rams'!$B$118 -> Puka Nacua | E136: ='Los Angeles Rams'!$D$118 -> 0 | F136: ='Los Angeles Rams'!$E$118 -> 0 | G136: ='Los Angeles Rams'!$F$118 -> 0 | H136: ='Los Angeles Rams'!$G$118 -> 0 | I136: ='Los Angeles Rams'!$H$118 -> 0 | J136: ='Los Angeles Rams'!$I$118 -> 0 | K136: ='Los Angeles Rams'!$K$118 -> 0 | L136: ='Los Angeles Rams'!$L$118 -> 0 | M136: ='Los Angeles Rams'!$M$118 -> 0 | N136: ='Los Angeles Rams'!$N$118 -> 0 | O136: =IF('DFS Dashboard'!$H$1="DraftKings",'Total Projections (excl QB)'!G136*'DFS Dashboard'!$T$10+'Total Projections (excl QB)'!I136*'DFS Dashboard'!$T$8+'Total Projections (excl QB)'!J136*'DFS Dashboard'!$T$9+'Total Projections (excl QB)'!M136*'DFS Dashboard'!$T$6+'Total Projections (excl QB)'!N136*'DFS Dashboard'!$T$7+IF('Total Projections (excl QB)'!I136>99.99,'DFS Dashboard'!$T$12,0)+IF('Total Projections (excl QB)'!M136>99.99,'DFS Dashboard'!$T$11,0),IF('DFS Dashboard'!$H$1="FanDuel",'Total Projections (excl QB)'!G136*'DFS Dashboard'!$U$10+'Total Projections (excl QB)'!I136*'DFS Dashboard'!$U$8+'Total Projections (excl QB)'!J136*'DFS Dashboard'!$U$9+'Total Projections (excl QB)'!M136*'DFS Dashboard'!$U$6+'Total Projections (excl QB)'!N136*'DFS Dashboard'!$U$7+IF('Total Projections (excl QB)'!I136>99.99,'DFS Dashboard'!$U$12,0)+IF('Total Projections (excl QB)'!M136>99.99,'DFS Dashboard'!$U$11,0),0)) -> 0
A137: =RANK(O137,$O:$O,0)+COUNTIF($O$4:O137,O137)-1 -> 134 | B137: Los Angeles Rams | C137: Wide Receiver | D137: ='Los Angeles Rams'!$B$119 -> Cooper Kupp | E137: ='Los Angeles Rams'!$D$119 -> 0 | F137: ='Los Angeles Rams'!$E$119 -> 0 | G137: ='Los Angeles Rams'!$F$119 -> 0 | H137: ='Los Angeles Rams'!$G$119 -> 0 | I137: ='Los Angeles Rams'!$H$119 -> 0 | J137: ='Los Angeles Rams'!$I$119 -> 0 | K137: ='Los Angeles Rams'!$K$119 -> 0 | L137: ='Los Angeles Rams'!$L$119 -> 0 | M137: ='Los Angeles Rams'!$M$119 -> 0 | N137: ='Los Angeles Rams'!$N$119 -> 0 | O137: =IF('DFS Dashboard'!$H$1="DraftKings",'Total Projections (excl QB)'!G137*'DFS Dashboard'!$T$10+'Total Projections (excl QB)'!I137*'DFS Dashboard'!$T$8+'Total Projections (excl QB)'!J137*'DFS Dashboard'!$T$9+'Total Projections (excl QB)'!M137*'DFS Dashboard'!$T$6+'Total Projections (excl QB)'!N137*'DFS Dashboard'!$T$7+IF('Total Projections (excl QB)'!I137>99.99,'DFS Dashboard'!$T$12,0)+IF('Total Projections (excl QB)'!M137>99.99,'DFS Dashboard'!$T$11,0),IF('DFS Dashboard'!$H$1="FanDuel",'Total Projections (excl QB)'!G137*'DFS Dashboard'!$U$10+'Total Projections (excl QB)'!I137*'DFS Dashboard'!$U$8+'Total Projections (excl QB)'!J137*'DFS Dashboard'!$U$9+'Total Projections (excl QB)'!M137*'DFS Dashboard'!$U$6+'Total Projections (excl QB)'!N137*'DFS Dashboard'!$U$7+IF('Total Projections (excl QB)'!I137>99.99,'DFS Dashboard'!$U$12,0)+IF('Total Projections (excl QB)'!M137>99.99,'DFS Dashboard'!$U$11,0),0)) -> 0
A138: =RANK(O138,$O:$O,0)+COUNTIF($O$4:O138,O138)-1 -> 135 | B138: Los Angeles Rams | C138: Wide Receiver | D138: ='Los Angeles Rams'!$B$120 -> Tutu Atwell | E138: ='Los Angeles Rams'!$D$120 -> 0 | F138: ='Los Angeles Rams'!$E$120 -> 0 | G138: ='Los Angeles Rams'!$F$120 -> 0 | H138: ='Los Angeles Rams'!$G$120 -> 0 | I138: ='Los Angeles Rams'!$H$120 -> 0 | J138: ='Los Angeles Rams'!$I$120 -> 0 | K138: ='Los Angeles Rams'!$K$120 -> 0 | L138: ='Los Angeles Rams'!$L$120 -> 0 | M138: ='Los Angeles Rams'!$M$120 -> 0 | N138: ='Los Angeles Rams'!$N$120 -> 0 | O138: =IF('DFS Dashboard'!$H$1="DraftKings",'Total Projections (excl QB)'!G138*'DFS Dashboard'!$T$10+'Total Projections (excl QB)'!I138*'DFS Dashboard'!$T$8+'Total Projections (excl QB)'!J138*'DFS Dashboard'!$T$9+'Total Projections (excl QB)'!M138*'DFS Dashboard'!$T$6+'Total Projections (excl QB)'!N138*'DFS Dashboard'!$T$7+IF('Total Projections (excl QB)'!I138>99.99,'DFS Dashboard'!$T$12,0)+IF('Total Projections (excl QB)'!M138>99.99,'DFS Dashboard'!$T$11,0),IF('DFS Dashboard'!$H$1="FanDuel",'Total Projections (excl QB)'!G138*'DFS Dashboard'!$U$10+'Total Projections (excl QB)'!I138*'DFS Dashboard'!$U$8+'Total Projections (excl QB)'!J138*'DFS Dashboard'!$U$9+'Total Projections (excl QB)'!M138*'DFS Dashboard'!$U$6+'Total Projections (excl QB)'!N138*'DFS Dashboard'!$U$7+IF('Total Projections (excl QB)'!I138>99.99,'DFS Dashboard'!$U$12,0)+IF('Total Projections (excl QB)'!M138>99.99,'DFS Dashboard'!$U$11,0),0)) -> 0
A139: =RANK(O139,$O:$O,0)+COUNTIF($O$4:O139,O139)-1 -> 136 | B139: Los Angeles Rams | C139: Wide Receiver | D139: ='Los Angeles Rams'!$B$121 -> Demarcus Robinson | E139: ='Los Angeles Rams'!$D$121 -> 0 | F139: ='Los Angeles Rams'!$E$121 -> 0 | G139: ='Los Angeles Rams'!$F$121 -> 0 | H139: ='Los Angeles Rams'!$G$121 -> 0 | I139: ='Los Angeles Rams'!$H$121 -> 0 | J139: ='Los Angeles Rams'!$I$121 -> 0 | K139: ='Los Angeles Rams'!$K$121 -> 0 | L139: ='Los Angeles Rams'!$L$121 -> 0 | M139: ='Los Angeles Rams'!$M$121 -> 0 | N139: ='Los Angeles Rams'!$N$121 -> 0 | O139: =IF('DFS Dashboard'!$H$1="DraftKings",'Total Projections (excl QB)'!G139*'DFS Dashboard'!$T$10+'Total Projections (excl QB)'!I139*'DFS Dashboard'!$T$8+'Total Projections (excl QB)'!J139*'DFS Dashboard'!$T$9+'Total Projections (excl QB)'!M139*'DFS Dashboard'!$T$6+'Total Projections (excl QB)'!N139*'DFS Dashboard'!$T$7+IF('Total Projections (excl QB)'!I139>99.99,'DFS Dashboard'!$T$12,0)+IF('Total Projections (excl QB)'!M139>99.99,'DFS Dashboard'!$T$11,0),IF('DFS Dashboard'!$H$1="FanDuel",'Total Projections (excl QB)'!G139*'DFS Dashboard'!$U$10+'Total Projections (excl QB)'!I139*'DFS Dashboard'!$U$8+'Total Projections (excl QB)'!J139*'DFS Dashboard'!$U$9+'Total Projections (excl QB)'!M139*'DFS Dashboard'!$U$6+'Total Projections (excl QB)'!N139*'DFS Dashboard'!$U$7+IF('Total Projections (excl QB)'!I139>99.99,'DFS Dashboard'!$U$12,0)+IF('Total Projections (excl QB)'!M139>99.99,'DFS Dashboard'!$U$11,0),0)) -> 0
A140: =RANK(O140,$O:$O,0)+COUNTIF($O$4:O140,O140)-1 -> 137 | B140: Los Angeles Rams | C140: Wide Receiver | D140: ='Los Angeles Rams'!$B$122 -> Tyler Johnson | E140: ='Los Angeles Rams'!$D$122 -> 0 | F140: ='Los Angeles Rams'!$E$122 -> 0 | G140: ='Los Angeles Rams'!$F$122 -> 0 | H140: ='Los Angeles Rams'!$G$122 -> 0 | I140: ='Los Angeles Rams'!$H$122 -> 0 | J140: ='Los Angeles Rams'!$I$122 -> 0 | K140: ='Los Angeles Rams'!$K$122 -> 0 | L140: ='Los Angeles Rams'!$L$122 -> 0 | M140: ='Los Angeles Rams'!$M$122 -> 0 | N140: ='Los Angeles Rams'!$N$122 -> 0 | O140: =IF('DFS Dashboard'!$H$1="DraftKings",'Total Projections (excl QB)'!G140*'DFS Dashboard'!$T$10+'Total Projections (excl QB)'!I140*'DFS Dashboard'!$T$8+'Total Projections (excl QB)'!J140*'DFS Dashboard'!$T$9+'Total Projections (excl QB)'!M140*'DFS Dashboard'!$T$6+'Total Projections (excl QB)'!N140*'DFS Dashboard'!$T$7+IF('Total Projections (excl QB)'!I140>99.99,'DFS Dashboard'!$T$12,0)+IF('Total Projections (excl QB)'!M140>99.99,'DFS Dashboard'!$T$11,0),IF('DFS Dashboard'!$H$1="FanDuel",'Total Projections (excl QB)'!G140*'DFS Dashboard'!$U$10+'Total Projections (excl QB)'!I140*'DFS Dashboard'!$U$8+'Total Projections (excl QB)'!J140*'DFS Dashboard'!$U$9+'Total Projections (excl QB)'!M140*'DFS Dashboard'!$U$6+'Total Projections (excl QB)'!N140*'DFS Dashboard'!$U$7+IF('Total Projections (excl QB)'!I140>99.99,'DFS Dashboard'!$U$12,0)+IF('Total Projections (excl QB)'!M140>99.99,'DFS Dashboard'!$U$11,0),0)) -> 0
A141: =RANK(O141,$O:$O,0)+COUNTIF($O$4:O141,O141)-1 -> 138 | B141: Los Angeles Rams | C141: Wide Receiver | D141: ='Los Angeles Rams'!$B$123 -> Jordan Whittington | E141: ='Los Angeles Rams'!$D$123 -> 0 | F141: ='Los Angeles Rams'!$E$123 -> 0 | G141: ='Los Angeles Rams'!$F$123 -> 0 | H141: ='Los Angeles Rams'!$G$123 -> 0 | I141: ='Los Angeles Rams'!$H$123 -> 0 | J141: ='Los Angeles Rams'!$I$123 -> 0 | K141: ='Los Angeles Rams'!$K$123 -> 0 | L141: ='Los Angeles Rams'!$L$123 -> 0 | M141: ='Los Angeles Rams'!$M$123 -> 0 | N141: ='Los Angeles Rams'!$N$123 -> 0 | O141: =IF('DFS Dashboard'!$H$1="DraftKings",'Total Projections (excl QB)'!G141*'DFS Dashboard'!$T$10+'Total Projections (excl QB)'!I141*'DFS Dashboard'!$T$8+'Total Projections (excl QB)'!J141*'DFS Dashboard'!$T$9+'Total Projections (excl QB)'!M141*'DFS Dashboard'!$T$6+'Total Projections (excl QB)'!N141*'DFS Dashboard'!$T$7+IF('Total Projections (excl QB)'!I141>99.99,'DFS Dashboard'!$T$12,0)+IF('Total Projections (excl QB)'!M141>99.99,'DFS Dashboard'!$T$11,0),IF('DFS Dashboard'!$H$1="FanDuel",'Total Projections (excl QB)'!G141*'DFS Dashboard'!$U$10+'Total Projections (excl QB)'!I141*'DFS Dashboard'!$U$8+'Total Projections (excl QB)'!J141*'DFS Dashboard'!$U$9+'Total Projections (excl QB)'!M141*'DFS Dashboard'!$U$6+'Total Projections (excl QB)'!N141*'DFS Dashboard'!$U$7+IF('Total Projections (excl QB)'!I141>99.99,'DFS Dashboard'!$U$12,0)+IF('Total Projections (excl QB)'!M141>99.99,'DFS Dashboard'!$U$11,0),0)) -> 0
A142: =RANK(O142,$O:$O,0)+COUNTIF($O$4:O142,O142)-1 -> 139 | B142: Los Angeles Rams | C142: Wide Receiver | D142: ='Los Angeles Rams'!$B$124 -> Xavier Smith | E142: ='Los Angeles Rams'!$D$124 -> 0 | F142: ='Los Angeles Rams'!$E$124 -> 0 | G142: ='Los Angeles Rams'!$F$124 -> 0 | H142: ='Los Angeles Rams'!$G$124 -> 0 | I142: ='Los Angeles Rams'!$H$124 -> 0 | J142: ='Los Angeles Rams'!$I$124 -> 0 | K142: ='Los Angeles Rams'!$K$124 -> 0 | L142: ='Los Angeles Rams'!$L$124 -> 0 | M142: ='Los Angeles Rams'!$M$124 -> 0 | N142: ='Los Angeles Rams'!$N$124 -> 0 | O142: =IF('DFS Dashboard'!$H$1="DraftKings",'Total Projections (excl QB)'!G142*'DFS Dashboard'!$T$10+'Total Projections (excl QB)'!I142*'DFS Dashboard'!$T$8+'Total Projections (excl QB)'!J142*'DFS Dashboard'!$T$9+'Total Projections (excl QB)'!M142*'DFS Dashboard'!$T$6+'Total Projections (excl QB)'!N142*'DFS Dashboard'!$T$7+IF('Total Projections (excl QB)'!I142>99.99,'DFS Dashboard'!$T$12,0)+IF('Total Projections (excl QB)'!M142>99.99,'DFS Dashboard'!$T$11,0),IF('DFS Dashboard'!$H$1="FanDuel",'Total Projections (excl QB)'!G142*'DFS Dashboard'!$U$10+'Total Projections (excl QB)'!I142*'DFS Dashboard'!$U$8+'Total Projections (excl QB)'!J142*'DFS Dashboard'!$U$9+'Total Projections (excl QB)'!M142*'DFS Dashboard'!$U$6+'Total Projections (excl QB)'!N142*'DFS Dashboard'!$U$7+IF('Total Projections (excl QB)'!I142>99.99,'DFS Dashboard'!$U$12,0)+IF('Total Projections (excl QB)'!M142>99.99,'DFS Dashboard'!$U$11,0),0)) -> 0
A143: =RANK(O143,$O:$O,0)+COUNTIF($O$4:O143,O143)-1 -> 140 | B143: Los Angeles Rams | C143: Wide Receiver | D143: ='Los Angeles Rams'!$B$125 -> 0 | E143: ='Los Angeles Rams'!$D$125 -> 0 | F143: ='Los Angeles Rams'!$E$125 -> 0 | G143: ='Los Angeles Rams'!$F$125 -> 0 | H143: ='Los Angeles Rams'!$G$125 -> 0 | I143: ='Los Angeles Rams'!$H$125 -> 0 | J143: ='Los Angeles Rams'!$I$125 -> 0 | K143: ='Los Angeles Rams'!$K$125 -> 0 | L143: ='Los Angeles Rams'!$L$125 -> 0 | M143: ='Los Angeles Rams'!$M$125 -> 0 | N143: ='Los Angeles Rams'!$N$125 -> 0 | O143: =IF('DFS Dashboard'!$H$1="DraftKings",'Total Projections (excl QB)'!G143*'DFS Dashboard'!$T$10+'Total Projections (excl QB)'!I143*'DFS Dashboard'!$T$8+'Total Projections (excl QB)'!J143*'DFS Dashboard'!$T$9+'Total Projections (excl QB)'!M143*'DFS Dashboard'!$T$6+'Total Projections (excl QB)'!N143*'DFS Dashboard'!$T$7+IF('Total Projections (excl QB)'!I143>99.99,'DFS Dashboard'!$T$12,0)+IF('Total Projections (excl QB)'!M143>99.99,'DFS Dashboard'!$T$11,0),IF('DFS Dashboard'!$H$1="FanDuel",'Total Projections (excl QB)'!G143*'DFS Dashboard'!$U$10+'Total Projections (excl QB)'!I143*'DFS Dashboard'!$U$8+'Total Projections (excl QB)'!J143*'DFS Dashboard'!$U$9+'Total Projections (excl QB)'!M143*'DFS Dashboard'!$U$6+'Total Projections (excl QB)'!N143*'DFS Dashboard'!$U$7+IF('Total Projections (excl QB)'!I143>99.99,'DFS Dashboard'!$U$12,0)+IF('Total Projections (excl QB)'!M143>99.99,'DFS Dashboard'!$U$11,0),0)) -> 0
A144: =RANK(O144,$O:$O,0)+COUNTIF($O$4:O144,O144)-1 -> 141 | B144: Los Angeles Rams | C144: Tight End | D144: ='Los Angeles Rams'!$B$162 -> Colby Parkinson | E144: ='Los Angeles Rams'!$D$162 -> 0 | F144: ='Los Angeles Rams'!$E$162 -> 0 | G144: ='Los Angeles Rams'!$F$162 -> 0 | H144: ='Los Angeles Rams'!$G$162 -> 0 | I144: ='Los Angeles Rams'!$H$162 -> 0 | J144: ='Los Angeles Rams'!$I$162 -> 0 | K144: ='Los Angeles Rams'!$K$162 -> 0 | L144: ='Los Angeles Rams'!$L$162 -> 0 | M144: ='Los Angeles Rams'!$M$162 -> 0 | N144: ='Los Angeles Rams'!$N$162 -> 0 | O144: =IF('DFS Dashboard'!$H$1="DraftKings",'Total Projections (excl QB)'!G144*'DFS Dashboard'!$T$10+'Total Projections (excl QB)'!I144*'DFS Dashboard'!$T$8+'Total Projections (excl QB)'!J144*'DFS Dashboard'!$T$9+'Total Projections (excl QB)'!M144*'DFS Dashboard'!$T$6+'Total Projections (excl QB)'!N144*'DFS Dashboard'!$T$7+IF('Total Projections (excl QB)'!I144>99.99,'DFS Dashboard'!$T$12,0)+IF('Total Projections (excl QB)'!M144>99.99,'DFS Dashboard'!$T$11,0),IF('DFS Dashboard'!$H$1="FanDuel",'Total Projections (excl QB)'!G144*'DFS Dashboard'!$U$10+'Total Projections (excl QB)'!I144*'DFS Dashboard'!$U$8+'Total Projections (excl QB)'!J144*'DFS Dashboard'!$U$9+'Total Projections (excl QB)'!M144*'DFS Dashboard'!$U$6+'Total Projections (excl QB)'!N144*'DFS Dashboard'!$U$7+IF('Total Projections (excl QB)'!I144>99.99,'DFS Dashboard'!$U$12,0)+IF('Total Projections (excl QB)'!M144>99.99,'DFS Dashboard'!$U$11,0),0)) -> 0
A145: =RANK(O145,$O:$O,0)+COUNTIF($O$4:O145,O145)-1 -> 142 | B145: Los Angeles Rams | C145: Tight End | D145: ='Los Angeles Rams'!$B$163 -> Hunter Long | E145: ='Los Angeles Rams'!$D$163 -> 0 | F145: ='Los Angeles Rams'!$E$163 -> 0 | G145: ='Los Angeles Rams'!$F$163 -> 0 | H145: ='Los Angeles Rams'!$G$163 -> 0 | I145: ='Los Angeles Rams'!$H$163 -> 0 | J145: ='Los Angeles Rams'!$I$163 -> 0 | K145: ='Los Angeles Rams'!$K$163 -> 0 | L145: ='Los Angeles Rams'!$L$163 -> 0 | M145: ='Los Angeles Rams'!$M$163 -> 0 | N145: ='Los Angeles Rams'!$N$163 -> 0 | O145: =IF('DFS Dashboard'!$H$1="DraftKings",'Total Projections (excl QB)'!G145*'DFS Dashboard'!$T$10+'Total Projections (excl QB)'!I145*'DFS Dashboard'!$T$8+'Total Projections (excl QB)'!J145*'DFS Dashboard'!$T$9+'Total Projections (excl QB)'!M145*'DFS Dashboard'!$T$6+'Total Projections (excl QB)'!N145*'DFS Dashboard'!$T$7+IF('Total Projections (excl QB)'!I145>99.99,'DFS Dashboard'!$T$12,0)+IF('Total Projections (excl QB)'!M145>99.99,'DFS Dashboard'!$T$11,0),IF('DFS Dashboard'!$H$1="FanDuel",'Total Projections (excl QB)'!G145*'DFS Dashboard'!$U$10+'Total Projections (excl QB)'!I145*'DFS Dashboard'!$U$8+'Total Projections (excl QB)'!J145*'DFS Dashboard'!$U$9+'Total Projections (excl QB)'!M145*'DFS Dashboard'!$U$6+'Total Projections (excl QB)'!N145*'DFS Dashboard'!$U$7+IF('Total Projections (excl QB)'!I145>99.99,'DFS Dashboard'!$U$12,0)+IF('Total Projections (excl QB)'!M145>99.99,'DFS Dashboard'!$U$11,0),0)) -> 0
A146: =RANK(O146,$O:$O,0)+COUNTIF($O$4:O146,O146)-1 -> 143 | B146: Los Angeles Rams | C146: Tight End | D146: ='Los Angeles Rams'!$B$164 -> Davis Allen | E146: ='Los Angeles Rams'!$D$164 -> 0 | F146: ='Los Angeles Rams'!$E$164 -> 0 | G146: ='Los Angeles Rams'!$F$164 -> 0 | H146: ='Los Angeles Rams'!$G$164 -> 0 | I146: ='Los Angeles Rams'!$H$164 -> 0 | J146: ='Los Angeles Rams'!$I$164 -> 0 | K146: ='Los Angeles Rams'!$K$164 -> 0 | L146: ='Los Angeles Rams'!$L$164 -> 0 | M146: ='Los Angeles Rams'!$M$164 -> 0 | N146: ='Los Angeles Rams'!$N$164 -> 0 | O146: =IF('DFS Dashboard'!$H$1="DraftKings",'Total Projections (excl QB)'!G146*'DFS Dashboard'!$T$10+'Total Projections (excl QB)'!I146*'DFS Dashboard'!$T$8+'Total Projections (excl QB)'!J146*'DFS Dashboard'!$T$9+'Total Projections (excl QB)'!M146*'DFS Dashboard'!$T$6+'Total Projections (excl QB)'!N146*'DFS Dashboard'!$T$7+IF('Total Projections (excl QB)'!I146>99.99,'DFS Dashboard'!$T$12,0)+IF('Total Projections (excl QB)'!M146>99.99,'DFS Dashboard'!$T$11,0),IF('DFS Dashboard'!$H$1="FanDuel",'Total Projections (excl QB)'!G146*'DFS Dashboard'!$U$10+'Total Projections (excl QB)'!I146*'DFS Dashboard'!$U$8+'Total Projections (excl QB)'!J146*'DFS Dashboard'!$U$9+'Total Projections (excl QB)'!M146*'DFS Dashboard'!$U$6+'Total Projections (excl QB)'!N146*'DFS Dashboard'!$U$7+IF('Total Projections (excl QB)'!I146>99.99,'DFS Dashboard'!$U$12,0)+IF('Total Projections (excl QB)'!M146>99.99,'DFS Dashboard'!$U$11,0),0)) -> 0
A147: =RANK(O147,$O:$O,0)+COUNTIF($O$4:O147,O147)-1 -> 144 | B147: Los Angeles Rams | C147: Tight End | D147: ='Los Angeles Rams'!$B$165 -> Tyler Higbee | E147: ='Los Angeles Rams'!$D$165 -> 0 | F147: ='Los Angeles Rams'!$E$165 -> 0 | G147: ='Los Angeles Rams'!$F$165 -> 0 | H147: ='Los Angeles Rams'!$G$165 -> 0 | I147: ='Los Angeles Rams'!$H$165 -> 0 | J147: ='Los Angeles Rams'!$I$165 -> 0 | K147: ='Los Angeles Rams'!$K$165 -> 0 | L147: ='Los Angeles Rams'!$L$165 -> 0 | M147: ='Los Angeles Rams'!$M$165 -> 0 | N147: ='Los Angeles Rams'!$N$165 -> 0 | O147: =IF('DFS Dashboard'!$H$1="DraftKings",'Total Projections (excl QB)'!G147*'DFS Dashboard'!$T$10+'Total Projections (excl QB)'!I147*'DFS Dashboard'!$T$8+'Total Projections (excl QB)'!J147*'DFS Dashboard'!$T$9+'Total Projections (excl QB)'!M147*'DFS Dashboard'!$T$6+'Total Projections (excl QB)'!N147*'DFS Dashboard'!$T$7+IF('Total Projections (excl QB)'!I147>99.99,'DFS Dashboard'!$T$12,0)+IF('Total Projections (excl QB)'!M147>99.99,'DFS Dashboard'!$T$11,0),IF('DFS Dashboard'!$H$1="FanDuel",'Total Projections (excl QB)'!G147*'DFS Dashboard'!$U$10+'Total Projections (excl QB)'!I147*'DFS Dashboard'!$U$8+'Total Projections (excl QB)'!J147*'DFS Dashboard'!$U$9+'Total Projections (excl QB)'!M147*'DFS Dashboard'!$U$6+'Total Projections (excl QB)'!N147*'DFS Dashboard'!$U$7+IF('Total Projections (excl QB)'!I147>99.99,'DFS Dashboard'!$U$12,0)+IF('Total Projections (excl QB)'!M147>99.99,'DFS Dashboard'!$U$11,0),0)) -> 0
A148: =RANK(O148,$O:$O,0)+COUNTIF($O$4:O148,O148)-1 -> 145 | B148: Minnesota Vikings | C148: Running Back | D148: ='Minnesota Vikings'!$B$142 -> Aaron Jones | E148: ='Minnesota Vikings'!$D$142 -> 0 | F148: ='Minnesota Vikings'!$E$142 -> 0 | G148: ='Minnesota Vikings'!$F$142 -> 0 | H148: ='Minnesota Vikings'!$G$142 -> 0 | I148: ='Minnesota Vikings'!$H$142 -> 0 | J148: ='Minnesota Vikings'!$I$142 -> 0 | K148: ='Minnesota Vikings'!$K$142 -> 0 | L148: ='Minnesota Vikings'!$L$142 -> 0 | M148: ='Minnesota Vikings'!$M$142 -> 0 | N148: ='Minnesota Vikings'!$N$142 -> 0 | O148: =IF('DFS Dashboard'!$H$1="DraftKings",'Total Projections (excl QB)'!G148*'DFS Dashboard'!$T$10+'Total Projections (excl QB)'!I148*'DFS Dashboard'!$T$8+'Total Projections (excl QB)'!J148*'DFS Dashboard'!$T$9+'Total Projections (excl QB)'!M148*'DFS Dashboard'!$T$6+'Total Projections (excl QB)'!N148*'DFS Dashboard'!$T$7+IF('Total Projections (excl QB)'!I148>99.99,'DFS Dashboard'!$T$12,0)+IF('Total Projections (excl QB)'!M148>99.99,'DFS Dashboard'!$T$11,0),IF('DFS Dashboard'!$H$1="FanDuel",'Total Projections (excl QB)'!G148*'DFS Dashboard'!$U$10+'Total Projections (excl QB)'!I148*'DFS Dashboard'!$U$8+'Total Projections (excl QB)'!J148*'DFS Dashboard'!$U$9+'Total Projections (excl QB)'!M148*'DFS Dashboard'!$U$6+'Total Projections (excl QB)'!N148*'DFS Dashboard'!$U$7+IF('Total Projections (excl QB)'!I148>99.99,'DFS Dashboard'!$U$12,0)+IF('Total Projections (excl QB)'!M148>99.99,'DFS Dashboard'!$U$11,0),0)) -> 0
A149: =RANK(O149,$O:$O,0)+COUNTIF($O$4:O149,O149)-1 -> 146 | B149: Minnesota Vikings | C149: Running Back | D149: ='Minnesota Vikings'!$B$143 -> Ty Chandler | E149: ='Minnesota Vikings'!$D$143 -> 0 | F149: ='Minnesota Vikings'!$E$143 -> 0 | G149: ='Minnesota Vikings'!$F$143 -> 0 | H149: ='Minnesota Vikings'!$G$143 -> 0 | I149: ='Minnesota Vikings'!$H$143 -> 0 | J149: ='Minnesota Vikings'!$I$143 -> 0 | K149: ='Minnesota Vikings'!$K$143 -> 0 | L149: ='Minnesota Vikings'!$L$143 -> 0 | M149: ='Minnesota Vikings'!$M$143 -> 0 | N149: ='Minnesota Vikings'!$N$143 -> 0 | O149: =IF('DFS Dashboard'!$H$1="DraftKings",'Total Projections (excl QB)'!G149*'DFS Dashboard'!$T$10+'Total Projections (excl QB)'!I149*'DFS Dashboard'!$T$8+'Total Projections (excl QB)'!J149*'DFS Dashboard'!$T$9+'Total Projections (excl QB)'!M149*'DFS Dashboard'!$T$6+'Total Projections (excl QB)'!N149*'DFS Dashboard'!$T$7+IF('Total Projections (excl QB)'!I149>99.99,'DFS Dashboard'!$T$12,0)+IF('Total Projections (excl QB)'!M149>99.99,'DFS Dashboard'!$T$11,0),IF('DFS Dashboard'!$H$1="FanDuel",'Total Projections (excl QB)'!G149*'DFS Dashboard'!$U$10+'Total Projections (excl QB)'!I149*'DFS Dashboard'!$U$8+'Total Projections (excl QB)'!J149*'DFS Dashboard'!$U$9+'Total Projections (excl QB)'!M149*'DFS Dashboard'!$U$6+'Total Projections (excl QB)'!N149*'DFS Dashboard'!$U$7+IF('Total Projections (excl QB)'!I149>99.99,'DFS Dashboard'!$U$12,0)+IF('Total Projections (excl QB)'!M149>99.99,'DFS Dashboard'!$U$11,0),0)) -> 0
A150: =RANK(O150,$O:$O,0)+COUNTIF($O$4:O150,O150)-1 -> 147 | B150: Minnesota Vikings | C150: Running Back | D150: ='Minnesota Vikings'!$B$144 -> Myles Gaskin | E150: ='Minnesota Vikings'!$D$144 -> 0 | F150: ='Minnesota Vikings'!$E$144 -> 0 | G150: ='Minnesota Vikings'!$F$144 -> 0 | H150: ='Minnesota Vikings'!$G$144 -> 0 | I150: ='Minnesota Vikings'!$H$144 -> 0 | J150: ='Minnesota Vikings'!$I$144 -> 0 | K150: ='Minnesota Vikings'!$K$144 -> 0 | L150: ='Minnesota Vikings'!$L$144 -> 0 | M150: ='Minnesota Vikings'!$M$144 -> 0 | N150: ='Minnesota Vikings'!$N$144 -> 0 | O150: =IF('DFS Dashboard'!$H$1="DraftKings",'Total Projections (excl QB)'!G150*'DFS Dashboard'!$T$10+'Total Projections (excl QB)'!I150*'DFS Dashboard'!$T$8+'Total Projections (excl QB)'!J150*'DFS Dashboard'!$T$9+'Total Projections (excl QB)'!M150*'DFS Dashboard'!$T$6+'Total Projections (excl QB)'!N150*'DFS Dashboard'!$T$7+IF('Total Projections (excl QB)'!I150>99.99,'DFS Dashboard'!$T$12,0)+IF('Total Projections (excl QB)'!M150>99.99,'DFS Dashboard'!$T$11,0),IF('DFS Dashboard'!$H$1="FanDuel",'Total Projections (excl QB)'!G150*'DFS Dashboard'!$U$10+'Total Projections (excl QB)'!I150*'DFS Dashboard'!$U$8+'Total Projections (excl QB)'!J150*'DFS Dashboard'!$U$9+'Total Projections (excl QB)'!M150*'DFS Dashboard'!$U$6+'Total Projections (excl QB)'!N150*'DFS Dashboard'!$U$7+IF('Total Projections (excl QB)'!I150>99.99,'DFS Dashboard'!$U$12,0)+IF('Total Projections (excl QB)'!M150>99.99,'DFS Dashboard'!$U$11,0),0)) -> 0
A151: =RANK(O151,$O:$O,0)+COUNTIF($O$4:O151,O151)-1 -> 148 | B151: Minnesota Vikings | C151: Running Back | D151: ='Minnesota Vikings'!$B$145 -> 0 | E151: ='Minnesota Vikings'!$D$145 -> 0 | F151: ='Minnesota Vikings'!$E$145 -> 0 | G151: ='Minnesota Vikings'!$F$145 -> 0 | H151: ='Minnesota Vikings'!$G$145 -> 0 | I151: ='Minnesota Vikings'!$H$145 -> 0 | J151: ='Minnesota Vikings'!$I$145 -> 0 | K151: ='Minnesota Vikings'!$K$145 -> 0 | L151: ='Minnesota Vikings'!$L$145 -> 0 | M151: ='Minnesota Vikings'!$M$145 -> 0 | N151: ='Minnesota Vikings'!$N$145 -> 0 | O151: =IF('DFS Dashboard'!$H$1="DraftKings",'Total Projections (excl QB)'!G151*'DFS Dashboard'!$T$10+'Total Projections (excl QB)'!I151*'DFS Dashboard'!$T$8+'Total Projections (excl QB)'!J151*'DFS Dashboard'!$T$9+'Total Projections (excl QB)'!M151*'DFS Dashboard'!$T$6+'Total Projections (excl QB)'!N151*'DFS Dashboard'!$T$7+IF('Total Projections (excl QB)'!I151>99.99,'DFS Dashboard'!$T$12,0)+IF('Total Projections (excl QB)'!M151>99.99,'DFS Dashboard'!$T$11,0),IF('DFS Dashboard'!$H$1="FanDuel",'Total Projections (excl QB)'!G151*'DFS Dashboard'!$U$10+'Total Projections (excl QB)'!I151*'DFS Dashboard'!$U$8+'Total Projections (excl QB)'!J151*'DFS Dashboard'!$U$9+'Total Projections (excl QB)'!M151*'DFS Dashboard'!$U$6+'Total Projections (excl QB)'!N151*'DFS Dashboard'!$U$7+IF('Total Projections (excl QB)'!I151>99.99,'DFS Dashboard'!$U$12,0)+IF('Total Projections (excl QB)'!M151>99.99,'DFS Dashboard'!$U$11,0),0)) -> 0
A152: =RANK(O152,$O:$O,0)+COUNTIF($O$4:O152,O152)-1 -> 149 | B152: Minnesota Vikings | C152: Wide Receiver | D152: ='Minnesota Vikings'!$B$118 -> Justin Jefferson | E152: ='Minnesota Vikings'!$D$118 -> 0 | F152: ='Minnesota Vikings'!$E$118 -> 0 | G152: ='Minnesota Vikings'!$F$118 -> 0 | H152: ='Minnesota Vikings'!$G$118 -> 0 | I152: ='Minnesota Vikings'!$H$118 -> 0 | J152: ='Minnesota Vikings'!$I$118 -> 0 | K152: ='Minnesota Vikings'!$K$118 -> 0 | L152: ='Minnesota Vikings'!$L$118 -> 0 | M152: ='Minnesota Vikings'!$M$118 -> 0 | N152: ='Minnesota Vikings'!$N$118 -> 0 | O152: =IF('DFS Dashboard'!$H$1="DraftKings",'Total Projections (excl QB)'!G152*'DFS Dashboard'!$T$10+'Total Projections (excl QB)'!I152*'DFS Dashboard'!$T$8+'Total Projections (excl QB)'!J152*'DFS Dashboard'!$T$9+'Total Projections (excl QB)'!M152*'DFS Dashboard'!$T$6+'Total Projections (excl QB)'!N152*'DFS Dashboard'!$T$7+IF('Total Projections (excl QB)'!I152>99.99,'DFS Dashboard'!$T$12,0)+IF('Total Projections (excl QB)'!M152>99.99,'DFS Dashboard'!$T$11,0),IF('DFS Dashboard'!$H$1="FanDuel",'Total Projections (excl QB)'!G152*'DFS Dashboard'!$U$10+'Total Projections (excl QB)'!I152*'DFS Dashboard'!$U$8+'Total Projections (excl QB)'!J152*'DFS Dashboard'!$U$9+'Total Projections (excl QB)'!M152*'DFS Dashboard'!$U$6+'Total Projections (excl QB)'!N152*'DFS Dashboard'!$U$7+IF('Total Projections (excl QB)'!I152>99.99,'DFS Dashboard'!$U$12,0)+IF('Total Projections (excl QB)'!M152>99.99,'DFS Dashboard'!$U$11,0),0)) -> 0
A153: =RANK(O153,$O:$O,0)+COUNTIF($O$4:O153,O153)-1 -> 150 | B153: Minnesota Vikings | C153: Wide Receiver | D153: ='Minnesota Vikings'!$B$119 -> Jordan Addison | E153: ='Minnesota Vikings'!$D$119 -> 0 | F153: ='Minnesota Vikings'!$E$119 -> 0 | G153: ='Minnesota Vikings'!$F$119 -> 0 | H153: ='Minnesota Vikings'!$G$119 -> 0 | I153: ='Minnesota Vikings'!$H$119 -> 0 | J153: ='Minnesota Vikings'!$I$119 -> 0 | K153: ='Minnesota Vikings'!$K$119 -> 0 | L153: ='Minnesota Vikings'!$L$119 -> 0 | M153: ='Minnesota Vikings'!$M$119 -> 0 | N153: ='Minnesota Vikings'!$N$119 -> 0 | O153: =IF('DFS Dashboard'!$H$1="DraftKings",'Total Projections (excl QB)'!G153*'DFS Dashboard'!$T$10+'Total Projections (excl QB)'!I153*'DFS Dashboard'!$T$8+'Total Projections (excl QB)'!J153*'DFS Dashboard'!$T$9+'Total Projections (excl QB)'!M153*'DFS Dashboard'!$T$6+'Total Projections (excl QB)'!N153*'DFS Dashboard'!$T$7+IF('Total Projections (excl QB)'!I153>99.99,'DFS Dashboard'!$T$12,0)+IF('Total Projections (excl QB)'!M153>99.99,'DFS Dashboard'!$T$11,0),IF('DFS Dashboard'!$H$1="FanDuel",'Total Projections (excl QB)'!G153*'DFS Dashboard'!$U$10+'Total Projections (excl QB)'!I153*'DFS Dashboard'!$U$8+'Total Projections (excl QB)'!J153*'DFS Dashboard'!$U$9+'Total Projections (excl QB)'!M153*'DFS Dashboard'!$U$6+'Total Projections (excl QB)'!N153*'DFS Dashboard'!$U$7+IF('Total Projections (excl QB)'!I153>99.99,'DFS Dashboard'!$U$12,0)+IF('Total Projections (excl QB)'!M153>99.99,'DFS Dashboard'!$U$11,0),0)) -> 0
A154: =RANK(O154,$O:$O,0)+COUNTIF($O$4:O154,O154)-1 -> 151 | B154: Minnesota Vikings | C154: Wide Receiver | D154: ='Minnesota Vikings'!$B$120 -> Jalen Nailor | E154: ='Minnesota Vikings'!$D$120 -> 0 | F154: ='Minnesota Vikings'!$E$120 -> 0 | G154: ='Minnesota Vikings'!$F$120 -> 0 | H154: ='Minnesota Vikings'!$G$120 -> 0 | I154: ='Minnesota Vikings'!$H$120 -> 0 | J154: ='Minnesota Vikings'!$I$120 -> 0 | K154: ='Minnesota Vikings'!$K$120 -> 0 | L154: ='Minnesota Vikings'!$L$120 -> 0 | M154: ='Minnesota Vikings'!$M$120 -> 0 | N154: ='Minnesota Vikings'!$N$120 -> 0 | O154: =IF('DFS Dashboard'!$H$1="DraftKings",'Total Projections (excl QB)'!G154*'DFS Dashboard'!$T$10+'Total Projections (excl QB)'!I154*'DFS Dashboard'!$T$8+'Total Projections (excl QB)'!J154*'DFS Dashboard'!$T$9+'Total Projections (excl QB)'!M154*'DFS Dashboard'!$T$6+'Total Projections (excl QB)'!N154*'DFS Dashboard'!$T$7+IF('Total Projections (excl QB)'!I154>99.99,'DFS Dashboard'!$T$12,0)+IF('Total Projections (excl QB)'!M154>99.99,'DFS Dashboard'!$T$11,0),IF('DFS Dashboard'!$H$1="FanDuel",'Total Projections (excl QB)'!G154*'DFS Dashboard'!$U$10+'Total Projections (excl QB)'!I154*'DFS Dashboard'!$U$8+'Total Projections (excl QB)'!J154*'DFS Dashboard'!$U$9+'Total Projections (excl QB)'!M154*'DFS Dashboard'!$U$6+'Total Projections (excl QB)'!N154*'DFS Dashboard'!$U$7+IF('Total Projections (excl QB)'!I154>99.99,'DFS Dashboard'!$U$12,0)+IF('Total Projections (excl QB)'!M154>99.99,'DFS Dashboard'!$U$11,0),0)) -> 0
A155: =RANK(O155,$O:$O,0)+COUNTIF($O$4:O155,O155)-1 -> 152 | B155: Minnesota Vikings | C155: Wide Receiver | D155: ='Minnesota Vikings'!$B$121 -> Trent Sherfield | E155: ='Minnesota Vikings'!$D$121 -> 0 | F155: ='Minnesota Vikings'!$E$121 -> 0 | G155: ='Minnesota Vikings'!$F$121 -> 0 | H155: ='Minnesota Vikings'!$G$121 -> 0 | I155: ='Minnesota Vikings'!$H$121 -> 0 | J155: ='Minnesota Vikings'!$I$121 -> 0 | K155: ='Minnesota Vikings'!$K$121 -> 0 | L155: ='Minnesota Vikings'!$L$121 -> 0 | M155: ='Minnesota Vikings'!$M$121 -> 0 | N155: ='Minnesota Vikings'!$N$121 -> 0 | O155: =IF('DFS Dashboard'!$H$1="DraftKings",'Total Projections (excl QB)'!G155*'DFS Dashboard'!$T$10+'Total Projections (excl QB)'!I155*'DFS Dashboard'!$T$8+'Total Projections (excl QB)'!J155*'DFS Dashboard'!$T$9+'Total Projections (excl QB)'!M155*'DFS Dashboard'!$T$6+'Total Projections (excl QB)'!N155*'DFS Dashboard'!$T$7+IF('Total Projections (excl QB)'!I155>99.99,'DFS Dashboard'!$T$12,0)+IF('Total Projections (excl QB)'!M155>99.99,'DFS Dashboard'!$T$11,0),IF('DFS Dashboard'!$H$1="FanDuel",'Total Projections (excl QB)'!G155*'DFS Dashboard'!$U$10+'Total Projections (excl QB)'!I155*'DFS Dashboard'!$U$8+'Total Projections (excl QB)'!J155*'DFS Dashboard'!$U$9+'Total Projections (excl QB)'!M155*'DFS Dashboard'!$U$6+'Total Projections (excl QB)'!N155*'DFS Dashboard'!$U$7+IF('Total Projections (excl QB)'!I155>99.99,'DFS Dashboard'!$U$12,0)+IF('Total Projections (excl QB)'!M155>99.99,'DFS Dashboard'!$U$11,0),0)) -> 0
A156: =RANK(O156,$O:$O,0)+COUNTIF($O$4:O156,O156)-1 -> 153 | B156: Minnesota Vikings | C156: Wide Receiver | D156: ='Minnesota Vikings'!$B$122 -> Brandon Powell | E156: ='Minnesota Vikings'!$D$122 -> 0 | F156: ='Minnesota Vikings'!$E$122 -> 0 | G156: ='Minnesota Vikings'!$F$122 -> 0 | H156: ='Minnesota Vikings'!$G$122 -> 0 | I156: ='Minnesota Vikings'!$H$122 -> 0 | J156: ='Minnesota Vikings'!$I$122 -> 0 | K156: ='Minnesota Vikings'!$K$122 -> 0 | L156: ='Minnesota Vikings'!$L$122 -> 0 | M156: ='Minnesota Vikings'!$M$122 -> 0 | N156: ='Minnesota Vikings'!$N$122 -> 0 | O156: =IF('DFS Dashboard'!$H$1="DraftKings",'Total Projections (excl QB)'!G156*'DFS Dashboard'!$T$10+'Total Projections (excl QB)'!I156*'DFS Dashboard'!$T$8+'Total Projections (excl QB)'!J156*'DFS Dashboard'!$T$9+'Total Projections (excl QB)'!M156*'DFS Dashboard'!$T$6+'Total Projections (excl QB)'!N156*'DFS Dashboard'!$T$7+IF('Total Projections (excl QB)'!I156>99.99,'DFS Dashboard'!$T$12,0)+IF('Total Projections (excl QB)'!M156>99.99,'DFS Dashboard'!$T$11,0),IF('DFS Dashboard'!$H$1="FanDuel",'Total Projections (excl QB)'!G156*'DFS Dashboard'!$U$10+'Total Projections (excl QB)'!I156*'DFS Dashboard'!$U$8+'Total Projections (excl QB)'!J156*'DFS Dashboard'!$U$9+'Total Projections (excl QB)'!M156*'DFS Dashboard'!$U$6+'Total Projections (excl QB)'!N156*'DFS Dashboard'!$U$7+IF('Total Projections (excl QB)'!I156>99.99,'DFS Dashboard'!$U$12,0)+IF('Total Projections (excl QB)'!M156>99.99,'DFS Dashboard'!$U$11,0),0)) -> 0
A157: =RANK(O157,$O:$O,0)+COUNTIF($O$4:O157,O157)-1 -> 154 | B157: Minnesota Vikings | C157: Wide Receiver | D157: ='Minnesota Vikings'!$B$123 -> 0 | E157: ='Minnesota Vikings'!$D$123 -> 0 | F157: ='Minnesota Vikings'!$E$123 -> 0 | G157: ='Minnesota Vikings'!$F$123 -> 0 | H157: ='Minnesota Vikings'!$G$123 -> 0 | I157: ='Minnesota Vikings'!$H$123 -> 0 | J157: ='Minnesota Vikings'!$I$123 -> 0 | K157: ='Minnesota Vikings'!$K$123 -> 0 | L157: ='Minnesota Vikings'!$L$123 -> 0 | M157: ='Minnesota Vikings'!$M$123 -> 0 | N157: ='Minnesota Vikings'!$N$123 -> 0 | O157: =IF('DFS Dashboard'!$H$1="DraftKings",'Total Projections (excl QB)'!G157*'DFS Dashboard'!$T$10+'Total Projections (excl QB)'!I157*'DFS Dashboard'!$T$8+'Total Projections (excl QB)'!J157*'DFS Dashboard'!$T$9+'Total Projections (excl QB)'!M157*'DFS Dashboard'!$T$6+'Total Projections (excl QB)'!N157*'DFS Dashboard'!$T$7+IF('Total Projections (excl QB)'!I157>99.99,'DFS Dashboard'!$T$12,0)+IF('Total Projections (excl QB)'!M157>99.99,'DFS Dashboard'!$T$11,0),IF('DFS Dashboard'!$H$1="FanDuel",'Total Projections (excl QB)'!G157*'DFS Dashboard'!$U$10+'Total Projections (excl QB)'!I157*'DFS Dashboard'!$U$8+'Total Projections (excl QB)'!J157*'DFS Dashboard'!$U$9+'Total Projections (excl QB)'!M157*'DFS Dashboard'!$U$6+'Total Projections (excl QB)'!N157*'DFS Dashboard'!$U$7+IF('Total Projections (excl QB)'!I157>99.99,'DFS Dashboard'!$U$12,0)+IF('Total Projections (excl QB)'!M157>99.99,'DFS Dashboard'!$U$11,0),0)) -> 0
A158: =RANK(O158,$O:$O,0)+COUNTIF($O$4:O158,O158)-1 -> 155 | B158: Minnesota Vikings | C158: Wide Receiver | D158: ='Minnesota Vikings'!$B$124 -> 0 | E158: ='Minnesota Vikings'!$D$124 -> 0 | F158: ='Minnesota Vikings'!$E$124 -> 0 | G158: ='Minnesota Vikings'!$F$124 -> 0 | H158: ='Minnesota Vikings'!$G$124 -> 0 | I158: ='Minnesota Vikings'!$H$124 -> 0 | J158: ='Minnesota Vikings'!$I$124 -> 0 | K158: ='Minnesota Vikings'!$K$124 -> 0 | L158: ='Minnesota Vikings'!$L$124 -> 0 | M158: ='Minnesota Vikings'!$M$124 -> 0 | N158: ='Minnesota Vikings'!$N$124 -> 0 | O158: =IF('DFS Dashboard'!$H$1="DraftKings",'Total Projections (excl QB)'!G158*'DFS Dashboard'!$T$10+'Total Projections (excl QB)'!I158*'DFS Dashboard'!$T$8+'Total Projections (excl QB)'!J158*'DFS Dashboard'!$T$9+'Total Projections (excl QB)'!M158*'DFS Dashboard'!$T$6+'Total Projections (excl QB)'!N158*'DFS Dashboard'!$T$7+IF('Total Projections (excl QB)'!I158>99.99,'DFS Dashboard'!$T$12,0)+IF('Total Projections (excl QB)'!M158>99.99,'DFS Dashboard'!$T$11,0),IF('DFS Dashboard'!$H$1="FanDuel",'Total Projections (excl QB)'!G158*'DFS Dashboard'!$U$10+'Total Projections (excl QB)'!I158*'DFS Dashboard'!$U$8+'Total Projections (excl QB)'!J158*'DFS Dashboard'!$U$9+'Total Projections (excl QB)'!M158*'DFS Dashboard'!$U$6+'Total Projections (excl QB)'!N158*'DFS Dashboard'!$U$7+IF('Total Projections (excl QB)'!I158>99.99,'DFS Dashboard'!$U$12,0)+IF('Total Projections (excl QB)'!M158>99.99,'DFS Dashboard'!$U$11,0),0)) -> 0
A159: =RANK(O159,$O:$O,0)+COUNTIF($O$4:O159,O159)-1 -> 156 | B159: Minnesota Vikings | C159: Wide Receiver | D159: ='Minnesota Vikings'!$B$125 -> 0 | E159: ='Minnesota Vikings'!$D$125 -> 0 | F159: ='Minnesota Vikings'!$E$125 -> 0 | G159: ='Minnesota Vikings'!$F$125 -> 0 | H159: ='Minnesota Vikings'!$G$125 -> 0 | I159: ='Minnesota Vikings'!$H$125 -> 0 | J159: ='Minnesota Vikings'!$I$125 -> 0 | K159: ='Minnesota Vikings'!$K$125 -> 0 | L159: ='Minnesota Vikings'!$L$125 -> 0 | M159: ='Minnesota Vikings'!$M$125 -> 0 | N159: ='Minnesota Vikings'!$N$125 -> 0 | O159: =IF('DFS Dashboard'!$H$1="DraftKings",'Total Projections (excl QB)'!G159*'DFS Dashboard'!$T$10+'Total Projections (excl QB)'!I159*'DFS Dashboard'!$T$8+'Total Projections (excl QB)'!J159*'DFS Dashboard'!$T$9+'Total Projections (excl QB)'!M159*'DFS Dashboard'!$T$6+'Total Projections (excl QB)'!N159*'DFS Dashboard'!$T$7+IF('Total Projections (excl QB)'!I159>99.99,'DFS Dashboard'!$T$12,0)+IF('Total Projections (excl QB)'!M159>99.99,'DFS Dashboard'!$T$11,0),IF('DFS Dashboard'!$H$1="FanDuel",'Total Projections (excl QB)'!G159*'DFS Dashboard'!$U$10+'Total Projections (excl QB)'!I159*'DFS Dashboard'!$U$8+'Total Projections (excl QB)'!J159*'DFS Dashboard'!$U$9+'Total Projections (excl QB)'!M159*'DFS Dashboard'!$U$6+'Total Projections (excl QB)'!N159*'DFS Dashboard'!$U$7+IF('Total Projections (excl QB)'!I159>99.99,'DFS Dashboard'!$U$12,0)+IF('Total Projections (excl QB)'!M159>99.99,'DFS Dashboard'!$U$11,0),0)) -> 0
A160: =RANK(O160,$O:$O,0)+COUNTIF($O$4:O160,O160)-1 -> 157 | B160: Minnesota Vikings | C160: Tight End | D160: ='Minnesota Vikings'!$B$162 -> T.J. Hockenson | E160: ='Minnesota Vikings'!$D$162 -> 0 | F160: ='Minnesota Vikings'!$E$162 -> 0 | G160: ='Minnesota Vikings'!$F$162 -> 0 | H160: ='Minnesota Vikings'!$G$162 -> 0 | I160: ='Minnesota Vikings'!$H$162 -> 0 | J160: ='Minnesota Vikings'!$I$162 -> 0 | K160: ='Minnesota Vikings'!$K$162 -> 0 | L160: ='Minnesota Vikings'!$L$162 -> 0 | M160: ='Minnesota Vikings'!$M$162 -> 0 | N160: ='Minnesota Vikings'!$N$162 -> 0 | O160: =IF('DFS Dashboard'!$H$1="DraftKings",'Total Projections (excl QB)'!G160*'DFS Dashboard'!$T$10+'Total Projections (excl QB)'!I160*'DFS Dashboard'!$T$8+'Total Projections (excl QB)'!J160*'DFS Dashboard'!$T$9+'Total Projections (excl QB)'!M160*'DFS Dashboard'!$T$6+'Total Projections (excl QB)'!N160*'DFS Dashboard'!$T$7+IF('Total Projections (excl QB)'!I160>99.99,'DFS Dashboard'!$T$12,0)+IF('Total Projections (excl QB)'!M160>99.99,'DFS Dashboard'!$T$11,0),IF('DFS Dashboard'!$H$1="FanDuel",'Total Projections (excl QB)'!G160*'DFS Dashboard'!$U$10+'Total Projections (excl QB)'!I160*'DFS Dashboard'!$U$8+'Total Projections (excl QB)'!J160*'DFS Dashboard'!$U$9+'Total Projections (excl QB)'!M160*'DFS Dashboard'!$U$6+'Total Projections (excl QB)'!N160*'DFS Dashboard'!$U$7+IF('Total Projections (excl QB)'!I160>99.99,'DFS Dashboard'!$U$12,0)+IF('Total Projections (excl QB)'!M160>99.99,'DFS Dashboard'!$U$11,0),0)) -> 0
A161: =RANK(O161,$O:$O,0)+COUNTIF($O$4:O161,O161)-1 -> 158 | B161: Minnesota Vikings | C161: Tight End | D161: ='Minnesota Vikings'!$B$163 -> Josh Oliver | E161: ='Minnesota Vikings'!$D$163 -> 0 | F161: ='Minnesota Vikings'!$E$163 -> 0 | G161: ='Minnesota Vikings'!$F$163 -> 0 | H161: ='Minnesota Vikings'!$G$163 -> 0 | I161: ='Minnesota Vikings'!$H$163 -> 0 | J161: ='Minnesota Vikings'!$I$163 -> 0 | K161: ='Minnesota Vikings'!$K$163 -> 0 | L161: ='Minnesota Vikings'!$L$163 -> 0 | M161: ='Minnesota Vikings'!$M$163 -> 0 | N161: ='Minnesota Vikings'!$N$163 -> 0 | O161: =IF('DFS Dashboard'!$H$1="DraftKings",'Total Projections (excl QB)'!G161*'DFS Dashboard'!$T$10+'Total Projections (excl QB)'!I161*'DFS Dashboard'!$T$8+'Total Projections (excl QB)'!J161*'DFS Dashboard'!$T$9+'Total Projections (excl QB)'!M161*'DFS Dashboard'!$T$6+'Total Projections (excl QB)'!N161*'DFS Dashboard'!$T$7+IF('Total Projections (excl QB)'!I161>99.99,'DFS Dashboard'!$T$12,0)+IF('Total Projections (excl QB)'!M161>99.99,'DFS Dashboard'!$T$11,0),IF('DFS Dashboard'!$H$1="FanDuel",'Total Projections (excl QB)'!G161*'DFS Dashboard'!$U$10+'Total Projections (excl QB)'!I161*'DFS Dashboard'!$U$8+'Total Projections (excl QB)'!J161*'DFS Dashboard'!$U$9+'Total Projections (excl QB)'!M161*'DFS Dashboard'!$U$6+'Total Projections (excl QB)'!N161*'DFS Dashboard'!$U$7+IF('Total Projections (excl QB)'!I161>99.99,'DFS Dashboard'!$U$12,0)+IF('Total Projections (excl QB)'!M161>99.99,'DFS Dashboard'!$U$11,0),0)) -> 0
A162: =RANK(O162,$O:$O,0)+COUNTIF($O$4:O162,O162)-1 -> 159 | B162: Minnesota Vikings | C162: Tight End | D162: ='Minnesota Vikings'!$B$164 -> Johnny Mundt | E162: ='Minnesota Vikings'!$D$164 -> 0 | F162: ='Minnesota Vikings'!$E$164 -> 0 | G162: ='Minnesota Vikings'!$F$164 -> 0 | H162: ='Minnesota Vikings'!$G$164 -> 0 | I162: ='Minnesota Vikings'!$H$164 -> 0 | J162: ='Minnesota Vikings'!$I$164 -> 0 | K162: ='Minnesota Vikings'!$K$164 -> 0 | L162: ='Minnesota Vikings'!$L$164 -> 0 | M162: ='Minnesota Vikings'!$M$164 -> 0 | N162: ='Minnesota Vikings'!$N$164 -> 0 | O162: =IF('DFS Dashboard'!$H$1="DraftKings",'Total Projections (excl QB)'!G162*'DFS Dashboard'!$T$10+'Total Projections (excl QB)'!I162*'DFS Dashboard'!$T$8+'Total Projections (excl QB)'!J162*'DFS Dashboard'!$T$9+'Total Projections (excl QB)'!M162*'DFS Dashboard'!$T$6+'Total Projections (excl QB)'!N162*'DFS Dashboard'!$T$7+IF('Total Projections (excl QB)'!I162>99.99,'DFS Dashboard'!$T$12,0)+IF('Total Projections (excl QB)'!M162>99.99,'DFS Dashboard'!$T$11,0),IF('DFS Dashboard'!$H$1="FanDuel",'Total Projections (excl QB)'!G162*'DFS Dashboard'!$U$10+'Total Projections (excl QB)'!I162*'DFS Dashboard'!$U$8+'Total Projections (excl QB)'!J162*'DFS Dashboard'!$U$9+'Total Projections (excl QB)'!M162*'DFS Dashboard'!$U$6+'Total Projections (excl QB)'!N162*'DFS Dashboard'!$U$7+IF('Total Projections (excl QB)'!I162>99.99,'DFS Dashboard'!$U$12,0)+IF('Total Projections (excl QB)'!M162>99.99,'DFS Dashboard'!$U$11,0),0)) -> 0
A163: =RANK(O163,$O:$O,0)+COUNTIF($O$4:O163,O163)-1 -> 160 | B163: Minnesota Vikings | C163: Tight End | D163: ='Minnesota Vikings'!$B$165 -> 0 | E163: ='Minnesota Vikings'!$D$165 -> 0 | F163: ='Minnesota Vikings'!$E$165 -> 0 | G163: ='Minnesota Vikings'!$F$165 -> 0 | H163: ='Minnesota Vikings'!$G$165 -> 0 | I163: ='Minnesota Vikings'!$H$165 -> 0 | J163: ='Minnesota Vikings'!$I$165 -> 0 | K163: ='Minnesota Vikings'!$K$165 -> 0 | L163: ='Minnesota Vikings'!$L$165 -> 0 | M163: ='Minnesota Vikings'!$M$165 -> 0 | N163: ='Minnesota Vikings'!$N$165 -> 0 | O163: =IF('DFS Dashboard'!$H$1="DraftKings",'Total Projections (excl QB)'!G163*'DFS Dashboard'!$T$10+'Total Projections (excl QB)'!I163*'DFS Dashboard'!$T$8+'Total Projections (excl QB)'!J163*'DFS Dashboard'!$T$9+'Total Projections (excl QB)'!M163*'DFS Dashboard'!$T$6+'Total Projections (excl QB)'!N163*'DFS Dashboard'!$T$7+IF('Total Projections (excl QB)'!I163>99.99,'DFS Dashboard'!$T$12,0)+IF('Total Projections (excl QB)'!M163>99.99,'DFS Dashboard'!$T$11,0),IF('DFS Dashboard'!$H$1="FanDuel",'Total Projections (excl QB)'!G163*'DFS Dashboard'!$U$10+'Total Projections (excl QB)'!I163*'DFS Dashboard'!$U$8+'Total Projections (excl QB)'!J163*'DFS Dashboard'!$U$9+'Total Projections (excl QB)'!M163*'DFS Dashboard'!$U$6+'Total Projections (excl QB)'!N163*'DFS Dashboard'!$U$7+IF('Total Projections (excl QB)'!I163>99.99,'DFS Dashboard'!$U$12,0)+IF('Total Projections (excl QB)'!M163>99.99,'DFS Dashboard'!$U$11,0),0)) -> 0
A164: =RANK(O164,$O:$O,0)+COUNTIF($O$4:O164,O164)-1 -> 161 | B164: Philadelphia Eagles | C164: Running Back | D164: ='Philadelphia Eagles'!$B$142 -> Saquon Barkley | E164: ='Philadelphia Eagles'!$D$142 -> 0 | F164: ='Philadelphia Eagles'!$E$142 -> 0 | G164: ='Philadelphia Eagles'!$F$142 -> 0 | H164: ='Philadelphia Eagles'!$G$142 -> 0 | I164: ='Philadelphia Eagles'!$H$142 -> 0 | J164: ='Philadelphia Eagles'!$I$142 -> 0 | K164: ='Philadelphia Eagles'!$K$142 -> 0 | L164: ='Philadelphia Eagles'!$L$142 -> 0 | M164: ='Philadelphia Eagles'!$M$142 -> 0 | N164: ='Philadelphia Eagles'!$N$142 -> 0 | O164: =IF('DFS Dashboard'!$H$1="DraftKings",'Total Projections (excl QB)'!G164*'DFS Dashboard'!$T$10+'Total Projections (excl QB)'!I164*'DFS Dashboard'!$T$8+'Total Projections (excl QB)'!J164*'DFS Dashboard'!$T$9+'Total Projections (excl QB)'!M164*'DFS Dashboard'!$T$6+'Total Projections (excl QB)'!N164*'DFS Dashboard'!$T$7+IF('Total Projections (excl QB)'!I164>99.99,'DFS Dashboard'!$T$12,0)+IF('Total Projections (excl QB)'!M164>99.99,'DFS Dashboard'!$T$11,0),IF('DFS Dashboard'!$H$1="FanDuel",'Total Projections (excl QB)'!G164*'DFS Dashboard'!$U$10+'Total Projections (excl QB)'!I164*'DFS Dashboard'!$U$8+'Total Projections (excl QB)'!J164*'DFS Dashboard'!$U$9+'Total Projections (excl QB)'!M164*'DFS Dashboard'!$U$6+'Total Projections (excl QB)'!N164*'DFS Dashboard'!$U$7+IF('Total Projections (excl QB)'!I164>99.99,'DFS Dashboard'!$U$12,0)+IF('Total Projections (excl QB)'!M164>99.99,'DFS Dashboard'!$U$11,0),0)) -> 0
A165: =RANK(O165,$O:$O,0)+COUNTIF($O$4:O165,O165)-1 -> 162 | B165: Philadelphia Eagles | C165: Running Back | D165: ='Philadelphia Eagles'!$B$143 -> Kenneth Gainwell | E165: ='Philadelphia Eagles'!$D$143 -> 0 | F165: ='Philadelphia Eagles'!$E$143 -> 0 | G165: ='Philadelphia Eagles'!$F$143 -> 0 | H165: ='Philadelphia Eagles'!$G$143 -> 0 | I165: ='Philadelphia Eagles'!$H$143 -> 0 | J165: ='Philadelphia Eagles'!$I$143 -> 0 | K165: ='Philadelphia Eagles'!$K$143 -> 0 | L165: ='Philadelphia Eagles'!$L$143 -> 0 | M165: ='Philadelphia Eagles'!$M$143 -> 0 | N165: ='Philadelphia Eagles'!$N$143 -> 0 | O165: =IF('DFS Dashboard'!$H$1="DraftKings",'Total Projections (excl QB)'!G165*'DFS Dashboard'!$T$10+'Total Projections (excl QB)'!I165*'DFS Dashboard'!$T$8+'Total Projections (excl QB)'!J165*'DFS Dashboard'!$T$9+'Total Projections (excl QB)'!M165*'DFS Dashboard'!$T$6+'Total Projections (excl QB)'!N165*'DFS Dashboard'!$T$7+IF('Total Projections (excl QB)'!I165>99.99,'DFS Dashboard'!$T$12,0)+IF('Total Projections (excl QB)'!M165>99.99,'DFS Dashboard'!$T$11,0),IF('DFS Dashboard'!$H$1="FanDuel",'Total Projections (excl QB)'!G165*'DFS Dashboard'!$U$10+'Total Projections (excl QB)'!I165*'DFS Dashboard'!$U$8+'Total Projections (excl QB)'!J165*'DFS Dashboard'!$U$9+'Total Projections (excl QB)'!M165*'DFS Dashboard'!$U$6+'Total Projections (excl QB)'!N165*'DFS Dashboard'!$U$7+IF('Total Projections (excl QB)'!I165>99.99,'DFS Dashboard'!$U$12,0)+IF('Total Projections (excl QB)'!M165>99.99,'DFS Dashboard'!$U$11,0),0)) -> 0
A166: =RANK(O166,$O:$O,0)+COUNTIF($O$4:O166,O166)-1 -> 163 | B166: Philadelphia Eagles | C166: Running Back | D166: ='Philadelphia Eagles'!$B$144 -> Will Shipley | E166: ='Philadelphia Eagles'!$D$144 -> 0 | F166: ='Philadelphia Eagles'!$E$144 -> 0 | G166: ='Philadelphia Eagles'!$F$144 -> 0 | H166: ='Philadelphia Eagles'!$G$144 -> 0 | I166: ='Philadelphia Eagles'!$H$144 -> 0 | J166: ='Philadelphia Eagles'!$I$144 -> 0 | K166: ='Philadelphia Eagles'!$K$144 -> 0 | L166: ='Philadelphia Eagles'!$L$144 -> 0 | M166: ='Philadelphia Eagles'!$M$144 -> 0 | N166: ='Philadelphia Eagles'!$N$144 -> 0 | O166: =IF('DFS Dashboard'!$H$1="DraftKings",'Total Projections (excl QB)'!G166*'DFS Dashboard'!$T$10+'Total Projections (excl QB)'!I166*'DFS Dashboard'!$T$8+'Total Projections (excl QB)'!J166*'DFS Dashboard'!$T$9+'Total Projections (excl QB)'!M166*'DFS Dashboard'!$T$6+'Total Projections (excl QB)'!N166*'DFS Dashboard'!$T$7+IF('Total Projections (excl QB)'!I166>99.99,'DFS Dashboard'!$T$12,0)+IF('Total Projections (excl QB)'!M166>99.99,'DFS Dashboard'!$T$11,0),IF('DFS Dashboard'!$H$1="FanDuel",'Total Projections (excl QB)'!G166*'DFS Dashboard'!$U$10+'Total Projections (excl QB)'!I166*'DFS Dashboard'!$U$8+'Total Projections (excl QB)'!J166*'DFS Dashboard'!$U$9+'Total Projections (excl QB)'!M166*'DFS Dashboard'!$U$6+'Total Projections (excl QB)'!N166*'DFS Dashboard'!$U$7+IF('Total Projections (excl QB)'!I166>99.99,'DFS Dashboard'!$U$12,0)+IF('Total Projections (excl QB)'!M166>99.99,'DFS Dashboard'!$U$11,0),0)) -> 0
A167: =RANK(O167,$O:$O,0)+COUNTIF($O$4:O167,O167)-1 -> 164 | B167: Philadelphia Eagles | C167: Running Back | D167: ='Philadelphia Eagles'!$B$145 -> Tyrion Davis-Price | E167: ='Philadelphia Eagles'!$D$145 -> 0 | F167: ='Philadelphia Eagles'!$E$145 -> 0 | G167: ='Philadelphia Eagles'!$F$145 -> 0 | H167: ='Philadelphia Eagles'!$G$145 -> 0 | I167: ='Philadelphia Eagles'!$H$145 -> 0 | J167: ='Philadelphia Eagles'!$I$145 -> 0 | K167: ='Philadelphia Eagles'!$K$145 -> 0 | L167: ='Philadelphia Eagles'!$L$145 -> 0 | M167: ='Philadelphia Eagles'!$M$145 -> 0 | N167: ='Philadelphia Eagles'!$N$145 -> 0 | O167: =IF('DFS Dashboard'!$H$1="DraftKings",'Total Projections (excl QB)'!G167*'DFS Dashboard'!$T$10+'Total Projections (excl QB)'!I167*'DFS Dashboard'!$T$8+'Total Projections (excl QB)'!J167*'DFS Dashboard'!$T$9+'Total Projections (excl QB)'!M167*'DFS Dashboard'!$T$6+'Total Projections (excl QB)'!N167*'DFS Dashboard'!$T$7+IF('Total Projections (excl QB)'!I167>99.99,'DFS Dashboard'!$T$12,0)+IF('Total Projections (excl QB)'!M167>99.99,'DFS Dashboard'!$T$11,0),IF('DFS Dashboard'!$H$1="FanDuel",'Total Projections (excl QB)'!G167*'DFS Dashboard'!$U$10+'Total Projections (excl QB)'!I167*'DFS Dashboard'!$U$8+'Total Projections (excl QB)'!J167*'DFS Dashboard'!$U$9+'Total Projections (excl QB)'!M167*'DFS Dashboard'!$U$6+'Total Projections (excl QB)'!N167*'DFS Dashboard'!$U$7+IF('Total Projections (excl QB)'!I167>99.99,'DFS Dashboard'!$U$12,0)+IF('Total Projections (excl QB)'!M167>99.99,'DFS Dashboard'!$U$11,0),0)) -> 0
A168: =RANK(O168,$O:$O,0)+COUNTIF($O$4:O168,O168)-1 -> 165 | B168: Philadelphia Eagles | C168: Wide Receiver | D168: ='Philadelphia Eagles'!$B$118 -> A.J. Brown | E168: ='Philadelphia Eagles'!$D$118 -> 0 | F168: ='Philadelphia Eagles'!$E$118 -> 0 | G168: ='Philadelphia Eagles'!$F$118 -> 0 | H168: ='Philadelphia Eagles'!$G$118 -> 0 | I168: ='Philadelphia Eagles'!$H$118 -> 0 | J168: ='Philadelphia Eagles'!$I$118 -> 0 | K168: ='Philadelphia Eagles'!$K$118 -> 0 | L168: ='Philadelphia Eagles'!$L$118 -> 0 | M168: ='Philadelphia Eagles'!$M$118 -> 0 | N168: ='Philadelphia Eagles'!$N$118 -> 0 | O168: =IF('DFS Dashboard'!$H$1="DraftKings",'Total Projections (excl QB)'!G168*'DFS Dashboard'!$T$10+'Total Projections (excl QB)'!I168*'DFS Dashboard'!$T$8+'Total Projections (excl QB)'!J168*'DFS Dashboard'!$T$9+'Total Projections (excl QB)'!M168*'DFS Dashboard'!$T$6+'Total Projections (excl QB)'!N168*'DFS Dashboard'!$T$7+IF('Total Projections (excl QB)'!I168>99.99,'DFS Dashboard'!$T$12,0)+IF('Total Projections (excl QB)'!M168>99.99,'DFS Dashboard'!$T$11,0),IF('DFS Dashboard'!$H$1="FanDuel",'Total Projections (excl QB)'!G168*'DFS Dashboard'!$U$10+'Total Projections (excl QB)'!I168*'DFS Dashboard'!$U$8+'Total Projections (excl QB)'!J168*'DFS Dashboard'!$U$9+'Total Projections (excl QB)'!M168*'DFS Dashboard'!$U$6+'Total Projections (excl QB)'!N168*'DFS Dashboard'!$U$7+IF('Total Projections (excl QB)'!I168>99.99,'DFS Dashboard'!$U$12,0)+IF('Total Projections (excl QB)'!M168>99.99,'DFS Dashboard'!$U$11,0),0)) -> 0
A169: =RANK(O169,$O:$O,0)+COUNTIF($O$4:O169,O169)-1 -> 166 | B169: Philadelphia Eagles | C169: Wide Receiver | D169: ='Philadelphia Eagles'!$B$119 -> DeVonta Smith | E169: ='Philadelphia Eagles'!$D$119 -> 0 | F169: ='Philadelphia Eagles'!$E$119 -> 0 | G169: ='Philadelphia Eagles'!$F$119 -> 0 | H169: ='Philadelphia Eagles'!$G$119 -> 0 | I169: ='Philadelphia Eagles'!$H$119 -> 0 | J169: ='Philadelphia Eagles'!$I$119 -> 0 | K169: ='Philadelphia Eagles'!$K$119 -> 0 | L169: ='Philadelphia Eagles'!$L$119 -> 0 | M169: ='Philadelphia Eagles'!$M$119 -> 0 | N169: ='Philadelphia Eagles'!$N$119 -> 0 | O169: =IF('DFS Dashboard'!$H$1="DraftKings",'Total Projections (excl QB)'!G169*'DFS Dashboard'!$T$10+'Total Projections (excl QB)'!I169*'DFS Dashboard'!$T$8+'Total Projections (excl QB)'!J169*'DFS Dashboard'!$T$9+'Total Projections (excl QB)'!M169*'DFS Dashboard'!$T$6+'Total Projections (excl QB)'!N169*'DFS Dashboard'!$T$7+IF('Total Projections (excl QB)'!I169>99.99,'DFS Dashboard'!$T$12,0)+IF('Total Projections (excl QB)'!M169>99.99,'DFS Dashboard'!$T$11,0),IF('DFS Dashboard'!$H$1="FanDuel",'Total Projections (excl QB)'!G169*'DFS Dashboard'!$U$10+'Total Projections (excl QB)'!I169*'DFS Dashboard'!$U$8+'Total Projections (excl QB)'!J169*'DFS Dashboard'!$U$9+'Total Projections (excl QB)'!M169*'DFS Dashboard'!$U$6+'Total Projections (excl QB)'!N169*'DFS Dashboard'!$U$7+IF('Total Projections (excl QB)'!I169>99.99,'DFS Dashboard'!$U$12,0)+IF('Total Projections (excl QB)'!M169>99.99,'DFS Dashboard'!$U$11,0),0)) -> 0
A170: =RANK(O170,$O:$O,0)+COUNTIF($O$4:O170,O170)-1 -> 167 | B170: Philadelphia Eagles | C170: Wide Receiver | D170: ='Philadelphia Eagles'!$B$120 -> Jahan Dotson | E170: ='Philadelphia Eagles'!$D$120 -> 0 | F170: ='Philadelphia Eagles'!$E$120 -> 0 | G170: ='Philadelphia Eagles'!$F$120 -> 0 | H170: ='Philadelphia Eagles'!$G$120 -> 0 | I170: ='Philadelphia Eagles'!$H$120 -> 0 | J170: ='Philadelphia Eagles'!$I$120 -> 0 | K170: ='Philadelphia Eagles'!$K$120 -> 0 | L170: ='Philadelphia Eagles'!$L$120 -> 0 | M170: ='Philadelphia Eagles'!$M$120 -> 0 | N170: ='Philadelphia Eagles'!$N$120 -> 0 | O170: =IF('DFS Dashboard'!$H$1="DraftKings",'Total Projections (excl QB)'!G170*'DFS Dashboard'!$T$10+'Total Projections (excl QB)'!I170*'DFS Dashboard'!$T$8+'Total Projections (excl QB)'!J170*'DFS Dashboard'!$T$9+'Total Projections (excl QB)'!M170*'DFS Dashboard'!$T$6+'Total Projections (excl QB)'!N170*'DFS Dashboard'!$T$7+IF('Total Projections (excl QB)'!I170>99.99,'DFS Dashboard'!$T$12,0)+IF('Total Projections (excl QB)'!M170>99.99,'DFS Dashboard'!$T$11,0),IF('DFS Dashboard'!$H$1="FanDuel",'Total Projections (excl QB)'!G170*'DFS Dashboard'!$U$10+'Total Projections (excl QB)'!I170*'DFS Dashboard'!$U$8+'Total Projections (excl QB)'!J170*'DFS Dashboard'!$U$9+'Total Projections (excl QB)'!M170*'DFS Dashboard'!$U$6+'Total Projections (excl QB)'!N170*'DFS Dashboard'!$U$7+IF('Total Projections (excl QB)'!I170>99.99,'DFS Dashboard'!$U$12,0)+IF('Total Projections (excl QB)'!M170>99.99,'DFS Dashboard'!$U$11,0),0)) -> 0
A171: =RANK(O171,$O:$O,0)+COUNTIF($O$4:O171,O171)-1 -> 168 | B171: Philadelphia Eagles | C171: Wide Receiver | D171: ='Philadelphia Eagles'!$B$121 -> Britain Covey | E171: ='Philadelphia Eagles'!$D$121 -> 0 | F171: ='Philadelphia Eagles'!$E$121 -> 0 | G171: ='Philadelphia Eagles'!$F$121 -> 0 | H171: ='Philadelphia Eagles'!$G$121 -> 0 | I171: ='Philadelphia Eagles'!$H$121 -> 0 | J171: ='Philadelphia Eagles'!$I$121 -> 0 | K171: ='Philadelphia Eagles'!$K$121 -> 0 | L171: ='Philadelphia Eagles'!$L$121 -> 0 | M171: ='Philadelphia Eagles'!$M$121 -> 0 | N171: ='Philadelphia Eagles'!$N$121 -> 0 | O171: =IF('DFS Dashboard'!$H$1="DraftKings",'Total Projections (excl QB)'!G171*'DFS Dashboard'!$T$10+'Total Projections (excl QB)'!I171*'DFS Dashboard'!$T$8+'Total Projections (excl QB)'!J171*'DFS Dashboard'!$T$9+'Total Projections (excl QB)'!M171*'DFS Dashboard'!$T$6+'Total Projections (excl QB)'!N171*'DFS Dashboard'!$T$7+IF('Total Projections (excl QB)'!I171>99.99,'DFS Dashboard'!$T$12,0)+IF('Total Projections (excl QB)'!M171>99.99,'DFS Dashboard'!$T$11,0),IF('DFS Dashboard'!$H$1="FanDuel",'Total Projections (excl QB)'!G171*'DFS Dashboard'!$U$10+'Total Projections (excl QB)'!I171*'DFS Dashboard'!$U$8+'Total Projections (excl QB)'!J171*'DFS Dashboard'!$U$9+'Total Projections (excl QB)'!M171*'DFS Dashboard'!$U$6+'Total Projections (excl QB)'!N171*'DFS Dashboard'!$U$7+IF('Total Projections (excl QB)'!I171>99.99,'DFS Dashboard'!$U$12,0)+IF('Total Projections (excl QB)'!M171>99.99,'DFS Dashboard'!$U$11,0),0)) -> 0
A172: =RANK(O172,$O:$O,0)+COUNTIF($O$4:O172,O172)-1 -> 169 | B172: Philadelphia Eagles | C172: Wide Receiver | D172: ='Philadelphia Eagles'!$B$122 -> Parris Campbell | E172: ='Philadelphia Eagles'!$D$122 -> 0 | F172: ='Philadelphia Eagles'!$E$122 -> 0 | G172: ='Philadelphia Eagles'!$F$122 -> 0 | H172: ='Philadelphia Eagles'!$G$122 -> 0 | I172: ='Philadelphia Eagles'!$H$122 -> 0 | J172: ='Philadelphia Eagles'!$I$122 -> 0 | K172: ='Philadelphia Eagles'!$K$122 -> 0 | L172: ='Philadelphia Eagles'!$L$122 -> 0 | M172: ='Philadelphia Eagles'!$M$122 -> 0 | N172: ='Philadelphia Eagles'!$N$122 -> 0 | O172: =IF('DFS Dashboard'!$H$1="DraftKings",'Total Projections (excl QB)'!G172*'DFS Dashboard'!$T$10+'Total Projections (excl QB)'!I172*'DFS Dashboard'!$T$8+'Total Projections (excl QB)'!J172*'DFS Dashboard'!$T$9+'Total Projections (excl QB)'!M172*'DFS Dashboard'!$T$6+'Total Projections (excl QB)'!N172*'DFS Dashboard'!$T$7+IF('Total Projections (excl QB)'!I172>99.99,'DFS Dashboard'!$T$12,0)+IF('Total Projections (excl QB)'!M172>99.99,'DFS Dashboard'!$T$11,0),IF('DFS Dashboard'!$H$1="FanDuel",'Total Projections (excl QB)'!G172*'DFS Dashboard'!$U$10+'Total Projections (excl QB)'!I172*'DFS Dashboard'!$U$8+'Total Projections (excl QB)'!J172*'DFS Dashboard'!$U$9+'Total Projections (excl QB)'!M172*'DFS Dashboard'!$U$6+'Total Projections (excl QB)'!N172*'DFS Dashboard'!$U$7+IF('Total Projections (excl QB)'!I172>99.99,'DFS Dashboard'!$U$12,0)+IF('Total Projections (excl QB)'!M172>99.99,'DFS Dashboard'!$U$11,0),0)) -> 0
A173: =RANK(O173,$O:$O,0)+COUNTIF($O$4:O173,O173)-1 -> 170 | B173: Philadelphia Eagles | C173: Wide Receiver | D173: ='Philadelphia Eagles'!$B$123 -> Johnny Wilson | E173: ='Philadelphia Eagles'!$D$123 -> 0 | F173: ='Philadelphia Eagles'!$E$123 -> 0 | G173: ='Philadelphia Eagles'!$F$123 -> 0 | H173: ='Philadelphia Eagles'!$G$123 -> 0 | I173: ='Philadelphia Eagles'!$H$123 -> 0 | J173: ='Philadelphia Eagles'!$I$123 -> 0 | K173: ='Philadelphia Eagles'!$K$123 -> 0 | L173: ='Philadelphia Eagles'!$L$123 -> 0 | M173: ='Philadelphia Eagles'!$M$123 -> 0 | N173: ='Philadelphia Eagles'!$N$123 -> 0 | O173: =IF('DFS Dashboard'!$H$1="DraftKings",'Total Projections (excl QB)'!G173*'DFS Dashboard'!$T$10+'Total Projections (excl QB)'!I173*'DFS Dashboard'!$T$8+'Total Projections (excl QB)'!J173*'DFS Dashboard'!$T$9+'Total Projections (excl QB)'!M173*'DFS Dashboard'!$T$6+'Total Projections (excl QB)'!N173*'DFS Dashboard'!$T$7+IF('Total Projections (excl QB)'!I173>99.99,'DFS Dashboard'!$T$12,0)+IF('Total Projections (excl QB)'!M173>99.99,'DFS Dashboard'!$T$11,0),IF('DFS Dashboard'!$H$1="FanDuel",'Total Projections (excl QB)'!G173*'DFS Dashboard'!$U$10+'Total Projections (excl QB)'!I173*'DFS Dashboard'!$U$8+'Total Projections (excl QB)'!J173*'DFS Dashboard'!$U$9+'Total Projections (excl QB)'!M173*'DFS Dashboard'!$U$6+'Total Projections (excl QB)'!N173*'DFS Dashboard'!$U$7+IF('Total Projections (excl QB)'!I173>99.99,'DFS Dashboard'!$U$12,0)+IF('Total Projections (excl QB)'!M173>99.99,'DFS Dashboard'!$U$11,0),0)) -> 0
A174: =RANK(O174,$O:$O,0)+COUNTIF($O$4:O174,O174)-1 -> 171 | B174: Philadelphia Eagles | C174: Wide Receiver | D174: ='Philadelphia Eagles'!$B$124 -> Ainias Smith | E174: ='Philadelphia Eagles'!$D$124 -> 0 | F174: ='Philadelphia Eagles'!$E$124 -> 0 | G174: ='Philadelphia Eagles'!$F$124 -> 0 | H174: ='Philadelphia Eagles'!$G$124 -> 0 | I174: ='Philadelphia Eagles'!$H$124 -> 0 | J174: ='Philadelphia Eagles'!$I$124 -> 0 | K174: ='Philadelphia Eagles'!$K$124 -> 0 | L174: ='Philadelphia Eagles'!$L$124 -> 0 | M174: ='Philadelphia Eagles'!$M$124 -> 0 | N174: ='Philadelphia Eagles'!$N$124 -> 0 | O174: =IF('DFS Dashboard'!$H$1="DraftKings",'Total Projections (excl QB)'!G174*'DFS Dashboard'!$T$10+'Total Projections (excl QB)'!I174*'DFS Dashboard'!$T$8+'Total Projections (excl QB)'!J174*'DFS Dashboard'!$T$9+'Total Projections (excl QB)'!M174*'DFS Dashboard'!$T$6+'Total Projections (excl QB)'!N174*'DFS Dashboard'!$T$7+IF('Total Projections (excl QB)'!I174>99.99,'DFS Dashboard'!$T$12,0)+IF('Total Projections (excl QB)'!M174>99.99,'DFS Dashboard'!$T$11,0),IF('DFS Dashboard'!$H$1="FanDuel",'Total Projections (excl QB)'!G174*'DFS Dashboard'!$U$10+'Total Projections (excl QB)'!I174*'DFS Dashboard'!$U$8+'Total Projections (excl QB)'!J174*'DFS Dashboard'!$U$9+'Total Projections (excl QB)'!M174*'DFS Dashboard'!$U$6+'Total Projections (excl QB)'!N174*'DFS Dashboard'!$U$7+IF('Total Projections (excl QB)'!I174>99.99,'DFS Dashboard'!$U$12,0)+IF('Total Projections (excl QB)'!M174>99.99,'DFS Dashboard'!$U$11,0),0)) -> 0
A175: =RANK(O175,$O:$O,0)+COUNTIF($O$4:O175,O175)-1 -> 172 | B175: Philadelphia Eagles | C175: Wide Receiver | D175: ='Philadelphia Eagles'!$B$125 -> John Ross | E175: ='Philadelphia Eagles'!$D$125 -> 0 | F175: ='Philadelphia Eagles'!$E$125 -> 0 | G175: ='Philadelphia Eagles'!$F$125 -> 0 | H175: ='Philadelphia Eagles'!$G$125 -> 0 | I175: ='Philadelphia Eagles'!$H$125 -> 0 | J175: ='Philadelphia Eagles'!$I$125 -> 0 | K175: ='Philadelphia Eagles'!$K$125 -> 0 | L175: ='Philadelphia Eagles'!$L$125 -> 0 | M175: ='Philadelphia Eagles'!$M$125 -> 0 | N175: ='Philadelphia Eagles'!$N$125 -> 0 | O175: =IF('DFS Dashboard'!$H$1="DraftKings",'Total Projections (excl QB)'!G175*'DFS Dashboard'!$T$10+'Total Projections (excl QB)'!I175*'DFS Dashboard'!$T$8+'Total Projections (excl QB)'!J175*'DFS Dashboard'!$T$9+'Total Projections (excl QB)'!M175*'DFS Dashboard'!$T$6+'Total Projections (excl QB)'!N175*'DFS Dashboard'!$T$7+IF('Total Projections (excl QB)'!I175>99.99,'DFS Dashboard'!$T$12,0)+IF('Total Projections (excl QB)'!M175>99.99,'DFS Dashboard'!$T$11,0),IF('DFS Dashboard'!$H$1="FanDuel",'Total Projections (excl QB)'!G175*'DFS Dashboard'!$U$10+'Total Projections (excl QB)'!I175*'DFS Dashboard'!$U$8+'Total Projections (excl QB)'!J175*'DFS Dashboard'!$U$9+'Total Projections (excl QB)'!M175*'DFS Dashboard'!$U$6+'Total Projections (excl QB)'!N175*'DFS Dashboard'!$U$7+IF('Total Projections (excl QB)'!I175>99.99,'DFS Dashboard'!$U$12,0)+IF('Total Projections (excl QB)'!M175>99.99,'DFS Dashboard'!$U$11,0),0)) -> 0
A176: =RANK(O176,$O:$O,0)+COUNTIF($O$4:O176,O176)-1 -> 173 | B176: Philadelphia Eagles | C176: Tight End | D176: ='Philadelphia Eagles'!$B$162 -> Dallas Goedert | E176: ='Philadelphia Eagles'!$D$162 -> 0 | F176: ='Philadelphia Eagles'!$E$162 -> 0 | G176: ='Philadelphia Eagles'!$F$162 -> 0 | H176: ='Philadelphia Eagles'!$G$162 -> 0 | I176: ='Philadelphia Eagles'!$H$162 -> 0 | J176: ='Philadelphia Eagles'!$I$162 -> 0 | K176: ='Philadelphia Eagles'!$K$162 -> 0 | L176: ='Philadelphia Eagles'!$L$162 -> 0 | M176: ='Philadelphia Eagles'!$M$162 -> 0 | N176: ='Philadelphia Eagles'!$N$162 -> 0 | O176: =IF('DFS Dashboard'!$H$1="DraftKings",'Total Projections (excl QB)'!G176*'DFS Dashboard'!$T$10+'Total Projections (excl QB)'!I176*'DFS Dashboard'!$T$8+'Total Projections (excl QB)'!J176*'DFS Dashboard'!$T$9+'Total Projections (excl QB)'!M176*'DFS Dashboard'!$T$6+'Total Projections (excl QB)'!N176*'DFS Dashboard'!$T$7+IF('Total Projections (excl QB)'!I176>99.99,'DFS Dashboard'!$T$12,0)+IF('Total Projections (excl QB)'!M176>99.99,'DFS Dashboard'!$T$11,0),IF('DFS Dashboard'!$H$1="FanDuel",'Total Projections (excl QB)'!G176*'DFS Dashboard'!$U$10+'Total Projections (excl QB)'!I176*'DFS Dashboard'!$U$8+'Total Projections (excl QB)'!J176*'DFS Dashboard'!$U$9+'Total Projections (excl QB)'!M176*'DFS Dashboard'!$U$6+'Total Projections (excl QB)'!N176*'DFS Dashboard'!$U$7+IF('Total Projections (excl QB)'!I176>99.99,'DFS Dashboard'!$U$12,0)+IF('Total Projections (excl QB)'!M176>99.99,'DFS Dashboard'!$U$11,0),0)) -> 0
A177: =RANK(O177,$O:$O,0)+COUNTIF($O$4:O177,O177)-1 -> 174 | B177: Philadelphia Eagles | C177: Tight End | D177: ='Philadelphia Eagles'!$B$163 -> Grant Calcaterra | E177: ='Philadelphia Eagles'!$D$163 -> 0 | F177: ='Philadelphia Eagles'!$E$163 -> 0 | G177: ='Philadelphia Eagles'!$F$163 -> 0 | H177: ='Philadelphia Eagles'!$G$163 -> 0 | I177: ='Philadelphia Eagles'!$H$163 -> 0 | J177: ='Philadelphia Eagles'!$I$163 -> 0 | K177: ='Philadelphia Eagles'!$K$163 -> 0 | L177: ='Philadelphia Eagles'!$L$163 -> 0 | M177: ='Philadelphia Eagles'!$M$163 -> 0 | N177: ='Philadelphia Eagles'!$N$163 -> 0 | O177: =IF('DFS Dashboard'!$H$1="DraftKings",'Total Projections (excl QB)'!G177*'DFS Dashboard'!$T$10+'Total Projections (excl QB)'!I177*'DFS Dashboard'!$T$8+'Total Projections (excl QB)'!J177*'DFS Dashboard'!$T$9+'Total Projections (excl QB)'!M177*'DFS Dashboard'!$T$6+'Total Projections (excl QB)'!N177*'DFS Dashboard'!$T$7+IF('Total Projections (excl QB)'!I177>99.99,'DFS Dashboard'!$T$12,0)+IF('Total Projections (excl QB)'!M177>99.99,'DFS Dashboard'!$T$11,0),IF('DFS Dashboard'!$H$1="FanDuel",'Total Projections (excl QB)'!G177*'DFS Dashboard'!$U$10+'Total Projections (excl QB)'!I177*'DFS Dashboard'!$U$8+'Total Projections (excl QB)'!J177*'DFS Dashboard'!$U$9+'Total Projections (excl QB)'!M177*'DFS Dashboard'!$U$6+'Total Projections (excl QB)'!N177*'DFS Dashboard'!$U$7+IF('Total Projections (excl QB)'!I177>99.99,'DFS Dashboard'!$U$12,0)+IF('Total Projections (excl QB)'!M177>99.99,'DFS Dashboard'!$U$11,0),0)) -> 0
A178: =RANK(O178,$O:$O,0)+COUNTIF($O$4:O178,O178)-1 -> 175 | B178: Philadelphia Eagles | C178: Tight End | D178: ='Philadelphia Eagles'!$B$164 -> Jack Stoll | E178: ='Philadelphia Eagles'!$D$164 -> 0 | F178: ='Philadelphia Eagles'!$E$164 -> 0 | G178: ='Philadelphia Eagles'!$F$164 -> 0 | H178: ='Philadelphia Eagles'!$G$164 -> 0 | I178: ='Philadelphia Eagles'!$H$164 -> 0 | J178: ='Philadelphia Eagles'!$I$164 -> 0 | K178: ='Philadelphia Eagles'!$K$164 -> 0 | L178: ='Philadelphia Eagles'!$L$164 -> 0 | M178: ='Philadelphia Eagles'!$M$164 -> 0 | N178: ='Philadelphia Eagles'!$N$164 -> 0 | O178: =IF('DFS Dashboard'!$H$1="DraftKings",'Total Projections (excl QB)'!G178*'DFS Dashboard'!$T$10+'Total Projections (excl QB)'!I178*'DFS Dashboard'!$T$8+'Total Projections (excl QB)'!J178*'DFS Dashboard'!$T$9+'Total Projections (excl QB)'!M178*'DFS Dashboard'!$T$6+'Total Projections (excl QB)'!N178*'DFS Dashboard'!$T$7+IF('Total Projections (excl QB)'!I178>99.99,'DFS Dashboard'!$T$12,0)+IF('Total Projections (excl QB)'!M178>99.99,'DFS Dashboard'!$T$11,0),IF('DFS Dashboard'!$H$1="FanDuel",'Total Projections (excl QB)'!G178*'DFS Dashboard'!$U$10+'Total Projections (excl QB)'!I178*'DFS Dashboard'!$U$8+'Total Projections (excl QB)'!J178*'DFS Dashboard'!$U$9+'Total Projections (excl QB)'!M178*'DFS Dashboard'!$U$6+'Total Projections (excl QB)'!N178*'DFS Dashboard'!$U$7+IF('Total Projections (excl QB)'!I178>99.99,'DFS Dashboard'!$U$12,0)+IF('Total Projections (excl QB)'!M178>99.99,'DFS Dashboard'!$U$11,0),0)) -> 0
A179: =RANK(O179,$O:$O,0)+COUNTIF($O$4:O179,O179)-1 -> 176 | B179: Philadelphia Eagles | C179: Tight End | D179: ='Philadelphia Eagles'!$B$165 -> E.J. Jenkins | E179: ='Philadelphia Eagles'!$D$165 -> 0 | F179: ='Philadelphia Eagles'!$E$165 -> 0 | G179: ='Philadelphia Eagles'!$F$165 -> 0 | H179: ='Philadelphia Eagles'!$G$165 -> 0 | I179: ='Philadelphia Eagles'!$H$165 -> 0 | J179: ='Philadelphia Eagles'!$I$165 -> 0 | K179: ='Philadelphia Eagles'!$K$165 -> 0 | L179: ='Philadelphia Eagles'!$L$165 -> 0 | M179: ='Philadelphia Eagles'!$M$165 -> 0 | N179: ='Philadelphia Eagles'!$N$165 -> 0 | O179: =IF('DFS Dashboard'!$H$1="DraftKings",'Total Projections (excl QB)'!G179*'DFS Dashboard'!$T$10+'Total Projections (excl QB)'!I179*'DFS Dashboard'!$T$8+'Total Projections (excl QB)'!J179*'DFS Dashboard'!$T$9+'Total Projections (excl QB)'!M179*'DFS Dashboard'!$T$6+'Total Projections (excl QB)'!N179*'DFS Dashboard'!$T$7+IF('Total Projections (excl QB)'!I179>99.99,'DFS Dashboard'!$T$12,0)+IF('Total Projections (excl QB)'!M179>99.99,'DFS Dashboard'!$T$11,0),IF('DFS Dashboard'!$H$1="FanDuel",'Total Projections (excl QB)'!G179*'DFS Dashboard'!$U$10+'Total Projections (excl QB)'!I179*'DFS Dashboard'!$U$8+'Total Projections (excl QB)'!J179*'DFS Dashboard'!$U$9+'Total Projections (excl QB)'!M179*'DFS Dashboard'!$U$6+'Total Projections (excl QB)'!N179*'DFS Dashboard'!$U$7+IF('Total Projections (excl QB)'!I179>99.99,'DFS Dashboard'!$U$12,0)+IF('Total Projections (excl QB)'!M179>99.99,'DFS Dashboard'!$U$11,0),0)) -> 0
A180: =RANK(O180,$O:$O,0)+COUNTIF($O$4:O180,O180)-1 -> 177 | B180: Pittsburgh Steelers | C180: Running Back | D180: ='Pittsburgh Steelers'!$B$142 -> Najee Harris | E180: ='Pittsburgh Steelers'!$D$142 -> 0 | F180: ='Pittsburgh Steelers'!$E$142 -> 0 | G180: ='Pittsburgh Steelers'!$F$142 -> 0 | H180: ='Pittsburgh Steelers'!$G$142 -> 0 | I180: ='Pittsburgh Steelers'!$H$142 -> 0 | J180: ='Pittsburgh Steelers'!$I$142 -> 0 | K180: ='Pittsburgh Steelers'!$K$142 -> 0 | L180: ='Pittsburgh Steelers'!$L$142 -> 0 | M180: ='Pittsburgh Steelers'!$M$142 -> 0 | N180: ='Pittsburgh Steelers'!$N$142 -> 0 | O180: =IF('DFS Dashboard'!$H$1="DraftKings",'Total Projections (excl QB)'!G180*'DFS Dashboard'!$T$10+'Total Projections (excl QB)'!I180*'DFS Dashboard'!$T$8+'Total Projections (excl QB)'!J180*'DFS Dashboard'!$T$9+'Total Projections (excl QB)'!M180*'DFS Dashboard'!$T$6+'Total Projections (excl QB)'!N180*'DFS Dashboard'!$T$7+IF('Total Projections (excl QB)'!I180>99.99,'DFS Dashboard'!$T$12,0)+IF('Total Projections (excl QB)'!M180>99.99,'DFS Dashboard'!$T$11,0),IF('DFS Dashboard'!$H$1="FanDuel",'Total Projections (excl QB)'!G180*'DFS Dashboard'!$U$10+'Total Projections (excl QB)'!I180*'DFS Dashboard'!$U$8+'Total Projections (excl QB)'!J180*'DFS Dashboard'!$U$9+'Total Projections (excl QB)'!M180*'DFS Dashboard'!$U$6+'Total Projections (excl QB)'!N180*'DFS Dashboard'!$U$7+IF('Total Projections (excl QB)'!I180>99.99,'DFS Dashboard'!$U$12,0)+IF('Total Projections (excl QB)'!M180>99.99,'DFS Dashboard'!$U$11,0),0)) -> 0
A181: =RANK(O181,$O:$O,0)+COUNTIF($O$4:O181,O181)-1 -> 178 | B181: Pittsburgh Steelers | C181: Running Back | D181: ='Pittsburgh Steelers'!$B$143 -> Jaylen Warren | E181: ='Pittsburgh Steelers'!$D$143 -> 0 | F181: ='Pittsburgh Steelers'!$E$143 -> 0 | G181: ='Pittsburgh Steelers'!$F$143 -> 0 | H181: ='Pittsburgh Steelers'!$G$143 -> 0 | I181: ='Pittsburgh Steelers'!$H$143 -> 0 | J181: ='Pittsburgh Steelers'!$I$143 -> 0 | K181: ='Pittsburgh Steelers'!$K$143 -> 0 | L181: ='Pittsburgh Steelers'!$L$143 -> 0 | M181: ='Pittsburgh Steelers'!$M$143 -> 0 | N181: ='Pittsburgh Steelers'!$N$143 -> 0 | O181: =IF('DFS Dashboard'!$H$1="DraftKings",'Total Projections (excl QB)'!G181*'DFS Dashboard'!$T$10+'Total Projections (excl QB)'!I181*'DFS Dashboard'!$T$8+'Total Projections (excl QB)'!J181*'DFS Dashboard'!$T$9+'Total Projections (excl QB)'!M181*'DFS Dashboard'!$T$6+'Total Projections (excl QB)'!N181*'DFS Dashboard'!$T$7+IF('Total Projections (excl QB)'!I181>99.99,'DFS Dashboard'!$T$12,0)+IF('Total Projections (excl QB)'!M181>99.99,'DFS Dashboard'!$T$11,0),IF('DFS Dashboard'!$H$1="FanDuel",'Total Projections (excl QB)'!G181*'DFS Dashboard'!$U$10+'Total Projections (excl QB)'!I181*'DFS Dashboard'!$U$8+'Total Projections (excl QB)'!J181*'DFS Dashboard'!$U$9+'Total Projections (excl QB)'!M181*'DFS Dashboard'!$U$6+'Total Projections (excl QB)'!N181*'DFS Dashboard'!$U$7+IF('Total Projections (excl QB)'!I181>99.99,'DFS Dashboard'!$U$12,0)+IF('Total Projections (excl QB)'!M181>99.99,'DFS Dashboard'!$U$11,0),0)) -> 0
A182: =RANK(O182,$O:$O,0)+COUNTIF($O$4:O182,O182)-1 -> 179 | B182: Pittsburgh Steelers | C182: Running Back | D182: ='Pittsburgh Steelers'!$B$144 -> Cordarrelle Patterson | E182: ='Pittsburgh Steelers'!$D$144 -> 0 | F182: ='Pittsburgh Steelers'!$E$144 -> 0 | G182: ='Pittsburgh Steelers'!$F$144 -> 0 | H182: ='Pittsburgh Steelers'!$G$144 -> 0 | I182: ='Pittsburgh Steelers'!$H$144 -> 0 | J182: ='Pittsburgh Steelers'!$I$144 -> 0 | K182: ='Pittsburgh Steelers'!$K$144 -> 0 | L182: ='Pittsburgh Steelers'!$L$144 -> 0 | M182: ='Pittsburgh Steelers'!$M$144 -> 0 | N182: ='Pittsburgh Steelers'!$N$144 -> 0 | O182: =IF('DFS Dashboard'!$H$1="DraftKings",'Total Projections (excl QB)'!G182*'DFS Dashboard'!$T$10+'Total Projections (excl QB)'!I182*'DFS Dashboard'!$T$8+'Total Projections (excl QB)'!J182*'DFS Dashboard'!$T$9+'Total Projections (excl QB)'!M182*'DFS Dashboard'!$T$6+'Total Projections (excl QB)'!N182*'DFS Dashboard'!$T$7+IF('Total Projections (excl QB)'!I182>99.99,'DFS Dashboard'!$T$12,0)+IF('Total Projections (excl QB)'!M182>99.99,'DFS Dashboard'!$T$11,0),IF('DFS Dashboard'!$H$1="FanDuel",'Total Projections (excl QB)'!G182*'DFS Dashboard'!$U$10+'Total Projections (excl QB)'!I182*'DFS Dashboard'!$U$8+'Total Projections (excl QB)'!J182*'DFS Dashboard'!$U$9+'Total Projections (excl QB)'!M182*'DFS Dashboard'!$U$6+'Total Projections (excl QB)'!N182*'DFS Dashboard'!$U$7+IF('Total Projections (excl QB)'!I182>99.99,'DFS Dashboard'!$U$12,0)+IF('Total Projections (excl QB)'!M182>99.99,'DFS Dashboard'!$U$11,0),0)) -> 0
A183: =RANK(O183,$O:$O,0)+COUNTIF($O$4:O183,O183)-1 -> 180 | B183: Pittsburgh Steelers | C183: Running Back | D183: ='Pittsburgh Steelers'!$B$145 -> Jonathan Ward | E183: ='Pittsburgh Steelers'!$D$145 -> 0 | F183: ='Pittsburgh Steelers'!$E$145 -> 0 | G183: ='Pittsburgh Steelers'!$F$145 -> 0 | H183: ='Pittsburgh Steelers'!$G$145 -> 0 | I183: ='Pittsburgh Steelers'!$H$145 -> 0 | J183: ='Pittsburgh Steelers'!$I$145 -> 0 | K183: ='Pittsburgh Steelers'!$K$145 -> 0 | L183: ='Pittsburgh Steelers'!$L$145 -> 0 | M183: ='Pittsburgh Steelers'!$M$145 -> 0 | N183: ='Pittsburgh Steelers'!$N$145 -> 0 | O183: =IF('DFS Dashboard'!$H$1="DraftKings",'Total Projections (excl QB)'!G183*'DFS Dashboard'!$T$10+'Total Projections (excl QB)'!I183*'DFS Dashboard'!$T$8+'Total Projections (excl QB)'!J183*'DFS Dashboard'!$T$9+'Total Projections (excl QB)'!M183*'DFS Dashboard'!$T$6+'Total Projections (excl QB)'!N183*'DFS Dashboard'!$T$7+IF('Total Projections (excl QB)'!I183>99.99,'DFS Dashboard'!$T$12,0)+IF('Total Projections (excl QB)'!M183>99.99,'DFS Dashboard'!$T$11,0),IF('DFS Dashboard'!$H$1="FanDuel",'Total Projections (excl QB)'!G183*'DFS Dashboard'!$U$10+'Total Projections (excl QB)'!I183*'DFS Dashboard'!$U$8+'Total Projections (excl QB)'!J183*'DFS Dashboard'!$U$9+'Total Projections (excl QB)'!M183*'DFS Dashboard'!$U$6+'Total Projections (excl QB)'!N183*'DFS Dashboard'!$U$7+IF('Total Projections (excl QB)'!I183>99.99,'DFS Dashboard'!$U$12,0)+IF('Total Projections (excl QB)'!M183>99.99,'DFS Dashboard'!$U$11,0),0)) -> 0
A184: =RANK(O184,$O:$O,0)+COUNTIF($O$4:O184,O184)-1 -> 181 | B184: Pittsburgh Steelers | C184: Wide Receiver | D184: ='Pittsburgh Steelers'!$B$118 -> George Pickens | E184: ='Pittsburgh Steelers'!$D$118 -> 0 | F184: ='Pittsburgh Steelers'!$E$118 -> 0 | G184: ='Pittsburgh Steelers'!$F$118 -> 0 | H184: ='Pittsburgh Steelers'!$G$118 -> 0 | I184: ='Pittsburgh Steelers'!$H$118 -> 0 | J184: ='Pittsburgh Steelers'!$I$118 -> 0 | K184: ='Pittsburgh Steelers'!$K$118 -> 0 | L184: ='Pittsburgh Steelers'!$L$118 -> 0 | M184: ='Pittsburgh Steelers'!$M$118 -> 0 | N184: ='Pittsburgh Steelers'!$N$118 -> 0 | O184: =IF('DFS Dashboard'!$H$1="DraftKings",'Total Projections (excl QB)'!G184*'DFS Dashboard'!$T$10+'Total Projections (excl QB)'!I184*'DFS Dashboard'!$T$8+'Total Projections (excl QB)'!J184*'DFS Dashboard'!$T$9+'Total Projections (excl QB)'!M184*'DFS Dashboard'!$T$6+'Total Projections (excl QB)'!N184*'DFS Dashboard'!$T$7+IF('Total Projections (excl QB)'!I184>99.99,'DFS Dashboard'!$T$12,0)+IF('Total Projections (excl QB)'!M184>99.99,'DFS Dashboard'!$T$11,0),IF('DFS Dashboard'!$H$1="FanDuel",'Total Projections (excl QB)'!G184*'DFS Dashboard'!$U$10+'Total Projections (excl QB)'!I184*'DFS Dashboard'!$U$8+'Total Projections (excl QB)'!J184*'DFS Dashboard'!$U$9+'Total Projections (excl QB)'!M184*'DFS Dashboard'!$U$6+'Total Projections (excl QB)'!N184*'DFS Dashboard'!$U$7+IF('Total Projections (excl QB)'!I184>99.99,'DFS Dashboard'!$U$12,0)+IF('Total Projections (excl QB)'!M184>99.99,'DFS Dashboard'!$U$11,0),0)) -> 0
A185: =RANK(O185,$O:$O,0)+COUNTIF($O$4:O185,O185)-1 -> 182 | B185: Pittsburgh Steelers | C185: Wide Receiver | D185: ='Pittsburgh Steelers'!$B$119 -> Calvin Austin | E185: ='Pittsburgh Steelers'!$D$119 -> 0 | F185: ='Pittsburgh Steelers'!$E$119 -> 0 | G185: ='Pittsburgh Steelers'!$F$119 -> 0 | H185: ='Pittsburgh Steelers'!$G$119 -> 0 | I185: ='Pittsburgh Steelers'!$H$119 -> 0 | J185: ='Pittsburgh Steelers'!$I$119 -> 0 | K185: ='Pittsburgh Steelers'!$K$119 -> 0 | L185: ='Pittsburgh Steelers'!$L$119 -> 0 | M185: ='Pittsburgh Steelers'!$M$119 -> 0 | N185: ='Pittsburgh Steelers'!$N$119 -> 0 | O185: =IF('DFS Dashboard'!$H$1="DraftKings",'Total Projections (excl QB)'!G185*'DFS Dashboard'!$T$10+'Total Projections (excl QB)'!I185*'DFS Dashboard'!$T$8+'Total Projections (excl QB)'!J185*'DFS Dashboard'!$T$9+'Total Projections (excl QB)'!M185*'DFS Dashboard'!$T$6+'Total Projections (excl QB)'!N185*'DFS Dashboard'!$T$7+IF('Total Projections (excl QB)'!I185>99.99,'DFS Dashboard'!$T$12,0)+IF('Total Projections (excl QB)'!M185>99.99,'DFS Dashboard'!$T$11,0),IF('DFS Dashboard'!$H$1="FanDuel",'Total Projections (excl QB)'!G185*'DFS Dashboard'!$U$10+'Total Projections (excl QB)'!I185*'DFS Dashboard'!$U$8+'Total Projections (excl QB)'!J185*'DFS Dashboard'!$U$9+'Total Projections (excl QB)'!M185*'DFS Dashboard'!$U$6+'Total Projections (excl QB)'!N185*'DFS Dashboard'!$U$7+IF('Total Projections (excl QB)'!I185>99.99,'DFS Dashboard'!$U$12,0)+IF('Total Projections (excl QB)'!M185>99.99,'DFS Dashboard'!$U$11,0),0)) -> 0
A186: =RANK(O186,$O:$O,0)+COUNTIF($O$4:O186,O186)-1 -> 183 | B186: Pittsburgh Steelers | C186: Wide Receiver | D186: ='Pittsburgh Steelers'!$B$120 -> Van Jefferson | E186: ='Pittsburgh Steelers'!$D$120 -> 0 | F186: ='Pittsburgh Steelers'!$E$120 -> 0 | G186: ='Pittsburgh Steelers'!$F$120 -> 0 | H186: ='Pittsburgh Steelers'!$G$120 -> 0 | I186: ='Pittsburgh Steelers'!$H$120 -> 0 | J186: ='Pittsburgh Steelers'!$I$120 -> 0 | K186: ='Pittsburgh Steelers'!$K$120 -> 0 | L186: ='Pittsburgh Steelers'!$L$120 -> 0 | M186: ='Pittsburgh Steelers'!$M$120 -> 0 | N186: ='Pittsburgh Steelers'!$N$120 -> 0 | O186: =IF('DFS Dashboard'!$H$1="DraftKings",'Total Projections (excl QB)'!G186*'DFS Dashboard'!$T$10+'Total Projections (excl QB)'!I186*'DFS Dashboard'!$T$8+'Total Projections (excl QB)'!J186*'DFS Dashboard'!$T$9+'Total Projections (excl QB)'!M186*'DFS Dashboard'!$T$6+'Total Projections (excl QB)'!N186*'DFS Dashboard'!$T$7+IF('Total Projections (excl QB)'!I186>99.99,'DFS Dashboard'!$T$12,0)+IF('Total Projections (excl QB)'!M186>99.99,'DFS Dashboard'!$T$11,0),IF('DFS Dashboard'!$H$1="FanDuel",'Total Projections (excl QB)'!G186*'DFS Dashboard'!$U$10+'Total Projections (excl QB)'!I186*'DFS Dashboard'!$U$8+'Total Projections (excl QB)'!J186*'DFS Dashboard'!$U$9+'Total Projections (excl QB)'!M186*'DFS Dashboard'!$U$6+'Total Projections (excl QB)'!N186*'DFS Dashboard'!$U$7+IF('Total Projections (excl QB)'!I186>99.99,'DFS Dashboard'!$U$12,0)+IF('Total Projections (excl QB)'!M186>99.99,'DFS Dashboard'!$U$11,0),0)) -> 0
A187: =RANK(O187,$O:$O,0)+COUNTIF($O$4:O187,O187)-1 -> 184 | B187: Pittsburgh Steelers | C187: Wide Receiver | D187: ='Pittsburgh Steelers'!$B$121 -> Mike Williams | E187: ='Pittsburgh Steelers'!$D$121 -> 0 | F187: ='Pittsburgh Steelers'!$E$121 -> 0 | G187: ='Pittsburgh Steelers'!$F$121 -> 0 | H187: ='Pittsburgh Steelers'!$G$121 -> 0 | I187: ='Pittsburgh Steelers'!$H$121 -> 0 | J187: ='Pittsburgh Steelers'!$I$121 -> 0 | K187: ='Pittsburgh Steelers'!$K$121 -> 0 | L187: ='Pittsburgh Steelers'!$L$121 -> 0 | M187: ='Pittsburgh Steelers'!$M$121 -> 0 | N187: ='Pittsburgh Steelers'!$N$121 -> 0 | O187: =IF('DFS Dashboard'!$H$1="DraftKings",'Total Projections (excl QB)'!G187*'DFS Dashboard'!$T$10+'Total Projections (excl QB)'!I187*'DFS Dashboard'!$T$8+'Total Projections (excl QB)'!J187*'DFS Dashboard'!$T$9+'Total Projections (excl QB)'!M187*'DFS Dashboard'!$T$6+'Total Projections (excl QB)'!N187*'DFS Dashboard'!$T$7+IF('Total Projections (excl QB)'!I187>99.99,'DFS Dashboard'!$T$12,0)+IF('Total Projections (excl QB)'!M187>99.99,'DFS Dashboard'!$T$11,0),IF('DFS Dashboard'!$H$1="FanDuel",'Total Projections (excl QB)'!G187*'DFS Dashboard'!$U$10+'Total Projections (excl QB)'!I187*'DFS Dashboard'!$U$8+'Total Projections (excl QB)'!J187*'DFS Dashboard'!$U$9+'Total Projections (excl QB)'!M187*'DFS Dashboard'!$U$6+'Total Projections (excl QB)'!N187*'DFS Dashboard'!$U$7+IF('Total Projections (excl QB)'!I187>99.99,'DFS Dashboard'!$U$12,0)+IF('Total Projections (excl QB)'!M187>99.99,'DFS Dashboard'!$U$11,0),0)) -> 0
A188: =RANK(O188,$O:$O,0)+COUNTIF($O$4:O188,O188)-1 -> 185 | B188: Pittsburgh Steelers | C188: Wide Receiver | D188: ='Pittsburgh Steelers'!$B$122 -> Scott Miller | E188: ='Pittsburgh Steelers'!$D$122 -> 0 | F188: ='Pittsburgh Steelers'!$E$122 -> 0 | G188: ='Pittsburgh Steelers'!$F$122 -> 0 | H188: ='Pittsburgh Steelers'!$G$122 -> 0 | I188: ='Pittsburgh Steelers'!$H$122 -> 0 | J188: ='Pittsburgh Steelers'!$I$122 -> 0 | K188: ='Pittsburgh Steelers'!$K$122 -> 0 | L188: ='Pittsburgh Steelers'!$L$122 -> 0 | M188: ='Pittsburgh Steelers'!$M$122 -> 0 | N188: ='Pittsburgh Steelers'!$N$122 -> 0 | O188: =IF('DFS Dashboard'!$H$1="DraftKings",'Total Projections (excl QB)'!G188*'DFS Dashboard'!$T$10+'Total Projections (excl QB)'!I188*'DFS Dashboard'!$T$8+'Total Projections (excl QB)'!J188*'DFS Dashboard'!$T$9+'Total Projections (excl QB)'!M188*'DFS Dashboard'!$T$6+'Total Projections (excl QB)'!N188*'DFS Dashboard'!$T$7+IF('Total Projections (excl QB)'!I188>99.99,'DFS Dashboard'!$T$12,0)+IF('Total Projections (excl QB)'!M188>99.99,'DFS Dashboard'!$T$11,0),IF('DFS Dashboard'!$H$1="FanDuel",'Total Projections (excl QB)'!G188*'DFS Dashboard'!$U$10+'Total Projections (excl QB)'!I188*'DFS Dashboard'!$U$8+'Total Projections (excl QB)'!J188*'DFS Dashboard'!$U$9+'Total Projections (excl QB)'!M188*'DFS Dashboard'!$U$6+'Total Projections (excl QB)'!N188*'DFS Dashboard'!$U$7+IF('Total Projections (excl QB)'!I188>99.99,'DFS Dashboard'!$U$12,0)+IF('Total Projections (excl QB)'!M188>99.99,'DFS Dashboard'!$U$11,0),0)) -> 0
A189: =RANK(O189,$O:$O,0)+COUNTIF($O$4:O189,O189)-1 -> 186 | B189: Pittsburgh Steelers | C189: Wide Receiver | D189: ='Pittsburgh Steelers'!$B$123 -> Ben Skowronek | E189: ='Pittsburgh Steelers'!$D$123 -> 0 | F189: ='Pittsburgh Steelers'!$E$123 -> 0 | G189: ='Pittsburgh Steelers'!$F$123 -> 0 | H189: ='Pittsburgh Steelers'!$G$123 -> 0 | I189: ='Pittsburgh Steelers'!$H$123 -> 0 | J189: ='Pittsburgh Steelers'!$I$123 -> 0 | K189: ='Pittsburgh Steelers'!$K$123 -> 0 | L189: ='Pittsburgh Steelers'!$L$123 -> 0 | M189: ='Pittsburgh Steelers'!$M$123 -> 0 | N189: ='Pittsburgh Steelers'!$N$123 -> 0 | O189: =IF('DFS Dashboard'!$H$1="DraftKings",'Total Projections (excl QB)'!G189*'DFS Dashboard'!$T$10+'Total Projections (excl QB)'!I189*'DFS Dashboard'!$T$8+'Total Projections (excl QB)'!J189*'DFS Dashboard'!$T$9+'Total Projections (excl QB)'!M189*'DFS Dashboard'!$T$6+'Total Projections (excl QB)'!N189*'DFS Dashboard'!$T$7+IF('Total Projections (excl QB)'!I189>99.99,'DFS Dashboard'!$T$12,0)+IF('Total Projections (excl QB)'!M189>99.99,'DFS Dashboard'!$T$11,0),IF('DFS Dashboard'!$H$1="FanDuel",'Total Projections (excl QB)'!G189*'DFS Dashboard'!$U$10+'Total Projections (excl QB)'!I189*'DFS Dashboard'!$U$8+'Total Projections (excl QB)'!J189*'DFS Dashboard'!$U$9+'Total Projections (excl QB)'!M189*'DFS Dashboard'!$U$6+'Total Projections (excl QB)'!N189*'DFS Dashboard'!$U$7+IF('Total Projections (excl QB)'!I189>99.99,'DFS Dashboard'!$U$12,0)+IF('Total Projections (excl QB)'!M189>99.99,'DFS Dashboard'!$U$11,0),0)) -> 0
A190: =RANK(O190,$O:$O,0)+COUNTIF($O$4:O190,O190)-1 -> 187 | B190: Pittsburgh Steelers | C190: Wide Receiver | D190: ='Pittsburgh Steelers'!$B$124 -> Brandon Johnson | E190: ='Pittsburgh Steelers'!$D$124 -> 0 | F190: ='Pittsburgh Steelers'!$E$124 -> 0 | G190: ='Pittsburgh Steelers'!$F$124 -> 0 | H190: ='Pittsburgh Steelers'!$G$124 -> 0 | I190: ='Pittsburgh Steelers'!$H$124 -> 0 | J190: ='Pittsburgh Steelers'!$I$124 -> 0 | K190: ='Pittsburgh Steelers'!$K$124 -> 0 | L190: ='Pittsburgh Steelers'!$L$124 -> 0 | M190: ='Pittsburgh Steelers'!$M$124 -> 0 | N190: ='Pittsburgh Steelers'!$N$124 -> 0 | O190: =IF('DFS Dashboard'!$H$1="DraftKings",'Total Projections (excl QB)'!G190*'DFS Dashboard'!$T$10+'Total Projections (excl QB)'!I190*'DFS Dashboard'!$T$8+'Total Projections (excl QB)'!J190*'DFS Dashboard'!$T$9+'Total Projections (excl QB)'!M190*'DFS Dashboard'!$T$6+'Total Projections (excl QB)'!N190*'DFS Dashboard'!$T$7+IF('Total Projections (excl QB)'!I190>99.99,'DFS Dashboard'!$T$12,0)+IF('Total Projections (excl QB)'!M190>99.99,'DFS Dashboard'!$T$11,0),IF('DFS Dashboard'!$H$1="FanDuel",'Total Projections (excl QB)'!G190*'DFS Dashboard'!$U$10+'Total Projections (excl QB)'!I190*'DFS Dashboard'!$U$8+'Total Projections (excl QB)'!J190*'DFS Dashboard'!$U$9+'Total Projections (excl QB)'!M190*'DFS Dashboard'!$U$6+'Total Projections (excl QB)'!N190*'DFS Dashboard'!$U$7+IF('Total Projections (excl QB)'!I190>99.99,'DFS Dashboard'!$U$12,0)+IF('Total Projections (excl QB)'!M190>99.99,'DFS Dashboard'!$U$11,0),0)) -> 0
A191: =RANK(O191,$O:$O,0)+COUNTIF($O$4:O191,O191)-1 -> 188 | B191: Pittsburgh Steelers | C191: Wide Receiver | D191: ='Pittsburgh Steelers'!$B$125 -> 0 | E191: ='Pittsburgh Steelers'!$D$125 -> 0 | F191: ='Pittsburgh Steelers'!$E$125 -> 0 | G191: ='Pittsburgh Steelers'!$F$125 -> 0 | H191: ='Pittsburgh Steelers'!$G$125 -> 0 | I191: ='Pittsburgh Steelers'!$H$125 -> 0 | J191: ='Pittsburgh Steelers'!$I$125 -> 0 | K191: ='Pittsburgh Steelers'!$K$125 -> 0 | L191: ='Pittsburgh Steelers'!$L$125 -> 0 | M191: ='Pittsburgh Steelers'!$M$125 -> 0 | N191: ='Pittsburgh Steelers'!$N$125 -> 0 | O191: =IF('DFS Dashboard'!$H$1="DraftKings",'Total Projections (excl QB)'!G191*'DFS Dashboard'!$T$10+'Total Projections (excl QB)'!I191*'DFS Dashboard'!$T$8+'Total Projections (excl QB)'!J191*'DFS Dashboard'!$T$9+'Total Projections (excl QB)'!M191*'DFS Dashboard'!$T$6+'Total Projections (excl QB)'!N191*'DFS Dashboard'!$T$7+IF('Total Projections (excl QB)'!I191>99.99,'DFS Dashboard'!$T$12,0)+IF('Total Projections (excl QB)'!M191>99.99,'DFS Dashboard'!$T$11,0),IF('DFS Dashboard'!$H$1="FanDuel",'Total Projections (excl QB)'!G191*'DFS Dashboard'!$U$10+'Total Projections (excl QB)'!I191*'DFS Dashboard'!$U$8+'Total Projections (excl QB)'!J191*'DFS Dashboard'!$U$9+'Total Projections (excl QB)'!M191*'DFS Dashboard'!$U$6+'Total Projections (excl QB)'!N191*'DFS Dashboard'!$U$7+IF('Total Projections (excl QB)'!I191>99.99,'DFS Dashboard'!$U$12,0)+IF('Total Projections (excl QB)'!M191>99.99,'DFS Dashboard'!$U$11,0),0)) -> 0
A192: =RANK(O192,$O:$O,0)+COUNTIF($O$4:O192,O192)-1 -> 189 | B192: Pittsburgh Steelers | C192: Tight End | D192: ='Pittsburgh Steelers'!$B$162 -> Pat Freiermuth | E192: ='Pittsburgh Steelers'!$D$162 -> 0 | F192: ='Pittsburgh Steelers'!$E$162 -> 0 | G192: ='Pittsburgh Steelers'!$F$162 -> 0 | H192: ='Pittsburgh Steelers'!$G$162 -> 0 | I192: ='Pittsburgh Steelers'!$H$162 -> 0 | J192: ='Pittsburgh Steelers'!$I$162 -> 0 | K192: ='Pittsburgh Steelers'!$K$162 -> 0 | L192: ='Pittsburgh Steelers'!$L$162 -> 0 | M192: ='Pittsburgh Steelers'!$M$162 -> 0 | N192: ='Pittsburgh Steelers'!$N$162 -> 0 | O192: =IF('DFS Dashboard'!$H$1="DraftKings",'Total Projections (excl QB)'!G192*'DFS Dashboard'!$T$10+'Total Projections (excl QB)'!I192*'DFS Dashboard'!$T$8+'Total Projections (excl QB)'!J192*'DFS Dashboard'!$T$9+'Total Projections (excl QB)'!M192*'DFS Dashboard'!$T$6+'Total Projections (excl QB)'!N192*'DFS Dashboard'!$T$7+IF('Total Projections (excl QB)'!I192>99.99,'DFS Dashboard'!$T$12,0)+IF('Total Projections (excl QB)'!M192>99.99,'DFS Dashboard'!$T$11,0),IF('DFS Dashboard'!$H$1="FanDuel",'Total Projections (excl QB)'!G192*'DFS Dashboard'!$U$10+'Total Projections (excl QB)'!I192*'DFS Dashboard'!$U$8+'Total Projections (excl QB)'!J192*'DFS Dashboard'!$U$9+'Total Projections (excl QB)'!M192*'DFS Dashboard'!$U$6+'Total Projections (excl QB)'!N192*'DFS Dashboard'!$U$7+IF('Total Projections (excl QB)'!I192>99.99,'DFS Dashboard'!$U$12,0)+IF('Total Projections (excl QB)'!M192>99.99,'DFS Dashboard'!$U$11,0),0)) -> 0
A193: =RANK(O193,$O:$O,0)+COUNTIF($O$4:O193,O193)-1 -> 190 | B193: Pittsburgh Steelers | C193: Tight End | D193: ='Pittsburgh Steelers'!$B$163 -> Darnell Washington | E193: ='Pittsburgh Steelers'!$D$163 -> 0 | F193: ='Pittsburgh Steelers'!$E$163 -> 0 | G193: ='Pittsburgh Steelers'!$F$163 -> 0 | H193: ='Pittsburgh Steelers'!$G$163 -> 0 | I193: ='Pittsburgh Steelers'!$H$163 -> 0 | J193: ='Pittsburgh Steelers'!$I$163 -> 0 | K193: ='Pittsburgh Steelers'!$K$163 -> 0 | L193: ='Pittsburgh Steelers'!$L$163 -> 0 | M193: ='Pittsburgh Steelers'!$M$163 -> 0 | N193: ='Pittsburgh Steelers'!$N$163 -> 0 | O193: =IF('DFS Dashboard'!$H$1="DraftKings",'Total Projections (excl QB)'!G193*'DFS Dashboard'!$T$10+'Total Projections (excl QB)'!I193*'DFS Dashboard'!$T$8+'Total Projections (excl QB)'!J193*'DFS Dashboard'!$T$9+'Total Projections (excl QB)'!M193*'DFS Dashboard'!$T$6+'Total Projections (excl QB)'!N193*'DFS Dashboard'!$T$7+IF('Total Projections (excl QB)'!I193>99.99,'DFS Dashboard'!$T$12,0)+IF('Total Projections (excl QB)'!M193>99.99,'DFS Dashboard'!$T$11,0),IF('DFS Dashboard'!$H$1="FanDuel",'Total Projections (excl QB)'!G193*'DFS Dashboard'!$U$10+'Total Projections (excl QB)'!I193*'DFS Dashboard'!$U$8+'Total Projections (excl QB)'!J193*'DFS Dashboard'!$U$9+'Total Projections (excl QB)'!M193*'DFS Dashboard'!$U$6+'Total Projections (excl QB)'!N193*'DFS Dashboard'!$U$7+IF('Total Projections (excl QB)'!I193>99.99,'DFS Dashboard'!$U$12,0)+IF('Total Projections (excl QB)'!M193>99.99,'DFS Dashboard'!$U$11,0),0)) -> 0
